Workbook

Sheet Schedule Setup
A2: Schedule Availability
F3: Wednesday | H3: Thursday | J3: Friday | L3: Saturday | N3: Sunday | P3: Monday | R3: Tuesday | U3: Time
B4: Name | C4: Number | D4: Job | E4: Wage | F4: Start | G4: End | H4: Start | I4: End | J4: Start | K4: End | L4: Start | M4: End | N4: Start | O4: End | P4: Start | Q4: End | R4: Start | S4: End | U4: 05:00:00
A5: =A4+1 -> 1 | B5: Shaun Payne | D5: General Manager (S) | F5: 05:00:00 | G5: 20:30:00 | H5: UnAvail | I5: UnAvail | J5: UnAvail | K5: UnAvail | L5: 06:00:00 | M5: 21:30:00 | N5: 07:00:00 | O5: 19:30:00 | P5: UnAvail | Q5: UnAvail | R5: UnAvail | S5: UnAvail | U5: =U4+(0.5/24) -> 05:30:00
A6: 2 | B6: Clay Huycke-McCall | D6: Shift Manager | F6: Req. Off | G6: Req. Off | H6: Req. Off | I6: Req. Off | J6: Req. Off | K6: Req. Off | L6: Req. Off | M6: Req. Off | N6: UnAvail | O6: UnAvail | P6: 06:00:00 | Q6: 20:30:00 | R6: 06:00:00 | S6: 20:30:00 | U6: =U5+(0.5/24) -> 06:00:00
A7: 3 | B7: Shaina Hunt | D7: Shift Manager | F7: 05:00:00 | G7: 20:30:00 | H7: 06:00:00 | I7: 20:30:00 | J7: 06:00:00 | K7: 21:30:00 | L7: 06:00:00 | M7: 21:30:00 | N7: 07:00:00 | O7: 19:30:00 | P7: 06:00:00 | Q7: 20:30:00 | R7: 06:00:00 | S7: 20:30:00 | U7: 06:30:00
A8: 4 | B8: Christian Fink | D8: Team Lead | F8: 17:30:00 | G8: 20:30:00 | H8: 06:00:00 | I8: 20:30:00 | J8: 06:00:00 | K8: 21:30:00 | L8: 06:00:00 | M8: 21:30:00 | N8: UnAvail | O8: UnAvail | P8: UnAvail | Q8: UnAvail | R8: UnAvail | S8: UnAvail | U8: 07:00:00
A9: =A8+1 -> 5 | B9: Brendan Frye | D9: Team Member | F9: 07:00:00 | G9: 20:30:00 | H9: 07:00:00 | I9: 20:30:00 | J9: 07:00:00 | K9: 21:30:00 | L9: 07:00:00 | M9: 21:30:00 | N9: 08:00:00 | O9: 19:30:00 | P9: 07:00:00 | Q9: 20:30:00 | R9: 07:00:00 | S9: 20:30:00 | U9: 07:30:00
A10: 6 | B10: Jordan Galli | D10: Team Member | F10: 07:00:00 | G10: 20:30:00 | H10: 07:00:00 | I10: 20:30:00 | J10: 07:00:00 | K10: 21:30:00 | L10: 07:00:00 | M10: 21:30:00 | N10: 08:00:00 | O10: 19:30:00 | P10: 07:00:00 | Q10: 20:30:00 | R10: 07:00:00 | S10: 14:30:00 | U10: 08:00:00
A11: 7 | B11: Madelyn Hickey | D11: Team Member | F11: UnAvail | G11: UnAvail | H11: UnAvail | I11: UnAvail | J11: UnAvail | K11: UnAvail | L11: UnAvail | M11: UnAvail | N11: 08:00:00 | O11: 19:30:00 | P11: 07:00:00 | Q11: 20:30:00 | R11: UnAvail | S11: UnAvail | U11: 08:30:00
A12: 8 | F12: 05:00:00 | G12: 08:30:00 | U12: 09:00:00
A13: 9 | U13: 09:30:00
A14: 10 | U14: 10:00:00
A15: 11 | U15: 10:30:00
A16: 12 | U16: 11:00:00
A17: =A16+1 -> 13 | U17: 11:30:00
A18: 14 | B18: Matt Louden | D18: Team Member | F18: 07:00:00 | G18: 20:30:00 | H18: 07:00:00 | I18: 16:30:00 | J18: 07:00:00 | K18: 21:30:00 | L18: 07:00:00 | M18: 21:30:00 | N18: 08:00:00 | O18: 19:30:00 | P18: 07:00:00 | Q18: 16:30:00 | R18: 07:00:00 | S18: 16:30:00 | U18: 12:00:00
A19: 15 | B19: Ani Reyes | D19: Team Member | F19: 15:30:00 | G19: 20:30:00 | H19: 15:30:00 | I19: 20:30:00 | J19: 15:30:00 | K19: 21:30:00 | L19: 07:00:00 | M19: 21:30:00 | N19: 08:00:00 | O19: 19:30:00 | P19: 07:00:00 | Q19: 20:30:00 | R19: 07:00:00 | S19: 20:30:00 | U19: 12:30:00
A20: =A19+1 -> 16 | B20: Andrew Philips | D20: Team Member | F20: 16:00:00 | G20: 20:30:00 | H20: 16:00:00 | I20: 20:30:00 | J20: 16:00:00 | K20: 21:30:00 | L20: 07:00:00 | M20: 17:30:00 | N20: 16:00:00 | O20: 19:30:00 | P20: 07:00:00 | Q20: 20:30:00 | R20: 07:00:00 | S20: 20:30:00 | U20: 13:00:00
A21: 17 | U21: 13:30:00
A22: 18 | U22: 14:00:00
A23: =A22+1 -> 19 | B23: . | U23: 14:30:00
A24: 20 | B24: Sean Duncan | D24: Team Lead | P24: 14:30:00 | Q24: 20:30:00 | U24: 15:00:00
A25: 21 | U25: 15:30:00
A26: 22 | U26: 16:00:00
A27: 23 | U27: 16:30:00
A28: 24 | U28: 17:00:00
A29: 25 | U29: =U28+(0.5/24) -> 17:30:00
A30: 26 | U30: 18:00:00
A31: 27 | U31: =U30+(0.5/24) -> 18:30:00
A32: 28 | U32: 19:00:00
A33: 29 | U33: 19:30:00
A34: 30 | U34: 20:00:00
A35: 31 | U35: 20:30:00
A36: 32 | U36: 21:00:00
A37: 33 | U37: 21:30:00
A38: 34 | U38: 22:00:00
A39: 35 | U39: =U38+(0.5/24) -> 22:30:00
B40: v10.17.14 | D40: Store Hours | F40: 07:00:00 | G40: 20:00:00 | H40: 07:00:00 | I40: 20:00:00 | J40: 07:00:00 | K40: 21:00:00 | L40: 07:30:00 | M40: 21:00:00 | N40: 08:00:00 | O40: 19:00:00 | P40: 07:00:00 | Q40: 20:00:00 | R40: 07:00:00 | S40: 20:00:00 | U40: 23:00:00
U41: 23:30:00
D42: Events | U42: 1
D43: Stone Valley | H43: 09:00:00 | U43: UnAvail
D44: Choice Lunch | H44: 10:30:00 | U44: Req. Off
D45: Training - Clay
D46: Training - Shaina | U46: Job
D47: No School | P47: Req. Off | Q47: Req. Off | R47: Req. Off | S47: Req. Off | U47: General Manager (S)
U48: General Manager (H)
U49: Acting Manager
A50: Standard Availability | U50: Shift Manager
F51: Wednesday | H51: Thursday | J51: Friday | L51: Saturday | N51: Sunday | P51: Monday | R51: Tuesday | U51: Team Lead
B52: Name | C52: Number | D52: Job | E52: Wage | F52: Start | G52: End | H52: Start | I52: End | J52: Start | K52: End | L52: Start | M52: End | N52: Start | O52: End | P52: Start | Q52: End | R52: Start | S52: End | U52: Team Member
A53: =A52+1 -> 1 | B53: Shaun Payne | D53: General Manager (S) | F53: 05:00:00 | G53: 20:30:00 | H53: 06:00:00 | I53: 20:30:00 | J53: 06:00:00 | K53: 21:30:00 | L53: 06:00:00 | M53: 21:30:00 | N53: 07:00:00 | O53: 19:30:00 | P53: 06:00:00 | Q53: 20:30:00 | R53: 06:00:00 | S53: 20:30:00
A54: 2 | B54: Clay Huycke-McCall | D54: Shift Manager | F54: 05:00:00 | G54: 20:30:00 | H54: 06:00:00 | I54: 20:30:00 | J54: 06:00:00 | K54: 21:30:00 | L54: 06:00:00 | M54: 21:30:00 | N54: UnAvail | O54: UnAvail | P54: 06:00:00 | Q54: 20:30:00 | R54: 06:00:00 | S54: 20:30:00
A55: 3 | B55: Shaina Hunt | D55: Shift Manager | F55: 05:00:00 | G55: 20:30:00 | H55: 06:00:00 | I55: 20:30:00 | J55: 06:00:00 | K55: 21:30:00 | L55: 06:00:00 | M55: 21:30:00 | N55: 07:00:00 | O55: 19:30:00 | P55: 06:00:00 | Q55: 20:30:00 | R55: 06:00:00 | S55: 20:30:00
A56: 4 | B56: Christian Fink | D56: Team Lead | F56: 17:30:00 | G56: 20:30:00 | H56: 06:00:00 | I56: 20:30:00 | J56: 06:00:00 | K56: 21:30:00 | L56: 06:00:00 | M56: 21:30:00 | N56: 07:00:00 | O56: 19:30:00 | P56: 17:30:00 | Q56: 20:30:00 | R56: 06:00:00 | S56: 20:30:00
A57: =A56+1 -> 5 | B57: Brendan Frye | D57: Team Member | F57: 07:00:00 | G57: 20:30:00 | H57: 07:00:00 | I57: 20:30:00 | J57: 07:00:00 | K57: 21:30:00 | L57: 07:00:00 | M57: 21:30:00 | N57: 08:00:00 | O57: 19:30:00 | P57: 07:00:00 | Q57: 20:30:00 | R57: 07:00:00 | S57: 20:30:00
A58: 6 | B58: Jordan Galli | D58: Team Member | F58: 07:00:00 | G58: 20:30:00 | H58: 07:00:00 | I58: 20:30:00 | J58: 07:00:00 | K58: 21:30:00 | L58: 07:00:00 | M58: 21:30:00 | N58: 08:00:00 | O58: 19:30:00 | P58: 07:00:00 | Q58: 20:30:00 | R58: 07:00:00 | S58: 14:30:00
A59: 7 | B59: Madelyn Hickey | D59: Team Member | F59: UnAvail | G59: UnAvail | H59: UnAvail | I59: UnAvail | J59: UnAvail | K59: UnAvail | L59: UnAvail | M59: UnAvail | N59: 08:00:00 | O59: 19:30:00 | P59: 15:30:00 | Q59: 20:30:00 | R59: UnAvail | S59: UnAvail
A60: 8 | F60: 05:30:00 | G60: 08:30:00
A61: 9
A62: 10
A63: 11
A64: 12
A65: =A64+1 -> 13
A66: 14 | B66: Matt Louden | D66: Team Member | F66: 07:00:00 | G66: 20:30:00 | H66: 07:00:00 | I66: 16:30:00 | J66: 07:00:00 | K66: 21:30:00 | L66: 07:00:00 | M66: 21:30:00 | N66: 08:00:00 | O66: 19:30:00 | P66: 07:00:00 | Q66: 16:30:00 | R66: 07:00:00 | S66: 16:30:00
A67: 15 | B67: Ani Reyes | D67: Team Member | F67: 15:30:00 | G67: 20:30:00 | H67: 15:30:00 | I67: 20:30:00 | J67: 15:30:00 | K67: 21:30:00 | L67: 07:00:00 | M67: 21:30:00 | N67: 08:00:00 | O67: 19:30:00 | P67: 15:30:00 | Q67: 20:30:00 | R67: 15:30:00 | S67: 20:30:00
A68: =A67+1 -> 16 | B68: Andrew Philips | D68: Team Member | F68: 16:00:00 | G68: 20:30:00 | H68: 16:00:00 | I68: 20:30:00 | J68: 16:00:00 | K68: 21:30:00 | L68: 07:00:00 | M68: 21:30:00 | N68: 16:00:00 | O68: 19:30:00 | P68: 16:00:00 | Q68: 20:30:00 | R68: 16:00:00 | S68: 20:30:00
A69: 17
A70: 18
A71: =A70+1 -> 19 | B71: .
A72: 20 | B72: Sean Duncan | D72: Team Lead | P72: 14:30:00 | Q72: 20:30:00
A73: 21
A74: 22
A75: 23
A76: 24
A77: 25
A78: 26
A79: 27
A80: 28
A81: 29
A82: 30
A83: 31
A84: 32
A85: 33
A86: 34
A87: 35

Sheet Shift Schedule
B2: Store: | D2: 1361 Danville | I2: For the Week of: | O2: 2014-11-19 | W2: Last Weeks AVG Labor | AC2: 10 | AG2: Reccomended Hours | AM2: =AT49+AT95+AT141+AT187+AT233+AT279+AT325 -> 181
DW3: Gross Labor | EF3: Net Labor
B5: Wednesday | S5: Today's Date | T5: =O2 -> 2014-11-19 | DW5: Breakfast | DY5: Lunch | EA5: Dinner | EC5: Total | EF5: Breakfast | EH5: Lunch | EJ5: Dinner | EL5: Total | EO5: Availability
B6: Employee | C6: Job | E6: Start | F6: End | H6: 05:00:00 | I6: 05:30:00 | J6: 06:00:00 | K6: 06:30:00 | L6: 07:00:00 | M6: 07:30:00 | N6: 08:00:00 | O6: 08:30:00 | P6: 09:00:00 | Q6: 09:30:00 | R6: 10:00:00 | S6: 10:30:00 | T6: 11:00:00 | U6: 11:30:00 | V6: 12:00:00 | W6: 12:30:00 | X6: 13:00:00 | Y6: 13:30:00 | Z6: 14:00:00 | AA6: 14:30:00 | AB6: 15:00:00 | AC6: 15:30:00 | AD6: 16:00:00 | AE6: 16:30:00 | AF6: 17:00:00 | AG6: 17:30:00 | AH6: 18:00:00 | AI6: 18:30:00 | AJ6: 19:00:00 | AK6: 19:30:00 | AL6: 20:00:00 | AM6: 20:30:00 | AN6: 21:00:00 | AO6: 21:30:00 | AP6: 22:00:00 | AQ6: 22:30:00 | AR6: 23:00:00 | AS6: 23:30:00 | AT6: TOTAL | AV6: 5 | AX6: 6 | AZ6: 7 | BB6: 8 | BD6: 9 | BF6: 10 | BH6: 11 | BJ6: 12 | BL6: 1 | BN6: 2 | BP6: 3 | BR6: 4 | BT6: 5 | BV6: 6 | BX6: 7 | BZ6: 8 | CB6: 9 | CD6: 10 | CF6: 11 | CI6: 5 | CK6: 6 | CM6: 7 | CO6: 8 | CQ6: 9 | CS6: 10 | CU6: 11 | CW6: 12 | CY6: 1 | DA6: 2 | DC6: 3 | DE6: 4 | DG6: 5 | DI6: 6 | DK6: 7 | DM6: 8 | DO6: 9 | DQ6: 10 | DS6: 11 | DV6: Rate | DW6: Hrs | DX6: $ | DY6: Hrs | DZ6: $ | EA6: Hrs | EB6: $ | EC6: Hrs | ED6: $ | EF6: Hrs | EG6: $ | EH6: Hrs | EI6: $ | EJ6: Hrs | EK6: $ | EL6: Hrs | EM6: $ | EO6: Start | EP6: End | EQ6: Start-Early | ER6: End-Late
A7: 1 | B7: =IF(VLOOKUP($A7,'Schedule Setup'!$A$4:$E$39,2,FALSE)=0,"",VLOOKUP($A7,'Schedule Setup'!$A$4:$E$39,2,FALSE)) -> Shaun Payne | C7: =IF(VLOOKUP($A7,'Schedule Setup'!$A$4:$E$39,4,FALSE)=0,"",VLOOKUP($A7,'Schedule Setup'!$A$4:$E$39,4,FALSE)) -> General Manager (S) | D7: =IF(B7<>"",IF(OR(C7="General Manager (S)", C7="General Manager (H)"), "GM",IF(C7="Acting Manager","AM",IF(C7="Shift Manager","SM",IF(C7="Team Lead","TL","TM")))),"") -> GM | E7: 05:00:00 | F7: 13:30:00 | H7: =AV7 -> GM | I7: GM | J7: GM | K7: GM | L7: GM | M7: GM | N7: GM | O7: GM | P7: GM | Q7: GM | R7: GM | S7: GM | T7: GM | U7: GM | V7: GM | W7: GM | X7: GM | AM7: x | AN7: =CB7 -> x | AO7: x | AP7: x | AQ7: x | AR7: x | AS7: x | AT7: =EC7 -> 8.5 | AV7: =IF(AND($EO7<=H$6+0.01,$EP7>H$6+0.01),IF(AND(H$6<$F7-0.01,H$6>=$E7-0.01),$D7,""),"x") -> GM | AW7: =IF(AND($EO7<=I$6+0.01,$EP7>I$6+0.01),IF(AND(I$6<$F7-0.01,I$6>=$E7-0.01),$D7,""),"x") -> GM | AX7: =IF(AND($EO7<=J$6+0.01,$EP7>J$6+0.01),IF(AND(J$6<$F7-0.01,J$6>=$E7-0.01),$D7,""),"x") -> GM | AY7: =IF(AND($EO7<=K$6+0.01,$EP7>K$6+0.01),IF(AND(K$6<$F7-0.01,K$6>=$E7-0.01),$D7,""),"x") -> GM | AZ7: =IF(AND($EO7<=L$6+0.01,$EP7>L$6+0.01),IF(AND(L$6<$F7-0.01,L$6>=$E7-0.01),$D7,""),"x") -> GM | BA7: =IF(AND($EO7<=M$6+0.01,$EP7>M$6+0.01),IF(AND(M$6<$F7-0.01,M$6>=$E7-0.01),$D7,""),"x") -> GM | BB7: =IF(AND($EO7<=N$6+0.01,$EP7>N$6+0.01),IF(AND(N$6<$F7-0.01,N$6>=$E7-0.01),$D7,""),"x") -> GM | BC7: =IF(AND($EO7<=O$6+0.01,$EP7>O$6+0.01),IF(AND(O$6<$F7-0.01,O$6>=$E7-0.01),$D7,""),"x") -> GM | BD7: =IF(AND($EO7<=P$6+0.01,$EP7>P$6+0.01),IF(AND(P$6<$F7-0.01,P$6>=$E7-0.01),$D7,""),"x") -> GM | BE7: =IF(AND($EO7<=Q$6+0.01,$EP7>Q$6+0.01),IF(AND(Q$6<$F7-0.01,Q$6>=$E7-0.01),$D7,""),"x") -> GM | BF7: =IF(AND($EO7<=R$6+0.01,$EP7>R$6+0.01),IF(AND(R$6<$F7-0.01,R$6>=$E7-0.01),$D7,""),"x") -> GM | BG7: =IF(AND($EO7<=S$6+0.01,$EP7>S$6+0.01),IF(AND(S$6<$F7-0.01,S$6>=$E7-0.01),$D7,""),"x") -> GM | BH7: =IF(AND($EO7<=T$6+0.01,$EP7>T$6+0.01),IF(AND(T$6<$F7-0.01,T$6>=$E7-0.01),$D7,""),"x") -> GM | BI7: =IF(AND($EO7<=U$6+0.01,$EP7>U$6+0.01),IF(AND(U$6<$F7-0.01,U$6>=$E7-0.01),$D7,""),"x") -> GM | BJ7: =IF(AND($EO7<=V$6+0.01,$EP7>V$6+0.01),IF(AND(V$6<$F7-0.01,V$6>=$E7-0.01),$D7,""),"x") -> GM | BK7: =IF(AND($EO7<=W$6+0.01,$EP7>W$6+0.01),IF(AND(W$6<$F7-0.01,W$6>=$E7-0.01),$D7,""),"x") -> GM | BL7: =IF(AND($EO7<=X$6+0.01,$EP7>X$6+0.01),IF(AND(X$6<$F7-0.01,X$6>=$E7-0.01),$D7,""),"x") -> GM | BM7: =IF(AND($EO7<=Y$6+0.01,$EP7>Y$6+0.01),IF(AND(Y$6<$F7-0.01,Y$6>=$E7-0.01),$D7,""),"x") ->  | BN7: =IF(AND($EO7<=Z$6+0.01,$EP7>Z$6+0.01),IF(AND(Z$6<$F7-0.01,Z$6>=$E7-0.01),$D7,""),"x") ->  | BO7: =IF(AND($EO7<=AA$6+0.01,$EP7>AA$6+0.01),IF(AND(AA$6<$F7-0.01,AA$6>=$E7-0.01),$D7,""),"x") ->  | BP7: =IF(AND($EO7<=AB$6+0.01,$EP7>AB$6+0.01),IF(AND(AB$6<$F7-0.01,AB$6>=$E7-0.01),$D7,""),"x") ->  | BQ7: =IF(AND($EO7<=AC$6+0.01,$EP7>AC$6+0.01),IF(AND(AC$6<$F7-0.01,AC$6>=$E7-0.01),$D7,""),"x") ->  | BR7: =IF(AND($EO7<=AD$6+0.01,$EP7>AD$6+0.01),IF(AND(AD$6<$F7-0.01,AD$6>=$E7-0.01),$D7,""),"x") ->  | BS7: =IF(AND($EO7<=AE$6+0.01,$EP7>AE$6+0.01),IF(AND(AE$6<$F7-0.01,AE$6>=$E7-0.01),$D7,""),"x") ->  | BT7: =IF(AND($EO7<=AF$6+0.01,$EP7>AF$6+0.01),IF(AND(AF$6<$F7-0.01,AF$6>=$E7-0.01),$D7,""),"x") ->  | BU7: =IF(AND($EO7<=AG$6+0.01,$EP7>AG$6+0.01),IF(AND(AG$6<$F7-0.01,AG$6>=$E7-0.01),$D7,""),"x") ->  | BV7: =IF(AND($EO7<=AH$6+0.01,$EP7>AH$6+0.01),IF(AND(AH$6<$F7-0.01,AH$6>=$E7-0.01),$D7,""),"x") ->  | BW7: =IF(AND($EO7<=AI$6+0.01,$EP7>AI$6+0.01),IF(AND(AI$6<$F7-0.01,AI$6>=$E7-0.01),$D7,""),"x") ->  | BX7: =IF(AND($EO7<=AJ$6+0.01,$EP7>AJ$6+0.01),IF(AND(AJ$6<$F7-0.01,AJ$6>=$E7-0.01),$D7,""),"x") ->  | BY7: =IF(AND($EO7<=AK$6+0.01,$EP7>AK$6+0.01),IF(AND(AK$6<$F7-0.01,AK$6>=$E7-0.01),$D7,""),"x") ->  | BZ7: =IF(AND($EO7<=AL$6+0.01,$EP7>AL$6+0.01),IF(AND(AL$6<$F7-0.01,AL$6>=$E7-0.01),$D7,""),"x") ->  | CA7: =IF(AND($EO7<=AM$6+0.01,$EP7>AM$6+0.01),IF(AND(AM$6<$F7-0.01,AM$6>=$E7-0.01),$D7,""),"x") -> x | CB7: =IF(AND($EO7<=AN$6+0.01,$EP7>AN$6+0.01),IF(AND(AN$6<$F7-0.01,AN$6>=$E7-0.01),$D7,""),"x") -> x | CC7: =IF(AND($EO7<=AO$6+0.01,$EP7>AO$6+0.01),IF(AND(AO$6<$F7-0.01,AO$6>=$E7-0.01),$D7,""),"x") -> x | CD7: =IF(AND($EO7<=AP$6+0.01,$EP7>AP$6+0.01),IF(AND(AP$6<$F7-0.01,AP$6>=$E7-0.01),$D7,""),"x") -> x | CE7: =IF(AND($EO7<=AQ$6+0.01,$EP7>AQ$6+0.01),IF(AND(AQ$6<$F7-0.01,AQ$6>=$E7-0.01),$D7,""),"x") -> x | CF7: =IF(AND($EO7<=AR$6+0.01,$EP7>AR$6+0.01),IF(AND(AR$6<$F7-0.01,AR$6>=$E7-0.01),$D7,""),"x") -> x | CG7: =IF(AND($EO7<=AS$6+0.01,$EP7>AS$6+0.01),IF(AND(AS$6<$F7-0.01,AS$6>=$E7-0.01),$D7,""),"x") -> x | CI7: =IF(AND(AV7<>"",AV7<>"x"),0.5,) -> 0.5 | CJ7: =IF(AND(AW7<>"",AW7<>"x"),0.5,) -> 0.5 | CK7: 0.5 | CL7: 0.5 | CM7: 0.5 | CN7: 0.5 | CO7: 0.5 | CP7: 0.5 | CQ7: 0.5 | CR7: 0.5 | CS7: 0.5 | CT7: 0.5 | CU7: 0.5 | CV7: 0.5 | CW7: 0.5 | CX7: 0.5 | CY7: 0.5 | CZ7: 0 | DA7: 0 | DB7: 0 | DC7: 0 | DD7: 0 | DE7: 0 | DF7: 0 | DG7: 0 | DH7: 0 | DI7: 0 | DJ7: 0 | DK7: 0 | DL7: 0 | DM7: 0 | DN7: 0 | DO7: 0 | DP7: 0 | DQ7: 0 | DR7: 0 | DS7: 0 | DT7: 0 | DV7: =IF(VLOOKUP($A7,'Schedule Setup'!$A$4:$E$39,5,FALSE)=0,"",VLOOKUP($A7,'Schedule Setup'!$A$4:$E$39,5,FALSE)) ->  | DW7: =SUM(CI7:CT7) -> 6 | DX7: =IFERROR(DW7*$DV7,"") ->  | DY7: =SUM(CU7:DF7) -> 2.5 | DZ7: =IFERROR(DY7*$DV7,"") ->  | EA7: =SUM(DG7:DT7) -> 0 | EB7: =IFERROR(EA7*$DV7,"") ->  | EC7: =SUM(DW7,DY7,EA7) -> 8.5 | ED7: =IFERROR(EC7*$DV7,"") ->  | EF7: =IF(DW7>5,(DW7-0.5),DW7) -> 5.5 | EG7: =IFERROR(EF7*$DV7,"") ->  | EH7: =IF(DY7>5,(DY7-0.5),DY7) -> 2.5 | EI7: =IFERROR(EH7*$DV7,"") ->  | EJ7: =IF(EA7>5,(EA7-0.5),EA7) -> 0 | EK7: =IFERROR(EJ7*$DV7,"") ->  | EL7: =SUM(EF7,EH7,EJ7) -> 8 | EM7: =IFERROR(EL7*$DV7,"") ->  | EO7: ='Schedule Setup'!F5 -> 05:00:00 | EP7: ='Schedule Setup'!G5 -> 20:30:00 | EQ7: =EO7-(0.5/24) -> 04:30:00 | ER7: =EP7+(0.5/24) -> 21:00:00
A8: =A7+1 -> 2 | B8: =IF(VLOOKUP($A8,'Schedule Setup'!$A$4:$E$39,2,FALSE)=0,"",VLOOKUP($A8,'Schedule Setup'!$A$4:$E$39,2,FALSE)) -> Clay Huycke-McCall | C8: =IF(VLOOKUP($A8,'Schedule Setup'!$A$4:$E$39,4,FALSE)=0,"",VLOOKUP($A8,'Schedule Setup'!$A$4:$E$39,4,FALSE)) -> Shift Manager | D8: =IF(B8<>"",IF(OR(C8="General Manager (S)", C8="General Manager (H)"), "GM",IF(C8="Acting Manager","AM",IF(C8="Shift Manager","SM",IF(C8="Team Lead","TL","TM")))),"") -> SM | H8: x | I8: x | J8: x | K8: x | L8: x | M8: x | N8: x | O8: x | P8: x | Q8: x | R8: x | S8: x | T8: x | U8: x | V8: x | W8: x | X8: x | Y8: x | Z8: x | AA8: x | AB8: x | AC8: x | AD8: x | AE8: x | AF8: x | AG8: x | AH8: x | AI8: x | AJ8: x | AK8: x | AL8: x | AM8: x | AN8: x | AO8: x | AP8: x | AQ8: x | AR8: x | AS8: x | AT8: =EC8 -> 0 | AV8: x | AW8: x | AX8: x | AY8: x | AZ8: x | BA8: x | BB8: x | BC8: x | BD8: x | BE8: x | BF8: x | BG8: x | BH8: x | BI8: x | BJ8: x | BK8: x | BL8: x | BM8: x | BN8: x | BO8: x | BP8: x | BQ8: x | BR8: x | BS8: x | BT8: x | BU8: x | BV8: x | BW8: x | BX8: x | BY8: x | BZ8: x | CA8: x | CB8: x | CC8: x | CD8: x | CE8: x | CF8: x | CG8: x | CI8: =IF(AND(AV8<>"",AV8<>"x"),0.5,) -> 0 | CJ8: =IF(AND(AW8<>"",AW8<>"x"),0.5,) -> 0 | CK8: =IF(AND(AX8<>"",AX8<>"x"),0.5,) -> 0 | CL8: =IF(AND(AY8<>"",AY8<>"x"),0.5,) -> 0 | CM8: =IF(AND(AZ8<>"",AZ8<>"x"),0.5,) -> 0 | CN8: =IF(AND(BA8<>"",BA8<>"x"),0.5,) -> 0 | CO8: =IF(AND(BB8<>"",BB8<>"x"),0.5,) -> 0 | CP8: =IF(AND(BC8<>"",BC8<>"x"),0.5,) -> 0 | CQ8: =IF(AND(BD8<>"",BD8<>"x"),0.5,) -> 0 | CR8: =IF(AND(BE8<>"",BE8<>"x"),0.5,) -> 0 | CS8: =IF(AND(BF8<>"",BF8<>"x"),0.5,) -> 0 | CT8: =IF(AND(BG8<>"",BG8<>"x"),0.5,) -> 0 | CU8: =IF(AND(BH8<>"",BH8<>"x"),0.5,) -> 0 | CV8: =IF(AND(BI8<>"",BI8<>"x"),0.5,) -> 0 | CW8: =IF(AND(BJ8<>"",BJ8<>"x"),0.5,) -> 0 | CX8: =IF(AND(BK8<>"",BK8<>"x"),0.5,) -> 0 | CY8: =IF(AND(BL8<>"",BL8<>"x"),0.5,) -> 0 | CZ8: =IF(AND(BM8<>"",BM8<>"x"),0.5,) -> 0 | DA8: =IF(AND(BN8<>"",BN8<>"x"),0.5,) -> 0 | DB8: =IF(AND(BO8<>"",BO8<>"x"),0.5,) -> 0 | DC8: =IF(AND(BP8<>"",BP8<>"x"),0.5,) -> 0 | DD8: =IF(AND(BQ8<>"",BQ8<>"x"),0.5,) -> 0 | DE8: =IF(AND(BR8<>"",BR8<>"x"),0.5,) -> 0 | DF8: =IF(AND(BS8<>"",BS8<>"x"),0.5,) -> 0 | DG8: =IF(AND(BT8<>"",BT8<>"x"),0.5,) -> 0 | DH8: =IF(AND(BU8<>"",BU8<>"x"),0.5,) -> 0 | DI8: =IF(AND(BV8<>"",BV8<>"x"),0.5,) -> 0 | DJ8: =IF(AND(BW8<>"",BW8<>"x"),0.5,) -> 0 | DK8: =IF(AND(BX8<>"",BX8<>"x"),0.5,) -> 0 | DL8: =IF(AND(BY8<>"",BY8<>"x"),0.5,) -> 0 | DM8: =IF(AND(BZ8<>"",BZ8<>"x"),0.5,) -> 0 | DN8: =IF(AND(CA8<>"",CA8<>"x"),0.5,) -> 0 | DO8: =IF(AND(CB8<>"",CB8<>"x"),0.5,) -> 0 | DP8: =IF(AND(CC8<>"",CC8<>"x"),0.5,) -> 0 | DQ8: =IF(AND(CD8<>"",CD8<>"x"),0.5,) -> 0 | DR8: =IF(AND(CE8<>"",CE8<>"x"),0.5,) -> 0 | DS8: =IF(AND(CF8<>"",CF8<>"x"),0.5,) -> 0 | DT8: =IF(AND(CG8<>"",CG8<>"x"),0.5,) -> 0 | DV8: =IF(VLOOKUP($A8,'Schedule Setup'!$A$4:$E$39,5,FALSE)=0,"",VLOOKUP($A8,'Schedule Setup'!$A$4:$E$39,5,FALSE)) ->  | DW8: 0 | DY8: 0 | EA8: 0 | EC8: =SUM(DW8,DY8,EA8) -> 0 | EF8: =IF(DW8>5,(DW8-0.5),DW8) -> 0 | EH8: =IF(DY8>5,(DY8-0.5),DY8) -> 0 | EJ8: 0 | EL8: =SUM(EF8,EH8,EJ8) -> 0 | EO8: ='Schedule Setup'!F6 -> Req. Off | EP8: ='Schedule Setup'!G6 -> Req. Off | EQ8: =EO8-(0.5/24) ->  | ER8: =EP8+(0.5/24) -> 
A9: =A8+1 -> 3 | B9: =IF(VLOOKUP($A9,'Schedule Setup'!$A$4:$E$39,2,FALSE)=0,"",VLOOKUP($A9,'Schedule Setup'!$A$4:$E$39,2,FALSE)) -> Shaina Hunt | C9: =IF(VLOOKUP($A9,'Schedule Setup'!$A$4:$E$39,4,FALSE)=0,"",VLOOKUP($A9,'Schedule Setup'!$A$4:$E$39,4,FALSE)) -> Shift Manager | D9: SM | E9: 12:30:00 | F9: 20:30:00 | W9: SM | X9: SM | Y9: SM | Z9: SM | AA9: SM | AB9: SM | AC9: SM | AD9: SM | AE9: SM | AF9: SM | AG9: SM | AH9: SM | AI9: SM | AJ9: SM | AK9: SM | AL9: SM | AM9: x | AN9: x | AO9: x | AP9: x | AQ9: x | AR9: x | AS9: x | AT9: 8 | BK9: SM | BL9: SM | BM9: SM | BN9: SM | BO9: SM | BP9: SM | BQ9: SM | BR9: SM | BS9: SM | BT9: SM | BU9: SM | BV9: SM | BW9: SM | BX9: SM | BY9: SM | BZ9: SM | CA9: x | CB9: x | CC9: x | CD9: x | CE9: x | CF9: x | CG9: x | CI9: 0 | CJ9: 0 | CK9: 0 | CL9: 0 | CM9: 0 | CN9: 0 | CO9: 0 | CP9: 0 | CQ9: 0 | CR9: 0 | CS9: 0 | CT9: 0 | CU9: 0 | CV9: 0 | CW9: 0 | CX9: 0.5 | CY9: 0.5 | CZ9: 0.5 | DA9: 0.5 | DB9: 0.5 | DC9: 0.5 | DD9: 0.5 | DE9: 0.5 | DF9: 0.5 | DG9: 0.5 | DH9: 0.5 | DI9: 0.5 | DJ9: 0.5 | DK9: 0.5 | DL9: 0.5 | DM9: 0.5 | DN9: 0 | DO9: 0 | DP9: 0 | DQ9: 0 | DR9: 0 | DS9: 0 | DT9: 0 | DV9: =IF(VLOOKUP($A9,'Schedule Setup'!$A$4:$E$39,5,FALSE)=0,"",VLOOKUP($A9,'Schedule Setup'!$A$4:$E$39,5,FALSE)) ->  | DW9: 0 | DY9: 4.5 | EA9: 3.5 | EC9: =SUM(DW9,DY9,EA9) -> 8 | EF9: 0 | EH9: 4.5 | EJ9: 3.5 | EL9: 8 | EO9: ='Schedule Setup'!F7 -> 05:00:00 | EP9: ='Schedule Setup'!G7 -> 20:30:00 | EQ9: 04:30:00 | ER9: 21:00:00
A10: 4 | B10: =IF(VLOOKUP($A10,'Schedule Setup'!$A$4:$E$39,2,FALSE)=0,"",VLOOKUP($A10,'Schedule Setup'!$A$4:$E$39,2,FALSE)) -> Christian Fink | C10: =IF(VLOOKUP($A10,'Schedule Setup'!$A$4:$E$39,4,FALSE)=0,"",VLOOKUP($A10,'Schedule Setup'!$A$4:$E$39,4,FALSE)) -> Team Lead | D10: TL | H10: x | I10: x | J10: x | K10: x | L10: x | M10: x | N10: x | O10: x | P10: x | Q10: x | R10: x | S10: x | T10: x | U10: x | V10: x | W10: x | X10: x | Y10: x | Z10: x | AA10: x | AB10: x | AC10: x | AD10: x | AE10: x | AF10: x | AM10: x | AN10: x | AO10: x | AP10: x | AQ10: x | AR10: x | AS10: x | AT10: 0 | AV10: x | AW10: x | AX10: x | AY10: x | AZ10: x | BA10: x | BB10: x | BC10: x | BD10: x | BE10: x | BF10: x | BG10: x | BH10: x | BI10: x | BJ10: x | BK10: x | BL10: x | BM10: x | BN10: x | BO10: x | BP10: x | BQ10: x | BR10: x | BS10: x | BT10: x | CA10: x | CB10: x | CC10: x | CD10: x | CE10: x | CF10: x | CG10: x | CI10: 0 | CJ10: 0 | CK10: 0 | CL10: 0 | CM10: 0 | CN10: 0 | CO10: 0 | CP10: 0 | CQ10: 0 | CR10: 0 | CS10: 0 | CT10: 0 | CU10: 0 | CV10: 0 | CW10: 0 | CX10: 0 | CY10: 0 | CZ10: 0 | DA10: 0 | DB10: 0 | DC10: 0 | DD10: 0 | DE10: 0 | DF10: 0 | DG10: 0 | DH10: 0 | DI10: 0 | DJ10: 0 | DK10: 0 | DL10: 0 | DM10: 0 | DN10: 0 | DO10: 0 | DP10: 0 | DQ10: 0 | DR10: 0 | DS10: 0 | DT10: 0 | DV10: =IF(VLOOKUP($A10,'Schedule Setup'!$A$4:$E$39,5,FALSE)=0,"",VLOOKUP($A10,'Schedule Setup'!$A$4:$E$39,5,FALSE)) ->  | DW10: 0 | DY10: 0 | EA10: 0 | EC10: 0 | EF10: 0 | EH10: 0 | EJ10: 0 | EL10: 0 | EO10: ='Schedule Setup'!F8 -> 17:30:00 | EP10: ='Schedule Setup'!G8 -> 20:30:00 | EQ10: =EO10-(0.5/24) -> 17:00:00 | ER10: =EP10+(0.5/24) -> 21:00:00
A11: 5 | B11: =IF(VLOOKUP($A11,'Schedule Setup'!$A$4:$E$39,2,FALSE)=0,"",VLOOKUP($A11,'Schedule Setup'!$A$4:$E$39,2,FALSE)) -> Brendan Frye | C11: =IF(VLOOKUP($A11,'Schedule Setup'!$A$4:$E$39,4,FALSE)=0,"",VLOOKUP($A11,'Schedule Setup'!$A$4:$E$39,4,FALSE)) -> Team Member | D11: TM | E11: 08:00:00 | F11: 16:00:00 | H11: x | I11: x | J11: x | K11: x | N11: TM | O11: TM | P11: TM | Q11: TM | R11: TM | S11: TM | T11: TM | U11: TM | V11: TM | W11: TM | X11: TM | Y11: TM | Z11: TM | AA11: TM | AB11: TM | AC11: TM | AM11: x | AN11: x | AO11: x | AP11: x | AQ11: x | AR11: x | AS11: x | AT11: 8 | AV11: x | AW11: x | AX11: x | AY11: x | BB11: TM | BC11: TM | BD11: TM | BE11: TM | BF11: TM | BG11: TM | BH11: TM | BI11: TM | BJ11: TM | BK11: TM | BL11: TM | BM11: TM | BN11: TM | BO11: TM | BP11: TM | BQ11: TM | CA11: x | CB11: x | CC11: x | CD11: x | CE11: x | CF11: x | CG11: x | CI11: 0 | CJ11: 0 | CK11: 0 | CL11: 0 | CM11: 0 | CN11: 0 | CO11: 0.5 | CP11: 0.5 | CQ11: 0.5 | CR11: 0.5 | CS11: 0.5 | CT11: 0.5 | CU11: 0.5 | CV11: 0.5 | CW11: 0.5 | CX11: 0.5 | CY11: 0.5 | CZ11: 0.5 | DA11: 0.5 | DB11: 0.5 | DC11: 0.5 | DD11: 0.5 | DE11: 0 | DF11: 0 | DG11: 0 | DH11: 0 | DI11: 0 | DJ11: 0 | DK11: 0 | DL11: 0 | DM11: 0 | DN11: 0 | DO11: 0 | DP11: 0 | DQ11: 0 | DR11: 0 | DS11: 0 | DT11: 0 | DV11: =IF(VLOOKUP($A11,'Schedule Setup'!$A$4:$E$39,5,FALSE)=0,"",VLOOKUP($A11,'Schedule Setup'!$A$4:$E$39,5,FALSE)) ->  | DW11: 3 | DY11: 5 | EA11: 0 | EC11: 8 | EF11: 3 | EH11: 5 | EJ11: 0 | EL11: 8 | EO11: ='Schedule Setup'!F9 -> 07:00:00 | EP11: ='Schedule Setup'!G9 -> 20:30:00 | EQ11: 06:30:00 | ER11: 21:00:00
A12: 6 | B12: =IF(VLOOKUP($A12,'Schedule Setup'!$A$4:$E$39,2,FALSE)=0,"",VLOOKUP($A12,'Schedule Setup'!$A$4:$E$39,2,FALSE)) -> Jordan Galli | C12: =IF(VLOOKUP($A12,'Schedule Setup'!$A$4:$E$39,4,FALSE)=0,"",VLOOKUP($A12,'Schedule Setup'!$A$4:$E$39,4,FALSE)) -> Team Member | D12: TM | E12: 13:30:00 | F12: 20:30:00 | H12: x | I12: x | J12: x | K12: x | Y12: TM | Z12: TM | AA12: TM | AB12: TM | AC12: TM | AD12: TM | AE12: TM | AF12: TM | AG12: TM | AH12: TM | AI12: TM | AJ12: TM | AK12: TM | AL12: TM | AM12: x | AN12: x | AO12: x | AP12: x | AQ12: x | AR12: x | AS12: x | AT12: 7 | AV12: x | AW12: x | AX12: x | AY12: x | BM12: TM | BN12: TM | BO12: TM | BP12: TM | BQ12: TM | BR12: TM | BS12: TM | BT12: TM | BU12: TM | BV12: TM | BW12: TM | BX12: TM | BY12: TM | BZ12: TM | CA12: x | CB12: x | CC12: x | CD12: x | CE12: x | CF12: x | CG12: x | CI12: 0 | CJ12: 0 | CK12: 0 | CL12: 0 | CM12: 0 | CN12: 0 | CO12: 0 | CP12: 0 | CQ12: 0 | CR12: 0 | CS12: 0 | CT12: 0 | CU12: 0 | CV12: 0 | CW12: 0 | CX12: 0 | CY12: 0 | CZ12: 0.5 | DA12: 0.5 | DB12: 0.5 | DC12: 0.5 | DD12: 0.5 | DE12: 0.5 | DF12: 0.5 | DG12: 0.5 | DH12: 0.5 | DI12: 0.5 | DJ12: 0.5 | DK12: 0.5 | DL12: 0.5 | DM12: 0.5 | DN12: 0 | DO12: 0 | DP12: 0 | DQ12: 0 | DR12: 0 | DS12: 0 | DT12: 0 | DV12: =IF(VLOOKUP($A12,'Schedule Setup'!$A$4:$E$39,5,FALSE)=0,"",VLOOKUP($A12,'Schedule Setup'!$A$4:$E$39,5,FALSE)) ->  | DW12: 0 | DY12: 3.5 | EA12: 3.5 | EC12: 7 | EF12: 0 | EH12: 3.5 | EJ12: 3.5 | EL12: 7 | EO12: ='Schedule Setup'!F10 -> 07:00:00 | EP12: ='Schedule Setup'!G10 -> 20:30:00 | EQ12: 06:30:00 | ER12: 21:00:00
A13: 7 | B13: =IF(VLOOKUP($A13,'Schedule Setup'!$A$4:$E$39,2,FALSE)=0,"",VLOOKUP($A13,'Schedule Setup'!$A$4:$E$39,2,FALSE)) -> Madelyn Hickey | C13: =IF(VLOOKUP($A13,'Schedule Setup'!$A$4:$E$39,4,FALSE)=0,"",VLOOKUP($A13,'Schedule Setup'!$A$4:$E$39,4,FALSE)) -> Team Member | D13: TM | H13: x | I13: x | J13: x | K13: x | L13: x | M13: x | N13: x | O13: x | P13: x | Q13: x | R13: x | S13: x | T13: x | U13: x | V13: x | W13: x | X13: x | Y13: x | Z13: x | AA13: x | AB13: x | AC13: x | AD13: x | AE13: x | AF13: x | AG13: x | AH13: x | AI13: =BW13 -> x | AJ13: x | AK13: x | AL13: x | AM13: x | AN13: x | AO13: x | AP13: x | AQ13: x | AR13: x | AS13: x | AT13: 0 | AV13: x | AW13: x | AX13: x | AY13: x | AZ13: x | BA13: x | BB13: x | BC13: x | BD13: x | BE13: x | BF13: x | BG13: x | BH13: x | BI13: x | BJ13: x | BK13: x | BL13: x | BM13: x | BN13: x | BO13: x | BP13: x | BQ13: x | BR13: x | BS13: x | BT13: x | BU13: x | BV13: x | BW13: x | BX13: x | BY13: x | BZ13: x | CA13: x | CB13: x | CC13: x | CD13: x | CE13: x | CF13: x | CG13: x | CI13: 0 | CJ13: 0 | CK13: 0 | CL13: 0 | CM13: 0 | CN13: 0 | CO13: 0 | CP13: 0 | CQ13: 0 | CR13: 0 | CS13: 0 | CT13: 0 | CU13: 0 | CV13: 0 | CW13: 0 | CX13: 0 | CY13: 0 | CZ13: 0 | DA13: 0 | DB13: 0 | DC13: 0 | DD13: 0 | DE13: 0 | DF13: 0 | DG13: 0 | DH13: 0 | DI13: 0 | DJ13: 0 | DK13: 0 | DL13: 0 | DM13: 0 | DN13: 0 | DO13: 0 | DP13: 0 | DQ13: 0 | DR13: 0 | DS13: 0 | DT13: 0 | DV13: =IF(VLOOKUP($A13,'Schedule Setup'!$A$4:$E$39,5,FALSE)=0,"",VLOOKUP($A13,'Schedule Setup'!$A$4:$E$39,5,FALSE)) ->  | DW13: 0 | DY13: 0 | EA13: 0 | EC13: 0 | EF13: 0 | EH13: 0 | EJ13: 0 | EL13: 0 | EO13: ='Schedule Setup'!F11 -> UnAvail | EP13: ='Schedule Setup'!G11 -> UnAvail
A14: 8 | B14: =IF(VLOOKUP($A14,'Schedule Setup'!$A$4:$E$39,2,FALSE)=0,"",VLOOKUP($A14,'Schedule Setup'!$A$4:$E$39,2,FALSE)) ->  | C14: =IF(VLOOKUP($A14,'Schedule Setup'!$A$4:$E$39,4,FALSE)=0,"",VLOOKUP($A14,'Schedule Setup'!$A$4:$E$39,4,FALSE)) ->  | H14: =AV14 ->  | O14: x | P14: x | Q14: x | R14: x | S14: x | T14: x | U14: x | V14: x | W14: x | X14: =BL14 -> x | Y14: x | Z14: x | AA14: x | AB14: x | AC14: x | AD14: x | AE14: x | AF14: x | AG14: x | AH14: x | AI14: x | AJ14: x | AK14: x | AL14: x | AM14: x | AN14: x | AO14: x | AP14: x | AQ14: x | AR14: x | AS14: x | AT14: 0 | BC14: x | BD14: x | BE14: x | BF14: x | BG14: x | BH14: x | BI14: x | BJ14: x | BK14: x | BL14: x | BM14: x | BN14: x | BO14: x | BP14: x | BQ14: x | BR14: x | BS14: x | BT14: x | BU14: x | BV14: x | BW14: x | BX14: x | BY14: x | BZ14: x | CA14: x | CB14: x | CC14: =IF(AND($EO14<=AO$6+0.01,$EP14>AO$6+0.01),IF(AND(AO$6<$F14-0.01,AO$6>=$E14-0.01),$D14,""),"x") -> x | CD14: x | CE14: x | CF14: x | CG14: x | CI14: 0 | CJ14: 0 | CK14: 0 | CL14: 0 | CM14: 0 | CN14: 0 | CO14: 0 | CP14: 0 | CQ14: 0 | CR14: 0 | CS14: 0 | CT14: 0 | CU14: 0 | CV14: 0 | CW14: 0 | CX14: 0 | CY14: 0 | CZ14: 0 | DA14: 0 | DB14: 0 | DC14: 0 | DD14: 0 | DE14: 0 | DF14: 0 | DG14: 0 | DH14: 0 | DI14: 0 | DJ14: 0 | DK14: 0 | DL14: 0 | DM14: 0 | DN14: 0 | DO14: 0 | DP14: 0 | DQ14: 0 | DR14: 0 | DS14: 0 | DT14: 0 | DV14: =IF(VLOOKUP($A14,'Schedule Setup'!$A$4:$E$39,5,FALSE)=0,"",VLOOKUP($A14,'Schedule Setup'!$A$4:$E$39,5,FALSE)) ->  | DW14: 0 | DX14: =IFERROR(DW14*$DV14,"") ->  | DY14: 0 | EA14: 0 | EC14: 0 | EF14: 0 | EH14: 0 | EJ14: 0 | EL14: 0 | EO14: ='Schedule Setup'!F12 -> 05:00:00 | EP14: ='Schedule Setup'!G12 -> 08:30:00 | EQ14: 04:30:00 | ER14: 09:00:00
A15: 9 | B15: =IF(VLOOKUP($A15,'Schedule Setup'!$A$4:$E$39,2,FALSE)=0,"",VLOOKUP($A15,'Schedule Setup'!$A$4:$E$39,2,FALSE)) ->  | C15: =IF(VLOOKUP($A15,'Schedule Setup'!$A$4:$E$39,4,FALSE)=0,"",VLOOKUP($A15,'Schedule Setup'!$A$4:$E$39,4,FALSE)) ->  | H15: x | I15: x | J15: x | K15: x | L15: x | M15: x | N15: x | O15: x | P15: x | Q15: x | R15: x | S15: x | T15: x | U15: x | V15: x | W15: x | X15: x | Y15: x | Z15: x | AA15: x | AB15: x | AC15: x | AD15: x | AE15: x | AF15: x | AG15: x | AH15: x | AI15: x | AJ15: x | AK15: x | AL15: x | AM15: x | AN15: x | AO15: x | AP15: x | AQ15: x | AR15: x | AS15: x | AT15: 0 | AV15: x | AW15: x | AX15: x | AY15: x | AZ15: x | BA15: x | BB15: x | BC15: x | BD15: x | BE15: x | BF15: x | BG15: x | BH15: x | BI15: x | BJ15: x | BK15: x | BL15: x | BM15: x | BN15: x | BO15: x | BP15: x | BQ15: x | BR15: x | BS15: x | BT15: x | BU15: x | BV15: x | BW15: x | BX15: x | BY15: x | BZ15: x | CA15: x | CB15: x | CC15: =IF(AND($EO15<=AO$6+0.01,$EP15>AO$6+0.01),IF(AND(AO$6<$F15-0.01,AO$6>=$E15-0.01),$D15,""),"x") -> x | CD15: x | CE15: x | CF15: x | CG15: x | CI15: 0 | CJ15: 0 | CK15: 0 | CL15: 0 | CM15: 0 | CN15: 0 | CO15: 0 | CP15: 0 | CQ15: 0 | CR15: 0 | CS15: 0 | CT15: 0 | CU15: 0 | CV15: 0 | CW15: 0 | CX15: 0 | CY15: 0 | CZ15: 0 | DA15: 0 | DB15: 0 | DC15: 0 | DD15: 0 | DE15: 0 | DF15: 0 | DG15: 0 | DH15: 0 | DI15: 0 | DJ15: 0 | DK15: 0 | DL15: 0 | DM15: 0 | DN15: 0 | DO15: 0 | DP15: 0 | DQ15: 0 | DR15: 0 | DS15: 0 | DT15: 0 | DV15: =IF(VLOOKUP($A15,'Schedule Setup'!$A$4:$E$39,5,FALSE)=0,"",VLOOKUP($A15,'Schedule Setup'!$A$4:$E$39,5,FALSE)) ->  | DW15: 0 | DY15: 0 | EA15: 0 | EC15: 0 | EF15: 0 | EH15: 0 | EJ15: 0 | EL15: 0 | EO15: ='Schedule Setup'!F13 -> 00:00:00 | EP15: ='Schedule Setup'!G13 -> 00:00:00 | EQ15: -0.02083333333 | ER15: 00:30:00
A16: 10 | B16: =IF(VLOOKUP($A16,'Schedule Setup'!$A$4:$E$39,2,FALSE)=0,"",VLOOKUP($A16,'Schedule Setup'!$A$4:$E$39,2,FALSE)) ->  | C16: =IF(VLOOKUP($A16,'Schedule Setup'!$A$4:$E$39,4,FALSE)=0,"",VLOOKUP($A16,'Schedule Setup'!$A$4:$E$39,4,FALSE)) ->  | H16: x | I16: x | J16: x | K16: x | L16: x | M16: x | N16: x | O16: x | P16: x | Q16: x | R16: x | S16: x | T16: x | U16: x | V16: x | W16: x | X16: x | Y16: x | Z16: x | AA16: x | AB16: x | AC16: x | AD16: x | AE16: x | AF16: x | AG16: x | AH16: x | AI16: x | AJ16: x | AK16: x | AL16: x | AM16: x | AN16: x | AO16: x | AP16: x | AQ16: x | AR16: x | AS16: x | AT16: 0 | AV16: x | AW16: x | AX16: x | AY16: x | AZ16: x | BA16: x | BB16: x | BC16: x | BD16: x | BE16: x | BF16: x | BG16: x | BH16: x | BI16: x | BJ16: x | BK16: x | BL16: x | BM16: x | BN16: x | BO16: x | BP16: x | BQ16: x | BR16: x | BS16: x | BT16: x | BU16: x | BV16: x | BW16: x | BX16: x | BY16: x | BZ16: x | CA16: x | CB16: x | CC16: x | CD16: x | CE16: x | CF16: x | CG16: x | CI16: 0 | CJ16: 0 | CK16: 0 | CL16: 0 | CM16: 0 | CN16: 0 | CO16: 0 | CP16: 0 | CQ16: 0 | CR16: 0 | CS16: 0 | CT16: 0 | CU16: 0 | CV16: 0 | CW16: 0 | CX16: 0 | CY16: 0 | CZ16: 0 | DA16: 0 | DB16: 0 | DC16: 0 | DD16: 0 | DE16: 0 | DF16: 0 | DG16: 0 | DH16: 0 | DI16: 0 | DJ16: 0 | DK16: 0 | DL16: 0 | DM16: 0 | DN16: 0 | DO16: 0 | DP16: 0 | DQ16: 0 | DR16: 0 | DS16: 0 | DT16: 0 | DV16: =IF(VLOOKUP($A16,'Schedule Setup'!$A$4:$E$39,5,FALSE)=0,"",VLOOKUP($A16,'Schedule Setup'!$A$4:$E$39,5,FALSE)) ->  | DW16: 0 | DY16: 0 | EA16: 0 | EC16: 0 | EF16: 0 | EH16: 0 | EJ16: 0 | EL16: 0 | EO16: ='Schedule Setup'!F14 -> 00:00:00 | EP16: ='Schedule Setup'!G14 -> 00:00:00 | EQ16: -0.02083333333 | ER16: 00:30:00
A17: 11 | B17: =IF(VLOOKUP($A17,'Schedule Setup'!$A$4:$E$39,2,FALSE)=0,"",VLOOKUP($A17,'Schedule Setup'!$A$4:$E$39,2,FALSE)) ->  | C17: =IF(VLOOKUP($A17,'Schedule Setup'!$A$4:$E$39,4,FALSE)=0,"",VLOOKUP($A17,'Schedule Setup'!$A$4:$E$39,4,FALSE)) ->  | H17: x | I17: x | J17: x | K17: x | L17: x | M17: x | N17: x | O17: x | P17: x | Q17: x | R17: x | S17: x | T17: x | U17: x | V17: x | W17: x | X17: x | Y17: x | Z17: x | AA17: x | AB17: x | AC17: x | AD17: x | AE17: x | AF17: x | AG17: x | AH17: x | AI17: x | AJ17: x | AK17: x | AL17: x | AM17: x | AN17: x | AO17: x | AP17: x | AQ17: x | AR17: x | AS17: x | AT17: 0 | AV17: x | AW17: x | AX17: x | AY17: x | AZ17: x | BA17: x | BB17: x | BC17: x | BD17: x | BE17: x | BF17: x | BG17: x | BH17: x | BI17: x | BJ17: x | BK17: x | BL17: x | BM17: x | BN17: x | BO17: x | BP17: x | BQ17: x | BR17: x | BS17: x | BT17: x | BU17: x | BV17: x | BW17: x | BX17: x | BY17: x | BZ17: x | CA17: x | CB17: x | CC17: x | CD17: x | CE17: x | CF17: x | CG17: x | CI17: 0 | CJ17: 0 | CK17: 0 | CL17: 0 | CM17: 0 | CN17: 0 | CO17: 0 | CP17: 0 | CQ17: 0 | CR17: 0 | CS17: 0 | CT17: 0 | CU17: 0 | CV17: 0 | CW17: 0 | CX17: 0 | CY17: 0 | CZ17: 0 | DA17: 0 | DB17: 0 | DC17: 0 | DD17: 0 | DE17: 0 | DF17: 0 | DG17: 0 | DH17: 0 | DI17: 0 | DJ17: 0 | DK17: 0 | DL17: 0 | DM17: 0 | DN17: 0 | DO17: 0 | DP17: 0 | DQ17: 0 | DR17: 0 | DS17: 0 | DT17: 0 | DV17: =IF(VLOOKUP($A17,'Schedule Setup'!$A$4:$E$39,5,FALSE)=0,"",VLOOKUP($A17,'Schedule Setup'!$A$4:$E$39,5,FALSE)) ->  | DW17: 0 | DY17: 0 | EA17: 0 | EC17: 0 | EF17: 0 | EH17: 0 | EJ17: 0 | EL17: 0 | EO17: ='Schedule Setup'!F15 -> 00:00:00 | EP17: ='Schedule Setup'!G15 -> 00:00:00 | EQ17: -0.02083333333 | ER17: 00:30:00
A18: 12 | B18: =IF(VLOOKUP($A18,'Schedule Setup'!$A$4:$E$39,2,FALSE)=0,"",VLOOKUP($A18,'Schedule Setup'!$A$4:$E$39,2,FALSE)) ->  | C18: =IF(VLOOKUP($A18,'Schedule Setup'!$A$4:$E$39,4,FALSE)=0,"",VLOOKUP($A18,'Schedule Setup'!$A$4:$E$39,4,FALSE)) ->  | H18: x | I18: x | J18: x | K18: x | L18: x | M18: x | N18: x | O18: x | P18: x | Q18: x | R18: x | S18: x | T18: x | U18: x | V18: x | W18: x | X18: x | Y18: x | Z18: x | AA18: x | AB18: x | AC18: x | AD18: x | AE18: x | AF18: x | AG18: x | AH18: x | AI18: x | AJ18: x | AK18: x | AL18: x | AM18: x | AN18: x | AO18: x | AP18: x | AQ18: x | AR18: x | AS18: x | AT18: 0 | AV18: x | AW18: x | AX18: x | AY18: x | AZ18: x | BA18: x | BB18: x | BC18: x | BD18: x | BE18: x | BF18: x | BG18: x | BH18: x | BI18: x | BJ18: x | BK18: x | BL18: x | BM18: x | BN18: x | BO18: x | BP18: x | BQ18: x | BR18: x | BS18: x | BT18: x | BU18: x | BV18: x | BW18: x | BX18: x | BY18: x | BZ18: x | CA18: x | CB18: x | CC18: x | CD18: x | CE18: x | CF18: x | CG18: x | CI18: 0 | CJ18: 0 | CK18: 0 | CL18: 0 | CM18: 0 | CN18: 0 | CO18: 0 | CP18: 0 | CQ18: 0 | CR18: 0 | CS18: 0 | CT18: 0 | CU18: 0 | CV18: 0 | CW18: 0 | CX18: 0 | CY18: 0 | CZ18: 0 | DA18: 0 | DB18: 0 | DC18: 0 | DD18: 0 | DE18: 0 | DF18: 0 | DG18: 0 | DH18: 0 | DI18: 0 | DJ18: 0 | DK18: 0 | DL18: 0 | DM18: 0 | DN18: 0 | DO18: 0 | DP18: 0 | DQ18: 0 | DR18: 0 | DS18: 0 | DT18: 0 | DV18: =IF(VLOOKUP($A18,'Schedule Setup'!$A$4:$E$39,5,FALSE)=0,"",VLOOKUP($A18,'Schedule Setup'!$A$4:$E$39,5,FALSE)) ->  | DW18: 0 | DY18: 0 | EA18: 0 | EC18: 0 | EF18: 0 | EH18: 0 | EJ18: 0 | EL18: 0 | EO18: ='Schedule Setup'!F16 -> 00:00:00 | EP18: ='Schedule Setup'!G16 -> 00:00:00 | EQ18: -0.02083333333 | ER18: 00:30:00
A19: 13 | B19: =IF(VLOOKUP($A19,'Schedule Setup'!$A$4:$E$39,2,FALSE)=0,"",VLOOKUP($A19,'Schedule Setup'!$A$4:$E$39,2,FALSE)) ->  | C19: =IF(VLOOKUP($A19,'Schedule Setup'!$A$4:$E$39,4,FALSE)=0,"",VLOOKUP($A19,'Schedule Setup'!$A$4:$E$39,4,FALSE)) ->  | H19: x | I19: x | J19: x | K19: x | L19: x | M19: x | N19: x | O19: x | P19: x | Q19: x | R19: x | S19: x | T19: x | U19: x | V19: x | W19: x | X19: x | Y19: x | Z19: x | AA19: x | AB19: x | AC19: x | AD19: x | AE19: x | AF19: x | AG19: x | AH19: x | AI19: x | AJ19: x | AK19: x | AL19: x | AM19: x | AN19: x | AO19: x | AP19: x | AQ19: x | AR19: x | AS19: x | AT19: 0 | AV19: x | AW19: x | AX19: x | AY19: x | AZ19: x | BA19: x | BB19: x | BC19: x | BD19: x | BE19: x | BF19: x | BG19: x | BH19: x | BI19: x | BJ19: x | BK19: x | BL19: x | BM19: x | BN19: x | BO19: x | BP19: x | BQ19: x | BR19: x | BS19: x | BT19: x | BU19: x | BV19: x | BW19: x | BX19: x | BY19: x | BZ19: x | CA19: x | CB19: x | CC19: x | CD19: x | CE19: x | CF19: x | CG19: x | CI19: 0 | CJ19: 0 | CK19: 0 | CL19: 0 | CM19: 0 | CN19: 0 | CO19: 0 | CP19: 0 | CQ19: 0 | CR19: 0 | CS19: 0 | CT19: 0 | CU19: 0 | CV19: 0 | CW19: 0 | CX19: 0 | CY19: 0 | CZ19: 0 | DA19: 0 | DB19: 0 | DC19: 0 | DD19: 0 | DE19: 0 | DF19: 0 | DG19: 0 | DH19: 0 | DI19: 0 | DJ19: 0 | DK19: 0 | DL19: 0 | DM19: 0 | DN19: 0 | DO19: 0 | DP19: 0 | DQ19: 0 | DR19: 0 | DS19: 0 | DT19: 0 | DV19: =IF(VLOOKUP($A19,'Schedule Setup'!$A$4:$E$39,5,FALSE)=0,"",VLOOKUP($A19,'Schedule Setup'!$A$4:$E$39,5,FALSE)) ->  | DW19: 0 | DY19: 0 | EA19: 0 | EC19: 0 | EF19: 0 | EH19: 0 | EJ19: 0 | EL19: 0 | EO19: ='Schedule Setup'!F17 -> 00:00:00 | EP19: ='Schedule Setup'!G17 -> 00:00:00 | EQ19: -0.02083333333 | ER19: 00:30:00
A20: 14 | B20: =IF(VLOOKUP($A20,'Schedule Setup'!$A$4:$E$39,2,FALSE)=0,"",VLOOKUP($A20,'Schedule Setup'!$A$4:$E$39,2,FALSE)) -> Matt Louden | C20: =IF(VLOOKUP($A20,'Schedule Setup'!$A$4:$E$39,4,FALSE)=0,"",VLOOKUP($A20,'Schedule Setup'!$A$4:$E$39,4,FALSE)) -> Team Member | D20: TM | E20: 14:30:00 | F20: 18:30:00 | H20: x | I20: x | J20: x | K20: x | AA20: TM | AB20: TM | AC20: TM | AD20: TM | AE20: TM | AF20: TM | AG20: TM | AH20: TM | AM20: x | AN20: x | AO20: x | AP20: x | AQ20: x | AR20: x | AS20: x | AT20: 4 | AV20: x | AW20: x | AX20: x | AY20: x | BO20: TM | BP20: TM | BQ20: TM | BR20: TM | BS20: TM | BT20: TM | BU20: TM | BV20: TM | CA20: x | CB20: x | CC20: x | CD20: x | CE20: x | CF20: x | CG20: x | CI20: 0 | CJ20: 0 | CK20: 0 | CL20: 0 | CM20: 0 | CN20: 0 | CO20: 0 | CP20: 0 | CQ20: 0 | CR20: 0 | CS20: 0 | CT20: 0 | CU20: 0 | CV20: 0 | CW20: 0 | CX20: 0 | CY20: 0 | CZ20: 0 | DA20: 0 | DB20: 0.5 | DC20: 0.5 | DD20: 0.5 | DE20: 0.5 | DF20: 0.5 | DG20: 0.5 | DH20: 0.5 | DI20: 0.5 | DJ20: 0 | DK20: 0 | DL20: 0 | DM20: 0 | DN20: 0 | DO20: 0 | DP20: 0 | DQ20: 0 | DR20: 0 | DS20: 0 | DT20: 0 | DV20: =IF(VLOOKUP($A20,'Schedule Setup'!$A$4:$E$39,5,FALSE)=0,"",VLOOKUP($A20,'Schedule Setup'!$A$4:$E$39,5,FALSE)) ->  | DW20: 0 | DY20: 2.5 | EA20: 1.5 | EC20: 4 | EF20: 0 | EH20: 2.5 | EJ20: 1.5 | EL20: 4 | EO20: ='Schedule Setup'!F18 -> 07:00:00 | EP20: ='Schedule Setup'!G18 -> 20:30:00 | EQ20: 06:30:00 | ER20: 21:00:00
A21: 15 | B21: =IF(VLOOKUP($A21,'Schedule Setup'!$A$4:$E$39,2,FALSE)=0,"",VLOOKUP($A21,'Schedule Setup'!$A$4:$E$39,2,FALSE)) -> Ani Reyes | C21: =IF(VLOOKUP($A21,'Schedule Setup'!$A$4:$E$39,4,FALSE)=0,"",VLOOKUP($A21,'Schedule Setup'!$A$4:$E$39,4,FALSE)) -> Team Member | D21: TM | H21: x | I21: x | J21: x | K21: x | L21: x | M21: x | N21: x | O21: x | P21: x | Q21: x | R21: x | S21: x | T21: x | U21: x | V21: x | W21: x | X21: x | Y21: x | Z21: x | AA21: x | AB21: x | AM21: x | AN21: x | AO21: x | AP21: x | AQ21: x | AR21: x | AS21: x | AT21: 0 | AV21: x | AW21: x | AX21: x | AY21: x | AZ21: x | BA21: x | BB21: x | BC21: x | BD21: x | BE21: x | BF21: x | BG21: x | BH21: x | BI21: x | BJ21: x | BK21: x | BL21: x | BM21: x | BN21: x | BO21: x | BP21: x | CA21: x | CB21: x | CC21: x | CD21: x | CE21: x | CF21: x | CG21: x | CI21: 0 | CJ21: 0 | CK21: 0 | CL21: 0 | CM21: 0 | CN21: 0 | CO21: 0 | CP21: 0 | CQ21: 0 | CR21: 0 | CS21: 0 | CT21: 0 | CU21: 0 | CV21: 0 | CW21: 0 | CX21: 0 | CY21: 0 | CZ21: 0 | DA21: 0 | DB21: 0 | DC21: 0 | DD21: 0 | DE21: 0 | DF21: 0 | DG21: 0 | DH21: 0 | DI21: 0 | DJ21: 0 | DK21: 0 | DL21: 0 | DM21: 0 | DN21: 0 | DO21: 0 | DP21: 0 | DQ21: 0 | DR21: 0 | DS21: 0 | DT21: 0 | DV21: =IF(VLOOKUP($A21,'Schedule Setup'!$A$4:$E$39,5,FALSE)=0,"",VLOOKUP($A21,'Schedule Setup'!$A$4:$E$39,5,FALSE)) ->  | DW21: 0 | DY21: 0 | EA21: 0 | EC21: 0 | EF21: 0 | EH21: 0 | EJ21: 0 | EL21: 0 | EO21: ='Schedule Setup'!F19 -> 15:30:00 | EP21: ='Schedule Setup'!G19 -> 20:30:00 | EQ21: 15:00:00 | ER21: 21:00:00
A22: 16 | B22: =IF(VLOOKUP($A22,'Schedule Setup'!$A$4:$E$39,2,FALSE)=0,"",VLOOKUP($A22,'Schedule Setup'!$A$4:$E$39,2,FALSE)) -> Andrew Philips | C22: =IF(VLOOKUP($A22,'Schedule Setup'!$A$4:$E$39,4,FALSE)=0,"",VLOOKUP($A22,'Schedule Setup'!$A$4:$E$39,4,FALSE)) -> Team Member | D22: TM | H22: x | I22: x | J22: x | K22: x | L22: x | M22: x | N22: x | O22: x | P22: x | Q22: x | R22: x | S22: x | T22: x | U22: x | V22: x | W22: x | X22: x | Y22: x | Z22: x | AA22: x | AB22: x | AC22: x | AM22: x | AN22: x | AO22: x | AP22: x | AQ22: x | AR22: x | AS22: x | AT22: 0 | AV22: x | AW22: x | AX22: x | AY22: x | AZ22: x | BA22: x | BB22: x | BC22: x | BD22: x | BE22: x | BF22: x | BG22: x | BH22: x | BI22: x | BJ22: x | BK22: x | BL22: =IF(AND($EO22<=X$6+0.01,$EP22>X$6+0.01),IF(AND(X$6<$F22-0.01,X$6>=$E22-0.01),$D22,""),"x") -> x | BM22: =IF(AND($EO22<=Y$6+0.01,$EP22>Y$6+0.01),IF(AND(Y$6<$F22-0.01,Y$6>=$E22-0.01),$D22,""),"x") -> x | BN22: =IF(AND($EO22<=Z$6+0.01,$EP22>Z$6+0.01),IF(AND(Z$6<$F22-0.01,Z$6>=$E22-0.01),$D22,""),"x") -> x | BO22: =IF(AND($EO22<=AA$6+0.01,$EP22>AA$6+0.01),IF(AND(AA$6<$F22-0.01,AA$6>=$E22-0.01),$D22,""),"x") -> x | BP22: =IF(AND($EO22<=AB$6+0.01,$EP22>AB$6+0.01),IF(AND(AB$6<$F22-0.01,AB$6>=$E22-0.01),$D22,""),"x") -> x | BQ22: =IF(AND($EO22<=AC$6+0.01,$EP22>AC$6+0.01),IF(AND(AC$6<$F22-0.01,AC$6>=$E22-0.01),$D22,""),"x") -> x | BR22: =IF(AND($EO22<=AD$6+0.01,$EP22>AD$6+0.01),IF(AND(AD$6<$F22-0.01,AD$6>=$E22-0.01),$D22,""),"x") ->  | BS22: =IF(AND($EO22<=AE$6+0.01,$EP22>AE$6+0.01),IF(AND(AE$6<$F22-0.01,AE$6>=$E22-0.01),$D22,""),"x") ->  | BT22: =IF(AND($EO22<=AF$6+0.01,$EP22>AF$6+0.01),IF(AND(AF$6<$F22-0.01,AF$6>=$E22-0.01),$D22,""),"x") ->  | BU22: =IF(AND($EO22<=AG$6+0.01,$EP22>AG$6+0.01),IF(AND(AG$6<$F22-0.01,AG$6>=$E22-0.01),$D22,""),"x") ->  | BV22: =IF(AND($EO22<=AH$6+0.01,$EP22>AH$6+0.01),IF(AND(AH$6<$F22-0.01,AH$6>=$E22-0.01),$D22,""),"x") ->  | BW22: =IF(AND($EO22<=AI$6+0.01,$EP22>AI$6+0.01),IF(AND(AI$6<$F22-0.01,AI$6>=$E22-0.01),$D22,""),"x") ->  | BX22: =IF(AND($EO22<=AJ$6+0.01,$EP22>AJ$6+0.01),IF(AND(AJ$6<$F22-0.01,AJ$6>=$E22-0.01),$D22,""),"x") ->  | BY22: =IF(AND($EO22<=AK$6+0.01,$EP22>AK$6+0.01),IF(AND(AK$6<$F22-0.01,AK$6>=$E22-0.01),$D22,""),"x") ->  | BZ22: =IF(AND($EO22<=AL$6+0.01,$EP22>AL$6+0.01),IF(AND(AL$6<$F22-0.01,AL$6>=$E22-0.01),$D22,""),"x") ->  | CA22: =IF(AND($EO22<=AM$6+0.01,$EP22>AM$6+0.01),IF(AND(AM$6<$F22-0.01,AM$6>=$E22-0.01),$D22,""),"x") -> x | CB22: =IF(AND($EO22<=AN$6+0.01,$EP22>AN$6+0.01),IF(AND(AN$6<$F22-0.01,AN$6>=$E22-0.01),$D22,""),"x") -> x | CC22: x | CD22: x | CE22: x | CF22: x | CG22: x | CI22: 0 | CJ22: 0 | CK22: 0 | CL22: 0 | CM22: 0 | CN22: 0 | CO22: 0 | CP22: 0 | CQ22: 0 | CR22: 0 | CS22: 0 | CT22: 0 | CU22: 0 | CV22: 0 | CW22: 0 | CX22: 0 | CY22: 0 | CZ22: 0 | DA22: 0 | DB22: 0 | DC22: 0 | DD22: 0 | DE22: 0 | DF22: 0 | DG22: 0 | DH22: 0 | DI22: 0 | DJ22: 0 | DK22: 0 | DL22: 0 | DM22: 0 | DN22: 0 | DO22: 0 | DP22: 0 | DQ22: 0 | DR22: 0 | DS22: 0 | DT22: 0 | DV22: =IF(VLOOKUP($A22,'Schedule Setup'!$A$4:$E$39,5,FALSE)=0,"",VLOOKUP($A22,'Schedule Setup'!$A$4:$E$39,5,FALSE)) ->  | DW22: 0 | DY22: 0 | EA22: 0 | EC22: 0 | EF22: 0 | EH22: 0 | EJ22: 0 | EL22: 0 | EO22: ='Schedule Setup'!F20 -> 16:00:00 | EP22: ='Schedule Setup'!G20 -> 20:30:00 | EQ22: 15:30:00 | ER22: 21:00:00
A23: 17 | B23: =IF(VLOOKUP($A23,'Schedule Setup'!$A$4:$E$39,2,FALSE)=0,"",VLOOKUP($A23,'Schedule Setup'!$A$4:$E$39,2,FALSE)) ->  | C23: =IF(VLOOKUP($A23,'Schedule Setup'!$A$4:$E$39,4,FALSE)=0,"",VLOOKUP($A23,'Schedule Setup'!$A$4:$E$39,4,FALSE)) ->  | H23: x | I23: x | J23: x | K23: x | L23: x | M23: x | N23: x | O23: x | P23: x | Q23: x | R23: x | S23: x | T23: x | U23: x | V23: x | W23: x | X23: x | Y23: x | Z23: x | AA23: x | AB23: x | AC23: x | AD23: x | AE23: x | AF23: x | AG23: x | AH23: x | AI23: x | AJ23: x | AK23: x | AL23: x | AM23: x | AN23: x | AO23: x | AP23: x | AQ23: x | AR23: x | AS23: x | AT23: 0 | AV23: =IF(AND($EO23<=H$6+0.01,$EP23>H$6+0.01),IF(AND(H$6<$F23-0.01,H$6>=$E23-0.01),$D23,""),"x") -> x | AW23: =IF(AND($EO23<=I$6+0.01,$EP23>I$6+0.01),IF(AND(I$6<$F23-0.01,I$6>=$E23-0.01),$D23,""),"x") -> x | AX23: =IF(AND($EO23<=J$6+0.01,$EP23>J$6+0.01),IF(AND(J$6<$F23-0.01,J$6>=$E23-0.01),$D23,""),"x") -> x | AY23: =IF(AND($EO23<=K$6+0.01,$EP23>K$6+0.01),IF(AND(K$6<$F23-0.01,K$6>=$E23-0.01),$D23,""),"x") -> x | AZ23: =IF(AND($EO23<=L$6+0.01,$EP23>L$6+0.01),IF(AND(L$6<$F23-0.01,L$6>=$E23-0.01),$D23,""),"x") -> x | BA23: =IF(AND($EO23<=M$6+0.01,$EP23>M$6+0.01),IF(AND(M$6<$F23-0.01,M$6>=$E23-0.01),$D23,""),"x") -> x | BB23: =IF(AND($EO23<=N$6+0.01,$EP23>N$6+0.01),IF(AND(N$6<$F23-0.01,N$6>=$E23-0.01),$D23,""),"x") -> x | BC23: =IF(AND($EO23<=O$6+0.01,$EP23>O$6+0.01),IF(AND(O$6<$F23-0.01,O$6>=$E23-0.01),$D23,""),"x") -> x | BD23: =IF(AND($EO23<=P$6+0.01,$EP23>P$6+0.01),IF(AND(P$6<$F23-0.01,P$6>=$E23-0.01),$D23,""),"x") -> x | BE23: =IF(AND($EO23<=Q$6+0.01,$EP23>Q$6+0.01),IF(AND(Q$6<$F23-0.01,Q$6>=$E23-0.01),$D23,""),"x") -> x | BF23: =IF(AND($EO23<=R$6+0.01,$EP23>R$6+0.01),IF(AND(R$6<$F23-0.01,R$6>=$E23-0.01),$D23,""),"x") -> x | BG23: =IF(AND($EO23<=S$6+0.01,$EP23>S$6+0.01),IF(AND(S$6<$F23-0.01,S$6>=$E23-0.01),$D23,""),"x") -> x | BH23: =IF(AND($EO23<=T$6+0.01,$EP23>T$6+0.01),IF(AND(T$6<$F23-0.01,T$6>=$E23-0.01),$D23,""),"x") -> x | BI23: =IF(AND($EO23<=U$6+0.01,$EP23>U$6+0.01),IF(AND(U$6<$F23-0.01,U$6>=$E23-0.01),$D23,""),"x") -> x | BJ23: =IF(AND($EO23<=V$6+0.01,$EP23>V$6+0.01),IF(AND(V$6<$F23-0.01,V$6>=$E23-0.01),$D23,""),"x") -> x | BK23: =IF(AND($EO23<=W$6+0.01,$EP23>W$6+0.01),IF(AND(W$6<$F23-0.01,W$6>=$E23-0.01),$D23,""),"x") -> x | BL23: x | BM23: x | BN23: x | BO23: x | BP23: x | BQ23: x | BR23: x | BS23: x | BT23: x | BU23: x | BV23: x | BW23: x | BX23: x | BY23: x | BZ23: x | CA23: x | CB23: x | CC23: x | CD23: x | CE23: x | CF23: x | CG23: x | CI23: 0 | CJ23: 0 | CK23: 0 | CL23: 0 | CM23: 0 | CN23: 0 | CO23: 0 | CP23: 0 | CQ23: 0 | CR23: 0 | CS23: 0 | CT23: 0 | CU23: 0 | CV23: 0 | CW23: 0 | CX23: 0 | CY23: 0 | CZ23: 0 | DA23: 0 | DB23: 0 | DC23: 0 | DD23: 0 | DE23: 0 | DF23: 0 | DG23: 0 | DH23: 0 | DI23: 0 | DJ23: 0 | DK23: 0 | DL23: 0 | DM23: 0 | DN23: 0 | DO23: 0 | DP23: 0 | DQ23: 0 | DR23: 0 | DS23: 0 | DT23: 0 | DV23: =IF(VLOOKUP($A23,'Schedule Setup'!$A$4:$E$39,5,FALSE)=0,"",VLOOKUP($A23,'Schedule Setup'!$A$4:$E$39,5,FALSE)) ->  | DW23: 0 | DY23: 0 | EA23: 0 | EC23: 0 | EF23: 0 | EH23: 0 | EJ23: 0 | EL23: 0 | EO23: ='Schedule Setup'!F21 -> 00:00:00 | EP23: ='Schedule Setup'!G21 -> 00:00:00 | EQ23: -0.02083333333 | ER23: 00:30:00
A24: 18 | B24: =IF(VLOOKUP($A24,'Schedule Setup'!$A$4:$E$39,2,FALSE)=0,"",VLOOKUP($A24,'Schedule Setup'!$A$4:$E$39,2,FALSE)) ->  | C24: =IF(VLOOKUP($A24,'Schedule Setup'!$A$4:$E$39,4,FALSE)=0,"",VLOOKUP($A24,'Schedule Setup'!$A$4:$E$39,4,FALSE)) ->  | H24: x | I24: x | J24: x | K24: x | L24: x | M24: x | N24: x | O24: x | P24: x | Q24: x | R24: x | S24: x | T24: x | U24: x | V24: x | W24: x | X24: x | Y24: x | Z24: x | AA24: x | AB24: x | AC24: x | AD24: x | AE24: x | AF24: x | AG24: x | AH24: x | AI24: x | AJ24: x | AK24: x | AL24: x | AM24: x | AN24: x | AO24: x | AP24: x | AQ24: x | AR24: x | AS24: x | AT24: 0 | AV24: x | AW24: x | AX24: x | AY24: x | AZ24: x | BA24: x | BB24: x | BC24: x | BD24: x | BE24: x | BF24: x | BG24: x | BH24: x | BI24: x | BJ24: x | BK24: x | BL24: x | BM24: x | BN24: x | BO24: x | BP24: x | BQ24: x | BR24: x | BS24: x | BT24: x | BU24: x | BV24: x | BW24: x | BX24: x | BY24: x | BZ24: x | CA24: x | CB24: x | CC24: x | CD24: x | CE24: x | CF24: x | CG24: x | CI24: 0 | CJ24: 0 | CK24: 0 | CL24: 0 | CM24: 0 | CN24: 0 | CO24: 0 | CP24: 0 | CQ24: 0 | CR24: 0 | CS24: 0 | CT24: 0 | CU24: 0 | CV24: 0 | CW24: 0 | CX24: 0 | CY24: 0 | CZ24: 0 | DA24: 0 | DB24: 0 | DC24: 0 | DD24: 0 | DE24: 0 | DF24: 0 | DG24: 0 | DH24: 0 | DI24: 0 | DJ24: 0 | DK24: 0 | DL24: 0 | DM24: 0 | DN24: 0 | DO24: 0 | DP24: 0 | DQ24: 0 | DR24: 0 | DS24: 0 | DT24: 0 | DV24: =IF(VLOOKUP($A24,'Schedule Setup'!$A$4:$E$39,5,FALSE)=0,"",VLOOKUP($A24,'Schedule Setup'!$A$4:$E$39,5,FALSE)) ->  | DW24: 0 | DY24: 0 | EA24: 0 | EC24: 0 | EF24: 0 | EH24: 0 | EJ24: 0 | EL24: 0 | EO24: ='Schedule Setup'!F22 -> 00:00:00 | EP24: ='Schedule Setup'!G22 -> 00:00:00 | EQ24: -0.02083333333 | ER24: 00:30:00
A25: 19 | B25: =IF(VLOOKUP($A25,'Schedule Setup'!$A$4:$E$39,2,FALSE)=0,"",VLOOKUP($A25,'Schedule Setup'!$A$4:$E$39,2,FALSE)) -> . | C25: =IF(VLOOKUP($A25,'Schedule Setup'!$A$4:$E$39,4,FALSE)=0,"",VLOOKUP($A25,'Schedule Setup'!$A$4:$E$39,4,FALSE)) ->  | D25: TM | H25: x | I25: x | J25: x | K25: x | L25: x | M25: x | N25: x | O25: x | P25: x | Q25: x | R25: x | S25: x | T25: x | U25: x | V25: x | W25: x | X25: x | Y25: x | Z25: x | AA25: x | AB25: x | AC25: x | AD25: x | AE25: x | AF25: x | AG25: x | AH25: x | AI25: x | AJ25: x | AK25: x | AL25: x | AM25: x | AN25: x | AO25: x | AP25: x | AQ25: x | AR25: x | AS25: x | AT25: 0 | AV25: x | AW25: x | AX25: x | AY25: x | AZ25: x | BA25: x | BB25: x | BC25: x | BD25: x | BE25: x | BF25: x | BG25: x | BH25: x | BI25: x | BJ25: x | BK25: x | BL25: x | BM25: x | BN25: x | BO25: x | BP25: x | BQ25: x | BR25: x | BS25: x | BT25: x | BU25: x | BV25: x | BW25: x | BX25: x | BY25: x | BZ25: x | CA25: x | CB25: x | CC25: x | CD25: x | CE25: x | CF25: x | CG25: x | CI25: 0 | CJ25: 0 | CK25: 0 | CL25: 0 | CM25: 0 | CN25: 0 | CO25: 0 | CP25: 0 | CQ25: 0 | CR25: 0 | CS25: 0 | CT25: 0 | CU25: 0 | CV25: 0 | CW25: 0 | CX25: 0 | CY25: 0 | CZ25: 0 | DA25: 0 | DB25: 0 | DC25: 0 | DD25: 0 | DE25: 0 | DF25: 0 | DG25: 0 | DH25: 0 | DI25: 0 | DJ25: 0 | DK25: 0 | DL25: 0 | DM25: 0 | DN25: 0 | DO25: 0 | DP25: 0 | DQ25: 0 | DR25: 0 | DS25: 0 | DT25: 0 | DV25: =IF(VLOOKUP($A25,'Schedule Setup'!$A$4:$E$39,5,FALSE)=0,"",VLOOKUP($A25,'Schedule Setup'!$A$4:$E$39,5,FALSE)) ->  | DW25: 0 | DY25: 0 | EA25: 0 | EC25: 0 | EF25: 0 | EH25: 0 | EJ25: 0 | EL25: 0 | EO25: ='Schedule Setup'!F23 -> 00:00:00 | EP25: ='Schedule Setup'!G23 -> 00:00:00 | EQ25: -0.02083333333 | ER25: 00:30:00
A26: 20 | B26: =IF(VLOOKUP($A26,'Schedule Setup'!$A$4:$E$39,2,FALSE)=0,"",VLOOKUP($A26,'Schedule Setup'!$A$4:$E$39,2,FALSE)) -> Sean Duncan | C26: =IF(VLOOKUP($A26,'Schedule Setup'!$A$4:$E$39,4,FALSE)=0,"",VLOOKUP($A26,'Schedule Setup'!$A$4:$E$39,4,FALSE)) -> Team Lead | D26: TL | H26: x | I26: x | J26: x | K26: x | L26: x | M26: x | N26: x | O26: x | P26: x | Q26: x | R26: x | S26: x | T26: x | U26: x | V26: x | W26: x | X26: x | Y26: x | Z26: x | AA26: x | AB26: x | AC26: x | AD26: x | AE26: x | AF26: x | AG26: x | AH26: x | AI26: x | AJ26: x | AK26: x | AL26: x | AM26: x | AN26: x | AO26: x | AP26: x | AQ26: x | AR26: x | AS26: x | AT26: 0 | AV26: x | AW26: x | AX26: x | AY26: x | AZ26: x | BA26: x | BB26: x | BC26: x | BD26: x | BE26: x | BF26: x | BG26: x | BH26: x | BI26: x | BJ26: x | BK26: x | BL26: x | BM26: x | BN26: x | BO26: x | BP26: x | BQ26: x | BR26: x | BS26: x | BT26: x | BU26: x | BV26: x | BW26: x | BX26: x | BY26: x | BZ26: x | CA26: x | CB26: x | CC26: x | CD26: x | CE26: x | CF26: x | CG26: x | CI26: 0 | CJ26: 0 | CK26: 0 | CL26: 0 | CM26: 0 | CN26: 0 | CO26: 0 | CP26: 0 | CQ26: 0 | CR26: 0 | CS26: 0 | CT26: 0 | CU26: 0 | CV26: 0 | CW26: 0 | CX26: 0 | CY26: 0 | CZ26: 0 | DA26: 0 | DB26: 0 | DC26: 0 | DD26: 0 | DE26: 0 | DF26: 0 | DG26: 0 | DH26: 0 | DI26: 0 | DJ26: 0 | DK26: 0 | DL26: 0 | DM26: 0 | DN26: 0 | DO26: 0 | DP26: 0 | DQ26: 0 | DR26: 0 | DS26: 0 | DT26: 0 | DV26: =IF(VLOOKUP($A26,'Schedule Setup'!$A$4:$E$39,5,FALSE)=0,"",VLOOKUP($A26,'Schedule Setup'!$A$4:$E$39,5,FALSE)) ->  | DW26: 0 | DY26: 0 | EA26: 0 | EC26: 0 | EF26: 0 | EH26: 0 | EJ26: 0 | EL26: 0 | EO26: ='Schedule Setup'!F24 -> 00:00:00 | EP26: ='Schedule Setup'!G24 -> 00:00:00 | EQ26: -0.02083333333 | ER26: 00:30:00
A27: 21 | B27: =IF(VLOOKUP($A27,'Schedule Setup'!$A$4:$E$39,2,FALSE)=0,"",VLOOKUP($A27,'Schedule Setup'!$A$4:$E$39,2,FALSE)) ->  | C27: =IF(VLOOKUP($A27,'Schedule Setup'!$A$4:$E$39,4,FALSE)=0,"",VLOOKUP($A27,'Schedule Setup'!$A$4:$E$39,4,FALSE)) ->  | H27: x | I27: x | J27: x | K27: x | L27: x | M27: x | N27: x | O27: x | P27: x | Q27: x | R27: x | S27: x | T27: x | U27: x | V27: x | W27: x | X27: x | Y27: x | Z27: x | AA27: x | AB27: x | AC27: x | AD27: x | AE27: x | AF27: x | AG27: x | AH27: x | AI27: x | AJ27: x | AK27: x | AL27: x | AM27: x | AN27: x | AO27: x | AP27: x | AQ27: x | AR27: x | AS27: x | AT27: 0 | AV27: x | AW27: x | AX27: x | AY27: x | AZ27: x | BA27: x | BB27: x | BC27: x | BD27: x | BE27: x | BF27: x | BG27: x | BH27: x | BI27: x | BJ27: x | BK27: x | BL27: x | BM27: x | BN27: x | BO27: x | BP27: x | BQ27: x | BR27: x | BS27: x | BT27: x | BU27: x | BV27: x | BW27: x | BX27: x | BY27: x | BZ27: x | CA27: x | CB27: x | CC27: x | CD27: x | CE27: x | CF27: x | CG27: x | CI27: 0 | CJ27: 0 | CK27: 0 | CL27: 0 | CM27: 0 | CN27: 0 | CO27: 0 | CP27: 0 | CQ27: 0 | CR27: 0 | CS27: 0 | CT27: 0 | CU27: 0 | CV27: 0 | CW27: 0 | CX27: 0 | CY27: 0 | CZ27: 0 | DA27: 0 | DB27: 0 | DC27: 0 | DD27: 0 | DE27: 0 | DF27: 0 | DG27: 0 | DH27: 0 | DI27: 0 | DJ27: 0 | DK27: 0 | DL27: 0 | DM27: 0 | DN27: 0 | DO27: 0 | DP27: 0 | DQ27: 0 | DR27: 0 | DS27: 0 | DT27: 0 | DV27: =IF(VLOOKUP($A27,'Schedule Setup'!$A$4:$E$39,5,FALSE)=0,"",VLOOKUP($A27,'Schedule Setup'!$A$4:$E$39,5,FALSE)) ->  | DW27: 0 | DY27: 0 | EA27: 0 | EC27: 0 | EF27: 0 | EH27: 0 | EJ27: 0 | EL27: 0 | EO27: ='Schedule Setup'!F25 -> 00:00:00 | EP27: ='Schedule Setup'!G25 -> 00:00:00 | EQ27: -0.02083333333 | ER27: 00:30:00
A28: 22 | B28: =IF(VLOOKUP($A28,'Schedule Setup'!$A$4:$E$39,2,FALSE)=0,"",VLOOKUP($A28,'Schedule Setup'!$A$4:$E$39,2,FALSE)) ->  | C28: =IF(VLOOKUP($A28,'Schedule Setup'!$A$4:$E$39,4,FALSE)=0,"",VLOOKUP($A28,'Schedule Setup'!$A$4:$E$39,4,FALSE)) ->  | H28: x | I28: x | J28: x | K28: x | L28: x | M28: x | N28: x | O28: x | P28: x | Q28: x | R28: x | S28: x | T28: x | U28: x | V28: x | W28: x | X28: x | Y28: x | Z28: x | AA28: x | AB28: x | AC28: x | AD28: x | AE28: x | AF28: x | AG28: x | AH28: x | AI28: x | AJ28: x | AK28: x | AL28: x | AM28: x | AN28: x | AO28: x | AP28: x | AQ28: x | AR28: x | AS28: x | AT28: 0 | AV28: x | AW28: x | AX28: x | AY28: x | AZ28: x | BA28: x | BB28: x | BC28: x | BD28: x | BE28: x | BF28: x | BG28: x | BH28: x | BI28: x | BJ28: x | BK28: x | BL28: x | BM28: x | BN28: x | BO28: x | BP28: x | BQ28: x | BR28: x | BS28: x | BT28: x | BU28: x | BV28: x | BW28: x | BX28: x | BY28: x | BZ28: x | CA28: x | CB28: x | CC28: x | CD28: x | CE28: x | CF28: x | CG28: x | CI28: 0 | CJ28: 0 | CK28: 0 | CL28: 0 | CM28: 0 | CN28: 0 | CO28: 0 | CP28: 0 | CQ28: 0 | CR28: 0 | CS28: 0 | CT28: 0 | CU28: 0 | CV28: 0 | CW28: 0 | CX28: 0 | CY28: 0 | CZ28: 0 | DA28: 0 | DB28: 0 | DC28: 0 | DD28: 0 | DE28: 0 | DF28: 0 | DG28: 0 | DH28: 0 | DI28: 0 | DJ28: 0 | DK28: 0 | DL28: 0 | DM28: 0 | DN28: 0 | DO28: 0 | DP28: 0 | DQ28: 0 | DR28: 0 | DS28: 0 | DT28: 0 | DV28: =IF(VLOOKUP($A28,'Schedule Setup'!$A$4:$E$39,5,FALSE)=0,"",VLOOKUP($A28,'Schedule Setup'!$A$4:$E$39,5,FALSE)) ->  | DW28: 0 | DY28: 0 | EA28: 0 | EC28: 0 | EF28: 0 | EH28: 0 | EJ28: 0 | EL28: 0 | EO28: ='Schedule Setup'!F26 -> 00:00:00 | EP28: ='Schedule Setup'!G26 -> 00:00:00 | EQ28: -0.02083333333 | ER28: 00:30:00
A29: 23 | B29: =IF(VLOOKUP($A29,'Schedule Setup'!$A$4:$E$39,2,FALSE)=0,"",VLOOKUP($A29,'Schedule Setup'!$A$4:$E$39,2,FALSE)) ->  | C29: =IF(VLOOKUP($A29,'Schedule Setup'!$A$4:$E$39,4,FALSE)=0,"",VLOOKUP($A29,'Schedule Setup'!$A$4:$E$39,4,FALSE)) ->  | H29: x | I29: x | J29: x | K29: x | L29: x | M29: x | N29: x | O29: x | P29: x | Q29: x | R29: x | S29: x | T29: x | U29: x | V29: x | W29: x | X29: x | Y29: x | Z29: x | AA29: x | AB29: x | AC29: x | AD29: x | AE29: x | AF29: x | AG29: x | AH29: x | AI29: x | AJ29: x | AK29: x | AL29: =BZ29 -> x | AM29: x | AN29: x | AO29: x | AP29: x | AQ29: x | AR29: x | AS29: x | AT29: 0 | AV29: x | AW29: x | AX29: x | AY29: x | AZ29: x | BA29: x | BB29: x | BC29: x | BD29: x | BE29: x | BF29: x | BG29: x | BH29: x | BI29: x | BJ29: x | BK29: x | BL29: x | BM29: x | BN29: x | BO29: x | BP29: x | BQ29: x | BR29: x | BS29: x | BT29: x | BU29: x | BV29: x | BW29: x | BX29: x | BY29: x | BZ29: x | CA29: x | CB29: x | CC29: x | CD29: x | CE29: x | CF29: x | CG29: x | CI29: 0 | CJ29: 0 | CK29: 0 | CL29: 0 | CM29: 0 | CN29: 0 | CO29: 0 | CP29: 0 | CQ29: 0 | CR29: 0 | CS29: 0 | CT29: 0 | CU29: 0 | CV29: 0 | CW29: 0 | CX29: 0 | CY29: 0 | CZ29: 0 | DA29: 0 | DB29: 0 | DC29: 0 | DD29: 0 | DE29: 0 | DF29: 0 | DG29: 0 | DH29: 0 | DI29: 0 | DJ29: 0 | DK29: 0 | DL29: 0 | DM29: 0 | DN29: 0 | DO29: 0 | DP29: 0 | DQ29: 0 | DR29: 0 | DS29: 0 | DT29: 0 | DV29: =IF(VLOOKUP($A29,'Schedule Setup'!$A$4:$E$39,5,FALSE)=0,"",VLOOKUP($A29,'Schedule Setup'!$A$4:$E$39,5,FALSE)) ->  | DW29: 0 | DY29: 0 | EA29: 0 | EC29: 0 | EF29: 0 | EH29: 0 | EJ29: 0 | EL29: 0 | EO29: ='Schedule Setup'!F27 -> 00:00:00 | EP29: ='Schedule Setup'!G27 -> 00:00:00 | EQ29: -0.02083333333 | ER29: 00:30:00
A30: 24 | B30: =IF(VLOOKUP($A30,'Schedule Setup'!$A$4:$E$39,2,FALSE)=0,"",VLOOKUP($A30,'Schedule Setup'!$A$4:$E$39,2,FALSE)) ->  | C30: =IF(VLOOKUP($A30,'Schedule Setup'!$A$4:$E$39,4,FALSE)=0,"",VLOOKUP($A30,'Schedule Setup'!$A$4:$E$39,4,FALSE)) ->  | D30: =IF(B30<>"",IF(OR(C30="General Manager (S)", C30="General Manager (H)"), "GM",IF(C30="Acting Manager","AM",IF(C30="Shift Manager","SM",IF(C30="Team Lead","TL","TM")))),"") ->  | H30: =AV30 -> x | I30: x | J30: x | K30: x | L30: x | M30: x | N30: x | O30: x | P30: x | Q30: x | R30: x | S30: x | T30: x | U30: x | V30: =BJ30 -> x | W30: =BK30 -> x | X30: =BL30 -> x | Y30: =BM30 -> x | Z30: =BN30 -> x | AA30: =BO30 -> x | AB30: =BP30 -> x | AC30: =BQ30 -> x | AD30: =BR30 -> x | AE30: =BS30 -> x | AF30: =BT30 -> x | AG30: =BU30 -> x | AH30: =BV30 -> x | AI30: =BW30 -> x | AJ30: =BX30 -> x | AK30: =BY30 -> x | AL30: =BZ30 -> x | AM30: =CA30 -> x | AN30: =CB30 -> x | AO30: =CC30 -> x | AP30: =CD30 -> x | AQ30: =CE30 -> x | AR30: =CF30 -> x | AS30: =CG30 -> x | AT30: =EC30 -> 0 | AV30: =IF(AND($EO30<=H$6+0.01,$EP30>H$6+0.01),IF(AND(H$6<$F30-0.01,H$6>=$E30-0.01),$D30,""),"x") -> x | AW30: =IF(AND($EO30<=I$6+0.01,$EP30>I$6+0.01),IF(AND(I$6<$F30-0.01,I$6>=$E30-0.01),$D30,""),"x") -> x | AX30: =IF(AND($EO30<=J$6+0.01,$EP30>J$6+0.01),IF(AND(J$6<$F30-0.01,J$6>=$E30-0.01),$D30,""),"x") -> x | AY30: =IF(AND($EO30<=K$6+0.01,$EP30>K$6+0.01),IF(AND(K$6<$F30-0.01,K$6>=$E30-0.01),$D30,""),"x") -> x | AZ30: =IF(AND($EO30<=L$6+0.01,$EP30>L$6+0.01),IF(AND(L$6<$F30-0.01,L$6>=$E30-0.01),$D30,""),"x") -> x | BA30: =IF(AND($EO30<=M$6+0.01,$EP30>M$6+0.01),IF(AND(M$6<$F30-0.01,M$6>=$E30-0.01),$D30,""),"x") -> x | BB30: =IF(AND($EO30<=N$6+0.01,$EP30>N$6+0.01),IF(AND(N$6<$F30-0.01,N$6>=$E30-0.01),$D30,""),"x") -> x | BC30: =IF(AND($EO30<=O$6+0.01,$EP30>O$6+0.01),IF(AND(O$6<$F30-0.01,O$6>=$E30-0.01),$D30,""),"x") -> x | BD30: =IF(AND($EO30<=P$6+0.01,$EP30>P$6+0.01),IF(AND(P$6<$F30-0.01,P$6>=$E30-0.01),$D30,""),"x") -> x | BE30: =IF(AND($EO30<=Q$6+0.01,$EP30>Q$6+0.01),IF(AND(Q$6<$F30-0.01,Q$6>=$E30-0.01),$D30,""),"x") -> x | BF30: =IF(AND($EO30<=R$6+0.01,$EP30>R$6+0.01),IF(AND(R$6<$F30-0.01,R$6>=$E30-0.01),$D30,""),"x") -> x | BG30: =IF(AND($EO30<=S$6+0.01,$EP30>S$6+0.01),IF(AND(S$6<$F30-0.01,S$6>=$E30-0.01),$D30,""),"x") -> x | BH30: =IF(AND($EO30<=T$6+0.01,$EP30>T$6+0.01),IF(AND(T$6<$F30-0.01,T$6>=$E30-0.01),$D30,""),"x") -> x | BI30: =IF(AND($EO30<=U$6+0.01,$EP30>U$6+0.01),IF(AND(U$6<$F30-0.01,U$6>=$E30-0.01),$D30,""),"x") -> x | BJ30: =IF(AND($EO30<=V$6+0.01,$EP30>V$6+0.01),IF(AND(V$6<$F30-0.01,V$6>=$E30-0.01),$D30,""),"x") -> x | BK30: =IF(AND($EO30<=W$6+0.01,$EP30>W$6+0.01),IF(AND(W$6<$F30-0.01,W$6>=$E30-0.01),$D30,""),"x") -> x | BL30: =IF(AND($EO30<=X$6+0.01,$EP30>X$6+0.01),IF(AND(X$6<$F30-0.01,X$6>=$E30-0.01),$D30,""),"x") -> x | BM30: =IF(AND($EO30<=Y$6+0.01,$EP30>Y$6+0.01),IF(AND(Y$6<$F30-0.01,Y$6>=$E30-0.01),$D30,""),"x") -> x | BN30: =IF(AND($EO30<=Z$6+0.01,$EP30>Z$6+0.01),IF(AND(Z$6<$F30-0.01,Z$6>=$E30-0.01),$D30,""),"x") -> x | BO30: =IF(AND($EO30<=AA$6+0.01,$EP30>AA$6+0.01),IF(AND(AA$6<$F30-0.01,AA$6>=$E30-0.01),$D30,""),"x") -> x | BP30: =IF(AND($EO30<=AB$6+0.01,$EP30>AB$6+0.01),IF(AND(AB$6<$F30-0.01,AB$6>=$E30-0.01),$D30,""),"x") -> x | BQ30: =IF(AND($EO30<=AC$6+0.01,$EP30>AC$6+0.01),IF(AND(AC$6<$F30-0.01,AC$6>=$E30-0.01),$D30,""),"x") -> x | BR30: =IF(AND($EO30<=AD$6+0.01,$EP30>AD$6+0.01),IF(AND(AD$6<$F30-0.01,AD$6>=$E30-0.01),$D30,""),"x") -> x | BS30: =IF(AND($EO30<=AE$6+0.01,$EP30>AE$6+0.01),IF(AND(AE$6<$F30-0.01,AE$6>=$E30-0.01),$D30,""),"x") -> x | BT30: =IF(AND($EO30<=AF$6+0.01,$EP30>AF$6+0.01),IF(AND(AF$6<$F30-0.01,AF$6>=$E30-0.01),$D30,""),"x") -> x | BU30: =IF(AND($EO30<=AG$6+0.01,$EP30>AG$6+0.01),IF(AND(AG$6<$F30-0.01,AG$6>=$E30-0.01),$D30,""),"x") -> x | BV30: =IF(AND($EO30<=AH$6+0.01,$EP30>AH$6+0.01),IF(AND(AH$6<$F30-0.01,AH$6>=$E30-0.01),$D30,""),"x") -> x | BW30: =IF(AND($EO30<=AI$6+0.01,$EP30>AI$6+0.01),IF(AND(AI$6<$F30-0.01,AI$6>=$E30-0.01),$D30,""),"x") -> x | BX30: =IF(AND($EO30<=AJ$6+0.01,$EP30>AJ$6+0.01),IF(AND(AJ$6<$F30-0.01,AJ$6>=$E30-0.01),$D30,""),"x") -> x | BY30: =IF(AND($EO30<=AK$6+0.01,$EP30>AK$6+0.01),IF(AND(AK$6<$F30-0.01,AK$6>=$E30-0.01),$D30,""),"x") -> x | BZ30: =IF(AND($EO30<=AL$6+0.01,$EP30>AL$6+0.01),IF(AND(AL$6<$F30-0.01,AL$6>=$E30-0.01),$D30,""),"x") -> x | CA30: =IF(AND($EO30<=AM$6+0.01,$EP30>AM$6+0.01),IF(AND(AM$6<$F30-0.01,AM$6>=$E30-0.01),$D30,""),"x") -> x | CB30: =IF(AND($EO30<=AN$6+0.01,$EP30>AN$6+0.01),IF(AND(AN$6<$F30-0.01,AN$6>=$E30-0.01),$D30,""),"x") -> x | CC30: =IF(AND($EO30<=AO$6+0.01,$EP30>AO$6+0.01),IF(AND(AO$6<$F30-0.01,AO$6>=$E30-0.01),$D30,""),"x") -> x | CD30: =IF(AND($EO30<=AP$6+0.01,$EP30>AP$6+0.01),IF(AND(AP$6<$F30-0.01,AP$6>=$E30-0.01),$D30,""),"x") -> x | CE30: =IF(AND($EO30<=AQ$6+0.01,$EP30>AQ$6+0.01),IF(AND(AQ$6<$F30-0.01,AQ$6>=$E30-0.01),$D30,""),"x") -> x | CF30: =IF(AND($EO30<=AR$6+0.01,$EP30>AR$6+0.01),IF(AND(AR$6<$F30-0.01,AR$6>=$E30-0.01),$D30,""),"x") -> x | CG30: =IF(AND($EO30<=AS$6+0.01,$EP30>AS$6+0.01),IF(AND(AS$6<$F30-0.01,AS$6>=$E30-0.01),$D30,""),"x") -> x | CI30: =IF(AND(AV30<>"",AV30<>"x"),0.5,) -> 0 | CJ30: =IF(AND(AW30<>"",AW30<>"x"),0.5,) -> 0 | CK30: =IF(AND(AX30<>"",AX30<>"x"),0.5,) -> 0 | CL30: =IF(AND(AY30<>"",AY30<>"x"),0.5,) -> 0 | CM30: =IF(AND(AZ30<>"",AZ30<>"x"),0.5,) -> 0 | CN30: =IF(AND(BA30<>"",BA30<>"x"),0.5,) -> 0 | CO30: =IF(AND(BB30<>"",BB30<>"x"),0.5,) -> 0 | CP30: =IF(AND(BC30<>"",BC30<>"x"),0.5,) -> 0 | CQ30: =IF(AND(BD30<>"",BD30<>"x"),0.5,) -> 0 | CR30: =IF(AND(BE30<>"",BE30<>"x"),0.5,) -> 0 | CS30: =IF(AND(BF30<>"",BF30<>"x"),0.5,) -> 0 | CT30: =IF(AND(BG30<>"",BG30<>"x"),0.5,) -> 0 | CU30: =IF(AND(BH30<>"",BH30<>"x"),0.5,) -> 0 | CV30: =IF(AND(BI30<>"",BI30<>"x"),0.5,) -> 0 | CW30: =IF(AND(BJ30<>"",BJ30<>"x"),0.5,) -> 0 | CX30: =IF(AND(BK30<>"",BK30<>"x"),0.5,) -> 0 | CY30: =IF(AND(BL30<>"",BL30<>"x"),0.5,) -> 0 | CZ30: =IF(AND(BM30<>"",BM30<>"x"),0.5,) -> 0 | DA30: =IF(AND(BN30<>"",BN30<>"x"),0.5,) -> 0 | DB30: =IF(AND(BO30<>"",BO30<>"x"),0.5,) -> 0 | DC30: =IF(AND(BP30<>"",BP30<>"x"),0.5,) -> 0 | DD30: =IF(AND(BQ30<>"",BQ30<>"x"),0.5,) -> 0 | DE30: =IF(AND(BR30<>"",BR30<>"x"),0.5,) -> 0 | DF30: =IF(AND(BS30<>"",BS30<>"x"),0.5,) -> 0 | DG30: =IF(AND(BT30<>"",BT30<>"x"),0.5,) -> 0 | DH30: =IF(AND(BU30<>"",BU30<>"x"),0.5,) -> 0 | DI30: =IF(AND(BV30<>"",BV30<>"x"),0.5,) -> 0 | DJ30: =IF(AND(BW30<>"",BW30<>"x"),0.5,) -> 0 | DK30: =IF(AND(BX30<>"",BX30<>"x"),0.5,) -> 0 | DL30: =IF(AND(BY30<>"",BY30<>"x"),0.5,) -> 0 | DM30: =IF(AND(BZ30<>"",BZ30<>"x"),0.5,) -> 0 | DN30: =IF(AND(CA30<>"",CA30<>"x"),0.5,) -> 0 | DO30: =IF(AND(CB30<>"",CB30<>"x"),0.5,) -> 0 | DP30: =IF(AND(CC30<>"",CC30<>"x"),0.5,) -> 0 | DQ30: =IF(AND(CD30<>"",CD30<>"x"),0.5,) -> 0 | DR30: =IF(AND(CE30<>"",CE30<>"x"),0.5,) -> 0 | DS30: =IF(AND(CF30<>"",CF30<>"x"),0.5,) -> 0 | DT30: =IF(AND(CG30<>"",CG30<>"x"),0.5,) -> 0 | DV30: =IF(VLOOKUP($A30,'Schedule Setup'!$A$4:$E$39,5,FALSE)=0,"",VLOOKUP($A30,'Schedule Setup'!$A$4:$E$39,5,FALSE)) ->  | DW30: =SUM(CI30:CT30) -> 0 | DX30: =IFERROR(DW30*$DV30,"") ->  | DY30: =SUM(CU30:DF30) -> 0 | DZ30: =IFERROR(DY30*$DV30,"") ->  | EA30: =SUM(DG30:DT30) -> 0 | EB30: =IFERROR(EA30*$DV30,"") ->  | EC30: =SUM(DW30,DY30,EA30) -> 0 | ED30: =IFERROR(EC30*$DV30,"") ->  | EF30: =IF(DW30>5,(DW30-0.5),DW30) -> 0 | EG30: =IFERROR(EF30*$DV30,"") ->  | EH30: =IF(DY30>5,(DY30-0.5),DY30) -> 0 | EI30: =IFERROR(EH30*$DV30,"") ->  | EJ30: =IF(EA30>5,(EA30-0.5),EA30) -> 0 | EK30: =IFERROR(EJ30*$DV30,"") ->  | EL30: =SUM(EF30,EH30,EJ30) -> 0 | EM30: =IFERROR(EL30*$DV30,"") ->  | EO30: ='Schedule Setup'!F28 -> 00:00:00 | EP30: ='Schedule Setup'!G28 -> 00:00:00 | EQ30: -0.02083333333 | ER30: 00:30:00
A31: 25 | B31: =IF(VLOOKUP($A31,'Schedule Setup'!$A$4:$E$39,2,FALSE)=0,"",VLOOKUP($A31,'Schedule Setup'!$A$4:$E$39,2,FALSE)) ->  | C31: =IF(VLOOKUP($A31,'Schedule Setup'!$A$4:$E$39,4,FALSE)=0,"",VLOOKUP($A31,'Schedule Setup'!$A$4:$E$39,4,FALSE)) ->  | H31: x | I31: x | J31: x | K31: x | L31: x | M31: x | N31: x | O31: x | P31: x | Q31: x | R31: x | S31: x | T31: x | U31: x | V31: x | W31: x | X31: x | Y31: x | Z31: x | AA31: x | AB31: x | AC31: x | AD31: x | AE31: x | AF31: x | AG31: x | AH31: x | AI31: x | AJ31: x | AK31: x | AL31: x | AM31: x | AN31: x | AO31: x | AP31: x | AQ31: x | AR31: x | AS31: x | AT31: 0 | AV31: x | AW31: x | AX31: x | AY31: x | AZ31: x | BA31: x | BB31: x | BC31: x | BD31: x | BE31: x | BF31: x | BG31: x | BH31: x | BI31: x | BJ31: x | BK31: x | BL31: x | BM31: x | BN31: x | BO31: x | BP31: x | BQ31: x | BR31: x | BS31: x | BT31: x | BU31: x | BV31: x | BW31: x | BX31: x | BY31: x | BZ31: x | CA31: x | CB31: x | CC31: x | CD31: x | CE31: x | CF31: x | CG31: x | CI31: 0 | CJ31: 0 | CK31: 0 | CL31: 0 | CM31: 0 | CN31: 0 | CO31: 0 | CP31: 0 | CQ31: 0 | CR31: 0 | CS31: 0 | CT31: 0 | CU31: 0 | CV31: 0 | CW31: 0 | CX31: 0 | CY31: 0 | CZ31: 0 | DA31: 0 | DB31: 0 | DC31: 0 | DD31: 0 | DE31: 0 | DF31: 0 | DG31: 0 | DH31: 0 | DI31: 0 | DJ31: 0 | DK31: 0 | DL31: 0 | DM31: 0 | DN31: 0 | DO31: 0 | DP31: 0 | DQ31: 0 | DR31: 0 | DS31: 0 | DT31: 0 | DV31: =IF(VLOOKUP($A31,'Schedule Setup'!$A$4:$E$39,5,FALSE)=0,"",VLOOKUP($A31,'Schedule Setup'!$A$4:$E$39,5,FALSE)) ->  | DW31: 0 | DY31: 0 | EA31: 0 | EC31: 0 | EF31: 0 | EH31: 0 | EJ31: 0 | EL31: 0 | EO31: ='Schedule Setup'!F29 -> 00:00:00 | EP31: ='Schedule Setup'!G29 -> 00:00:00 | EQ31: -0.02083333333 | ER31: 00:30:00
A32: 26 | B32: =IF(VLOOKUP($A32,'Schedule Setup'!$A$4:$E$39,2,FALSE)=0,"",VLOOKUP($A32,'Schedule Setup'!$A$4:$E$39,2,FALSE)) ->  | C32: =IF(VLOOKUP($A32,'Schedule Setup'!$A$4:$E$39,4,FALSE)=0,"",VLOOKUP($A32,'Schedule Setup'!$A$4:$E$39,4,FALSE)) ->  | H32: x | I32: x | J32: x | K32: x | L32: x | M32: x | N32: x | O32: x | P32: x | Q32: x | R32: x | S32: x | T32: x | U32: x | V32: x | W32: x | X32: x | Y32: x | Z32: x | AA32: x | AB32: x | AC32: x | AD32: x | AE32: x | AF32: x | AG32: x | AH32: x | AI32: x | AJ32: x | AK32: x | AL32: x | AM32: x | AN32: x | AO32: x | AP32: x | AQ32: x | AR32: x | AS32: x | AT32: 0 | AV32: x | AW32: x | AX32: x | AY32: x | AZ32: x | BA32: x | BB32: x | BC32: x | BD32: x | BE32: x | BF32: x | BG32: x | BH32: x | BI32: x | BJ32: x | BK32: x | BL32: x | BM32: x | BN32: x | BO32: x | BP32: x | BQ32: x | BR32: x | BS32: x | BT32: x | BU32: x | BV32: x | BW32: x | BX32: x | BY32: x | BZ32: x | CA32: x | CB32: x | CC32: x | CD32: x | CE32: x | CF32: x | CG32: x | CI32: 0 | CJ32: 0 | CK32: 0 | CL32: 0 | CM32: 0 | CN32: 0 | CO32: 0 | CP32: 0 | CQ32: 0 | CR32: 0 | CS32: 0 | CT32: 0 | CU32: 0 | CV32: 0 | CW32: 0 | CX32: 0 | CY32: 0 | CZ32: 0 | DA32: 0 | DB32: 0 | DC32: 0 | DD32: 0 | DE32: 0 | DF32: 0 | DG32: 0 | DH32: 0 | DI32: 0 | DJ32: 0 | DK32: 0 | DL32: 0 | DM32: 0 | DN32: 0 | DO32: 0 | DP32: 0 | DQ32: 0 | DR32: 0 | DS32: 0 | DT32: 0 | DV32: =IF(VLOOKUP($A32,'Schedule Setup'!$A$4:$E$39,5,FALSE)=0,"",VLOOKUP($A32,'Schedule Setup'!$A$4:$E$39,5,FALSE)) ->  | DW32: 0 | DY32: 0 | EA32: 0 | EC32: 0 | EF32: 0 | EH32: 0 | EJ32: 0 | EL32: 0 | EO32: ='Schedule Setup'!F30 -> 00:00:00 | EP32: ='Schedule Setup'!G30 -> 00:00:00 | EQ32: -0.02083333333 | ER32: 00:30:00
A33: 27 | B33: =IF(VLOOKUP($A33,'Schedule Setup'!$A$4:$E$39,2,FALSE)=0,"",VLOOKUP($A33,'Schedule Setup'!$A$4:$E$39,2,FALSE)) ->  | C33: =IF(VLOOKUP($A33,'Schedule Setup'!$A$4:$E$39,4,FALSE)=0,"",VLOOKUP($A33,'Schedule Setup'!$A$4:$E$39,4,FALSE)) ->  | H33: x | I33: x | J33: x | K33: x | L33: x | M33: x | N33: x | O33: x | P33: x | Q33: x | R33: x | S33: x | T33: x | U33: x | V33: x | W33: x | X33: x | Y33: x | Z33: x | AA33: x | AB33: x | AC33: x | AD33: x | AE33: x | AF33: x | AG33: x | AH33: x | AI33: x | AJ33: x | AK33: x | AL33: x | AM33: x | AN33: x | AO33: x | AP33: x | AQ33: x | AR33: x | AS33: x | AT33: 0 | AV33: x | AW33: x | AX33: x | AY33: x | AZ33: x | BA33: x | BB33: x | BC33: x | BD33: x | BE33: x | BF33: x | BG33: x | BH33: x | BI33: x | BJ33: x | BK33: x | BL33: x | BM33: x | BN33: x | BO33: x | BP33: x | BQ33: x | BR33: x | BS33: x | BT33: x | BU33: x | BV33: x | BW33: x | BX33: x | BY33: x | BZ33: x | CA33: x | CB33: x | CC33: x | CD33: x | CE33: x | CF33: x | CG33: x | CI33: 0 | CJ33: 0 | CK33: 0 | CL33: 0 | CM33: 0 | CN33: 0 | CO33: 0 | CP33: 0 | CQ33: 0 | CR33: 0 | CS33: 0 | CT33: 0 | CU33: 0 | CV33: 0 | CW33: 0 | CX33: 0 | CY33: 0 | CZ33: 0 | DA33: 0 | DB33: 0 | DC33: 0 | DD33: 0 | DE33: 0 | DF33: 0 | DG33: 0 | DH33: 0 | DI33: 0 | DJ33: 0 | DK33: 0 | DL33: 0 | DM33: 0 | DN33: 0 | DO33: 0 | DP33: 0 | DQ33: 0 | DR33: 0 | DS33: 0 | DT33: 0 | DV33: =IF(VLOOKUP($A33,'Schedule Setup'!$A$4:$E$39,5,FALSE)=0,"",VLOOKUP($A33,'Schedule Setup'!$A$4:$E$39,5,FALSE)) ->  | DW33: 0 | DY33: 0 | EA33: 0 | EC33: 0 | EF33: 0 | EH33: 0 | EJ33: 0 | EL33: 0 | EO33: ='Schedule Setup'!F31 -> 00:00:00 | EP33: ='Schedule Setup'!G31 -> 00:00:00 | EQ33: -0.02083333333 | ER33: 00:30:00
A34: 28 | B34: =IF(VLOOKUP($A34,'Schedule Setup'!$A$4:$E$39,2,FALSE)=0,"",VLOOKUP($A34,'Schedule Setup'!$A$4:$E$39,2,FALSE)) ->  | C34: =IF(VLOOKUP($A34,'Schedule Setup'!$A$4:$E$39,4,FALSE)=0,"",VLOOKUP($A34,'Schedule Setup'!$A$4:$E$39,4,FALSE)) ->  | H34: x | I34: x | J34: x | K34: x | L34: x | M34: x | N34: x | O34: x | P34: x | Q34: x | R34: x | S34: x | T34: x | U34: x | V34: x | W34: x | X34: x | Y34: x | Z34: x | AA34: x | AB34: x | AC34: x | AD34: x | AE34: x | AF34: x | AG34: x | AH34: x | AI34: x | AJ34: x | AK34: x | AL34: x | AM34: x | AN34: x | AO34: x | AP34: x | AQ34: x | AR34: x | AS34: x | AT34: 0 | AV34: x | AW34: x | AX34: x | AY34: x | AZ34: x | BA34: x | BB34: x | BC34: x | BD34: x | BE34: x | BF34: x | BG34: x | BH34: x | BI34: x | BJ34: x | BK34: x | BL34: x | BM34: x | BN34: x | BO34: x | BP34: x | BQ34: x | BR34: x | BS34: x | BT34: x | BU34: x | BV34: x | BW34: x | BX34: x | BY34: x | BZ34: x | CA34: x | CB34: x | CC34: x | CD34: x | CE34: x | CF34: x | CG34: x | CI34: 0 | CJ34: 0 | CK34: 0 | CL34: 0 | CM34: 0 | CN34: 0 | CO34: 0 | CP34: 0 | CQ34: 0 | CR34: 0 | CS34: 0 | CT34: 0 | CU34: 0 | CV34: 0 | CW34: 0 | CX34: 0 | CY34: 0 | CZ34: 0 | DA34: 0 | DB34: 0 | DC34: 0 | DD34: 0 | DE34: 0 | DF34: 0 | DG34: 0 | DH34: 0 | DI34: 0 | DJ34: 0 | DK34: 0 | DL34: 0 | DM34: 0 | DN34: 0 | DO34: 0 | DP34: 0 | DQ34: 0 | DR34: 0 | DS34: 0 | DT34: 0 | DV34: =IF(VLOOKUP($A34,'Schedule Setup'!$A$4:$E$39,5,FALSE)=0,"",VLOOKUP($A34,'Schedule Setup'!$A$4:$E$39,5,FALSE)) ->  | DW34: 0 | DY34: 0 | EA34: 0 | EC34: 0 | EF34: 0 | EH34: 0 | EJ34: 0 | EL34: 0 | EO34: ='Schedule Setup'!F32 -> 00:00:00 | EP34: ='Schedule Setup'!G32 -> 00:00:00 | EQ34: -0.02083333333 | ER34: 00:30:00
A35: 29 | B35: =IF(VLOOKUP($A35,'Schedule Setup'!$A$4:$E$39,2,FALSE)=0,"",VLOOKUP($A35,'Schedule Setup'!$A$4:$E$39,2,FALSE)) ->  | C35: =IF(VLOOKUP($A35,'Schedule Setup'!$A$4:$E$39,4,FALSE)=0,"",VLOOKUP($A35,'Schedule Setup'!$A$4:$E$39,4,FALSE)) ->  | H35: x | I35: x | J35: x | K35: x | L35: x | M35: x | N35: x | O35: x | P35: x | Q35: x | R35: x | S35: x | T35: x | U35: x | V35: x | W35: x | X35: x | Y35: x | Z35: x | AA35: x | AB35: x | AC35: x | AD35: x | AE35: x | AF35: x | AG35: x | AH35: x | AI35: x | AJ35: x | AK35: x | AL35: x | AM35: x | AN35: x | AO35: x | AP35: x | AQ35: x | AR35: x | AS35: x | AT35: 0 | AV35: x | AW35: x | AX35: x | AY35: x | AZ35: x | BA35: x | BB35: x | BC35: x | BD35: x | BE35: x | BF35: x | BG35: x | BH35: x | BI35: x | BJ35: x | BK35: x | BL35: x | BM35: x | BN35: x | BO35: x | BP35: x | BQ35: x | BR35: x | BS35: x | BT35: x | BU35: x | BV35: x | BW35: x | BX35: x | BY35: x | BZ35: x | CA35: x | CB35: x | CC35: x | CD35: x | CE35: x | CF35: x | CG35: x | CI35: 0 | CJ35: 0 | CK35: 0 | CL35: 0 | CM35: 0 | CN35: 0 | CO35: 0 | CP35: 0 | CQ35: 0 | CR35: 0 | CS35: 0 | CT35: 0 | CU35: 0 | CV35: 0 | CW35: 0 | CX35: 0 | CY35: 0 | CZ35: 0 | DA35: 0 | DB35: 0 | DC35: 0 | DD35: 0 | DE35: 0 | DF35: 0 | DG35: 0 | DH35: 0 | DI35: 0 | DJ35: 0 | DK35: 0 | DL35: 0 | DM35: 0 | DN35: 0 | DO35: 0 | DP35: 0 | DQ35: 0 | DR35: 0 | DS35: 0 | DT35: 0 | DV35: =IF(VLOOKUP($A35,'Schedule Setup'!$A$4:$E$39,5,FALSE)=0,"",VLOOKUP($A35,'Schedule Setup'!$A$4:$E$39,5,FALSE)) ->  | DW35: 0 | DY35: 0 | EA35: 0 | EC35: 0 | EF35: 0 | EH35: 0 | EJ35: 0 | EL35: 0 | EO35: ='Schedule Setup'!F33 -> 00:00:00 | EP35: ='Schedule Setup'!G33 -> 00:00:00 | EQ35: -0.02083333333 | ER35: 00:30:00
A36: 30 | B36: =IF(VLOOKUP($A36,'Schedule Setup'!$A$4:$E$39,2,FALSE)=0,"",VLOOKUP($A36,'Schedule Setup'!$A$4:$E$39,2,FALSE)) ->  | C36: =IF(VLOOKUP($A36,'Schedule Setup'!$A$4:$E$39,4,FALSE)=0,"",VLOOKUP($A36,'Schedule Setup'!$A$4:$E$39,4,FALSE)) ->  | H36: x | I36: x | J36: x | K36: x | L36: x | M36: x | N36: x | O36: x | P36: x | Q36: x | R36: x | S36: x | T36: x | U36: x | V36: x | W36: x | X36: x | Y36: x | Z36: x | AA36: x | AB36: x | AC36: x | AD36: x | AE36: x | AF36: x | AG36: x | AH36: x | AI36: x | AJ36: x | AK36: x | AL36: x | AM36: x | AN36: x | AO36: x | AP36: x | AQ36: x | AR36: x | AS36: x | AT36: 0 | AV36: x | AW36: x | AX36: x | AY36: x | AZ36: x | BA36: x | BB36: x | BC36: x | BD36: x | BE36: x | BF36: x | BG36: x | BH36: x | BI36: x | BJ36: x | BK36: x | BL36: x | BM36: x | BN36: x | BO36: x | BP36: x | BQ36: x | BR36: x | BS36: x | BT36: x | BU36: x | BV36: x | BW36: x | BX36: x | BY36: x | BZ36: x | CA36: x | CB36: x | CC36: x | CD36: x | CE36: x | CF36: x | CG36: x | CI36: 0 | CJ36: 0 | CK36: 0 | CL36: 0 | CM36: 0 | CN36: 0 | CO36: 0 | CP36: 0 | CQ36: 0 | CR36: 0 | CS36: 0 | CT36: 0 | CU36: 0 | CV36: 0 | CW36: 0 | CX36: 0 | CY36: 0 | CZ36: 0 | DA36: 0 | DB36: 0 | DC36: 0 | DD36: 0 | DE36: 0 | DF36: 0 | DG36: 0 | DH36: 0 | DI36: 0 | DJ36: 0 | DK36: 0 | DL36: 0 | DM36: 0 | DN36: 0 | DO36: 0 | DP36: 0 | DQ36: 0 | DR36: 0 | DS36: 0 | DT36: 0 | DV36: =IF(VLOOKUP($A36,'Schedule Setup'!$A$4:$E$39,5,FALSE)=0,"",VLOOKUP($A36,'Schedule Setup'!$A$4:$E$39,5,FALSE)) ->  | DW36: 0 | DY36: 0 | EA36: 0 | EC36: 0 | EF36: 0 | EH36: 0 | EJ36: 0 | EL36: 0 | EO36: ='Schedule Setup'!F34 -> 00:00:00 | EP36: ='Schedule Setup'!G34 -> 00:00:00 | EQ36: -0.02083333333 | ER36: 00:30:00
A37: 31 | B37: =IF(VLOOKUP($A37,'Schedule Setup'!$A$4:$E$39,2,FALSE)=0,"",VLOOKUP($A37,'Schedule Setup'!$A$4:$E$39,2,FALSE)) ->  | C37: =IF(VLOOKUP($A37,'Schedule Setup'!$A$4:$E$39,4,FALSE)=0,"",VLOOKUP($A37,'Schedule Setup'!$A$4:$E$39,4,FALSE)) ->  | H37: x | I37: x | J37: x | K37: x | L37: x | M37: x | N37: x | O37: x | P37: x | Q37: x | R37: x | S37: x | T37: x | U37: x | V37: x | W37: x | X37: x | Y37: x | Z37: x | AA37: x | AB37: x | AC37: x | AD37: x | AE37: x | AF37: x | AG37: x | AH37: x | AI37: x | AJ37: x | AK37: x | AL37: x | AM37: x | AN37: x | AO37: x | AP37: x | AQ37: x | AR37: x | AS37: x | AT37: 0 | AV37: x | AW37: x | AX37: x | AY37: x | AZ37: x | BA37: x | BB37: x | BC37: x | BD37: x | BE37: x | BF37: x | BG37: x | BH37: x | BI37: x | BJ37: x | BK37: x | BL37: x | BM37: x | BN37: x | BO37: x | BP37: x | BQ37: x | BR37: x | BS37: x | BT37: x | BU37: x | BV37: x | BW37: x | BX37: x | BY37: x | BZ37: x | CA37: x | CB37: x | CC37: x | CD37: x | CE37: x | CF37: x | CG37: x | CI37: 0 | CJ37: 0 | CK37: 0 | CL37: 0 | CM37: 0 | CN37: 0 | CO37: 0 | CP37: 0 | CQ37: 0 | CR37: 0 | CS37: 0 | CT37: 0 | CU37: 0 | CV37: 0 | CW37: 0 | CX37: 0 | CY37: 0 | CZ37: 0 | DA37: 0 | DB37: 0 | DC37: 0 | DD37: 0 | DE37: 0 | DF37: 0 | DG37: 0 | DH37: 0 | DI37: 0 | DJ37: 0 | DK37: 0 | DL37: 0 | DM37: 0 | DN37: 0 | DO37: 0 | DP37: 0 | DQ37: 0 | DR37: 0 | DS37: 0 | DT37: 0 | DV37: =IF(VLOOKUP($A37,'Schedule Setup'!$A$4:$E$39,5,FALSE)=0,"",VLOOKUP($A37,'Schedule Setup'!$A$4:$E$39,5,FALSE)) ->  | DW37: 0 | DY37: 0 | EA37: 0 | EC37: 0 | EF37: 0 | EH37: 0 | EJ37: 0 | EL37: 0 | EO37: ='Schedule Setup'!F35 -> 00:00:00 | EP37: ='Schedule Setup'!G35 -> 00:00:00 | EQ37: -0.02083333333 | ER37: 00:30:00
A38: 32 | B38: =IF(VLOOKUP($A38,'Schedule Setup'!$A$4:$E$39,2,FALSE)=0,"",VLOOKUP($A38,'Schedule Setup'!$A$4:$E$39,2,FALSE)) ->  | C38: =IF(VLOOKUP($A38,'Schedule Setup'!$A$4:$E$39,4,FALSE)=0,"",VLOOKUP($A38,'Schedule Setup'!$A$4:$E$39,4,FALSE)) ->  | H38: x | I38: x | J38: x | K38: x | L38: x | M38: x | N38: x | O38: x | P38: x | Q38: x | R38: x | S38: x | T38: x | U38: x | V38: x | W38: x | X38: x | Y38: x | Z38: x | AA38: x | AB38: x | AC38: x | AD38: x | AE38: x | AF38: x | AG38: x | AH38: x | AI38: x | AJ38: x | AK38: x | AL38: x | AM38: x | AN38: x | AO38: x | AP38: x | AQ38: x | AR38: x | AS38: x | AT38: 0 | AV38: x | AW38: x | AX38: x | AY38: x | AZ38: x | BA38: x | BB38: x | BC38: x | BD38: x | BE38: x | BF38: x | BG38: x | BH38: x | BI38: x | BJ38: x | BK38: x | BL38: x | BM38: x | BN38: x | BO38: x | BP38: x | BQ38: x | BR38: x | BS38: x | BT38: x | BU38: x | BV38: x | BW38: x | BX38: x | BY38: x | BZ38: x | CA38: x | CB38: x | CC38: x | CD38: x | CE38: x | CF38: x | CG38: x | CI38: 0 | CJ38: 0 | CK38: 0 | CL38: 0 | CM38: 0 | CN38: 0 | CO38: 0 | CP38: 0 | CQ38: 0 | CR38: 0 | CS38: 0 | CT38: 0 | CU38: 0 | CV38: 0 | CW38: 0 | CX38: 0 | CY38: 0 | CZ38: 0 | DA38: 0 | DB38: 0 | DC38: 0 | DD38: 0 | DE38: 0 | DF38: 0 | DG38: 0 | DH38: 0 | DI38: 0 | DJ38: 0 | DK38: 0 | DL38: 0 | DM38: 0 | DN38: 0 | DO38: 0 | DP38: 0 | DQ38: 0 | DR38: 0 | DS38: 0 | DT38: 0 | DV38: =IF(VLOOKUP($A38,'Schedule Setup'!$A$4:$E$39,5,FALSE)=0,"",VLOOKUP($A38,'Schedule Setup'!$A$4:$E$39,5,FALSE)) ->  | DW38: 0 | DY38: 0 | EA38: 0 | EC38: 0 | EF38: 0 | EH38: 0 | EJ38: 0 | EL38: 0 | EO38: ='Schedule Setup'!F36 -> 00:00:00 | EP38: ='Schedule Setup'!G36 -> 00:00:00 | EQ38: -0.02083333333 | ER38: 00:30:00
A39: 33 | B39: =IF(VLOOKUP($A39,'Schedule Setup'!$A$4:$E$39,2,FALSE)=0,"",VLOOKUP($A39,'Schedule Setup'!$A$4:$E$39,2,FALSE)) ->  | C39: =IF(VLOOKUP($A39,'Schedule Setup'!$A$4:$E$39,4,FALSE)=0,"",VLOOKUP($A39,'Schedule Setup'!$A$4:$E$39,4,FALSE)) ->  | H39: x | I39: x | J39: x | K39: x | L39: x | M39: x | N39: x | O39: x | P39: x | Q39: x | R39: x | S39: x | T39: x | U39: x | V39: x | W39: x | X39: x | Y39: x | Z39: x | AA39: x | AB39: x | AC39: x | AD39: x | AE39: x | AF39: x | AG39: x | AH39: x | AI39: x | AJ39: x | AK39: x | AL39: x | AM39: x | AN39: x | AO39: x | AP39: x | AQ39: x | AR39: x | AS39: x | AT39: 0 | AV39: =IF(AND($EO39<=H$6+0.01,$EP39>H$6+0.01),IF(AND(H$6<$F39-0.01,H$6>=$E39-0.01),$D39,""),"x") -> x | AW39: =IF(AND($EO39<=I$6+0.01,$EP39>I$6+0.01),IF(AND(I$6<$F39-0.01,I$6>=$E39-0.01),$D39,""),"x") -> x | AX39: =IF(AND($EO39<=J$6+0.01,$EP39>J$6+0.01),IF(AND(J$6<$F39-0.01,J$6>=$E39-0.01),$D39,""),"x") -> x | AY39: =IF(AND($EO39<=K$6+0.01,$EP39>K$6+0.01),IF(AND(K$6<$F39-0.01,K$6>=$E39-0.01),$D39,""),"x") -> x | AZ39: =IF(AND($EO39<=L$6+0.01,$EP39>L$6+0.01),IF(AND(L$6<$F39-0.01,L$6>=$E39-0.01),$D39,""),"x") -> x | BA39: =IF(AND($EO39<=M$6+0.01,$EP39>M$6+0.01),IF(AND(M$6<$F39-0.01,M$6>=$E39-0.01),$D39,""),"x") -> x | BB39: =IF(AND($EO39<=N$6+0.01,$EP39>N$6+0.01),IF(AND(N$6<$F39-0.01,N$6>=$E39-0.01),$D39,""),"x") -> x | BC39: =IF(AND($EO39<=O$6+0.01,$EP39>O$6+0.01),IF(AND(O$6<$F39-0.01,O$6>=$E39-0.01),$D39,""),"x") -> x | BD39: =IF(AND($EO39<=P$6+0.01,$EP39>P$6+0.01),IF(AND(P$6<$F39-0.01,P$6>=$E39-0.01),$D39,""),"x") -> x | BE39: =IF(AND($EO39<=Q$6+0.01,$EP39>Q$6+0.01),IF(AND(Q$6<$F39-0.01,Q$6>=$E39-0.01),$D39,""),"x") -> x | BF39: =IF(AND($EO39<=R$6+0.01,$EP39>R$6+0.01),IF(AND(R$6<$F39-0.01,R$6>=$E39-0.01),$D39,""),"x") -> x | BG39: =IF(AND($EO39<=S$6+0.01,$EP39>S$6+0.01),IF(AND(S$6<$F39-0.01,S$6>=$E39-0.01),$D39,""),"x") -> x | BH39: =IF(AND($EO39<=T$6+0.01,$EP39>T$6+0.01),IF(AND(T$6<$F39-0.01,T$6>=$E39-0.01),$D39,""),"x") -> x | BI39: =IF(AND($EO39<=U$6+0.01,$EP39>U$6+0.01),IF(AND(U$6<$F39-0.01,U$6>=$E39-0.01),$D39,""),"x") -> x | BJ39: =IF(AND($EO39<=V$6+0.01,$EP39>V$6+0.01),IF(AND(V$6<$F39-0.01,V$6>=$E39-0.01),$D39,""),"x") -> x | BK39: =IF(AND($EO39<=W$6+0.01,$EP39>W$6+0.01),IF(AND(W$6<$F39-0.01,W$6>=$E39-0.01),$D39,""),"x") -> x | BL39: =IF(AND($EO39<=X$6+0.01,$EP39>X$6+0.01),IF(AND(X$6<$F39-0.01,X$6>=$E39-0.01),$D39,""),"x") -> x | BM39: =IF(AND($EO39<=Y$6+0.01,$EP39>Y$6+0.01),IF(AND(Y$6<$F39-0.01,Y$6>=$E39-0.01),$D39,""),"x") -> x | BN39: =IF(AND($EO39<=Z$6+0.01,$EP39>Z$6+0.01),IF(AND(Z$6<$F39-0.01,Z$6>=$E39-0.01),$D39,""),"x") -> x | BO39: =IF(AND($EO39<=AA$6+0.01,$EP39>AA$6+0.01),IF(AND(AA$6<$F39-0.01,AA$6>=$E39-0.01),$D39,""),"x") -> x | BP39: =IF(AND($EO39<=AB$6+0.01,$EP39>AB$6+0.01),IF(AND(AB$6<$F39-0.01,AB$6>=$E39-0.01),$D39,""),"x") -> x | BQ39: =IF(AND($EO39<=AC$6+0.01,$EP39>AC$6+0.01),IF(AND(AC$6<$F39-0.01,AC$6>=$E39-0.01),$D39,""),"x") -> x | BR39: =IF(AND($EO39<=AD$6+0.01,$EP39>AD$6+0.01),IF(AND(AD$6<$F39-0.01,AD$6>=$E39-0.01),$D39,""),"x") -> x | BS39: =IF(AND($EO39<=AE$6+0.01,$EP39>AE$6+0.01),IF(AND(AE$6<$F39-0.01,AE$6>=$E39-0.01),$D39,""),"x") -> x | BT39: =IF(AND($EO39<=AF$6+0.01,$EP39>AF$6+0.01),IF(AND(AF$6<$F39-0.01,AF$6>=$E39-0.01),$D39,""),"x") -> x | BU39: =IF(AND($EO39<=AG$6+0.01,$EP39>AG$6+0.01),IF(AND(AG$6<$F39-0.01,AG$6>=$E39-0.01),$D39,""),"x") -> x | BV39: =IF(AND($EO39<=AH$6+0.01,$EP39>AH$6+0.01),IF(AND(AH$6<$F39-0.01,AH$6>=$E39-0.01),$D39,""),"x") -> x | BW39: =IF(AND($EO39<=AI$6+0.01,$EP39>AI$6+0.01),IF(AND(AI$6<$F39-0.01,AI$6>=$E39-0.01),$D39,""),"x") -> x | BX39: =IF(AND($EO39<=AJ$6+0.01,$EP39>AJ$6+0.01),IF(AND(AJ$6<$F39-0.01,AJ$6>=$E39-0.01),$D39,""),"x") -> x | BY39: =IF(AND($EO39<=AK$6+0.01,$EP39>AK$6+0.01),IF(AND(AK$6<$F39-0.01,AK$6>=$E39-0.01),$D39,""),"x") -> x | BZ39: =IF(AND($EO39<=AL$6+0.01,$EP39>AL$6+0.01),IF(AND(AL$6<$F39-0.01,AL$6>=$E39-0.01),$D39,""),"x") -> x | CA39: =IF(AND($EO39<=AM$6+0.01,$EP39>AM$6+0.01),IF(AND(AM$6<$F39-0.01,AM$6>=$E39-0.01),$D39,""),"x") -> x | CB39: =IF(AND($EO39<=AN$6+0.01,$EP39>AN$6+0.01),IF(AND(AN$6<$F39-0.01,AN$6>=$E39-0.01),$D39,""),"x") -> x | CC39: =IF(AND($EO39<=AO$6+0.01,$EP39>AO$6+0.01),IF(AND(AO$6<$F39-0.01,AO$6>=$E39-0.01),$D39,""),"x") -> x | CD39: =IF(AND($EO39<=AP$6+0.01,$EP39>AP$6+0.01),IF(AND(AP$6<$F39-0.01,AP$6>=$E39-0.01),$D39,""),"x") -> x | CE39: =IF(AND($EO39<=AQ$6+0.01,$EP39>AQ$6+0.01),IF(AND(AQ$6<$F39-0.01,AQ$6>=$E39-0.01),$D39,""),"x") -> x | CF39: =IF(AND($EO39<=AR$6+0.01,$EP39>AR$6+0.01),IF(AND(AR$6<$F39-0.01,AR$6>=$E39-0.01),$D39,""),"x") -> x | CG39: =IF(AND($EO39<=AS$6+0.01,$EP39>AS$6+0.01),IF(AND(AS$6<$F39-0.01,AS$6>=$E39-0.01),$D39,""),"x") -> x | CI39: =IF(AND(AV39<>"",AV39<>"x"),0.5,) -> 0 | CJ39: =IF(AND(AW39<>"",AW39<>"x"),0.5,) -> 0 | CK39: =IF(AND(AX39<>"",AX39<>"x"),0.5,) -> 0 | CL39: =IF(AND(AY39<>"",AY39<>"x"),0.5,) -> 0 | CM39: =IF(AND(AZ39<>"",AZ39<>"x"),0.5,) -> 0 | CN39: =IF(AND(BA39<>"",BA39<>"x"),0.5,) -> 0 | CO39: =IF(AND(BB39<>"",BB39<>"x"),0.5,) -> 0 | CP39: =IF(AND(BC39<>"",BC39<>"x"),0.5,) -> 0 | CQ39: =IF(AND(BD39<>"",BD39<>"x"),0.5,) -> 0 | CR39: =IF(AND(BE39<>"",BE39<>"x"),0.5,) -> 0 | CS39: =IF(AND(BF39<>"",BF39<>"x"),0.5,) -> 0 | CT39: =IF(AND(BG39<>"",BG39<>"x"),0.5,) -> 0 | CU39: =IF(AND(BH39<>"",BH39<>"x"),0.5,) -> 0 | CV39: =IF(AND(BI39<>"",BI39<>"x"),0.5,) -> 0 | CW39: =IF(AND(BJ39<>"",BJ39<>"x"),0.5,) -> 0 | CX39: =IF(AND(BK39<>"",BK39<>"x"),0.5,) -> 0 | CY39: =IF(AND(BL39<>"",BL39<>"x"),0.5,) -> 0 | CZ39: =IF(AND(BM39<>"",BM39<>"x"),0.5,) -> 0 | DA39: =IF(AND(BN39<>"",BN39<>"x"),0.5,) -> 0 | DB39: =IF(AND(BO39<>"",BO39<>"x"),0.5,) -> 0 | DC39: =IF(AND(BP39<>"",BP39<>"x"),0.5,) -> 0 | DD39: =IF(AND(BQ39<>"",BQ39<>"x"),0.5,) -> 0 | DE39: =IF(AND(BR39<>"",BR39<>"x"),0.5,) -> 0 | DF39: =IF(AND(BS39<>"",BS39<>"x"),0.5,) -> 0 | DG39: =IF(AND(BT39<>"",BT39<>"x"),0.5,) -> 0 | DH39: =IF(AND(BU39<>"",BU39<>"x"),0.5,) -> 0 | DI39: =IF(AND(BV39<>"",BV39<>"x"),0.5,) -> 0 | DJ39: =IF(AND(BW39<>"",BW39<>"x"),0.5,) -> 0 | DK39: =IF(AND(BX39<>"",BX39<>"x"),0.5,) -> 0 | DL39: =IF(AND(BY39<>"",BY39<>"x"),0.5,) -> 0 | DM39: =IF(AND(BZ39<>"",BZ39<>"x"),0.5,) -> 0 | DN39: =IF(AND(CA39<>"",CA39<>"x"),0.5,) -> 0 | DO39: =IF(AND(CB39<>"",CB39<>"x"),0.5,) -> 0 | DP39: =IF(AND(CC39<>"",CC39<>"x"),0.5,) -> 0 | DQ39: =IF(AND(CD39<>"",CD39<>"x"),0.5,) -> 0 | DR39: =IF(AND(CE39<>"",CE39<>"x"),0.5,) -> 0 | DS39: =IF(AND(CF39<>"",CF39<>"x"),0.5,) -> 0 | DT39: =IF(AND(CG39<>"",CG39<>"x"),0.5,) -> 0 | DV39: =IF(VLOOKUP($A39,'Schedule Setup'!$A$4:$E$39,5,FALSE)=0,"",VLOOKUP($A39,'Schedule Setup'!$A$4:$E$39,5,FALSE)) ->  | DW39: =SUM(CI39:CT39) -> 0 | DX39: =IFERROR(DW39*$DV39,"") ->  | DY39: =SUM(CU39:DF39) -> 0 | DZ39: =IFERROR(DY39*$DV39,"") ->  | EA39: =SUM(DG39:DT39) -> 0 | EB39: =IFERROR(EA39*$DV39,"") ->  | EC39: =SUM(DW39,DY39,EA39) -> 0 | ED39: =IFERROR(EC39*$DV39,"") ->  | EF39: =IF(DW39>5,(DW39-0.5),DW39) -> 0 | EG39: =IFERROR(EF39*$DV39,"") ->  | EH39: =IF(DY39>5,(DY39-0.5),DY39) -> 0 | EI39: =IFERROR(EH39*$DV39,"") ->  | EJ39: =IF(EA39>5,(EA39-0.5),EA39) -> 0 | EK39: =IFERROR(EJ39*$DV39,"") ->  | EL39: =SUM(EF39,EH39,EJ39) -> 0 | EM39: =IFERROR(EL39*$DV39,"") ->  | EO39: ='Schedule Setup'!F37 -> 00:00:00 | EP39: ='Schedule Setup'!G37 -> 00:00:00 | EQ39: -0.02083333333 | ER39: 00:30:00
A40: 34 | B40: =IF(VLOOKUP($A40,'Schedule Setup'!$A$4:$E$39,2,FALSE)=0,"",VLOOKUP($A40,'Schedule Setup'!$A$4:$E$39,2,FALSE)) ->  | C40: =IF(VLOOKUP($A40,'Schedule Setup'!$A$4:$E$39,4,FALSE)=0,"",VLOOKUP($A40,'Schedule Setup'!$A$4:$E$39,4,FALSE)) ->  | H40: x | I40: x | J40: x | K40: x | L40: x | M40: x | N40: x | O40: x | P40: x | Q40: x | R40: x | S40: x | T40: x | U40: x | V40: x | W40: x | X40: x | Y40: x | Z40: x | AA40: x | AB40: x | AC40: x | AD40: x | AE40: x | AF40: x | AG40: x | AH40: x | AI40: x | AJ40: x | AK40: x | AL40: x | AM40: x | AN40: x | AO40: x | AP40: x | AQ40: x | AR40: x | AS40: x | AT40: 0 | AV40: x | AW40: x | AX40: x | AY40: x | AZ40: x | BA40: x | BB40: x | BC40: x | BD40: x | BE40: x | BF40: x | BG40: x | BH40: x | BI40: x | BJ40: x | BK40: x | BL40: x | BM40: x | BN40: x | BO40: x | BP40: x | BQ40: x | BR40: x | BS40: x | BT40: x | BU40: x | BV40: x | BW40: x | BX40: x | BY40: x | BZ40: x | CA40: x | CB40: x | CC40: x | CD40: x | CE40: x | CF40: x | CG40: x | CI40: 0 | CJ40: 0 | CK40: 0 | CL40: 0 | CM40: 0 | CN40: 0 | CO40: 0 | CP40: 0 | CQ40: 0 | CR40: 0 | CS40: 0 | CT40: 0 | CU40: 0 | CV40: 0 | CW40: 0 | CX40: 0 | CY40: 0 | CZ40: 0 | DA40: 0 | DB40: 0 | DC40: 0 | DD40: 0 | DE40: 0 | DF40: 0 | DG40: 0 | DH40: 0 | DI40: 0 | DJ40: 0 | DK40: 0 | DL40: 0 | DM40: 0 | DN40: 0 | DO40: 0 | DP40: 0 | DQ40: 0 | DR40: 0 | DS40: 0 | DT40: 0 | DV40: =IF(VLOOKUP($A40,'Schedule Setup'!$A$4:$E$39,5,FALSE)=0,"",VLOOKUP($A40,'Schedule Setup'!$A$4:$E$39,5,FALSE)) ->  | DW40: 0 | DY40: 0 | EA40: 0 | EC40: 0 | EF40: 0 | EH40: 0 | EJ40: 0 | EL40: 0 | EO40: ='Schedule Setup'!F37 -> 00:00:00 | EP40: ='Schedule Setup'!G37 -> 00:00:00 | EQ40: -0.02083333333 | ER40: 00:30:00
A41: 35 | B41: =IF(VLOOKUP($A41,'Schedule Setup'!$A$4:$E$39,2,FALSE)=0,"",VLOOKUP($A41,'Schedule Setup'!$A$4:$E$39,2,FALSE)) ->  | C41: =IF(VLOOKUP($A41,'Schedule Setup'!$A$4:$E$39,4,FALSE)=0,"",VLOOKUP($A41,'Schedule Setup'!$A$4:$E$39,4,FALSE)) ->  | H41: =AV41 -> x | I41: x | J41: x | K41: =AY41 -> x | L41: x | M41: x | N41: x | O41: x | P41: x | Q41: x | R41: x | S41: x | T41: x | U41: x | V41: x | W41: x | X41: x | Y41: =BM41 -> x | Z41: x | AA41: x | AB41: x | AC41: x | AD41: x | AE41: x | AF41: x | AG41: x | AH41: x | AI41: x | AJ41: x | AK41: x | AL41: x | AM41: x | AN41: x | AO41: x | AP41: x | AQ41: x | AR41: x | AS41: x | AT41: 0 | AV41: x | AW41: x | AX41: x | AY41: x | AZ41: x | BA41: x | BB41: x | BC41: x | BD41: x | BE41: x | BF41: x | BG41: x | BH41: x | BI41: x | BJ41: x | BK41: x | BL41: x | BM41: x | BN41: x | BO41: x | BP41: x | BQ41: x | BR41: x | BS41: x | BT41: x | BU41: x | BV41: x | BW41: x | BX41: x | BY41: x | BZ41: x | CA41: x | CB41: x | CC41: x | CD41: x | CE41: x | CF41: x | CG41: x | CI41: 0 | CJ41: 0 | CK41: 0 | CL41: 0 | CM41: 0 | CN41: 0 | CO41: 0 | CP41: 0 | CQ41: 0 | CR41: 0 | CS41: 0 | CT41: 0 | CU41: 0 | CV41: 0 | CW41: 0 | CX41: 0 | CY41: 0 | CZ41: 0 | DA41: 0 | DB41: 0 | DC41: 0 | DD41: 0 | DE41: 0 | DF41: 0 | DG41: 0 | DH41: 0 | DI41: 0 | DJ41: 0 | DK41: 0 | DL41: 0 | DM41: 0 | DN41: 0 | DO41: 0 | DP41: 0 | DQ41: 0 | DR41: 0 | DS41: 0 | DT41: 0 | DV41: =IF(VLOOKUP($A41,'Schedule Setup'!$A$4:$E$39,5,FALSE)=0,"",VLOOKUP($A41,'Schedule Setup'!$A$4:$E$39,5,FALSE)) ->  | DW41: 0 | DY41: 0 | EA41: 0 | EC41: 0 | EF41: 0 | EH41: 0 | EJ41: 0 | EL41: 0 | EO41: ='Schedule Setup'!F39 -> 00:00:00 | EP41: ='Schedule Setup'!G39 -> 00:00:00 | EQ41: -0.02083333333 | ER41: 00:30:00
C42: Totals/Coverage | D42: Totals/Coverage | E42: =MIN(E7:E41) -> 05:00:00 | F42: =MAX(F7:F41) -> 20:30:00 | H42: =CI42 -> 1 | I42: =CJ42 -> 1 | J42: 1 | K42: 1 | L42: 1 | M42: 1 | N42: 2 | O42: 2 | P42: 2 | Q42: 2 | R42: 2 | S42: 2 | T42: 2 | U42: 2 | V42: 2 | W42: 3 | X42: 3 | Y42: 3 | Z42: 3 | AA42: 4 | AB42: 4 | AC42: 4 | AD42: 3 | AE42: 3 | AF42: 3 | AG42: 3 | AH42: 3 | AI42: 2 | AJ42: 2 | AK42: 2 | AL42: 2 | AM42: 0 | AN42: 0 | AO42: 0 | AP42: 0 | AQ42: 0 | AR42: 0 | AS42: 0 | AT42: =SUM(AT7:AT41) -> 35.5 | CI42: =COUNTIF(CI7:CI41,0.5) -> 1 | CJ42: =COUNTIF(CJ7:CJ41,0.5) -> 1 | CK42: 1 | CL42: 1 | CM42: 1 | CN42: 1 | CO42: 2 | CP42: 2 | CQ42: 2 | CR42: 2 | CS42: 2 | CT42: 2 | CU42: 2 | CV42: 2 | CW42: 2 | CX42: 3 | CY42: 3 | CZ42: 3 | DA42: 3 | DB42: 4 | DC42: 4 | DD42: 4 | DE42: 3 | DF42: 3 | DG42: 3 | DH42: 3 | DI42: 3 | DJ42: 2 | DK42: 2 | DL42: 2 | DM42: 2 | DN42: 0 | DO42: 0 | DP42: 0 | DQ42: 0 | DR42: 0 | DS42: 0 | DT42: 0 | DW42: =SUM(DW7:DW41) -> 9 | DX42: 0 | DY42: 18 | DZ42: 0 | EA42: 8.5 | EB42: 0 | EC42: 35.5 | ED42: 0 | EF42: =SUM(EF7:EF41) -> 8.5 | EG42: 0 | EH42: 18 | EI42: 0 | EJ42: 8.5 | EK42: 0 | EL42: 35 | EM42: 0 | EO42: ='Schedule Setup'!F40 -> 07:00:00 | EP42: ='Schedule Setup'!G40 -> 20:00:00 | EQ42: 06:30:00 | ER42: 20:30:00
B43: =O2-8 -> 2014-11-11 | F43: ='Schedule Forecast'!A14 -> Wk 10-21 | H43: =IFERROR(INDEX(INDIRECT("'"&$F43&"'!$C:$C"),MATCH(H$6,INDIRECT("'"&$F43&"'!$A$1:$A$250"),0)+1),0) -> 0 | I43: 0 | J43: 0 | K43: 0 | L43: 35.73 | M43: 25.69 | N43: 56.83 | O43: 18.4 | P43: 23.91 | Q43: 16.72 | R43: 6010.44 | S43: 58.49 | T43: 54.36 | U43: 43.56 | V43: 119.31 | W43: 129.71 | X43: =IFERROR(INDEX(INDIRECT("'"&$F43&"'!$C:$C"),MATCH(X$6,INDIRECT("'"&$F43&"'!$A$1:$A$250"),0)+1),0) -> 80.75 | Y43: 63.37 | Z43: 122.04 | AA43: 66.76 | AB43: 111.53 | AC43: 60.08 | AD43: 49.31 | AE43: 45.61 | AF43: 14.57 | AG43: 36.49 | AH43: 70.37 | AI43: 6.38 | AJ43: 16.52 | AK43: 5.59 | AL43: 0 | AM43: 0 | AN43: 0 | AO43: 0 | AP43: 0 | AQ43: 0 | AR43: 0 | AS43: 0
B44: =B43-7 -> 2014-11-04 | F44: ='Schedule Forecast'!A15 -> Wk 10-28 | H44: 0 | I44: 0 | J44: 0 | K44: 0 | L44: 12.88 | M44: 40.11 | N44: 25.6 | O44: 21.37 | P44: 4.9 | Q44: 23.41 | R44: 33.29 | S44: 47.81 | T44: 40.13 | U44: 46.09 | V44: 56.88 | W44: 130.05 | X44: =IFERROR(INDEX(INDIRECT("'"&$F44&"'!$C:$C"),MATCH(X$6,INDIRECT("'"&$F44&"'!$A$1:$A$250"),0)+1),0) -> 6.68 | Y44: 18.81 | Z44: 68.11 | AA44: 173.08 | AB44: 105 | AC44: 154.89 | AD44: 72.47 | AE44: 75.45 | AF44: 25.7 | AG44: 55.54 | AH44: 28.44 | AI44: 37.29 | AJ44: 10.88 | AK44: 6.24 | AL44: 0 | AM44: 0 | AN44: 0 | AO44: 0 | AP44: 0 | AQ44: 0 | AR44: 0 | AS44: 0
B45: =B44-7 -> 2014-10-28 | F45: ='Schedule Forecast'!A16 -> Wk 11-4 | H45: 0 | I45: 0 | J45: 0 | K45: 0 | L45: 15.97 | M45: 5.89 | N45: 14.17 | O45: 16.07 | P45: 19.86 | Q45: 35.55 | R45: 26.06 | S45: 51.6 | T45: 73.64 | U45: 32.92 | V45: 75.31 | W45: 139.82 | X45: 37.37 | Y45: 49.16 | Z45: 142.48 | AA45: 105.74 | AB45: 220.07 | AC45: 79.36 | AD45: 81.04 | AE45: 32.59 | AF45: 40.87 | AG45: 42.17 | AH45: 43.21 | AI45: 13.47 | AJ45: 5.89 | AK45: 14.58 | AL45: 0 | AM45: 0 | AN45: 0 | AO45: 0 | AP45: 0 | AQ45: 0 | AR45: 0 | AS45: 0
B46: =B45-7 -> 2014-10-21 | F46: ='Schedule Forecast'!A17 -> Wk 11-11 | H46: 0 | I46: 0 | J46: 0 | K46: 0 | L46: =IFERROR(INDEX(INDIRECT("'"&$F46&"'!$C:$C"),MATCH(L$6,INDIRECT("'"&$F46&"'!$A$1:$A$250"),0)+1),0) -> 4.89 | M46: 29.2 | N46: 33.94 | O46: 36.75 | P46: 8.67 | Q46: 4.74 | R46: 17.56 | S46: 31.29 | T46: 44.31 | U46: 62.57 | V46: 62.28 | W46: 101.69 | X46: 55.63 | Y46: 65.01 | Z46: 96.97 | AA46: 92.82 | AB46: 163.56 | AC46: 82.88 | AD46: 63.78 | AE46: 67.67 | AF46: 68.37 | AG46: 34.63 | AH46: 50.55 | AI46: 13.58 | AJ46: 0 | AK46: 2.79 | AL46: 0 | AM46: 0 | AN46: 0 | AO46: 0 | AP46: 0 | AQ46: 0 | AR46: 0 | AS46: 0
B47: =((EP42-EO42)*24+(EP88-EO88)*24+(EP134-EO134)*24+(EP180-EO180)*24+(EP226-EO226)*24+(EP272-EO272)*24+(EP318-EO318)*24) -> 90.5 | D47: Open Hours | F47: AVERAGE | H47: =IFERROR(IF(AND(H$6>=$EO$42,H$6<$EP$42-0.001),AVERAGE(H43:H46),""),"") ->  | L47: 17.3675 | M47: 25.2225 | N47: 32.635 | O47: 23.1475 | P47: 14.335 | Q47: 20.105 | R47: 1521.8375 | S47: 47.2975 | T47: 53.11 | U47: 46.285 | V47: 78.445 | W47: 125.3175 | X47: 45.1075 | Y47: 49.0875 | Z47: 107.4 | AA47: 109.6 | AB47: 150.04 | AC47: 94.3025 | AD47: 66.65 | AE47: 55.33 | AF47: 37.3775 | AG47: 42.2075 | AH47: 48.1425 | AI47: 17.68 | AJ47: =IFERROR(IF(AND(AJ$6>=$EO$42,AJ$6<$EP$42-0.001),AVERAGE(AJ43:AJ46),""),"") -> 8.3225 | AK47: =IFERROR(IF(AND(AK$6>=$EO$42,AK$6<$EP$42-0.001),AVERAGE(AK43:AK46),""),"") -> 7.3
B48: =IF((('Schedule Forecast'!AE23*'Schedule Forecast'!C4/'Shift Schedule'!AC2)-14-B47*2)/(SUM(H48:AS48)+SUM(H94:AS94)+SUM(H140:AS140)+SUM(H186:AS186)+SUM(H232:AS232)+SUM(H278:AS278)+SUM(H324:AS324)-B47*2)>0,(('Schedule Forecast'!AE23*'Schedule Forecast'!C4/'Shift Schedule'!AC2)-14-B47*2)/(SUM(H48:AS48)+SUM(H94:AS94)+SUM(H140:AS140)+SUM(H186:AS186)+SUM(H232:AS232)+SUM(H278:AS278)+SUM(H324:AS324)-B47*2),0) -> 0 | D48: P/ over 2 | G48: =IFERROR(IF((G47*'Schedule Forecast'!#REF!-$AC$2)>1,(G47*'Schedule Forecast'!#REF!-$AC$2),1),"") ->  | H48: =IFERROR(IF((H47*'Schedule Forecast'!$C$4-$AC$2)>1,(H47*'Schedule Forecast'!$C$4-$AC$2),1),"") ->  | I48: =IFERROR(IF((I47*'Schedule Forecast'!$C$4-$AC$2)>1,(I47*'Schedule Forecast'!$C$4-$AC$2),1),"") ->  | J48: =IFERROR(IF((J47*'Schedule Forecast'!$C$4-$AC$2)>1,(J47*'Schedule Forecast'!$C$4-$AC$2),1),"") ->  | K48: =IFERROR(IF((K47*'Schedule Forecast'!$C$4-$AC$2)>1,(K47*'Schedule Forecast'!$C$4-$AC$2),1),"") ->  | L48: =IFERROR(IF((L47*'Schedule Forecast'!$C$4-$AC$2)>1,(L47*'Schedule Forecast'!$C$4-$AC$2),1),"") -> 1 | M48: =IFERROR(IF((M47*'Schedule Forecast'!$C$4-$AC$2)>1,(M47*'Schedule Forecast'!$C$4-$AC$2),1),"") -> 1 | N48: =IFERROR(IF((N47*'Schedule Forecast'!$C$4-$AC$2)>1,(N47*'Schedule Forecast'!$C$4-$AC$2),1),"") -> 1 | O48: =IFERROR(IF((O47*'Schedule Forecast'!$C$4-$AC$2)>1,(O47*'Schedule Forecast'!$C$4-$AC$2),1),"") -> 1 | P48: =IFERROR(IF((P47*'Schedule Forecast'!$C$4-$AC$2)>1,(P47*'Schedule Forecast'!$C$4-$AC$2),1),"") -> 1 | Q48: =IFERROR(IF((Q47*'Schedule Forecast'!$C$4-$AC$2)>1,(Q47*'Schedule Forecast'!$C$4-$AC$2),1),"") -> 1 | R48: =IFERROR(IF((R47*'Schedule Forecast'!$C$4-$AC$2)>1,(R47*'Schedule Forecast'!$C$4-$AC$2),1),"") -> 279.149125 | S48: =IFERROR(IF((S47*'Schedule Forecast'!$C$4-$AC$2)>1,(S47*'Schedule Forecast'!$C$4-$AC$2),1),"") -> 1 | T48: =IFERROR(IF((T47*'Schedule Forecast'!$C$4-$AC$2)>1,(T47*'Schedule Forecast'!$C$4-$AC$2),1),"") -> 1 | U48: =IFERROR(IF((U47*'Schedule Forecast'!$C$4-$AC$2)>1,(U47*'Schedule Forecast'!$C$4-$AC$2),1),"") -> 1 | V48: =IFERROR(IF((V47*'Schedule Forecast'!$C$4-$AC$2)>1,(V47*'Schedule Forecast'!$C$4-$AC$2),1),"") -> 4.90455 | W48: =IFERROR(IF((W47*'Schedule Forecast'!$C$4-$AC$2)>1,(W47*'Schedule Forecast'!$C$4-$AC$2),1),"") -> 13.810325 | X48: =IFERROR(IF((X47*'Schedule Forecast'!$C$4-$AC$2)>1,(X47*'Schedule Forecast'!$C$4-$AC$2),1),"") -> 1 | Y48: =IFERROR(IF((Y47*'Schedule Forecast'!$C$4-$AC$2)>1,(Y47*'Schedule Forecast'!$C$4-$AC$2),1),"") -> 1 | Z48: =IFERROR(IF((Z47*'Schedule Forecast'!$C$4-$AC$2)>1,(Z47*'Schedule Forecast'!$C$4-$AC$2),1),"") -> 10.406 | AA48: =IFERROR(IF((AA47*'Schedule Forecast'!$C$4-$AC$2)>1,(AA47*'Schedule Forecast'!$C$4-$AC$2),1),"") -> 10.824 | AB48: =IFERROR(IF((AB47*'Schedule Forecast'!$C$4-$AC$2)>1,(AB47*'Schedule Forecast'!$C$4-$AC$2),1),"") -> 18.5076 | AC48: =IFERROR(IF((AC47*'Schedule Forecast'!$C$4-$AC$2)>1,(AC47*'Schedule Forecast'!$C$4-$AC$2),1),"") -> 7.917475 | AD48: =IFERROR(IF((AD47*'Schedule Forecast'!$C$4-$AC$2)>1,(AD47*'Schedule Forecast'!$C$4-$AC$2),1),"") -> 2.6635 | AE48: =IFERROR(IF((AE47*'Schedule Forecast'!$C$4-$AC$2)>1,(AE47*'Schedule Forecast'!$C$4-$AC$2),1),"") -> 1 | AF48: =IFERROR(IF((AF47*'Schedule Forecast'!$C$4-$AC$2)>1,(AF47*'Schedule Forecast'!$C$4-$AC$2),1),"") -> 1 | AG48: =IFERROR(IF((AG47*'Schedule Forecast'!$C$4-$AC$2)>1,(AG47*'Schedule Forecast'!$C$4-$AC$2),1),"") -> 1 | AH48: =IFERROR(IF((AH47*'Schedule Forecast'!$C$4-$AC$2)>1,(AH47*'Schedule Forecast'!$C$4-$AC$2),1),"") -> 1 | AI48: =IFERROR(IF((AI47*'Schedule Forecast'!$C$4-$AC$2)>1,(AI47*'Schedule Forecast'!$C$4-$AC$2),1),"") -> 1 | AJ48: =IFERROR(IF((AJ47*'Schedule Forecast'!$C$4-$AC$2)>1,(AJ47*'Schedule Forecast'!$C$4-$AC$2),1),"") -> 1 | AK48: =IFERROR(IF((AK47*'Schedule Forecast'!$C$4-$AC$2)>1,(AK47*'Schedule Forecast'!$C$4-$AC$2),1),"") -> 1 | AL48: =IFERROR(IF((AL47*'Schedule Forecast'!$C$4-$AC$2)>1,(AL47*'Schedule Forecast'!$C$4-$AC$2),1),"") ->  | AM48: =IFERROR(IF((AM47*'Schedule Forecast'!$C$4-$AC$2)>1,(AM47*'Schedule Forecast'!$C$4-$AC$2),1),"") ->  | AN48: =IFERROR(IF((AN47*'Schedule Forecast'!$C$4-$AC$2)>1,(AN47*'Schedule Forecast'!$C$4-$AC$2),1),"") ->  | AO48: =IFERROR(IF((AO47*'Schedule Forecast'!$C$4-$AC$2)>1,(AO47*'Schedule Forecast'!$C$4-$AC$2),1),"") ->  | AP48: =IFERROR(IF((AP47*'Schedule Forecast'!$C$4-$AC$2)>1,(AP47*'Schedule Forecast'!$C$4-$AC$2),1),"") ->  | AQ48: =IFERROR(IF((AQ47*'Schedule Forecast'!$C$4-$AC$2)>1,(AQ47*'Schedule Forecast'!$C$4-$AC$2),1),"") ->  | AR48: =IFERROR(IF((AR47*'Schedule Forecast'!$C$4-$AC$2)>1,(AR47*'Schedule Forecast'!$C$4-$AC$2),1),"") ->  | AS48: =IFERROR(IF((AS47*'Schedule Forecast'!$C$4-$AC$2)>1,(AS47*'Schedule Forecast'!$C$4-$AC$2),1),"") -> 
G49: Recommended: | H49: =IF(H6>=$EO$42,IF(H6<$EP$42-0.01,ROUND(IF(H48>1,(H48*$B$48)+1,H48)*2,0),""),"") ->  | L49: 2 | M49: 2 | N49: 2 | O49: 2 | P49: 2 | Q49: 2 | R49: 2 | S49: 2 | T49: 2 | U49: 2 | V49: 2 | W49: 2 | X49: 2 | Y49: 2 | Z49: 2 | AA49: 2 | AB49: 2 | AC49: 2 | AD49: 2 | AE49: 2 | AF49: 2 | AG49: 2 | AH49: 2 | AI49: 2 | AJ49: 2 | AK49: 2 | AL49: =IF(AL6>=$EO$42,IF(AL6<$EP$42-0.01,ROUND(IF(AL48>1,(AL48*$B$48)+1,AL48)*2,0),""),"") ->  | AM49: =IF(AM6>=$EO$42,IF(AM6<$EP$42-0.01,ROUND(IF(AM48>1,(AM48*$B$48)+1,AM48)*2,0),""),"") ->  | AT49: =SUM(H49:AS49)/2 -> 26
B51: Thursday | S51: =S5 -> Today's Date | T51: =T5+1 -> 2014-11-20 | DW51: Breakfast | DY51: Lunch | EA51: Dinner | EC51: Total | EF51: Breakfast | EH51: Lunch | EJ51: Dinner | EL51: Total | EO51: Availability
B52: Employee | C52: Job | E52: Start | F52: End | H52: 05:00:00 | I52: =H52+(0.5/24) -> 05:30:00 | J52: =I52+(0.5/24) -> 06:00:00 | K52: =J52+(0.5/24) -> 06:30:00 | L52: =K52+(0.5/24) -> 07:00:00 | M52: =L52+(0.5/24) -> 07:30:00 | N52: =M52+(0.5/24) -> 08:00:00 | O52: =N52+(0.5/24) -> 08:30:00 | P52: =O52+(0.5/24) -> 09:00:00 | Q52: =P52+(0.5/24) -> 09:30:00 | R52: =Q52+(0.5/24) -> 10:00:00 | S52: =R52+(0.5/24) -> 10:30:00 | T52: =S52+(0.5/24) -> 11:00:00 | U52: =T52+(0.5/24) -> 11:30:00 | V52: =U52+(0.5/24) -> 12:00:00 | W52: =V52+(0.5/24) -> 12:30:00 | X52: =W52+(0.5/24) -> 13:00:00 | Y52: =X52+(0.5/24) -> 13:30:00 | Z52: =Y52+(0.5/24) -> 14:00:00 | AA52: =Z52+(0.5/24) -> 14:30:00 | AB52: =AA52+(0.5/24) -> 15:00:00 | AC52: =AB52+(0.5/24) -> 15:30:00 | AD52: =AC52+(0.5/24) -> 16:00:00 | AE52: =AD52+(0.5/24) -> 16:30:00 | AF52: =AE52+(0.5/24) -> 17:00:00 | AG52: =AF52+(0.5/24) -> 17:30:00 | AH52: =AG52+(0.5/24) -> 18:00:00 | AI52: =AH52+(0.5/24) -> 18:30:00 | AJ52: =AI52+(0.5/24) -> 19:00:00 | AK52: =AJ52+(0.5/24) -> 19:30:00 | AL52: =AK52+(0.5/24) -> 20:00:00 | AM52: =AL52+(0.5/24) -> 20:30:00 | AN52: =AM52+(0.5/24) -> 21:00:00 | AO52: =AN52+(0.5/24) -> 21:30:00 | AP52: =AO52+(0.5/24) -> 22:00:00 | AQ52: =AP52+(0.5/24) -> 22:30:00 | AR52: =AQ52+(0.5/24) -> 23:00:00 | AS52: =AR52+(0.5/24) -> 23:30:00 | AT52: TOTAL | AV52: 5 | AX52: 6 | AZ52: 7 | BB52: 8 | BD52: 9 | BF52: 10 | BH52: 11 | BJ52: 12 | BL52: 1 | BN52: 2 | BP52: 3 | BR52: 4 | BT52: 5 | BV52: 6 | BX52: 7 | BZ52: 8 | CB52: 9 | CD52: 10 | CF52: 11 | CI52: 5 | CK52: 6 | CM52: 7 | CO52: 8 | CQ52: 9 | CS52: 10 | CU52: 11 | CW52: 12 | CY52: 1 | DA52: 2 | DC52: 3 | DE52: 4 | DG52: 5 | DI52: 6 | DK52: 7 | DM52: 8 | DO52: 9 | DQ52: 10 | DS52: 11 | DV52: Rate | DW52: Hrs | DX52: $ | DY52: Hrs | DZ52: $ | EA52: Hrs | EB52: $ | EC52: Hrs | ED52: $ | EF52: Hrs | EG52: $ | EH52: Hrs | EI52: $ | EJ52: Hrs | EK52: $ | EL52: Hrs | EM52: $ | EO52: Start | EP52: End | EQ52: Start-Early | ER52: End-Late
A53: 1 | B53: =IF(VLOOKUP($A53,'Schedule Setup'!$A$4:$E$39,2,FALSE)=0,"",VLOOKUP($A53,'Schedule Setup'!$A$4:$E$39,2,FALSE)) -> Shaun Payne | C53: =IF(VLOOKUP($A53,'Schedule Setup'!$A$4:$E$39,4,FALSE)=0,"",VLOOKUP($A53,'Schedule Setup'!$A$4:$E$39,4,FALSE)) -> General Manager (S) | D53: =IF(B53<>"",IF(OR(C53="General Manager (S)", C53="General Manager (H)"), "GM",IF(C53="Acting Manager","AM",IF(C53="Shift Manager","SM",IF(C53="Team Lead","TL","TM")))),"") -> GM | H53: =AV53 -> x | I53: x | J53: x | K53: x | L53: x | M53: x | N53: x | O53: x | P53: x | Q53: x | R53: x | S53: x | T53: x | U53: x | V53: x | W53: x | X53: x | Y53: x | Z53: x | AA53: x | AB53: x | AC53: x | AD53: x | AE53: x | AF53: x | AG53: x | AH53: x | AI53: x | AJ53: x | AK53: x | AL53: x | AM53: x | AN53: x | AO53: x | AP53: x | AQ53: x | AR53: x | AS53: x | AT53: =EC53 -> 0 | AV53: =IF(AND($EO53<=H$6+0.01,$EP53>H$6+0.01),IF(AND(H$6<$F53-0.01,H$6>=$E53-0.01),$D53,""),"x") -> x | AW53: =IF(AND($EO53<=I$6+0.01,$EP53>I$6+0.01),IF(AND(I$6<$F53-0.01,I$6>=$E53-0.01),$D53,""),"x") -> x | AX53: =IF(AND($EO53<=J$6+0.01,$EP53>J$6+0.01),IF(AND(J$6<$F53-0.01,J$6>=$E53-0.01),$D53,""),"x") -> x | AY53: =IF(AND($EO53<=K$6+0.01,$EP53>K$6+0.01),IF(AND(K$6<$F53-0.01,K$6>=$E53-0.01),$D53,""),"x") -> x | AZ53: =IF(AND($EO53<=L$6+0.01,$EP53>L$6+0.01),IF(AND(L$6<$F53-0.01,L$6>=$E53-0.01),$D53,""),"x") -> x | BA53: =IF(AND($EO53<=M$6+0.01,$EP53>M$6+0.01),IF(AND(M$6<$F53-0.01,M$6>=$E53-0.01),$D53,""),"x") -> x | BB53: =IF(AND($EO53<=N$6+0.01,$EP53>N$6+0.01),IF(AND(N$6<$F53-0.01,N$6>=$E53-0.01),$D53,""),"x") -> x | BC53: =IF(AND($EO53<=O$6+0.01,$EP53>O$6+0.01),IF(AND(O$6<$F53-0.01,O$6>=$E53-0.01),$D53,""),"x") -> x | BD53: =IF(AND($EO53<=P$6+0.01,$EP53>P$6+0.01),IF(AND(P$6<$F53-0.01,P$6>=$E53-0.01),$D53,""),"x") -> x | BE53: =IF(AND($EO53<=Q$6+0.01,$EP53>Q$6+0.01),IF(AND(Q$6<$F53-0.01,Q$6>=$E53-0.01),$D53,""),"x") -> x | BF53: =IF(AND($EO53<=R$6+0.01,$EP53>R$6+0.01),IF(AND(R$6<$F53-0.01,R$6>=$E53-0.01),$D53,""),"x") -> x | BG53: =IF(AND($EO53<=S$6+0.01,$EP53>S$6+0.01),IF(AND(S$6<$F53-0.01,S$6>=$E53-0.01),$D53,""),"x") -> x | BH53: =IF(AND($EO53<=T$6+0.01,$EP53>T$6+0.01),IF(AND(T$6<$F53-0.01,T$6>=$E53-0.01),$D53,""),"x") -> x | BI53: =IF(AND($EO53<=U$6+0.01,$EP53>U$6+0.01),IF(AND(U$6<$F53-0.01,U$6>=$E53-0.01),$D53,""),"x") -> x | BJ53: =IF(AND($EO53<=V$6+0.01,$EP53>V$6+0.01),IF(AND(V$6<$F53-0.01,V$6>=$E53-0.01),$D53,""),"x") -> x | BK53: =IF(AND($EO53<=W$6+0.01,$EP53>W$6+0.01),IF(AND(W$6<$F53-0.01,W$6>=$E53-0.01),$D53,""),"x") -> x | BL53: =IF(AND($EO53<=X$6+0.01,$EP53>X$6+0.01),IF(AND(X$6<$F53-0.01,X$6>=$E53-0.01),$D53,""),"x") -> x | BM53: =IF(AND($EO53<=Y$6+0.01,$EP53>Y$6+0.01),IF(AND(Y$6<$F53-0.01,Y$6>=$E53-0.01),$D53,""),"x") -> x | BN53: =IF(AND($EO53<=Z$6+0.01,$EP53>Z$6+0.01),IF(AND(Z$6<$F53-0.01,Z$6>=$E53-0.01),$D53,""),"x") -> x | BO53: =IF(AND($EO53<=AA$6+0.01,$EP53>AA$6+0.01),IF(AND(AA$6<$F53-0.01,AA$6>=$E53-0.01),$D53,""),"x") -> x | BP53: =IF(AND($EO53<=AB$6+0.01,$EP53>AB$6+0.01),IF(AND(AB$6<$F53-0.01,AB$6>=$E53-0.01),$D53,""),"x") -> x | BQ53: =IF(AND($EO53<=AC$6+0.01,$EP53>AC$6+0.01),IF(AND(AC$6<$F53-0.01,AC$6>=$E53-0.01),$D53,""),"x") -> x | BR53: =IF(AND($EO53<=AD$6+0.01,$EP53>AD$6+0.01),IF(AND(AD$6<$F53-0.01,AD$6>=$E53-0.01),$D53,""),"x") -> x | BS53: =IF(AND($EO53<=AE$6+0.01,$EP53>AE$6+0.01),IF(AND(AE$6<$F53-0.01,AE$6>=$E53-0.01),$D53,""),"x") -> x | BT53: =IF(AND($EO53<=AF$6+0.01,$EP53>AF$6+0.01),IF(AND(AF$6<$F53-0.01,AF$6>=$E53-0.01),$D53,""),"x") -> x | BU53: =IF(AND($EO53<=AG$6+0.01,$EP53>AG$6+0.01),IF(AND(AG$6<$F53-0.01,AG$6>=$E53-0.01),$D53,""),"x") -> x | BV53: =IF(AND($EO53<=AH$6+0.01,$EP53>AH$6+0.01),IF(AND(AH$6<$F53-0.01,AH$6>=$E53-0.01),$D53,""),"x") -> x | BW53: =IF(AND($EO53<=AI$6+0.01,$EP53>AI$6+0.01),IF(AND(AI$6<$F53-0.01,AI$6>=$E53-0.01),$D53,""),"x") -> x | BX53: =IF(AND($EO53<=AJ$6+0.01,$EP53>AJ$6+0.01),IF(AND(AJ$6<$F53-0.01,AJ$6>=$E53-0.01),$D53,""),"x") -> x | BY53: =IF(AND($EO53<=AK$6+0.01,$EP53>AK$6+0.01),IF(AND(AK$6<$F53-0.01,AK$6>=$E53-0.01),$D53,""),"x") -> x | BZ53: =IF(AND($EO53<=AL$6+0.01,$EP53>AL$6+0.01),IF(AND(AL$6<$F53-0.01,AL$6>=$E53-0.01),$D53,""),"x") -> x | CA53: =IF(AND($EO53<=AM$6+0.01,$EP53>AM$6+0.01),IF(AND(AM$6<$F53-0.01,AM$6>=$E53-0.01),$D53,""),"x") -> x | CB53: =IF(AND($EO53<=AN$6+0.01,$EP53>AN$6+0.01),IF(AND(AN$6<$F53-0.01,AN$6>=$E53-0.01),$D53,""),"x") -> x | CC53: =IF(AND($EO53<=AO$6+0.01,$EP53>AO$6+0.01),IF(AND(AO$6<$F53-0.01,AO$6>=$E53-0.01),$D53,""),"x") -> x | CD53: =IF(AND($EO53<=AP$6+0.01,$EP53>AP$6+0.01),IF(AND(AP$6<$F53-0.01,AP$6>=$E53-0.01),$D53,""),"x") -> x | CE53: =IF(AND($EO53<=AQ$6+0.01,$EP53>AQ$6+0.01),IF(AND(AQ$6<$F53-0.01,AQ$6>=$E53-0.01),$D53,""),"x") -> x | CF53: =IF(AND($EO53<=AR$6+0.01,$EP53>AR$6+0.01),IF(AND(AR$6<$F53-0.01,AR$6>=$E53-0.01),$D53,""),"x") -> x | CG53: =IF(AND($EO53<=AS$6+0.01,$EP53>AS$6+0.01),IF(AND(AS$6<$F53-0.01,AS$6>=$E53-0.01),$D53,""),"x") -> x | CI53: =IF(AND(AV53<>"",AV53<>"x"),0.5,) -> 0 | CJ53: =IF(AND(AW53<>"",AW53<>"x"),0.5,) -> 0 | CK53: =IF(AND(AX53<>"",AX53<>"x"),0.5,) -> 0 | CL53: =IF(AND(AY53<>"",AY53<>"x"),0.5,) -> 0 | CM53: =IF(AND(AZ53<>"",AZ53<>"x"),0.5,) -> 0 | CN53: =IF(AND(BA53<>"",BA53<>"x"),0.5,) -> 0 | CO53: =IF(AND(BB53<>"",BB53<>"x"),0.5,) -> 0 | CP53: =IF(AND(BC53<>"",BC53<>"x"),0.5,) -> 0 | CQ53: =IF(AND(BD53<>"",BD53<>"x"),0.5,) -> 0 | CR53: =IF(AND(BE53<>"",BE53<>"x"),0.5,) -> 0 | CS53: =IF(AND(BF53<>"",BF53<>"x"),0.5,) -> 0 | CT53: =IF(AND(BG53<>"",BG53<>"x"),0.5,) -> 0 | CU53: =IF(AND(BH53<>"",BH53<>"x"),0.5,) -> 0 | CV53: =IF(AND(BI53<>"",BI53<>"x"),0.5,) -> 0 | CW53: =IF(AND(BJ53<>"",BJ53<>"x"),0.5,) -> 0 | CX53: =IF(AND(BK53<>"",BK53<>"x"),0.5,) -> 0 | CY53: =IF(AND(BL53<>"",BL53<>"x"),0.5,) -> 0 | CZ53: =IF(AND(BM53<>"",BM53<>"x"),0.5,) -> 0 | DA53: =IF(AND(BN53<>"",BN53<>"x"),0.5,) -> 0 | DB53: =IF(AND(BO53<>"",BO53<>"x"),0.5,) -> 0 | DC53: =IF(AND(BP53<>"",BP53<>"x"),0.5,) -> 0 | DD53: =IF(AND(BQ53<>"",BQ53<>"x"),0.5,) -> 0 | DE53: =IF(AND(BR53<>"",BR53<>"x"),0.5,) -> 0 | DF53: =IF(AND(BS53<>"",BS53<>"x"),0.5,) -> 0 | DG53: =IF(AND(BT53<>"",BT53<>"x"),0.5,) -> 0 | DH53: =IF(AND(BU53<>"",BU53<>"x"),0.5,) -> 0 | DI53: =IF(AND(BV53<>"",BV53<>"x"),0.5,) -> 0 | DJ53: =IF(AND(BW53<>"",BW53<>"x"),0.5,) -> 0 | DK53: =IF(AND(BX53<>"",BX53<>"x"),0.5,) -> 0 | DL53: =IF(AND(BY53<>"",BY53<>"x"),0.5,) -> 0 | DM53: =IF(AND(BZ53<>"",BZ53<>"x"),0.5,) -> 0 | DN53: =IF(AND(CA53<>"",CA53<>"x"),0.5,) -> 0 | DO53: =IF(AND(CB53<>"",CB53<>"x"),0.5,) -> 0 | DP53: =IF(AND(CC53<>"",CC53<>"x"),0.5,) -> 0 | DQ53: =IF(AND(CD53<>"",CD53<>"x"),0.5,) -> 0 | DR53: =IF(AND(CE53<>"",CE53<>"x"),0.5,) -> 0 | DS53: =IF(AND(CF53<>"",CF53<>"x"),0.5,) -> 0 | DT53: =IF(AND(CG53<>"",CG53<>"x"),0.5,) -> 0 | DV53: =IF(VLOOKUP($A53,'Schedule Setup'!$A$4:$E$39,5,FALSE)=0,"",VLOOKUP($A53,'Schedule Setup'!$A$4:$E$39,5,FALSE)) ->  | DW53: =SUM(CI53:CT53) -> 0 | DX53: =IFERROR(DW53*$DV53,"") ->  | DY53: =SUM(CU53:DF53) -> 0 | DZ53: =IFERROR(DY53*$DV53,"") ->  | EA53: =SUM(DG53:DT53) -> 0 | EB53: =IFERROR(EA53*$DV53,"") ->  | EC53: =SUM(DW53,DY53,EA53) -> 0 | ED53: =IFERROR(EC53*$DV53,"") ->  | EF53: =IF(DW53>5,(DW53-0.5),DW53) -> 0 | EG53: =IFERROR(EF53*$DV53,"") ->  | EH53: =IF(DY53>5,(DY53-0.5),DY53) -> 0 | EI53: =IFERROR(EH53*$DV53,"") ->  | EJ53: =IF(EA53>5,(EA53-0.5),EA53) -> 0 | EK53: =IFERROR(EJ53*$DV53,"") ->  | EL53: =SUM(EF53,EH53,EJ53) -> 0 | EM53: =IFERROR(EL53*$DV53,"") ->  | EO53: ='Schedule Setup'!H5 -> UnAvail | EP53: ='Schedule Setup'!I5 -> UnAvail | EQ53: =EO53-(0.5/24) ->  | ER53: =EP53+(0.5/24) -> 
A54: =A53+1 -> 2 | B54: =IF(VLOOKUP($A54,'Schedule Setup'!$A$4:$E$39,2,FALSE)=0,"",VLOOKUP($A54,'Schedule Setup'!$A$4:$E$39,2,FALSE)) -> Clay Huycke-McCall | C54: =IF(VLOOKUP($A54,'Schedule Setup'!$A$4:$E$39,4,FALSE)=0,"",VLOOKUP($A54,'Schedule Setup'!$A$4:$E$39,4,FALSE)) -> Shift Manager | D54: =IF(B54<>"",IF(OR(C54="General Manager (S)", C54="General Manager (H)"), "GM",IF(C54="Acting Manager","AM",IF(C54="Shift Manager","SM",IF(C54="Team Lead","TL","TM")))),"") -> SM | H54: x | I54: x | J54: x | K54: x | L54: x | M54: x | N54: x | O54: x | P54: x | Q54: x | R54: x | S54: x | T54: x | U54: x | V54: x | W54: x | X54: x | Y54: x | Z54: x | AA54: x | AB54: x | AC54: x | AD54: x | AE54: x | AF54: x | AG54: x | AH54: x | AI54: x | AJ54: x | AK54: x | AL54: x | AM54: x | AN54: x | AO54: x | AP54: x | AQ54: x | AR54: x | AS54: x | AT54: =EC54 -> 0 | AV54: x | AW54: x | AX54: x | AY54: x | AZ54: x | BA54: x | BB54: x | BC54: x | BD54: x | BE54: x | BF54: x | BG54: x | BH54: x | BI54: x | BJ54: x | BK54: x | BL54: x | BM54: x | BN54: x | BO54: x | BP54: x | BQ54: x | BR54: x | BS54: x | BT54: x | BU54: x | BV54: x | BW54: x | BX54: x | BY54: x | BZ54: x | CA54: x | CB54: x | CC54: x | CD54: x | CE54: x | CF54: x | CG54: x | CI54: =IF(AND(AV54<>"",AV54<>"x"),0.5,) -> 0 | CJ54: 0 | CK54: 0 | CL54: 0 | CM54: 0 | CN54: 0 | CO54: 0 | CP54: 0 | CQ54: 0 | CR54: 0 | CS54: 0 | CT54: 0 | CU54: 0 | CV54: 0 | CW54: 0 | CX54: 0 | CY54: 0 | CZ54: 0 | DA54: 0 | DB54: 0 | DC54: 0 | DD54: 0 | DE54: 0 | DF54: 0 | DG54: 0 | DH54: 0 | DI54: 0 | DJ54: 0 | DK54: 0 | DL54: 0 | DM54: 0 | DN54: 0 | DO54: 0 | DP54: 0 | DQ54: 0 | DR54: 0 | DS54: 0 | DT54: 0 | DV54: =IF(VLOOKUP($A54,'Schedule Setup'!$A$4:$E$39,5,FALSE)=0,"",VLOOKUP($A54,'Schedule Setup'!$A$4:$E$39,5,FALSE)) ->  | DW54: 0 | DY54: 0 | EA54: 0 | EC54: =SUM(DW54,DY54,EA54) -> 0 | EF54: =IF(DW54>5,(DW54-0.5),DW54) -> 0 | EH54: =IF(DY54>5,(DY54-0.5),DY54) -> 0 | EJ54: 0 | EL54: =SUM(EF54,EH54,EJ54) -> 0 | EO54: ='Schedule Setup'!H6 -> Req. Off | EP54: ='Schedule Setup'!I6 -> Req. Off | EQ54: =EO54-(0.5/24) ->  | ER54: =EP54+(0.5/24) -> 
A55: =A54+1 -> 3 | B55: =IF(VLOOKUP($A55,'Schedule Setup'!$A$4:$E$39,2,FALSE)=0,"",VLOOKUP($A55,'Schedule Setup'!$A$4:$E$39,2,FALSE)) -> Shaina Hunt | C55: =IF(VLOOKUP($A55,'Schedule Setup'!$A$4:$E$39,4,FALSE)=0,"",VLOOKUP($A55,'Schedule Setup'!$A$4:$E$39,4,FALSE)) -> Shift Manager | D55: SM | E55: 06:00:00 | F55: 14:30:00 | H55: x | I55: x | J55: SM | K55: SM | L55: SM | M55: SM | N55: SM | O55: SM | P55: SM | Q55: SM | R55: SM | S55: SM | T55: SM | U55: SM | V55: SM | W55: SM | X55: SM | Y55: SM | Z55: SM | AM55: x | AN55: x | AO55: x | AP55: x | AQ55: x | AR55: x | AS55: x | AT55: 8.5 | AV55: x | AW55: x | AX55: SM | AY55: SM | AZ55: SM | BA55: SM | BB55: SM | BC55: SM | BD55: SM | BE55: SM | BF55: SM | BG55: SM | BH55: SM | BI55: SM | BJ55: SM | BK55: SM | BL55: SM | BM55: SM | BN55: SM | CA55: x | CB55: x | CC55: x | CD55: x | CE55: x | CF55: x | CG55: x | CI55: 0 | CJ55: 0 | CK55: 0.5 | CL55: 0.5 | CM55: 0.5 | CN55: 0.5 | CO55: 0.5 | CP55: 0.5 | CQ55: 0.5 | CR55: 0.5 | CS55: 0.5 | CT55: 0.5 | CU55: 0.5 | CV55: 0.5 | CW55: 0.5 | CX55: 0.5 | CY55: 0.5 | CZ55: 0.5 | DA55: 0.5 | DB55: 0 | DC55: 0 | DD55: 0 | DE55: 0 | DF55: 0 | DG55: 0 | DH55: 0 | DI55: 0 | DJ55: 0 | DK55: 0 | DL55: 0 | DM55: 0 | DN55: 0 | DO55: 0 | DP55: 0 | DQ55: 0 | DR55: 0 | DS55: 0 | DT55: 0 | DV55: =IF(VLOOKUP($A55,'Schedule Setup'!$A$4:$E$39,5,FALSE)=0,"",VLOOKUP($A55,'Schedule Setup'!$A$4:$E$39,5,FALSE)) ->  | DW55: 5 | DY55: 3.5 | EA55: 0 | EC55: =SUM(DW55,DY55,EA55) -> 8.5 | EF55: 5 | EH55: 3.5 | EJ55: 0 | EL55: 8.5 | EO55: ='Schedule Setup'!H7 -> 06:00:00 | EP55: ='Schedule Setup'!I7 -> 20:30:00 | EQ55: 05:30:00 | ER55: 21:00:00
A56: 4 | B56: =IF(VLOOKUP($A56,'Schedule Setup'!$A$4:$E$39,2,FALSE)=0,"",VLOOKUP($A56,'Schedule Setup'!$A$4:$E$39,2,FALSE)) -> Christian Fink | C56: =IF(VLOOKUP($A56,'Schedule Setup'!$A$4:$E$39,4,FALSE)=0,"",VLOOKUP($A56,'Schedule Setup'!$A$4:$E$39,4,FALSE)) -> Team Lead | D56: TL | E56: 12:30:00 | F56: 20:30:00 | H56: x | I56: x | W56: TL | X56: TL | Y56: TL | Z56: TL | AA56: TL | AB56: TL | AC56: TL | AD56: TL | AE56: TL | AF56: TL | AG56: TL | AH56: TL | AI56: TL | AJ56: TL | AK56: TL | AL56: TL | AM56: x | AN56: x | AO56: x | AP56: x | AQ56: x | AR56: x | AS56: x | AT56: 8 | AV56: x | AW56: x | BK56: TL | BL56: TL | BM56: TL | BN56: TL | BO56: TL | BP56: TL | BQ56: TL | BR56: TL | BS56: TL | BT56: TL | BU56: TL | BV56: TL | BW56: TL | BX56: TL | BY56: TL | BZ56: TL | CA56: x | CB56: x | CC56: x | CD56: x | CE56: x | CF56: x | CG56: x | CI56: 0 | CJ56: 0 | CK56: 0 | CL56: 0 | CM56: 0 | CN56: 0 | CO56: 0 | CP56: 0 | CQ56: 0 | CR56: 0 | CS56: 0 | CT56: 0 | CU56: 0 | CV56: 0 | CW56: 0 | CX56: 0.5 | CY56: 0.5 | CZ56: 0.5 | DA56: 0.5 | DB56: 0.5 | DC56: 0.5 | DD56: 0.5 | DE56: 0.5 | DF56: 0.5 | DG56: 0.5 | DH56: 0.5 | DI56: 0.5 | DJ56: 0.5 | DK56: 0.5 | DL56: 0.5 | DM56: 0.5 | DN56: 0 | DO56: 0 | DP56: 0 | DQ56: 0 | DR56: 0 | DS56: 0 | DT56: 0 | DV56: =IF(VLOOKUP($A56,'Schedule Setup'!$A$4:$E$39,5,FALSE)=0,"",VLOOKUP($A56,'Schedule Setup'!$A$4:$E$39,5,FALSE)) ->  | DW56: 0 | DY56: 4.5 | EA56: 3.5 | EC56: 8 | EF56: 0 | EH56: 4.5 | EJ56: 3.5 | EL56: 8 | EO56: ='Schedule Setup'!H8 -> 06:00:00 | EP56: ='Schedule Setup'!I8 -> 20:30:00 | EQ56: 05:30:00 | ER56: 21:00:00
A57: 5 | B57: =IF(VLOOKUP($A57,'Schedule Setup'!$A$4:$E$39,2,FALSE)=0,"",VLOOKUP($A57,'Schedule Setup'!$A$4:$E$39,2,FALSE)) -> Brendan Frye | C57: =IF(VLOOKUP($A57,'Schedule Setup'!$A$4:$E$39,4,FALSE)=0,"",VLOOKUP($A57,'Schedule Setup'!$A$4:$E$39,4,FALSE)) -> Team Member | D57: TM | E57: 08:00:00 | F57: 16:00:00 | H57: x | I57: x | J57: x | K57: x | N57: TM | O57: TM | P57: TM | Q57: TM | R57: TM | S57: TM | T57: TM | U57: TM | V57: TM | W57: TM | X57: TM | Y57: TM | Z57: TM | AA57: TM | AB57: TM | AC57: TM | AM57: x | AN57: x | AO57: x | AP57: x | AQ57: x | AR57: x | AS57: x | AT57: 8 | AV57: x | AW57: x | AX57: x | AY57: x | BB57: TM | BC57: TM | BD57: TM | BE57: TM | BF57: TM | BG57: TM | BH57: TM | BI57: TM | BJ57: TM | BK57: TM | BL57: TM | BM57: TM | BN57: TM | BO57: TM | BP57: TM | BQ57: TM | CA57: x | CB57: x | CC57: x | CD57: x | CE57: x | CF57: x | CG57: x | CI57: 0 | CJ57: 0 | CK57: 0 | CL57: 0 | CM57: 0 | CN57: 0 | CO57: 0.5 | CP57: 0.5 | CQ57: 0.5 | CR57: 0.5 | CS57: 0.5 | CT57: 0.5 | CU57: 0.5 | CV57: 0.5 | CW57: 0.5 | CX57: 0.5 | CY57: 0.5 | CZ57: 0.5 | DA57: 0.5 | DB57: 0.5 | DC57: 0.5 | DD57: 0.5 | DE57: 0 | DF57: 0 | DG57: 0 | DH57: 0 | DI57: 0 | DJ57: 0 | DK57: 0 | DL57: 0 | DM57: 0 | DN57: 0 | DO57: 0 | DP57: 0 | DQ57: 0 | DR57: 0 | DS57: 0 | DT57: 0 | DV57: =IF(VLOOKUP($A57,'Schedule Setup'!$A$4:$E$39,5,FALSE)=0,"",VLOOKUP($A57,'Schedule Setup'!$A$4:$E$39,5,FALSE)) ->  | DW57: 3 | DY57: 5 | EA57: 0 | EC57: 8 | EF57: 3 | EH57: 5 | EJ57: 0 | EL57: 8 | EO57: ='Schedule Setup'!H9 -> 07:00:00 | EP57: ='Schedule Setup'!I9 -> 20:30:00 | EQ57: 06:30:00 | ER57: 21:00:00
A58: 6 | B58: =IF(VLOOKUP($A58,'Schedule Setup'!$A$4:$E$39,2,FALSE)=0,"",VLOOKUP($A58,'Schedule Setup'!$A$4:$E$39,2,FALSE)) -> Jordan Galli | C58: =IF(VLOOKUP($A58,'Schedule Setup'!$A$4:$E$39,4,FALSE)=0,"",VLOOKUP($A58,'Schedule Setup'!$A$4:$E$39,4,FALSE)) -> Team Member | D58: TM | E58: 14:30:00 | F58: 20:30:00 | H58: x | I58: x | J58: x | K58: x | AA58: TM | AB58: TM | AC58: TM | AD58: TM | AE58: TM | AF58: TM | AG58: TM | AH58: TM | AI58: TM | AJ58: TM | AK58: TM | AL58: TM | AM58: x | AN58: x | AO58: x | AP58: x | AQ58: x | AR58: x | AS58: x | AT58: 6 | AV58: x | AW58: x | AX58: x | AY58: x | BO58: TM | BP58: TM | BQ58: TM | BR58: TM | BS58: TM | BT58: TM | BU58: TM | BV58: TM | BW58: TM | BX58: TM | BY58: TM | BZ58: TM | CA58: x | CB58: x | CC58: x | CD58: x | CE58: x | CF58: x | CG58: x | CI58: 0 | CJ58: 0 | CK58: 0 | CL58: 0 | CM58: 0 | CN58: 0 | CO58: 0 | CP58: 0 | CQ58: 0 | CR58: 0 | CS58: 0 | CT58: 0 | CU58: 0 | CV58: 0 | CW58: 0 | CX58: 0 | CY58: 0 | CZ58: 0 | DA58: 0 | DB58: 0.5 | DC58: 0.5 | DD58: 0.5 | DE58: 0.5 | DF58: 0.5 | DG58: 0.5 | DH58: 0.5 | DI58: 0.5 | DJ58: 0.5 | DK58: 0.5 | DL58: 0.5 | DM58: 0.5 | DN58: 0 | DO58: 0 | DP58: 0 | DQ58: 0 | DR58: 0 | DS58: 0 | DT58: 0 | DV58: =IF(VLOOKUP($A58,'Schedule Setup'!$A$4:$E$39,5,FALSE)=0,"",VLOOKUP($A58,'Schedule Setup'!$A$4:$E$39,5,FALSE)) ->  | DW58: 0 | DY58: 2.5 | EA58: 3.5 | EC58: 6 | EF58: 0 | EH58: 2.5 | EJ58: 3.5 | EL58: 6 | EO58: ='Schedule Setup'!H10 -> 07:00:00 | EP58: ='Schedule Setup'!I10 -> 20:30:00 | EQ58: 06:30:00 | ER58: 21:00:00
A59: 7 | B59: =IF(VLOOKUP($A59,'Schedule Setup'!$A$4:$E$39,2,FALSE)=0,"",VLOOKUP($A59,'Schedule Setup'!$A$4:$E$39,2,FALSE)) -> Madelyn Hickey | C59: =IF(VLOOKUP($A59,'Schedule Setup'!$A$4:$E$39,4,FALSE)=0,"",VLOOKUP($A59,'Schedule Setup'!$A$4:$E$39,4,FALSE)) -> Team Member | D59: TM | H59: x | I59: x | J59: x | K59: x | L59: x | M59: x | N59: x | O59: x | P59: x | Q59: x | R59: x | S59: x | T59: x | U59: x | V59: x | W59: x | X59: x | Y59: x | Z59: x | AA59: x | AB59: x | AC59: x | AD59: x | AE59: x | AF59: x | AG59: x | AH59: x | AI59: =BW59 -> x | AJ59: x | AK59: x | AL59: x | AM59: x | AN59: x | AO59: x | AP59: x | AQ59: x | AR59: x | AS59: x | AT59: 0 | AV59: x | AW59: x | AX59: x | AY59: x | AZ59: x | BA59: x | BB59: x | BC59: x | BD59: x | BE59: x | BF59: x | BG59: x | BH59: x | BI59: x | BJ59: x | BK59: x | BL59: x | BM59: x | BN59: x | BO59: x | BP59: x | BQ59: x | BR59: x | BS59: x | BT59: x | BU59: x | BV59: x | BW59: x | BX59: x | BY59: x | BZ59: x | CA59: x | CB59: x | CC59: x | CD59: x | CE59: x | CF59: x | CG59: x | CI59: 0 | CJ59: 0 | CK59: 0 | CL59: 0 | CM59: 0 | CN59: 0 | CO59: 0 | CP59: 0 | CQ59: 0 | CR59: 0 | CS59: 0 | CT59: 0 | CU59: 0 | CV59: 0 | CW59: 0 | CX59: 0 | CY59: 0 | CZ59: 0 | DA59: 0 | DB59: 0 | DC59: 0 | DD59: 0 | DE59: 0 | DF59: 0 | DG59: 0 | DH59: 0 | DI59: 0 | DJ59: 0 | DK59: 0 | DL59: 0 | DM59: 0 | DN59: 0 | DO59: 0 | DP59: 0 | DQ59: 0 | DR59: 0 | DS59: 0 | DT59: 0 | DV59: =IF(VLOOKUP($A59,'Schedule Setup'!$A$4:$E$39,5,FALSE)=0,"",VLOOKUP($A59,'Schedule Setup'!$A$4:$E$39,5,FALSE)) ->  | DW59: 0 | DY59: 0 | EA59: 0 | EC59: 0 | EF59: 0 | EH59: 0 | EJ59: 0 | EL59: 0 | EO59: ='Schedule Setup'!H11 -> UnAvail | EP59: ='Schedule Setup'!I11 -> UnAvail
A60: 8 | B60: =IF(VLOOKUP($A60,'Schedule Setup'!$A$4:$E$39,2,FALSE)=0,"",VLOOKUP($A60,'Schedule Setup'!$A$4:$E$39,2,FALSE)) ->  | C60: =IF(VLOOKUP($A60,'Schedule Setup'!$A$4:$E$39,4,FALSE)=0,"",VLOOKUP($A60,'Schedule Setup'!$A$4:$E$39,4,FALSE)) ->  | H60: =AV60 -> x | I60: x | J60: x | K60: x | L60: x | M60: x | N60: x | O60: x | P60: x | Q60: x | R60: x | S60: x | T60: x | U60: x | V60: x | W60: x | X60: =BL60 -> x | Y60: x | Z60: x | AA60: x | AB60: x | AC60: x | AD60: x | AE60: x | AF60: x | AG60: x | AH60: x | AI60: x | AJ60: x | AK60: x | AL60: x | AM60: x | AN60: x | AO60: x | AP60: x | AQ60: x | AR60: x | AS60: x | AT60: 0 | AV60: x | AW60: x | AX60: x | AY60: x | AZ60: x | BA60: x | BB60: x | BC60: x | BD60: x | BE60: x | BF60: x | BG60: x | BH60: x | BI60: x | BJ60: x | BK60: x | BL60: x | BM60: x | BN60: x | BO60: x | BP60: x | BQ60: x | BR60: x | BS60: x | BT60: x | BU60: x | BV60: x | BW60: x | BX60: x | BY60: x | BZ60: x | CA60: x | CB60: x | CC60: =IF(AND($EO60<=AO$6+0.01,$EP60>AO$6+0.01),IF(AND(AO$6<$F60-0.01,AO$6>=$E60-0.01),$D60,""),"x") -> x | CD60: x | CE60: x | CF60: x | CG60: x | CI60: 0 | CJ60: 0 | CK60: 0 | CL60: 0 | CM60: 0 | CN60: 0 | CO60: 0 | CP60: 0 | CQ60: 0 | CR60: 0 | CS60: 0 | CT60: 0 | CU60: 0 | CV60: 0 | CW60: 0 | CX60: 0 | CY60: 0 | CZ60: 0 | DA60: 0 | DB60: 0 | DC60: 0 | DD60: 0 | DE60: 0 | DF60: 0 | DG60: 0 | DH60: 0 | DI60: 0 | DJ60: 0 | DK60: 0 | DL60: 0 | DM60: 0 | DN60: 0 | DO60: 0 | DP60: 0 | DQ60: 0 | DR60: 0 | DS60: 0 | DT60: 0 | DV60: =IF(VLOOKUP($A60,'Schedule Setup'!$A$4:$E$39,5,FALSE)=0,"",VLOOKUP($A60,'Schedule Setup'!$A$4:$E$39,5,FALSE)) ->  | DW60: 0 | DX60: =IFERROR(DW60*$DV60,"") ->  | DY60: 0 | EA60: 0 | EC60: 0 | EF60: 0 | EH60: 0 | EJ60: 0 | EL60: 0 | EO60: ='Schedule Setup'!H12 -> 00:00:00 | EP60: ='Schedule Setup'!I12 -> 00:00:00 | EQ60: -0.02083333333 | ER60: 00:30:00
A61: 9 | B61: =IF(VLOOKUP($A61,'Schedule Setup'!$A$4:$E$39,2,FALSE)=0,"",VLOOKUP($A61,'Schedule Setup'!$A$4:$E$39,2,FALSE)) ->  | C61: =IF(VLOOKUP($A61,'Schedule Setup'!$A$4:$E$39,4,FALSE)=0,"",VLOOKUP($A61,'Schedule Setup'!$A$4:$E$39,4,FALSE)) ->  | H61: x | I61: x | J61: x | K61: x | L61: x | M61: x | N61: x | O61: x | P61: x | Q61: x | R61: x | S61: x | T61: x | U61: x | V61: x | W61: x | X61: x | Y61: x | Z61: x | AA61: x | AB61: x | AC61: x | AD61: x | AE61: x | AF61: x | AG61: x | AH61: x | AI61: x | AJ61: x | AK61: x | AL61: x | AM61: x | AN61: x | AO61: x | AP61: x | AQ61: x | AR61: x | AS61: x | AT61: 0 | AV61: x | AW61: x | AX61: x | AY61: x | AZ61: x | BA61: x | BB61: x | BC61: x | BD61: x | BE61: x | BF61: x | BG61: x | BH61: x | BI61: x | BJ61: x | BK61: x | BL61: x | BM61: x | BN61: x | BO61: x | BP61: x | BQ61: x | BR61: x | BS61: x | BT61: x | BU61: x | BV61: x | BW61: x | BX61: x | BY61: x | BZ61: x | CA61: x | CB61: x | CC61: =IF(AND($EO61<=AO$6+0.01,$EP61>AO$6+0.01),IF(AND(AO$6<$F61-0.01,AO$6>=$E61-0.01),$D61,""),"x") -> x | CD61: x | CE61: x | CF61: x | CG61: x | CI61: 0 | CJ61: 0 | CK61: 0 | CL61: 0 | CM61: 0 | CN61: 0 | CO61: 0 | CP61: 0 | CQ61: 0 | CR61: 0 | CS61: 0 | CT61: 0 | CU61: 0 | CV61: 0 | CW61: 0 | CX61: 0 | CY61: 0 | CZ61: 0 | DA61: 0 | DB61: 0 | DC61: 0 | DD61: 0 | DE61: 0 | DF61: 0 | DG61: 0 | DH61: 0 | DI61: 0 | DJ61: 0 | DK61: 0 | DL61: 0 | DM61: 0 | DN61: 0 | DO61: 0 | DP61: 0 | DQ61: 0 | DR61: 0 | DS61: 0 | DT61: 0 | DV61: =IF(VLOOKUP($A61,'Schedule Setup'!$A$4:$E$39,5,FALSE)=0,"",VLOOKUP($A61,'Schedule Setup'!$A$4:$E$39,5,FALSE)) ->  | DW61: 0 | DX61: =IFERROR(DW61*$DV61,"") ->  | DY61: 0 | EA61: 0 | EC61: 0 | EF61: 0 | EH61: 0 | EJ61: 0 | EL61: 0 | EO61: ='Schedule Setup'!H13 -> 00:00:00 | EP61: ='Schedule Setup'!I13 -> 00:00:00 | EQ61: -0.02083333333 | ER61: 00:30:00
A62: 10 | B62: =IF(VLOOKUP($A62,'Schedule Setup'!$A$4:$E$39,2,FALSE)=0,"",VLOOKUP($A62,'Schedule Setup'!$A$4:$E$39,2,FALSE)) ->  | C62: =IF(VLOOKUP($A62,'Schedule Setup'!$A$4:$E$39,4,FALSE)=0,"",VLOOKUP($A62,'Schedule Setup'!$A$4:$E$39,4,FALSE)) ->  | H62: x | I62: x | J62: x | K62: x | L62: x | M62: x | N62: x | O62: x | P62: x | Q62: x | R62: x | S62: x | T62: x | U62: x | V62: x | W62: x | X62: x | Y62: x | Z62: x | AA62: x | AB62: x | AC62: x | AD62: x | AE62: x | AF62: x | AG62: x | AH62: x | AI62: x | AJ62: x | AK62: x | AL62: x | AM62: x | AN62: x | AO62: x | AP62: x | AQ62: x | AR62: x | AS62: x | AT62: 0 | AV62: x | AW62: x | AX62: x | AY62: x | AZ62: x | BA62: x | BB62: x | BC62: x | BD62: x | BE62: x | BF62: x | BG62: x | BH62: x | BI62: x | BJ62: x | BK62: x | BL62: x | BM62: x | BN62: x | BO62: x | BP62: x | BQ62: x | BR62: x | BS62: x | BT62: x | BU62: x | BV62: x | BW62: x | BX62: x | BY62: x | BZ62: x | CA62: x | CB62: x | CC62: x | CD62: x | CE62: x | CF62: x | CG62: x | CI62: 0 | CJ62: 0 | CK62: 0 | CL62: 0 | CM62: 0 | CN62: 0 | CO62: 0 | CP62: 0 | CQ62: 0 | CR62: 0 | CS62: 0 | CT62: 0 | CU62: 0 | CV62: 0 | CW62: 0 | CX62: 0 | CY62: 0 | CZ62: 0 | DA62: 0 | DB62: 0 | DC62: 0 | DD62: 0 | DE62: 0 | DF62: 0 | DG62: 0 | DH62: 0 | DI62: 0 | DJ62: 0 | DK62: 0 | DL62: 0 | DM62: 0 | DN62: 0 | DO62: 0 | DP62: 0 | DQ62: 0 | DR62: 0 | DS62: 0 | DT62: 0 | DV62: =IF(VLOOKUP($A62,'Schedule Setup'!$A$4:$E$39,5,FALSE)=0,"",VLOOKUP($A62,'Schedule Setup'!$A$4:$E$39,5,FALSE)) ->  | DW62: 0 | DY62: 0 | EA62: 0 | EC62: 0 | EF62: 0 | EH62: 0 | EJ62: 0 | EL62: 0 | EO62: ='Schedule Setup'!H14 -> 00:00:00 | EP62: ='Schedule Setup'!I14 -> 00:00:00 | EQ62: -0.02083333333 | ER62: 00:30:00
A63: 11 | B63: =IF(VLOOKUP($A63,'Schedule Setup'!$A$4:$E$39,2,FALSE)=0,"",VLOOKUP($A63,'Schedule Setup'!$A$4:$E$39,2,FALSE)) ->  | C63: =IF(VLOOKUP($A63,'Schedule Setup'!$A$4:$E$39,4,FALSE)=0,"",VLOOKUP($A63,'Schedule Setup'!$A$4:$E$39,4,FALSE)) ->  | H63: x | I63: x | J63: x | K63: x | L63: x | M63: x | N63: x | O63: x | P63: x | Q63: x | R63: x | S63: x | T63: x | U63: x | V63: x | W63: x | X63: x | Y63: x | Z63: x | AA63: x | AB63: x | AC63: x | AD63: x | AE63: x | AF63: x | AG63: x | AH63: x | AI63: x | AJ63: x | AK63: x | AL63: x | AM63: x | AN63: x | AO63: x | AP63: x | AQ63: x | AR63: x | AS63: x | AT63: 0 | AV63: x | AW63: x | AX63: x | AY63: x | AZ63: x | BA63: x | BB63: x | BC63: x | BD63: x | BE63: x | BF63: x | BG63: x | BH63: x | BI63: x | BJ63: x | BK63: x | BL63: x | BM63: x | BN63: x | BO63: x | BP63: x | BQ63: x | BR63: x | BS63: x | BT63: x | BU63: x | BV63: x | BW63: x | BX63: x | BY63: x | BZ63: x | CA63: x | CB63: x | CC63: x | CD63: x | CE63: x | CF63: x | CG63: x | CI63: 0 | CJ63: 0 | CK63: 0 | CL63: 0 | CM63: 0 | CN63: 0 | CO63: 0 | CP63: 0 | CQ63: 0 | CR63: 0 | CS63: 0 | CT63: 0 | CU63: 0 | CV63: 0 | CW63: 0 | CX63: 0 | CY63: 0 | CZ63: 0 | DA63: 0 | DB63: 0 | DC63: 0 | DD63: 0 | DE63: 0 | DF63: 0 | DG63: 0 | DH63: 0 | DI63: 0 | DJ63: 0 | DK63: 0 | DL63: 0 | DM63: 0 | DN63: 0 | DO63: 0 | DP63: 0 | DQ63: 0 | DR63: 0 | DS63: 0 | DT63: 0 | DV63: =IF(VLOOKUP($A63,'Schedule Setup'!$A$4:$E$39,5,FALSE)=0,"",VLOOKUP($A63,'Schedule Setup'!$A$4:$E$39,5,FALSE)) ->  | DW63: 0 | DY63: 0 | EA63: 0 | EC63: 0 | EF63: 0 | EH63: 0 | EJ63: 0 | EL63: 0 | EO63: ='Schedule Setup'!H15 -> 00:00:00 | EP63: ='Schedule Setup'!I15 -> 00:00:00 | EQ63: -0.02083333333 | ER63: 00:30:00
A64: 12 | B64: =IF(VLOOKUP($A64,'Schedule Setup'!$A$4:$E$39,2,FALSE)=0,"",VLOOKUP($A64,'Schedule Setup'!$A$4:$E$39,2,FALSE)) ->  | C64: =IF(VLOOKUP($A64,'Schedule Setup'!$A$4:$E$39,4,FALSE)=0,"",VLOOKUP($A64,'Schedule Setup'!$A$4:$E$39,4,FALSE)) ->  | H64: x | I64: x | J64: x | K64: x | L64: x | M64: x | N64: x | O64: x | P64: x | Q64: x | R64: x | S64: x | T64: x | U64: x | V64: x | W64: x | X64: x | Y64: x | Z64: x | AA64: x | AB64: x | AC64: x | AD64: x | AE64: x | AF64: x | AG64: x | AH64: x | AI64: x | AJ64: x | AK64: x | AL64: x | AM64: x | AN64: x | AO64: x | AP64: x | AQ64: x | AR64: x | AS64: x | AT64: 0 | AV64: x | AW64: x | AX64: x | AY64: x | AZ64: x | BA64: x | BB64: x | BC64: x | BD64: x | BE64: x | BF64: x | BG64: x | BH64: x | BI64: x | BJ64: x | BK64: x | BL64: x | BM64: x | BN64: x | BO64: x | BP64: x | BQ64: x | BR64: x | BS64: x | BT64: x | BU64: x | BV64: x | BW64: x | BX64: x | BY64: x | BZ64: x | CA64: x | CB64: x | CC64: x | CD64: x | CE64: x | CF64: x | CG64: x | CI64: 0 | CJ64: 0 | CK64: 0 | CL64: 0 | CM64: 0 | CN64: 0 | CO64: 0 | CP64: 0 | CQ64: 0 | CR64: 0 | CS64: 0 | CT64: 0 | CU64: 0 | CV64: 0 | CW64: 0 | CX64: 0 | CY64: 0 | CZ64: 0 | DA64: 0 | DB64: 0 | DC64: 0 | DD64: 0 | DE64: 0 | DF64: 0 | DG64: 0 | DH64: 0 | DI64: 0 | DJ64: 0 | DK64: 0 | DL64: 0 | DM64: 0 | DN64: 0 | DO64: 0 | DP64: 0 | DQ64: 0 | DR64: 0 | DS64: 0 | DT64: 0 | DV64: =IF(VLOOKUP($A64,'Schedule Setup'!$A$4:$E$39,5,FALSE)=0,"",VLOOKUP($A64,'Schedule Setup'!$A$4:$E$39,5,FALSE)) ->  | DW64: 0 | DY64: 0 | EA64: 0 | EC64: 0 | EF64: 0 | EH64: 0 | EJ64: 0 | EL64: 0 | EO64: ='Schedule Setup'!H16 -> 00:00:00 | EP64: ='Schedule Setup'!I16 -> 00:00:00 | EQ64: -0.02083333333 | ER64: 00:30:00
A65: 13 | B65: =IF(VLOOKUP($A65,'Schedule Setup'!$A$4:$E$39,2,FALSE)=0,"",VLOOKUP($A65,'Schedule Setup'!$A$4:$E$39,2,FALSE)) ->  | C65: =IF(VLOOKUP($A65,'Schedule Setup'!$A$4:$E$39,4,FALSE)=0,"",VLOOKUP($A65,'Schedule Setup'!$A$4:$E$39,4,FALSE)) ->  | H65: x | I65: x | J65: x | K65: x | L65: x | M65: x | N65: x | O65: x | P65: x | Q65: x | R65: x | S65: x | T65: x | U65: x | V65: x | W65: x | X65: x | Y65: x | Z65: x | AA65: x | AB65: x | AC65: x | AD65: x | AE65: x | AF65: x | AG65: x | AH65: x | AI65: x | AJ65: x | AK65: x | AL65: x | AM65: x | AN65: x | AO65: x | AP65: x | AQ65: x | AR65: x | AS65: x | AT65: 0 | AV65: x | AW65: x | AX65: x | AY65: x | AZ65: x | BA65: x | BB65: x | BC65: x | BD65: x | BE65: x | BF65: x | BG65: x | BH65: x | BI65: x | BJ65: x | BK65: x | BL65: x | BM65: x | BN65: x | BO65: x | BP65: x | BQ65: x | BR65: x | BS65: x | BT65: x | BU65: x | BV65: x | BW65: x | BX65: x | BY65: x | BZ65: x | CA65: x | CB65: x | CC65: x | CD65: x | CE65: x | CF65: x | CG65: x | CI65: 0 | CJ65: 0 | CK65: 0 | CL65: 0 | CM65: 0 | CN65: 0 | CO65: 0 | CP65: 0 | CQ65: 0 | CR65: 0 | CS65: 0 | CT65: 0 | CU65: 0 | CV65: 0 | CW65: 0 | CX65: 0 | CY65: 0 | CZ65: 0 | DA65: 0 | DB65: 0 | DC65: 0 | DD65: 0 | DE65: 0 | DF65: 0 | DG65: 0 | DH65: 0 | DI65: 0 | DJ65: 0 | DK65: 0 | DL65: 0 | DM65: 0 | DN65: 0 | DO65: 0 | DP65: 0 | DQ65: 0 | DR65: 0 | DS65: 0 | DT65: 0 | DV65: =IF(VLOOKUP($A65,'Schedule Setup'!$A$4:$E$39,5,FALSE)=0,"",VLOOKUP($A65,'Schedule Setup'!$A$4:$E$39,5,FALSE)) ->  | DW65: 0 | DY65: 0 | EA65: 0 | EC65: 0 | EF65: 0 | EH65: 0 | EJ65: 0 | EL65: 0 | EO65: ='Schedule Setup'!H17 -> 00:00:00 | EP65: ='Schedule Setup'!I17 -> 00:00:00 | EQ65: -0.02083333333 | ER65: 00:30:00
A66: 14 | B66: =IF(VLOOKUP($A66,'Schedule Setup'!$A$4:$E$39,2,FALSE)=0,"",VLOOKUP($A66,'Schedule Setup'!$A$4:$E$39,2,FALSE)) -> Matt Louden | C66: =IF(VLOOKUP($A66,'Schedule Setup'!$A$4:$E$39,4,FALSE)=0,"",VLOOKUP($A66,'Schedule Setup'!$A$4:$E$39,4,FALSE)) -> Team Member | D66: TM | H66: x | I66: x | J66: x | K66: x | AE66: x | AF66: x | AG66: x | AH66: x | AI66: x | AJ66: x | AK66: x | AL66: x | AM66: x | AN66: x | AO66: x | AP66: x | AQ66: x | AR66: x | AS66: x | AT66: 0 | AV66: x | AW66: x | AX66: x | AY66: x | BS66: x | BT66: x | BU66: x | BV66: x | BW66: x | BX66: x | BY66: x | BZ66: x | CA66: x | CB66: x | CC66: x | CD66: x | CE66: x | CF66: x | CG66: x | CI66: 0 | CJ66: 0 | CK66: 0 | CL66: 0 | CM66: 0 | CN66: 0 | CO66: 0 | CP66: 0 | CQ66: 0 | CR66: 0 | CS66: 0 | CT66: 0 | CU66: 0 | CV66: 0 | CW66: 0 | CX66: 0 | CY66: 0 | CZ66: 0 | DA66: 0 | DB66: 0 | DC66: 0 | DD66: 0 | DE66: 0 | DF66: 0 | DG66: 0 | DH66: 0 | DI66: 0 | DJ66: 0 | DK66: 0 | DL66: 0 | DM66: 0 | DN66: 0 | DO66: 0 | DP66: 0 | DQ66: 0 | DR66: 0 | DS66: 0 | DT66: 0 | DV66: =IF(VLOOKUP($A66,'Schedule Setup'!$A$4:$E$39,5,FALSE)=0,"",VLOOKUP($A66,'Schedule Setup'!$A$4:$E$39,5,FALSE)) ->  | DW66: 0 | DY66: 0 | EA66: 0 | EC66: 0 | EF66: 0 | EH66: 0 | EJ66: 0 | EL66: 0 | EO66: ='Schedule Setup'!H18 -> 07:00:00 | EP66: ='Schedule Setup'!I18 -> 16:30:00 | EQ66: 06:30:00 | ER66: 17:00:00
A67: 15 | B67: =IF(VLOOKUP($A67,'Schedule Setup'!$A$4:$E$39,2,FALSE)=0,"",VLOOKUP($A67,'Schedule Setup'!$A$4:$E$39,2,FALSE)) -> Ani Reyes | C67: =IF(VLOOKUP($A67,'Schedule Setup'!$A$4:$E$39,4,FALSE)=0,"",VLOOKUP($A67,'Schedule Setup'!$A$4:$E$39,4,FALSE)) -> Team Member | D67: TM | E67: 15:00:00 | F67: 18:30:00 | H67: x | I67: x | J67: x | K67: x | L67: x | M67: x | N67: x | O67: x | P67: x | Q67: x | R67: x | S67: x | T67: x | U67: x | V67: x | W67: x | X67: x | Y67: x | Z67: x | AA67: x | AB67: x | AC67: TM | AD67: TM | AE67: TM | AF67: TM | AG67: TM | AH67: TM | AM67: x | AN67: x | AO67: x | AP67: x | AQ67: x | AR67: x | AS67: x | AT67: 3 | AV67: x | AW67: x | AX67: x | AY67: x | AZ67: x | BA67: x | BB67: x | BC67: x | BD67: x | BE67: x | BF67: x | BG67: x | BH67: x | BI67: x | BJ67: x | BK67: x | BL67: x | BM67: x | BN67: x | BO67: x | BP67: x | BQ67: TM | BR67: TM | BS67: TM | BT67: TM | BU67: TM | BV67: TM | CA67: x | CB67: x | CC67: x | CD67: x | CE67: x | CF67: x | CG67: x | CI67: 0 | CJ67: 0 | CK67: 0 | CL67: 0 | CM67: 0 | CN67: 0 | CO67: 0 | CP67: 0 | CQ67: 0 | CR67: 0 | CS67: 0 | CT67: 0 | CU67: 0 | CV67: 0 | CW67: 0 | CX67: 0 | CY67: 0 | CZ67: 0 | DA67: 0 | DB67: 0 | DC67: 0 | DD67: 0.5 | DE67: 0.5 | DF67: 0.5 | DG67: 0.5 | DH67: 0.5 | DI67: 0.5 | DJ67: 0 | DK67: 0 | DL67: 0 | DM67: 0 | DN67: 0 | DO67: 0 | DP67: 0 | DQ67: 0 | DR67: 0 | DS67: 0 | DT67: 0 | DV67: =IF(VLOOKUP($A67,'Schedule Setup'!$A$4:$E$39,5,FALSE)=0,"",VLOOKUP($A67,'Schedule Setup'!$A$4:$E$39,5,FALSE)) ->  | DW67: 0 | DY67: 1.5 | EA67: 1.5 | EC67: 3 | EF67: 0 | EH67: 1.5 | EJ67: 1.5 | EL67: 3 | EO67: ='Schedule Setup'!H19 -> 15:30:00 | EP67: ='Schedule Setup'!I19 -> 20:30:00 | EQ67: 15:00:00 | ER67: 21:00:00
A68: 16 | B68: =IF(VLOOKUP($A68,'Schedule Setup'!$A$4:$E$39,2,FALSE)=0,"",VLOOKUP($A68,'Schedule Setup'!$A$4:$E$39,2,FALSE)) -> Andrew Philips | C68: =IF(VLOOKUP($A68,'Schedule Setup'!$A$4:$E$39,4,FALSE)=0,"",VLOOKUP($A68,'Schedule Setup'!$A$4:$E$39,4,FALSE)) -> Team Member | D68: TM | H68: x | I68: x | J68: x | K68: x | L68: x | M68: x | N68: x | O68: x | P68: x | Q68: x | R68: x | S68: x | T68: x | U68: x | V68: x | W68: x | X68: x | Y68: x | Z68: x | AA68: x | AB68: x | AC68: x | AM68: x | AN68: x | AO68: x | AP68: x | AQ68: x | AR68: x | AS68: x | AT68: 0 | AV68: x | AW68: x | AX68: x | AY68: x | AZ68: x | BA68: x | BB68: x | BC68: x | BD68: x | BE68: x | BF68: x | BG68: x | BH68: x | BI68: x | BJ68: x | BK68: x | BL68: =IF(AND($EO68<=X$6+0.01,$EP68>X$6+0.01),IF(AND(X$6<$F68-0.01,X$6>=$E68-0.01),$D68,""),"x") -> x | BM68: =IF(AND($EO68<=Y$6+0.01,$EP68>Y$6+0.01),IF(AND(Y$6<$F68-0.01,Y$6>=$E68-0.01),$D68,""),"x") -> x | BN68: =IF(AND($EO68<=Z$6+0.01,$EP68>Z$6+0.01),IF(AND(Z$6<$F68-0.01,Z$6>=$E68-0.01),$D68,""),"x") -> x | BO68: =IF(AND($EO68<=AA$6+0.01,$EP68>AA$6+0.01),IF(AND(AA$6<$F68-0.01,AA$6>=$E68-0.01),$D68,""),"x") -> x | BP68: =IF(AND($EO68<=AB$6+0.01,$EP68>AB$6+0.01),IF(AND(AB$6<$F68-0.01,AB$6>=$E68-0.01),$D68,""),"x") -> x | BQ68: =IF(AND($EO68<=AC$6+0.01,$EP68>AC$6+0.01),IF(AND(AC$6<$F68-0.01,AC$6>=$E68-0.01),$D68,""),"x") -> x | BR68: =IF(AND($EO68<=AD$6+0.01,$EP68>AD$6+0.01),IF(AND(AD$6<$F68-0.01,AD$6>=$E68-0.01),$D68,""),"x") ->  | BS68: =IF(AND($EO68<=AE$6+0.01,$EP68>AE$6+0.01),IF(AND(AE$6<$F68-0.01,AE$6>=$E68-0.01),$D68,""),"x") ->  | BT68: =IF(AND($EO68<=AF$6+0.01,$EP68>AF$6+0.01),IF(AND(AF$6<$F68-0.01,AF$6>=$E68-0.01),$D68,""),"x") ->  | BU68: =IF(AND($EO68<=AG$6+0.01,$EP68>AG$6+0.01),IF(AND(AG$6<$F68-0.01,AG$6>=$E68-0.01),$D68,""),"x") ->  | BV68: =IF(AND($EO68<=AH$6+0.01,$EP68>AH$6+0.01),IF(AND(AH$6<$F68-0.01,AH$6>=$E68-0.01),$D68,""),"x") ->  | BW68: =IF(AND($EO68<=AI$6+0.01,$EP68>AI$6+0.01),IF(AND(AI$6<$F68-0.01,AI$6>=$E68-0.01),$D68,""),"x") ->  | BX68: =IF(AND($EO68<=AJ$6+0.01,$EP68>AJ$6+0.01),IF(AND(AJ$6<$F68-0.01,AJ$6>=$E68-0.01),$D68,""),"x") ->  | BY68: =IF(AND($EO68<=AK$6+0.01,$EP68>AK$6+0.01),IF(AND(AK$6<$F68-0.01,AK$6>=$E68-0.01),$D68,""),"x") ->  | BZ68: =IF(AND($EO68<=AL$6+0.01,$EP68>AL$6+0.01),IF(AND(AL$6<$F68-0.01,AL$6>=$E68-0.01),$D68,""),"x") ->  | CA68: =IF(AND($EO68<=AM$6+0.01,$EP68>AM$6+0.01),IF(AND(AM$6<$F68-0.01,AM$6>=$E68-0.01),$D68,""),"x") -> x | CB68: =IF(AND($EO68<=AN$6+0.01,$EP68>AN$6+0.01),IF(AND(AN$6<$F68-0.01,AN$6>=$E68-0.01),$D68,""),"x") -> x | CC68: x | CD68: x | CE68: x | CF68: x | CG68: x | CI68: 0 | CJ68: 0 | CK68: 0 | CL68: 0 | CM68: 0 | CN68: 0 | CO68: 0 | CP68: 0 | CQ68: 0 | CR68: 0 | CS68: 0 | CT68: 0 | CU68: 0 | CV68: 0 | CW68: 0 | CX68: 0 | CY68: 0 | CZ68: 0 | DA68: 0 | DB68: 0 | DC68: 0 | DD68: 0 | DE68: 0 | DF68: 0 | DG68: 0 | DH68: 0 | DI68: 0 | DJ68: 0 | DK68: 0 | DL68: 0 | DM68: 0 | DN68: 0 | DO68: 0 | DP68: 0 | DQ68: 0 | DR68: 0 | DS68: 0 | DT68: 0 | DV68: =IF(VLOOKUP($A68,'Schedule Setup'!$A$4:$E$39,5,FALSE)=0,"",VLOOKUP($A68,'Schedule Setup'!$A$4:$E$39,5,FALSE)) ->  | DW68: 0 | DY68: 0 | EA68: 0 | EC68: 0 | EF68: 0 | EH68: 0 | EJ68: 0 | EL68: 0 | EO68: ='Schedule Setup'!H20 -> 16:00:00 | EP68: ='Schedule Setup'!I20 -> 20:30:00 | EQ68: =EO68-(0.5/24) -> 15:30:00 | ER68: =EP68+(0.5/24) -> 21:00:00
A69: 17 | B69: =IF(VLOOKUP($A69,'Schedule Setup'!$A$4:$E$39,2,FALSE)=0,"",VLOOKUP($A69,'Schedule Setup'!$A$4:$E$39,2,FALSE)) ->  | C69: =IF(VLOOKUP($A69,'Schedule Setup'!$A$4:$E$39,4,FALSE)=0,"",VLOOKUP($A69,'Schedule Setup'!$A$4:$E$39,4,FALSE)) ->  | H69: x | I69: x | J69: x | K69: x | L69: x | M69: x | N69: x | O69: x | P69: x | Q69: x | R69: x | S69: x | T69: x | U69: x | V69: x | W69: x | X69: x | Y69: x | Z69: x | AA69: x | AB69: x | AC69: x | AD69: x | AE69: x | AF69: x | AG69: x | AH69: x | AI69: x | AJ69: x | AK69: x | AL69: x | AM69: x | AN69: x | AO69: x | AP69: x | AQ69: x | AR69: x | AS69: x | AT69: 0 | AV69: =IF(AND($EO69<=H$6+0.01,$EP69>H$6+0.01),IF(AND(H$6<$F69-0.01,H$6>=$E69-0.01),$D69,""),"x") -> x | AW69: =IF(AND($EO69<=I$6+0.01,$EP69>I$6+0.01),IF(AND(I$6<$F69-0.01,I$6>=$E69-0.01),$D69,""),"x") -> x | AX69: =IF(AND($EO69<=J$6+0.01,$EP69>J$6+0.01),IF(AND(J$6<$F69-0.01,J$6>=$E69-0.01),$D69,""),"x") -> x | AY69: =IF(AND($EO69<=K$6+0.01,$EP69>K$6+0.01),IF(AND(K$6<$F69-0.01,K$6>=$E69-0.01),$D69,""),"x") -> x | AZ69: =IF(AND($EO69<=L$6+0.01,$EP69>L$6+0.01),IF(AND(L$6<$F69-0.01,L$6>=$E69-0.01),$D69,""),"x") -> x | BA69: =IF(AND($EO69<=M$6+0.01,$EP69>M$6+0.01),IF(AND(M$6<$F69-0.01,M$6>=$E69-0.01),$D69,""),"x") -> x | BB69: =IF(AND($EO69<=N$6+0.01,$EP69>N$6+0.01),IF(AND(N$6<$F69-0.01,N$6>=$E69-0.01),$D69,""),"x") -> x | BC69: =IF(AND($EO69<=O$6+0.01,$EP69>O$6+0.01),IF(AND(O$6<$F69-0.01,O$6>=$E69-0.01),$D69,""),"x") -> x | BD69: =IF(AND($EO69<=P$6+0.01,$EP69>P$6+0.01),IF(AND(P$6<$F69-0.01,P$6>=$E69-0.01),$D69,""),"x") -> x | BE69: =IF(AND($EO69<=Q$6+0.01,$EP69>Q$6+0.01),IF(AND(Q$6<$F69-0.01,Q$6>=$E69-0.01),$D69,""),"x") -> x | BF69: =IF(AND($EO69<=R$6+0.01,$EP69>R$6+0.01),IF(AND(R$6<$F69-0.01,R$6>=$E69-0.01),$D69,""),"x") -> x | BG69: =IF(AND($EO69<=S$6+0.01,$EP69>S$6+0.01),IF(AND(S$6<$F69-0.01,S$6>=$E69-0.01),$D69,""),"x") -> x | BH69: =IF(AND($EO69<=T$6+0.01,$EP69>T$6+0.01),IF(AND(T$6<$F69-0.01,T$6>=$E69-0.01),$D69,""),"x") -> x | BI69: =IF(AND($EO69<=U$6+0.01,$EP69>U$6+0.01),IF(AND(U$6<$F69-0.01,U$6>=$E69-0.01),$D69,""),"x") -> x | BJ69: =IF(AND($EO69<=V$6+0.01,$EP69>V$6+0.01),IF(AND(V$6<$F69-0.01,V$6>=$E69-0.01),$D69,""),"x") -> x | BK69: =IF(AND($EO69<=W$6+0.01,$EP69>W$6+0.01),IF(AND(W$6<$F69-0.01,W$6>=$E69-0.01),$D69,""),"x") -> x | BL69: x | BM69: x | BN69: x | BO69: x | BP69: x | BQ69: x | BR69: x | BS69: x | BT69: x | BU69: x | BV69: x | BW69: x | BX69: x | BY69: x | BZ69: x | CA69: x | CB69: x | CC69: x | CD69: x | CE69: x | CF69: x | CG69: x | CI69: 0 | CJ69: 0 | CK69: 0 | CL69: 0 | CM69: 0 | CN69: 0 | CO69: 0 | CP69: 0 | CQ69: 0 | CR69: 0 | CS69: 0 | CT69: 0 | CU69: 0 | CV69: 0 | CW69: 0 | CX69: 0 | CY69: 0 | CZ69: 0 | DA69: 0 | DB69: 0 | DC69: 0 | DD69: 0 | DE69: 0 | DF69: 0 | DG69: 0 | DH69: 0 | DI69: 0 | DJ69: 0 | DK69: 0 | DL69: 0 | DM69: 0 | DN69: 0 | DO69: 0 | DP69: 0 | DQ69: 0 | DR69: 0 | DS69: 0 | DT69: 0 | DV69: =IF(VLOOKUP($A69,'Schedule Setup'!$A$4:$E$39,5,FALSE)=0,"",VLOOKUP($A69,'Schedule Setup'!$A$4:$E$39,5,FALSE)) ->  | DW69: 0 | DY69: 0 | EA69: 0 | EC69: 0 | EF69: 0 | EH69: 0 | EJ69: 0 | EL69: 0 | EO69: ='Schedule Setup'!H21 -> 00:00:00 | EP69: ='Schedule Setup'!I21 -> 00:00:00 | EQ69: -0.02083333333 | ER69: 00:30:00
A70: 18 | B70: =IF(VLOOKUP($A70,'Schedule Setup'!$A$4:$E$39,2,FALSE)=0,"",VLOOKUP($A70,'Schedule Setup'!$A$4:$E$39,2,FALSE)) ->  | C70: =IF(VLOOKUP($A70,'Schedule Setup'!$A$4:$E$39,4,FALSE)=0,"",VLOOKUP($A70,'Schedule Setup'!$A$4:$E$39,4,FALSE)) ->  | H70: x | I70: x | J70: x | K70: x | L70: x | M70: x | N70: x | O70: x | P70: x | Q70: x | R70: x | S70: x | T70: x | U70: x | V70: x | W70: x | X70: x | Y70: x | Z70: x | AA70: x | AB70: x | AC70: x | AD70: x | AE70: x | AF70: x | AG70: x | AH70: x | AI70: x | AJ70: x | AK70: x | AL70: x | AM70: x | AN70: x | AO70: x | AP70: x | AQ70: x | AR70: x | AS70: x | AT70: 0 | AV70: x | AW70: x | AX70: x | AY70: x | AZ70: x | BA70: x | BB70: x | BC70: x | BD70: x | BE70: x | BF70: x | BG70: x | BH70: x | BI70: x | BJ70: x | BK70: x | BL70: x | BM70: x | BN70: x | BO70: x | BP70: x | BQ70: x | BR70: x | BS70: x | BT70: x | BU70: x | BV70: x | BW70: x | BX70: x | BY70: x | BZ70: x | CA70: x | CB70: x | CC70: x | CD70: x | CE70: x | CF70: x | CG70: x | CI70: 0 | CJ70: 0 | CK70: 0 | CL70: 0 | CM70: 0 | CN70: 0 | CO70: 0 | CP70: 0 | CQ70: 0 | CR70: 0 | CS70: 0 | CT70: 0 | CU70: 0 | CV70: 0 | CW70: 0 | CX70: 0 | CY70: 0 | CZ70: 0 | DA70: 0 | DB70: 0 | DC70: 0 | DD70: 0 | DE70: 0 | DF70: 0 | DG70: 0 | DH70: 0 | DI70: 0 | DJ70: 0 | DK70: 0 | DL70: 0 | DM70: 0 | DN70: 0 | DO70: 0 | DP70: 0 | DQ70: 0 | DR70: 0 | DS70: 0 | DT70: 0 | DV70: =IF(VLOOKUP($A70,'Schedule Setup'!$A$4:$E$39,5,FALSE)=0,"",VLOOKUP($A70,'Schedule Setup'!$A$4:$E$39,5,FALSE)) ->  | DW70: 0 | DY70: 0 | EA70: 0 | EC70: 0 | EF70: 0 | EH70: 0 | EJ70: 0 | EL70: 0 | EO70: ='Schedule Setup'!H22 -> 00:00:00 | EP70: ='Schedule Setup'!I22 -> 00:00:00 | EQ70: -0.02083333333 | ER70: 00:30:00
A71: 19 | B71: =IF(VLOOKUP($A71,'Schedule Setup'!$A$4:$E$39,2,FALSE)=0,"",VLOOKUP($A71,'Schedule Setup'!$A$4:$E$39,2,FALSE)) -> . | C71: =IF(VLOOKUP($A71,'Schedule Setup'!$A$4:$E$39,4,FALSE)=0,"",VLOOKUP($A71,'Schedule Setup'!$A$4:$E$39,4,FALSE)) ->  | D71: TM | H71: x | I71: x | J71: x | K71: x | L71: x | M71: x | N71: x | O71: x | P71: x | Q71: x | R71: x | S71: x | T71: x | U71: x | V71: x | W71: x | X71: x | Y71: x | Z71: x | AA71: x | AB71: x | AC71: x | AD71: x | AE71: x | AF71: x | AG71: x | AH71: x | AI71: x | AJ71: x | AK71: x | AL71: x | AM71: x | AN71: x | AO71: x | AP71: x | AQ71: x | AR71: x | AS71: x | AT71: 0 | AV71: x | AW71: x | AX71: x | AY71: x | AZ71: x | BA71: x | BB71: x | BC71: x | BD71: x | BE71: x | BF71: x | BG71: x | BH71: x | BI71: x | BJ71: x | BK71: x | BL71: x | BM71: x | BN71: x | BO71: x | BP71: x | BQ71: x | BR71: x | BS71: x | BT71: x | BU71: x | BV71: x | BW71: x | BX71: x | BY71: x | BZ71: x | CA71: x | CB71: x | CC71: x | CD71: x | CE71: x | CF71: x | CG71: x | CI71: 0 | CJ71: 0 | CK71: 0 | CL71: 0 | CM71: 0 | CN71: 0 | CO71: 0 | CP71: 0 | CQ71: 0 | CR71: 0 | CS71: 0 | CT71: 0 | CU71: 0 | CV71: 0 | CW71: 0 | CX71: 0 | CY71: 0 | CZ71: 0 | DA71: 0 | DB71: 0 | DC71: 0 | DD71: 0 | DE71: 0 | DF71: 0 | DG71: 0 | DH71: 0 | DI71: 0 | DJ71: 0 | DK71: 0 | DL71: 0 | DM71: 0 | DN71: 0 | DO71: 0 | DP71: 0 | DQ71: 0 | DR71: 0 | DS71: 0 | DT71: 0 | DV71: =IF(VLOOKUP($A71,'Schedule Setup'!$A$4:$E$39,5,FALSE)=0,"",VLOOKUP($A71,'Schedule Setup'!$A$4:$E$39,5,FALSE)) ->  | DW71: 0 | DY71: 0 | EA71: 0 | EC71: 0 | EF71: 0 | EH71: 0 | EJ71: 0 | EL71: 0 | EO71: ='Schedule Setup'!H23 -> 00:00:00 | EP71: ='Schedule Setup'!I23 -> 00:00:00 | EQ71: -0.02083333333 | ER71: 00:30:00
A72: 20 | B72: =IF(VLOOKUP($A72,'Schedule Setup'!$A$4:$E$39,2,FALSE)=0,"",VLOOKUP($A72,'Schedule Setup'!$A$4:$E$39,2,FALSE)) -> Sean Duncan | C72: =IF(VLOOKUP($A72,'Schedule Setup'!$A$4:$E$39,4,FALSE)=0,"",VLOOKUP($A72,'Schedule Setup'!$A$4:$E$39,4,FALSE)) -> Team Lead | D72: TL | H72: x | I72: x | J72: x | K72: x | L72: x | M72: x | N72: x | O72: x | P72: x | Q72: x | R72: x | S72: x | T72: x | U72: x | V72: x | W72: x | X72: x | Y72: x | Z72: x | AA72: x | AB72: x | AC72: x | AD72: x | AE72: x | AF72: x | AG72: x | AH72: x | AI72: x | AJ72: x | AK72: x | AL72: x | AM72: x | AN72: x | AO72: x | AP72: x | AQ72: x | AR72: x | AS72: x | AT72: 0 | AV72: x | AW72: x | AX72: x | AY72: x | AZ72: x | BA72: x | BB72: x | BC72: x | BD72: x | BE72: x | BF72: x | BG72: x | BH72: x | BI72: x | BJ72: x | BK72: x | BL72: x | BM72: x | BN72: x | BO72: x | BP72: x | BQ72: x | BR72: x | BS72: x | BT72: x | BU72: x | BV72: x | BW72: x | BX72: x | BY72: x | BZ72: x | CA72: x | CB72: x | CC72: x | CD72: x | CE72: x | CF72: x | CG72: x | CI72: 0 | CJ72: 0 | CK72: 0 | CL72: 0 | CM72: 0 | CN72: 0 | CO72: 0 | CP72: 0 | CQ72: 0 | CR72: 0 | CS72: 0 | CT72: 0 | CU72: 0 | CV72: 0 | CW72: 0 | CX72: 0 | CY72: 0 | CZ72: 0 | DA72: 0 | DB72: 0 | DC72: 0 | DD72: 0 | DE72: 0 | DF72: 0 | DG72: 0 | DH72: 0 | DI72: 0 | DJ72: 0 | DK72: 0 | DL72: 0 | DM72: 0 | DN72: 0 | DO72: 0 | DP72: 0 | DQ72: 0 | DR72: 0 | DS72: 0 | DT72: 0 | DV72: =IF(VLOOKUP($A72,'Schedule Setup'!$A$4:$E$39,5,FALSE)=0,"",VLOOKUP($A72,'Schedule Setup'!$A$4:$E$39,5,FALSE)) ->  | DW72: 0 | DY72: 0 | EA72: 0 | EC72: 0 | EF72: 0 | EH72: 0 | EJ72: 0 | EL72: 0 | EO72: ='Schedule Setup'!H24 -> 00:00:00 | EP72: ='Schedule Setup'!I24 -> 00:00:00 | EQ72: -0.02083333333 | ER72: 00:30:00
A73: 21 | B73: =IF(VLOOKUP($A73,'Schedule Setup'!$A$4:$E$39,2,FALSE)=0,"",VLOOKUP($A73,'Schedule Setup'!$A$4:$E$39,2,FALSE)) ->  | C73: =IF(VLOOKUP($A73,'Schedule Setup'!$A$4:$E$39,4,FALSE)=0,"",VLOOKUP($A73,'Schedule Setup'!$A$4:$E$39,4,FALSE)) ->  | H73: x | I73: x | J73: x | K73: x | L73: x | M73: x | N73: x | O73: x | P73: x | Q73: x | R73: x | S73: x | T73: x | U73: x | V73: x | W73: x | X73: x | Y73: x | Z73: x | AA73: x | AB73: x | AC73: x | AD73: x | AE73: x | AF73: x | AG73: x | AH73: x | AI73: x | AJ73: x | AK73: x | AL73: x | AM73: x | AN73: x | AO73: x | AP73: x | AQ73: x | AR73: x | AS73: x | AT73: 0 | AV73: x | AW73: x | AX73: x | AY73: x | AZ73: x | BA73: x | BB73: x | BC73: x | BD73: x | BE73: x | BF73: x | BG73: x | BH73: x | BI73: x | BJ73: x | BK73: x | BL73: x | BM73: x | BN73: x | BO73: x | BP73: x | BQ73: x | BR73: x | BS73: x | BT73: x | BU73: x | BV73: x | BW73: x | BX73: x | BY73: x | BZ73: x | CA73: x | CB73: x | CC73: x | CD73: x | CE73: x | CF73: x | CG73: x | CI73: 0 | CJ73: 0 | CK73: 0 | CL73: 0 | CM73: 0 | CN73: 0 | CO73: 0 | CP73: 0 | CQ73: 0 | CR73: 0 | CS73: 0 | CT73: 0 | CU73: 0 | CV73: 0 | CW73: 0 | CX73: 0 | CY73: 0 | CZ73: 0 | DA73: 0 | DB73: 0 | DC73: 0 | DD73: 0 | DE73: 0 | DF73: 0 | DG73: 0 | DH73: 0 | DI73: 0 | DJ73: 0 | DK73: 0 | DL73: 0 | DM73: 0 | DN73: 0 | DO73: 0 | DP73: 0 | DQ73: 0 | DR73: 0 | DS73: 0 | DT73: 0 | DV73: =IF(VLOOKUP($A73,'Schedule Setup'!$A$4:$E$39,5,FALSE)=0,"",VLOOKUP($A73,'Schedule Setup'!$A$4:$E$39,5,FALSE)) ->  | DW73: 0 | DY73: 0 | EA73: 0 | EC73: 0 | EF73: 0 | EH73: 0 | EJ73: 0 | EL73: 0 | EO73: ='Schedule Setup'!H25 -> 00:00:00 | EP73: ='Schedule Setup'!I25 -> 00:00:00 | EQ73: -0.02083333333 | ER73: 00:30:00
A74: 22 | B74: =IF(VLOOKUP($A74,'Schedule Setup'!$A$4:$E$39,2,FALSE)=0,"",VLOOKUP($A74,'Schedule Setup'!$A$4:$E$39,2,FALSE)) ->  | C74: =IF(VLOOKUP($A74,'Schedule Setup'!$A$4:$E$39,4,FALSE)=0,"",VLOOKUP($A74,'Schedule Setup'!$A$4:$E$39,4,FALSE)) ->  | H74: x | I74: x | J74: x | K74: x | L74: x | M74: x | N74: x | O74: x | P74: x | Q74: x | R74: x | S74: x | T74: x | U74: x | V74: x | W74: x | X74: x | Y74: x | Z74: x | AA74: x | AB74: x | AC74: x | AD74: x | AE74: x | AF74: x | AG74: x | AH74: x | AI74: x | AJ74: x | AK74: x | AL74: x | AM74: x | AN74: x | AO74: x | AP74: x | AQ74: x | AR74: x | AS74: x | AT74: 0 | AV74: x | AW74: x | AX74: x | AY74: x | AZ74: x | BA74: x | BB74: x | BC74: x | BD74: x | BE74: x | BF74: x | BG74: x | BH74: x | BI74: x | BJ74: x | BK74: x | BL74: x | BM74: x | BN74: x | BO74: x | BP74: x | BQ74: x | BR74: x | BS74: x | BT74: x | BU74: x | BV74: x | BW74: x | BX74: x | BY74: x | BZ74: x | CA74: x | CB74: x | CC74: x | CD74: x | CE74: x | CF74: x | CG74: x | CI74: 0 | CJ74: 0 | CK74: 0 | CL74: 0 | CM74: 0 | CN74: 0 | CO74: 0 | CP74: 0 | CQ74: 0 | CR74: 0 | CS74: 0 | CT74: 0 | CU74: 0 | CV74: 0 | CW74: 0 | CX74: 0 | CY74: 0 | CZ74: 0 | DA74: 0 | DB74: 0 | DC74: 0 | DD74: 0 | DE74: 0 | DF74: 0 | DG74: 0 | DH74: 0 | DI74: 0 | DJ74: 0 | DK74: 0 | DL74: 0 | DM74: 0 | DN74: 0 | DO74: 0 | DP74: 0 | DQ74: 0 | DR74: 0 | DS74: 0 | DT74: 0 | DV74: =IF(VLOOKUP($A74,'Schedule Setup'!$A$4:$E$39,5,FALSE)=0,"",VLOOKUP($A74,'Schedule Setup'!$A$4:$E$39,5,FALSE)) ->  | DW74: 0 | DY74: 0 | EA74: 0 | EC74: 0 | EF74: 0 | EH74: 0 | EJ74: 0 | EL74: 0 | EO74: ='Schedule Setup'!H26 -> 00:00:00 | EP74: ='Schedule Setup'!I26 -> 00:00:00 | EQ74: -0.02083333333 | ER74: 00:30:00
A75: 23 | B75: =IF(VLOOKUP($A75,'Schedule Setup'!$A$4:$E$39,2,FALSE)=0,"",VLOOKUP($A75,'Schedule Setup'!$A$4:$E$39,2,FALSE)) ->  | C75: =IF(VLOOKUP($A75,'Schedule Setup'!$A$4:$E$39,4,FALSE)=0,"",VLOOKUP($A75,'Schedule Setup'!$A$4:$E$39,4,FALSE)) ->  | H75: x | I75: x | J75: x | K75: x | L75: x | M75: x | N75: x | O75: x | P75: x | Q75: x | R75: x | S75: x | T75: x | U75: x | V75: x | W75: x | X75: x | Y75: x | Z75: x | AA75: x | AB75: x | AC75: x | AD75: x | AE75: x | AF75: x | AG75: x | AH75: x | AI75: x | AJ75: x | AK75: x | AL75: =BZ75 -> x | AM75: x | AN75: x | AO75: x | AP75: x | AQ75: x | AR75: x | AS75: x | AT75: 0 | AV75: x | AW75: x | AX75: x | AY75: x | AZ75: x | BA75: x | BB75: x | BC75: x | BD75: x | BE75: x | BF75: x | BG75: x | BH75: x | BI75: x | BJ75: x | BK75: x | BL75: x | BM75: x | BN75: x | BO75: x | BP75: x | BQ75: x | BR75: x | BS75: x | BT75: x | BU75: x | BV75: x | BW75: x | BX75: x | BY75: x | BZ75: x | CA75: x | CB75: x | CC75: x | CD75: x | CE75: x | CF75: x | CG75: x | CI75: 0 | CJ75: 0 | CK75: 0 | CL75: 0 | CM75: 0 | CN75: 0 | CO75: 0 | CP75: 0 | CQ75: 0 | CR75: 0 | CS75: 0 | CT75: 0 | CU75: 0 | CV75: 0 | CW75: 0 | CX75: 0 | CY75: 0 | CZ75: 0 | DA75: 0 | DB75: 0 | DC75: 0 | DD75: 0 | DE75: 0 | DF75: 0 | DG75: 0 | DH75: 0 | DI75: 0 | DJ75: 0 | DK75: 0 | DL75: 0 | DM75: 0 | DN75: 0 | DO75: 0 | DP75: 0 | DQ75: 0 | DR75: 0 | DS75: 0 | DT75: 0 | DV75: =IF(VLOOKUP($A75,'Schedule Setup'!$A$4:$E$39,5,FALSE)=0,"",VLOOKUP($A75,'Schedule Setup'!$A$4:$E$39,5,FALSE)) ->  | DW75: 0 | DY75: 0 | EA75: 0 | EC75: 0 | EF75: 0 | EH75: 0 | EJ75: 0 | EL75: 0 | EO75: ='Schedule Setup'!H27 -> 00:00:00 | EP75: ='Schedule Setup'!I27 -> 00:00:00 | EQ75: -0.02083333333 | ER75: 00:30:00
A76: 24 | B76: =IF(VLOOKUP($A76,'Schedule Setup'!$A$4:$E$39,2,FALSE)=0,"",VLOOKUP($A76,'Schedule Setup'!$A$4:$E$39,2,FALSE)) ->  | C76: =IF(VLOOKUP($A76,'Schedule Setup'!$A$4:$E$39,4,FALSE)=0,"",VLOOKUP($A76,'Schedule Setup'!$A$4:$E$39,4,FALSE)) ->  | H76: x | I76: x | J76: x | K76: x | L76: x | M76: x | N76: x | O76: x | P76: x | Q76: x | R76: x | S76: x | T76: x | U76: x | V76: x | W76: x | X76: =BL76 -> x | Y76: x | Z76: x | AA76: x | AB76: x | AC76: x | AD76: x | AE76: x | AF76: x | AG76: x | AH76: x | AI76: x | AJ76: x | AK76: x | AL76: x | AM76: x | AN76: x | AO76: x | AP76: x | AQ76: x | AR76: x | AS76: x | AT76: 0 | AV76: x | AW76: x | AX76: x | AY76: x | AZ76: x | BA76: x | BB76: x | BC76: x | BD76: x | BE76: x | BF76: x | BG76: x | BH76: x | BI76: x | BJ76: x | BK76: x | BL76: x | BM76: x | BN76: x | BO76: x | BP76: x | BQ76: x | BR76: x | BS76: x | BT76: x | BU76: x | BV76: x | BW76: x | BX76: x | BY76: x | BZ76: x | CA76: x | CB76: x | CC76: x | CD76: x | CE76: x | CF76: x | CG76: x | CI76: 0 | CJ76: 0 | CK76: 0 | CL76: 0 | CM76: 0 | CN76: 0 | CO76: 0 | CP76: 0 | CQ76: 0 | CR76: 0 | CS76: 0 | CT76: 0 | CU76: 0 | CV76: 0 | CW76: 0 | CX76: 0 | CY76: 0 | CZ76: 0 | DA76: 0 | DB76: 0 | DC76: 0 | DD76: 0 | DE76: 0 | DF76: 0 | DG76: 0 | DH76: 0 | DI76: 0 | DJ76: 0 | DK76: 0 | DL76: 0 | DM76: 0 | DN76: 0 | DO76: 0 | DP76: 0 | DQ76: 0 | DR76: 0 | DS76: 0 | DT76: 0 | DV76: =IF(VLOOKUP($A76,'Schedule Setup'!$A$4:$E$39,5,FALSE)=0,"",VLOOKUP($A76,'Schedule Setup'!$A$4:$E$39,5,FALSE)) ->  | DW76: 0 | DY76: 0 | EA76: 0 | EC76: 0 | EF76: 0 | EH76: 0 | EJ76: 0 | EL76: 0 | EO76: ='Schedule Setup'!H28 -> 00:00:00 | EP76: ='Schedule Setup'!I28 -> 00:00:00 | EQ76: -0.02083333333 | ER76: 00:30:00
A77: 25 | B77: =IF(VLOOKUP($A77,'Schedule Setup'!$A$4:$E$39,2,FALSE)=0,"",VLOOKUP($A77,'Schedule Setup'!$A$4:$E$39,2,FALSE)) ->  | C77: =IF(VLOOKUP($A77,'Schedule Setup'!$A$4:$E$39,4,FALSE)=0,"",VLOOKUP($A77,'Schedule Setup'!$A$4:$E$39,4,FALSE)) ->  | D77: =IF(B77<>"",IF(OR(C77="General Manager (S)", C77="General Manager (H)"), "GM",IF(C77="Acting Manager","AM",IF(C77="Shift Manager","SM",IF(C77="Team Lead","TL","TM")))),"") ->  | H77: =AV77 -> x | I77: x | J77: x | K77: x | L77: x | M77: x | N77: x | O77: x | P77: x | Q77: x | R77: x | S77: x | T77: x | U77: x | V77: x | W77: x | X77: =BL77 -> x | Y77: =BM77 -> x | Z77: =BN77 -> x | AA77: =BO77 -> x | AB77: =BP77 -> x | AC77: =BQ77 -> x | AD77: =BR77 -> x | AE77: =BS77 -> x | AF77: =BT77 -> x | AG77: =BU77 -> x | AH77: =BV77 -> x | AI77: =BW77 -> x | AJ77: =BX77 -> x | AK77: =BY77 -> x | AL77: =BZ77 -> x | AM77: =CA77 -> x | AN77: =CB77 -> x | AO77: =CC77 -> x | AP77: =CD77 -> x | AQ77: =CE77 -> x | AR77: =CF77 -> x | AS77: =CG77 -> x | AT77: =EC77 -> 0 | AV77: =IF(AND($EO77<=H$6+0.01,$EP77>H$6+0.01),IF(AND(H$6<$F77-0.01,H$6>=$E77-0.01),$D77,""),"x") -> x | AW77: =IF(AND($EO77<=I$6+0.01,$EP77>I$6+0.01),IF(AND(I$6<$F77-0.01,I$6>=$E77-0.01),$D77,""),"x") -> x | AX77: =IF(AND($EO77<=J$6+0.01,$EP77>J$6+0.01),IF(AND(J$6<$F77-0.01,J$6>=$E77-0.01),$D77,""),"x") -> x | AY77: =IF(AND($EO77<=K$6+0.01,$EP77>K$6+0.01),IF(AND(K$6<$F77-0.01,K$6>=$E77-0.01),$D77,""),"x") -> x | AZ77: =IF(AND($EO77<=L$6+0.01,$EP77>L$6+0.01),IF(AND(L$6<$F77-0.01,L$6>=$E77-0.01),$D77,""),"x") -> x | BA77: =IF(AND($EO77<=M$6+0.01,$EP77>M$6+0.01),IF(AND(M$6<$F77-0.01,M$6>=$E77-0.01),$D77,""),"x") -> x | BB77: =IF(AND($EO77<=N$6+0.01,$EP77>N$6+0.01),IF(AND(N$6<$F77-0.01,N$6>=$E77-0.01),$D77,""),"x") -> x | BC77: =IF(AND($EO77<=O$6+0.01,$EP77>O$6+0.01),IF(AND(O$6<$F77-0.01,O$6>=$E77-0.01),$D77,""),"x") -> x | BD77: =IF(AND($EO77<=P$6+0.01,$EP77>P$6+0.01),IF(AND(P$6<$F77-0.01,P$6>=$E77-0.01),$D77,""),"x") -> x | BE77: =IF(AND($EO77<=Q$6+0.01,$EP77>Q$6+0.01),IF(AND(Q$6<$F77-0.01,Q$6>=$E77-0.01),$D77,""),"x") -> x | BF77: =IF(AND($EO77<=R$6+0.01,$EP77>R$6+0.01),IF(AND(R$6<$F77-0.01,R$6>=$E77-0.01),$D77,""),"x") -> x | BG77: =IF(AND($EO77<=S$6+0.01,$EP77>S$6+0.01),IF(AND(S$6<$F77-0.01,S$6>=$E77-0.01),$D77,""),"x") -> x | BH77: =IF(AND($EO77<=T$6+0.01,$EP77>T$6+0.01),IF(AND(T$6<$F77-0.01,T$6>=$E77-0.01),$D77,""),"x") -> x | BI77: =IF(AND($EO77<=U$6+0.01,$EP77>U$6+0.01),IF(AND(U$6<$F77-0.01,U$6>=$E77-0.01),$D77,""),"x") -> x | BJ77: =IF(AND($EO77<=V$6+0.01,$EP77>V$6+0.01),IF(AND(V$6<$F77-0.01,V$6>=$E77-0.01),$D77,""),"x") -> x | BK77: =IF(AND($EO77<=W$6+0.01,$EP77>W$6+0.01),IF(AND(W$6<$F77-0.01,W$6>=$E77-0.01),$D77,""),"x") -> x | BL77: =IF(AND($EO77<=X$6+0.01,$EP77>X$6+0.01),IF(AND(X$6<$F77-0.01,X$6>=$E77-0.01),$D77,""),"x") -> x | BM77: =IF(AND($EO77<=Y$6+0.01,$EP77>Y$6+0.01),IF(AND(Y$6<$F77-0.01,Y$6>=$E77-0.01),$D77,""),"x") -> x | BN77: =IF(AND($EO77<=Z$6+0.01,$EP77>Z$6+0.01),IF(AND(Z$6<$F77-0.01,Z$6>=$E77-0.01),$D77,""),"x") -> x | BO77: =IF(AND($EO77<=AA$6+0.01,$EP77>AA$6+0.01),IF(AND(AA$6<$F77-0.01,AA$6>=$E77-0.01),$D77,""),"x") -> x | BP77: =IF(AND($EO77<=AB$6+0.01,$EP77>AB$6+0.01),IF(AND(AB$6<$F77-0.01,AB$6>=$E77-0.01),$D77,""),"x") -> x | BQ77: =IF(AND($EO77<=AC$6+0.01,$EP77>AC$6+0.01),IF(AND(AC$6<$F77-0.01,AC$6>=$E77-0.01),$D77,""),"x") -> x | BR77: =IF(AND($EO77<=AD$6+0.01,$EP77>AD$6+0.01),IF(AND(AD$6<$F77-0.01,AD$6>=$E77-0.01),$D77,""),"x") -> x | BS77: =IF(AND($EO77<=AE$6+0.01,$EP77>AE$6+0.01),IF(AND(AE$6<$F77-0.01,AE$6>=$E77-0.01),$D77,""),"x") -> x | BT77: =IF(AND($EO77<=AF$6+0.01,$EP77>AF$6+0.01),IF(AND(AF$6<$F77-0.01,AF$6>=$E77-0.01),$D77,""),"x") -> x | BU77: =IF(AND($EO77<=AG$6+0.01,$EP77>AG$6+0.01),IF(AND(AG$6<$F77-0.01,AG$6>=$E77-0.01),$D77,""),"x") -> x | BV77: =IF(AND($EO77<=AH$6+0.01,$EP77>AH$6+0.01),IF(AND(AH$6<$F77-0.01,AH$6>=$E77-0.01),$D77,""),"x") -> x | BW77: =IF(AND($EO77<=AI$6+0.01,$EP77>AI$6+0.01),IF(AND(AI$6<$F77-0.01,AI$6>=$E77-0.01),$D77,""),"x") -> x | BX77: =IF(AND($EO77<=AJ$6+0.01,$EP77>AJ$6+0.01),IF(AND(AJ$6<$F77-0.01,AJ$6>=$E77-0.01),$D77,""),"x") -> x | BY77: =IF(AND($EO77<=AK$6+0.01,$EP77>AK$6+0.01),IF(AND(AK$6<$F77-0.01,AK$6>=$E77-0.01),$D77,""),"x") -> x | BZ77: =IF(AND($EO77<=AL$6+0.01,$EP77>AL$6+0.01),IF(AND(AL$6<$F77-0.01,AL$6>=$E77-0.01),$D77,""),"x") -> x | CA77: =IF(AND($EO77<=AM$6+0.01,$EP77>AM$6+0.01),IF(AND(AM$6<$F77-0.01,AM$6>=$E77-0.01),$D77,""),"x") -> x | CB77: =IF(AND($EO77<=AN$6+0.01,$EP77>AN$6+0.01),IF(AND(AN$6<$F77-0.01,AN$6>=$E77-0.01),$D77,""),"x") -> x | CC77: =IF(AND($EO77<=AO$6+0.01,$EP77>AO$6+0.01),IF(AND(AO$6<$F77-0.01,AO$6>=$E77-0.01),$D77,""),"x") -> x | CD77: =IF(AND($EO77<=AP$6+0.01,$EP77>AP$6+0.01),IF(AND(AP$6<$F77-0.01,AP$6>=$E77-0.01),$D77,""),"x") -> x | CE77: =IF(AND($EO77<=AQ$6+0.01,$EP77>AQ$6+0.01),IF(AND(AQ$6<$F77-0.01,AQ$6>=$E77-0.01),$D77,""),"x") -> x | CF77: =IF(AND($EO77<=AR$6+0.01,$EP77>AR$6+0.01),IF(AND(AR$6<$F77-0.01,AR$6>=$E77-0.01),$D77,""),"x") -> x | CG77: =IF(AND($EO77<=AS$6+0.01,$EP77>AS$6+0.01),IF(AND(AS$6<$F77-0.01,AS$6>=$E77-0.01),$D77,""),"x") -> x | CI77: =IF(AND(AV77<>"",AV77<>"x"),0.5,) -> 0 | CJ77: =IF(AND(AW77<>"",AW77<>"x"),0.5,) -> 0 | CK77: =IF(AND(AX77<>"",AX77<>"x"),0.5,) -> 0 | CL77: =IF(AND(AY77<>"",AY77<>"x"),0.5,) -> 0 | CM77: =IF(AND(AZ77<>"",AZ77<>"x"),0.5,) -> 0 | CN77: =IF(AND(BA77<>"",BA77<>"x"),0.5,) -> 0 | CO77: =IF(AND(BB77<>"",BB77<>"x"),0.5,) -> 0 | CP77: =IF(AND(BC77<>"",BC77<>"x"),0.5,) -> 0 | CQ77: =IF(AND(BD77<>"",BD77<>"x"),0.5,) -> 0 | CR77: =IF(AND(BE77<>"",BE77<>"x"),0.5,) -> 0 | CS77: =IF(AND(BF77<>"",BF77<>"x"),0.5,) -> 0 | CT77: =IF(AND(BG77<>"",BG77<>"x"),0.5,) -> 0 | CU77: =IF(AND(BH77<>"",BH77<>"x"),0.5,) -> 0 | CV77: =IF(AND(BI77<>"",BI77<>"x"),0.5,) -> 0 | CW77: =IF(AND(BJ77<>"",BJ77<>"x"),0.5,) -> 0 | CX77: =IF(AND(BK77<>"",BK77<>"x"),0.5,) -> 0 | CY77: =IF(AND(BL77<>"",BL77<>"x"),0.5,) -> 0 | CZ77: =IF(AND(BM77<>"",BM77<>"x"),0.5,) -> 0 | DA77: =IF(AND(BN77<>"",BN77<>"x"),0.5,) -> 0 | DB77: =IF(AND(BO77<>"",BO77<>"x"),0.5,) -> 0 | DC77: =IF(AND(BP77<>"",BP77<>"x"),0.5,) -> 0 | DD77: =IF(AND(BQ77<>"",BQ77<>"x"),0.5,) -> 0 | DE77: =IF(AND(BR77<>"",BR77<>"x"),0.5,) -> 0 | DF77: =IF(AND(BS77<>"",BS77<>"x"),0.5,) -> 0 | DG77: =IF(AND(BT77<>"",BT77<>"x"),0.5,) -> 0 | DH77: =IF(AND(BU77<>"",BU77<>"x"),0.5,) -> 0 | DI77: =IF(AND(BV77<>"",BV77<>"x"),0.5,) -> 0 | DJ77: =IF(AND(BW77<>"",BW77<>"x"),0.5,) -> 0 | DK77: =IF(AND(BX77<>"",BX77<>"x"),0.5,) -> 0 | DL77: =IF(AND(BY77<>"",BY77<>"x"),0.5,) -> 0 | DM77: =IF(AND(BZ77<>"",BZ77<>"x"),0.5,) -> 0 | DN77: =IF(AND(CA77<>"",CA77<>"x"),0.5,) -> 0 | DO77: =IF(AND(CB77<>"",CB77<>"x"),0.5,) -> 0 | DP77: =IF(AND(CC77<>"",CC77<>"x"),0.5,) -> 0 | DQ77: =IF(AND(CD77<>"",CD77<>"x"),0.5,) -> 0 | DR77: =IF(AND(CE77<>"",CE77<>"x"),0.5,) -> 0 | DS77: =IF(AND(CF77<>"",CF77<>"x"),0.5,) -> 0 | DT77: =IF(AND(CG77<>"",CG77<>"x"),0.5,) -> 0 | DV77: =IF(VLOOKUP($A77,'Schedule Setup'!$A$4:$E$39,5,FALSE)=0,"",VLOOKUP($A77,'Schedule Setup'!$A$4:$E$39,5,FALSE)) ->  | DW77: =SUM(CI77:CT77) -> 0 | DX77: =IFERROR(DW77*$DV77,"") ->  | DY77: =SUM(CU77:DF77) -> 0 | DZ77: =IFERROR(DY77*$DV77,"") ->  | EA77: =SUM(DG77:DT77) -> 0 | EB77: =IFERROR(EA77*$DV77,"") ->  | EC77: =SUM(DW77,DY77,EA77) -> 0 | ED77: =IFERROR(EC77*$DV77,"") ->  | EF77: =IF(DW77>5,(DW77-0.5),DW77) -> 0 | EG77: =IFERROR(EF77*$DV77,"") ->  | EH77: =IF(DY77>5,(DY77-0.5),DY77) -> 0 | EI77: =IFERROR(EH77*$DV77,"") ->  | EJ77: =IF(EA77>5,(EA77-0.5),EA77) -> 0 | EK77: =IFERROR(EJ77*$DV77,"") ->  | EL77: =SUM(EF77,EH77,EJ77) -> 0 | EM77: =IFERROR(EL77*$DV77,"") ->  | EO77: ='Schedule Setup'!H29 -> 00:00:00 | EP77: ='Schedule Setup'!I29 -> 00:00:00 | EQ77: -0.02083333333 | ER77: 00:30:00
A78: 26 | B78: =IF(VLOOKUP($A78,'Schedule Setup'!$A$4:$E$39,2,FALSE)=0,"",VLOOKUP($A78,'Schedule Setup'!$A$4:$E$39,2,FALSE)) ->  | C78: =IF(VLOOKUP($A78,'Schedule Setup'!$A$4:$E$39,4,FALSE)=0,"",VLOOKUP($A78,'Schedule Setup'!$A$4:$E$39,4,FALSE)) ->  | H78: x | I78: x | J78: x | K78: x | L78: x | M78: x | N78: x | O78: x | P78: x | Q78: x | R78: x | S78: x | T78: x | U78: x | V78: x | W78: x | X78: x | Y78: x | Z78: x | AA78: x | AB78: x | AC78: x | AD78: x | AE78: x | AF78: x | AG78: x | AH78: x | AI78: x | AJ78: x | AK78: x | AL78: x | AM78: x | AN78: x | AO78: x | AP78: x | AQ78: x | AR78: x | AS78: x | AT78: 0 | AV78: x | AW78: x | AX78: x | AY78: x | AZ78: x | BA78: x | BB78: x | BC78: x | BD78: x | BE78: x | BF78: x | BG78: x | BH78: x | BI78: x | BJ78: x | BK78: x | BL78: x | BM78: x | BN78: x | BO78: x | BP78: x | BQ78: x | BR78: x | BS78: x | BT78: x | BU78: x | BV78: x | BW78: x | BX78: x | BY78: x | BZ78: x | CA78: x | CB78: x | CC78: x | CD78: x | CE78: x | CF78: x | CG78: x | CI78: 0 | CJ78: 0 | CK78: 0 | CL78: 0 | CM78: 0 | CN78: 0 | CO78: 0 | CP78: 0 | CQ78: 0 | CR78: 0 | CS78: 0 | CT78: 0 | CU78: 0 | CV78: 0 | CW78: 0 | CX78: 0 | CY78: 0 | CZ78: 0 | DA78: 0 | DB78: 0 | DC78: 0 | DD78: 0 | DE78: 0 | DF78: 0 | DG78: 0 | DH78: 0 | DI78: 0 | DJ78: 0 | DK78: 0 | DL78: 0 | DM78: 0 | DN78: 0 | DO78: 0 | DP78: 0 | DQ78: 0 | DR78: 0 | DS78: 0 | DT78: 0 | DV78: =IF(VLOOKUP($A78,'Schedule Setup'!$A$4:$E$39,5,FALSE)=0,"",VLOOKUP($A78,'Schedule Setup'!$A$4:$E$39,5,FALSE)) ->  | DW78: 0 | DY78: 0 | EA78: 0 | EC78: 0 | EF78: 0 | EH78: 0 | EJ78: 0 | EL78: 0 | EO78: ='Schedule Setup'!H30 -> 00:00:00 | EP78: ='Schedule Setup'!I30 -> 00:00:00 | EQ78: -0.02083333333 | ER78: 00:30:00
A79: 27 | B79: =IF(VLOOKUP($A79,'Schedule Setup'!$A$4:$E$39,2,FALSE)=0,"",VLOOKUP($A79,'Schedule Setup'!$A$4:$E$39,2,FALSE)) ->  | C79: =IF(VLOOKUP($A79,'Schedule Setup'!$A$4:$E$39,4,FALSE)=0,"",VLOOKUP($A79,'Schedule Setup'!$A$4:$E$39,4,FALSE)) ->  | H79: x | I79: x | J79: x | K79: x | L79: x | M79: x | N79: x | O79: x | P79: x | Q79: x | R79: x | S79: x | T79: x | U79: x | V79: x | W79: x | X79: x | Y79: x | Z79: x | AA79: x | AB79: x | AC79: x | AD79: x | AE79: x | AF79: x | AG79: x | AH79: x | AI79: x | AJ79: x | AK79: x | AL79: x | AM79: x | AN79: x | AO79: x | AP79: x | AQ79: x | AR79: x | AS79: x | AT79: 0 | AV79: x | AW79: x | AX79: x | AY79: x | AZ79: x | BA79: x | BB79: x | BC79: x | BD79: x | BE79: x | BF79: x | BG79: x | BH79: x | BI79: x | BJ79: x | BK79: x | BL79: x | BM79: x | BN79: x | BO79: x | BP79: x | BQ79: x | BR79: x | BS79: x | BT79: x | BU79: x | BV79: x | BW79: x | BX79: x | BY79: x | BZ79: x | CA79: x | CB79: x | CC79: x | CD79: x | CE79: x | CF79: x | CG79: x | CI79: 0 | CJ79: 0 | CK79: 0 | CL79: 0 | CM79: 0 | CN79: 0 | CO79: 0 | CP79: 0 | CQ79: 0 | CR79: 0 | CS79: 0 | CT79: 0 | CU79: 0 | CV79: 0 | CW79: 0 | CX79: 0 | CY79: 0 | CZ79: 0 | DA79: 0 | DB79: 0 | DC79: 0 | DD79: 0 | DE79: 0 | DF79: 0 | DG79: 0 | DH79: 0 | DI79: 0 | DJ79: 0 | DK79: 0 | DL79: 0 | DM79: 0 | DN79: 0 | DO79: 0 | DP79: 0 | DQ79: 0 | DR79: 0 | DS79: 0 | DT79: 0 | DV79: =IF(VLOOKUP($A79,'Schedule Setup'!$A$4:$E$39,5,FALSE)=0,"",VLOOKUP($A79,'Schedule Setup'!$A$4:$E$39,5,FALSE)) ->  | DW79: 0 | DY79: 0 | EA79: 0 | EC79: 0 | EF79: 0 | EH79: 0 | EJ79: 0 | EL79: 0 | EO79: ='Schedule Setup'!H31 -> 00:00:00 | EP79: ='Schedule Setup'!I31 -> 00:00:00 | EQ79: -0.02083333333 | ER79: 00:30:00
A80: 28 | B80: =IF(VLOOKUP($A80,'Schedule Setup'!$A$4:$E$39,2,FALSE)=0,"",VLOOKUP($A80,'Schedule Setup'!$A$4:$E$39,2,FALSE)) ->  | C80: =IF(VLOOKUP($A80,'Schedule Setup'!$A$4:$E$39,4,FALSE)=0,"",VLOOKUP($A80,'Schedule Setup'!$A$4:$E$39,4,FALSE)) ->  | H80: x | I80: x | J80: x | K80: x | L80: x | M80: x | N80: x | O80: x | P80: x | Q80: x | R80: x | S80: x | T80: x | U80: x | V80: x | W80: x | X80: x | Y80: x | Z80: x | AA80: x | AB80: x | AC80: x | AD80: x | AE80: x | AF80: x | AG80: x | AH80: x | AI80: x | AJ80: x | AK80: x | AL80: x | AM80: x | AN80: x | AO80: x | AP80: x | AQ80: x | AR80: x | AS80: x | AT80: 0 | AV80: x | AW80: x | AX80: x | AY80: x | AZ80: x | BA80: x | BB80: x | BC80: x | BD80: x | BE80: x | BF80: x | BG80: x | BH80: x | BI80: x | BJ80: x | BK80: x | BL80: x | BM80: x | BN80: x | BO80: x | BP80: x | BQ80: x | BR80: x | BS80: x | BT80: x | BU80: x | BV80: x | BW80: x | BX80: x | BY80: x | BZ80: x | CA80: x | CB80: x | CC80: x | CD80: x | CE80: x | CF80: x | CG80: x | CI80: 0 | CJ80: 0 | CK80: 0 | CL80: 0 | CM80: 0 | CN80: 0 | CO80: 0 | CP80: 0 | CQ80: 0 | CR80: 0 | CS80: 0 | CT80: 0 | CU80: 0 | CV80: 0 | CW80: 0 | CX80: 0 | CY80: 0 | CZ80: 0 | DA80: 0 | DB80: 0 | DC80: 0 | DD80: 0 | DE80: 0 | DF80: 0 | DG80: 0 | DH80: 0 | DI80: 0 | DJ80: 0 | DK80: 0 | DL80: 0 | DM80: 0 | DN80: 0 | DO80: 0 | DP80: 0 | DQ80: 0 | DR80: 0 | DS80: 0 | DT80: 0 | DV80: =IF(VLOOKUP($A80,'Schedule Setup'!$A$4:$E$39,5,FALSE)=0,"",VLOOKUP($A80,'Schedule Setup'!$A$4:$E$39,5,FALSE)) ->  | DW80: 0 | DY80: 0 | EA80: 0 | EC80: 0 | EF80: 0 | EH80: 0 | EJ80: 0 | EL80: 0 | EO80: ='Schedule Setup'!H32 -> 00:00:00 | EP80: ='Schedule Setup'!I32 -> 00:00:00 | EQ80: -0.02083333333 | ER80: 00:30:00
A81: 29 | B81: =IF(VLOOKUP($A81,'Schedule Setup'!$A$4:$E$39,2,FALSE)=0,"",VLOOKUP($A81,'Schedule Setup'!$A$4:$E$39,2,FALSE)) ->  | C81: =IF(VLOOKUP($A81,'Schedule Setup'!$A$4:$E$39,4,FALSE)=0,"",VLOOKUP($A81,'Schedule Setup'!$A$4:$E$39,4,FALSE)) ->  | H81: x | I81: x | J81: x | K81: x | L81: x | M81: x | N81: x | O81: x | P81: x | Q81: x | R81: x | S81: x | T81: x | U81: x | V81: x | W81: x | X81: x | Y81: x | Z81: x | AA81: x | AB81: x | AC81: x | AD81: x | AE81: x | AF81: x | AG81: x | AH81: x | AI81: x | AJ81: x | AK81: x | AL81: x | AM81: x | AN81: x | AO81: x | AP81: x | AQ81: x | AR81: x | AS81: x | AT81: 0 | AV81: x | AW81: x | AX81: x | AY81: x | AZ81: x | BA81: x | BB81: x | BC81: x | BD81: x | BE81: x | BF81: x | BG81: x | BH81: x | BI81: x | BJ81: x | BK81: x | BL81: x | BM81: x | BN81: x | BO81: x | BP81: x | BQ81: x | BR81: x | BS81: x | BT81: x | BU81: x | BV81: x | BW81: x | BX81: x | BY81: x | BZ81: x | CA81: x | CB81: x | CC81: x | CD81: x | CE81: x | CF81: x | CG81: x | CI81: 0 | CJ81: 0 | CK81: 0 | CL81: 0 | CM81: 0 | CN81: 0 | CO81: 0 | CP81: 0 | CQ81: 0 | CR81: 0 | CS81: 0 | CT81: 0 | CU81: 0 | CV81: 0 | CW81: 0 | CX81: 0 | CY81: 0 | CZ81: 0 | DA81: 0 | DB81: 0 | DC81: 0 | DD81: 0 | DE81: 0 | DF81: 0 | DG81: 0 | DH81: 0 | DI81: 0 | DJ81: 0 | DK81: 0 | DL81: 0 | DM81: 0 | DN81: 0 | DO81: 0 | DP81: 0 | DQ81: 0 | DR81: 0 | DS81: 0 | DT81: 0 | DV81: =IF(VLOOKUP($A81,'Schedule Setup'!$A$4:$E$39,5,FALSE)=0,"",VLOOKUP($A81,'Schedule Setup'!$A$4:$E$39,5,FALSE)) ->  | DW81: 0 | DY81: 0 | EA81: 0 | EC81: 0 | EF81: 0 | EH81: 0 | EJ81: 0 | EL81: 0 | EO81: ='Schedule Setup'!H33 -> 00:00:00 | EP81: ='Schedule Setup'!I33 -> 00:00:00 | EQ81: -0.02083333333 | ER81: 00:30:00
A82: 30 | B82: =IF(VLOOKUP($A82,'Schedule Setup'!$A$4:$E$39,2,FALSE)=0,"",VLOOKUP($A82,'Schedule Setup'!$A$4:$E$39,2,FALSE)) ->  | C82: =IF(VLOOKUP($A82,'Schedule Setup'!$A$4:$E$39,4,FALSE)=0,"",VLOOKUP($A82,'Schedule Setup'!$A$4:$E$39,4,FALSE)) ->  | H82: x | I82: x | J82: x | K82: x | L82: x | M82: x | N82: x | O82: x | P82: x | Q82: x | R82: x | S82: x | T82: x | U82: x | V82: x | W82: x | X82: x | Y82: x | Z82: x | AA82: x | AB82: x | AC82: x | AD82: x | AE82: x | AF82: x | AG82: x | AH82: x | AI82: x | AJ82: x | AK82: x | AL82: x | AM82: x | AN82: x | AO82: x | AP82: x | AQ82: x | AR82: x | AS82: x | AT82: 0 | AV82: x | AW82: x | AX82: x | AY82: x | AZ82: x | BA82: x | BB82: x | BC82: x | BD82: x | BE82: x | BF82: x | BG82: x | BH82: x | BI82: x | BJ82: x | BK82: x | BL82: x | BM82: x | BN82: x | BO82: x | BP82: x | BQ82: x | BR82: x | BS82: x | BT82: x | BU82: x | BV82: x | BW82: x | BX82: x | BY82: x | BZ82: x | CA82: x | CB82: x | CC82: x | CD82: x | CE82: x | CF82: x | CG82: x | CI82: 0 | CJ82: 0 | CK82: 0 | CL82: 0 | CM82: 0 | CN82: 0 | CO82: 0 | CP82: 0 | CQ82: 0 | CR82: 0 | CS82: 0 | CT82: 0 | CU82: 0 | CV82: 0 | CW82: 0 | CX82: 0 | CY82: 0 | CZ82: 0 | DA82: 0 | DB82: 0 | DC82: 0 | DD82: 0 | DE82: 0 | DF82: 0 | DG82: 0 | DH82: 0 | DI82: 0 | DJ82: 0 | DK82: 0 | DL82: 0 | DM82: 0 | DN82: 0 | DO82: 0 | DP82: 0 | DQ82: 0 | DR82: 0 | DS82: 0 | DT82: 0 | DV82: =IF(VLOOKUP($A82,'Schedule Setup'!$A$4:$E$39,5,FALSE)=0,"",VLOOKUP($A82,'Schedule Setup'!$A$4:$E$39,5,FALSE)) ->  | DW82: 0 | DY82: 0 | EA82: 0 | EC82: 0 | EF82: 0 | EH82: 0 | EJ82: 0 | EL82: 0 | EO82: ='Schedule Setup'!H34 -> 00:00:00 | EP82: ='Schedule Setup'!I34 -> 00:00:00 | EQ82: -0.02083333333 | ER82: 00:30:00
A83: 31 | B83: =IF(VLOOKUP($A83,'Schedule Setup'!$A$4:$E$39,2,FALSE)=0,"",VLOOKUP($A83,'Schedule Setup'!$A$4:$E$39,2,FALSE)) ->  | C83: =IF(VLOOKUP($A83,'Schedule Setup'!$A$4:$E$39,4,FALSE)=0,"",VLOOKUP($A83,'Schedule Setup'!$A$4:$E$39,4,FALSE)) ->  | H83: x | I83: x | J83: x | K83: x | L83: x | M83: x | N83: x | O83: x | P83: x | Q83: x | R83: x | S83: x | T83: x | U83: x | V83: x | W83: x | X83: x | Y83: x | Z83: x | AA83: x | AB83: x | AC83: x | AD83: x | AE83: x | AF83: x | AG83: x | AH83: x | AI83: x | AJ83: x | AK83: x | AL83: x | AM83: x | AN83: x | AO83: x | AP83: x | AQ83: x | AR83: x | AS83: x | AT83: 0 | AV83: x | AW83: x | AX83: x | AY83: x | AZ83: x | BA83: x | BB83: x | BC83: x | BD83: x | BE83: x | BF83: x | BG83: x | BH83: x | BI83: x | BJ83: x | BK83: x | BL83: x | BM83: x | BN83: x | BO83: x | BP83: x | BQ83: x | BR83: x | BS83: x | BT83: x | BU83: x | BV83: x | BW83: x | BX83: x | BY83: x | BZ83: x | CA83: x | CB83: x | CC83: x | CD83: x | CE83: x | CF83: x | CG83: x | CI83: 0 | CJ83: 0 | CK83: 0 | CL83: 0 | CM83: 0 | CN83: 0 | CO83: 0 | CP83: 0 | CQ83: 0 | CR83: 0 | CS83: 0 | CT83: 0 | CU83: 0 | CV83: 0 | CW83: 0 | CX83: 0 | CY83: 0 | CZ83: 0 | DA83: 0 | DB83: 0 | DC83: 0 | DD83: 0 | DE83: 0 | DF83: 0 | DG83: 0 | DH83: 0 | DI83: 0 | DJ83: 0 | DK83: 0 | DL83: 0 | DM83: 0 | DN83: 0 | DO83: 0 | DP83: 0 | DQ83: 0 | DR83: 0 | DS83: 0 | DT83: 0 | DV83: =IF(VLOOKUP($A83,'Schedule Setup'!$A$4:$E$39,5,FALSE)=0,"",VLOOKUP($A83,'Schedule Setup'!$A$4:$E$39,5,FALSE)) ->  | DW83: 0 | DY83: 0 | EA83: 0 | EC83: 0 | EF83: 0 | EH83: 0 | EJ83: 0 | EL83: 0 | EO83: ='Schedule Setup'!H35 -> 00:00:00 | EP83: ='Schedule Setup'!I35 -> 00:00:00 | EQ83: -0.02083333333 | ER83: 00:30:00
A84: 32 | B84: =IF(VLOOKUP($A84,'Schedule Setup'!$A$4:$E$39,2,FALSE)=0,"",VLOOKUP($A84,'Schedule Setup'!$A$4:$E$39,2,FALSE)) ->  | C84: =IF(VLOOKUP($A84,'Schedule Setup'!$A$4:$E$39,4,FALSE)=0,"",VLOOKUP($A84,'Schedule Setup'!$A$4:$E$39,4,FALSE)) ->  | H84: x | I84: x | J84: x | K84: x | L84: x | M84: x | N84: x | O84: x | P84: x | Q84: x | R84: x | S84: x | T84: x | U84: x | V84: x | W84: x | X84: x | Y84: x | Z84: x | AA84: x | AB84: x | AC84: x | AD84: x | AE84: x | AF84: x | AG84: x | AH84: x | AI84: x | AJ84: x | AK84: x | AL84: x | AM84: x | AN84: x | AO84: x | AP84: x | AQ84: x | AR84: x | AS84: x | AT84: 0 | AV84: x | AW84: x | AX84: x | AY84: x | AZ84: x | BA84: x | BB84: x | BC84: x | BD84: x | BE84: x | BF84: x | BG84: x | BH84: x | BI84: x | BJ84: x | BK84: x | BL84: x | BM84: x | BN84: x | BO84: x | BP84: x | BQ84: x | BR84: x | BS84: x | BT84: x | BU84: x | BV84: x | BW84: x | BX84: x | BY84: x | BZ84: x | CA84: x | CB84: x | CC84: x | CD84: x | CE84: x | CF84: x | CG84: x | CI84: 0 | CJ84: 0 | CK84: 0 | CL84: 0 | CM84: 0 | CN84: 0 | CO84: 0 | CP84: 0 | CQ84: 0 | CR84: 0 | CS84: 0 | CT84: 0 | CU84: 0 | CV84: 0 | CW84: 0 | CX84: 0 | CY84: 0 | CZ84: 0 | DA84: 0 | DB84: 0 | DC84: 0 | DD84: 0 | DE84: 0 | DF84: 0 | DG84: 0 | DH84: 0 | DI84: 0 | DJ84: 0 | DK84: 0 | DL84: 0 | DM84: 0 | DN84: 0 | DO84: 0 | DP84: 0 | DQ84: 0 | DR84: 0 | DS84: 0 | DT84: 0 | DV84: =IF(VLOOKUP($A84,'Schedule Setup'!$A$4:$E$39,5,FALSE)=0,"",VLOOKUP($A84,'Schedule Setup'!$A$4:$E$39,5,FALSE)) ->  | DW84: 0 | DY84: 0 | EA84: 0 | EC84: 0 | EF84: 0 | EH84: 0 | EJ84: 0 | EL84: 0 | EO84: ='Schedule Setup'!H36 -> 00:00:00 | EP84: ='Schedule Setup'!I36 -> 00:00:00 | EQ84: -0.02083333333 | ER84: 00:30:00
A85: 33 | B85: =IF(VLOOKUP($A85,'Schedule Setup'!$A$4:$E$39,2,FALSE)=0,"",VLOOKUP($A85,'Schedule Setup'!$A$4:$E$39,2,FALSE)) ->  | C85: =IF(VLOOKUP($A85,'Schedule Setup'!$A$4:$E$39,4,FALSE)=0,"",VLOOKUP($A85,'Schedule Setup'!$A$4:$E$39,4,FALSE)) ->  | H85: x | I85: x | J85: x | K85: x | L85: x | M85: x | N85: x | O85: x | P85: x | Q85: x | R85: x | S85: x | T85: x | U85: x | V85: x | W85: x | X85: x | Y85: x | Z85: x | AA85: x | AB85: x | AC85: x | AD85: x | AE85: x | AF85: x | AG85: x | AH85: x | AI85: x | AJ85: x | AK85: x | AL85: x | AM85: x | AN85: x | AO85: x | AP85: x | AQ85: x | AR85: x | AS85: x | AT85: 0 | AV85: x | AW85: x | AX85: x | AY85: x | AZ85: x | BA85: x | BB85: x | BC85: x | BD85: x | BE85: x | BF85: x | BG85: x | BH85: x | BI85: x | BJ85: x | BK85: x | BL85: x | BM85: x | BN85: x | BO85: x | BP85: x | BQ85: x | BR85: x | BS85: x | BT85: x | BU85: x | BV85: x | BW85: x | BX85: x | BY85: x | BZ85: x | CA85: x | CB85: x | CC85: x | CD85: x | CE85: x | CF85: x | CG85: x | CI85: 0 | CJ85: 0 | CK85: 0 | CL85: 0 | CM85: 0 | CN85: 0 | CO85: 0 | CP85: 0 | CQ85: 0 | CR85: 0 | CS85: 0 | CT85: 0 | CU85: 0 | CV85: 0 | CW85: 0 | CX85: 0 | CY85: 0 | CZ85: 0 | DA85: 0 | DB85: 0 | DC85: 0 | DD85: 0 | DE85: 0 | DF85: 0 | DG85: 0 | DH85: 0 | DI85: 0 | DJ85: 0 | DK85: 0 | DL85: 0 | DM85: 0 | DN85: 0 | DO85: 0 | DP85: 0 | DQ85: 0 | DR85: 0 | DS85: 0 | DT85: 0 | DV85: =IF(VLOOKUP($A85,'Schedule Setup'!$A$4:$E$39,5,FALSE)=0,"",VLOOKUP($A85,'Schedule Setup'!$A$4:$E$39,5,FALSE)) ->  | DW85: 0 | DY85: 0 | EA85: 0 | EC85: 0 | EF85: 0 | EH85: 0 | EJ85: 0 | EL85: 0 | EO85: ='Schedule Setup'!H37 -> 00:00:00 | EP85: ='Schedule Setup'!I37 -> 00:00:00 | EQ85: -0.02083333333 | ER85: 00:30:00
A86: 34 | B86: =IF(VLOOKUP($A86,'Schedule Setup'!$A$4:$E$39,2,FALSE)=0,"",VLOOKUP($A86,'Schedule Setup'!$A$4:$E$39,2,FALSE)) ->  | C86: =IF(VLOOKUP($A86,'Schedule Setup'!$A$4:$E$39,4,FALSE)=0,"",VLOOKUP($A86,'Schedule Setup'!$A$4:$E$39,4,FALSE)) ->  | H86: x | I86: x | J86: x | K86: x | L86: x | M86: x | N86: x | O86: x | P86: x | Q86: x | R86: x | S86: x | T86: x | U86: x | V86: x | W86: x | X86: x | Y86: x | Z86: x | AA86: x | AB86: x | AC86: x | AD86: x | AE86: x | AF86: x | AG86: x | AH86: x | AI86: x | AJ86: x | AK86: x | AL86: x | AM86: x | AN86: x | AO86: x | AP86: x | AQ86: x | AR86: x | AS86: x | AT86: 0 | AV86: x | AW86: x | AX86: x | AY86: x | AZ86: x | BA86: x | BB86: x | BC86: x | BD86: x | BE86: x | BF86: x | BG86: x | BH86: x | BI86: x | BJ86: x | BK86: x | BL86: x | BM86: x | BN86: x | BO86: x | BP86: x | BQ86: x | BR86: x | BS86: x | BT86: x | BU86: x | BV86: x | BW86: x | BX86: x | BY86: x | BZ86: x | CA86: x | CB86: x | CC86: x | CD86: x | CE86: x | CF86: x | CG86: x | CI86: 0 | CJ86: 0 | CK86: 0 | CL86: 0 | CM86: 0 | CN86: 0 | CO86: 0 | CP86: 0 | CQ86: 0 | CR86: 0 | CS86: 0 | CT86: 0 | CU86: 0 | CV86: 0 | CW86: 0 | CX86: 0 | CY86: 0 | CZ86: 0 | DA86: 0 | DB86: 0 | DC86: 0 | DD86: 0 | DE86: 0 | DF86: 0 | DG86: 0 | DH86: 0 | DI86: 0 | DJ86: 0 | DK86: 0 | DL86: 0 | DM86: 0 | DN86: 0 | DO86: 0 | DP86: 0 | DQ86: 0 | DR86: 0 | DS86: 0 | DT86: 0 | DV86: =IF(VLOOKUP($A86,'Schedule Setup'!$A$4:$E$39,5,FALSE)=0,"",VLOOKUP($A86,'Schedule Setup'!$A$4:$E$39,5,FALSE)) ->  | DW86: 0 | DY86: 0 | EA86: 0 | EC86: 0 | EF86: 0 | EH86: 0 | EJ86: 0 | EL86: 0 | EO86: ='Schedule Setup'!H38 -> 00:00:00 | EP86: ='Schedule Setup'!I38 -> 00:00:00 | EQ86: -0.02083333333 | ER86: 00:30:00
A87: 35 | B87: =IF(VLOOKUP($A87,'Schedule Setup'!$A$4:$E$39,2,FALSE)=0,"",VLOOKUP($A87,'Schedule Setup'!$A$4:$E$39,2,FALSE)) ->  | C87: =IF(VLOOKUP($A87,'Schedule Setup'!$A$4:$E$39,4,FALSE)=0,"",VLOOKUP($A87,'Schedule Setup'!$A$4:$E$39,4,FALSE)) ->  | H87: x | I87: x | J87: x | K87: x | L87: x | M87: x | N87: x | O87: x | P87: x | Q87: x | R87: x | S87: x | T87: x | U87: =BI87 -> x | V87: x | W87: x | X87: x | Y87: x | Z87: x | AA87: x | AB87: x | AC87: x | AD87: x | AE87: x | AF87: x | AG87: x | AH87: x | AI87: x | AJ87: x | AK87: x | AL87: x | AM87: x | AN87: x | AO87: x | AP87: x | AQ87: x | AR87: x | AS87: x | AT87: 0 | AV87: x | AW87: x | AX87: x | AY87: x | AZ87: x | BA87: x | BB87: x | BC87: x | BD87: x | BE87: x | BF87: x | BG87: x | BH87: x | BI87: x | BJ87: x | BK87: x | BL87: x | BM87: x | BN87: x | BO87: x | BP87: x | BQ87: x | BR87: x | BS87: x | BT87: x | BU87: x | BV87: x | BW87: x | BX87: x | BY87: x | BZ87: x | CA87: x | CB87: x | CC87: x | CD87: x | CE87: x | CF87: x | CG87: x | CI87: 0 | CJ87: 0 | CK87: 0 | CL87: 0 | CM87: 0 | CN87: 0 | CO87: 0 | CP87: 0 | CQ87: 0 | CR87: 0 | CS87: 0 | CT87: 0 | CU87: 0 | CV87: 0 | CW87: 0 | CX87: 0 | CY87: 0 | CZ87: 0 | DA87: 0 | DB87: 0 | DC87: 0 | DD87: 0 | DE87: 0 | DF87: 0 | DG87: 0 | DH87: 0 | DI87: 0 | DJ87: 0 | DK87: 0 | DL87: 0 | DM87: 0 | DN87: 0 | DO87: 0 | DP87: 0 | DQ87: 0 | DR87: 0 | DS87: 0 | DT87: 0 | DV87: =IF(VLOOKUP($A87,'Schedule Setup'!$A$4:$E$39,5,FALSE)=0,"",VLOOKUP($A87,'Schedule Setup'!$A$4:$E$39,5,FALSE)) ->  | DW87: 0 | DY87: 0 | EA87: 0 | EC87: 0 | EF87: 0 | EH87: 0 | EJ87: 0 | EL87: 0 | EO87: ='Schedule Setup'!H39 -> 00:00:00 | EP87: ='Schedule Setup'!I39 -> 00:00:00 | EQ87: -0.02083333333 | ER87: 00:30:00
D88: Totals/Coverage | E88: =MIN(E53:E87) -> 06:00:00 | F88: =MAX(F53:F87) -> 20:30:00 | H88: =CI88 -> 0 | I88: =CJ88 -> 0 | J88: =CK88 -> 1 | K88: =CL88 -> 1 | L88: =CM88 -> 1 | M88: =CN88 -> 1 | N88: =CO88 -> 2 | O88: =CP88 -> 2 | P88: =CQ88 -> 2 | Q88: =CR88 -> 2 | R88: =CS88 -> 2 | S88: =CT88 -> 2 | T88: =CU88 -> 2 | U88: =CV88 -> 2 | V88: =CW88 -> 2 | W88: =CX88 -> 3 | X88: =CY88 -> 3 | Y88: =CZ88 -> 3 | Z88: =DA88 -> 3 | AA88: =DB88 -> 3 | AB88: =DC88 -> 3 | AC88: =DD88 -> 4 | AD88: =DE88 -> 3 | AE88: =DF88 -> 3 | AF88: =DG88 -> 3 | AG88: =DH88 -> 3 | AH88: =DI88 -> 3 | AI88: =DJ88 -> 2 | AJ88: =DK88 -> 2 | AK88: =DL88 -> 2 | AL88: =DM88 -> 2 | AM88: =DN88 -> 0 | AN88: =DO88 -> 0 | AO88: =DP88 -> 0 | AP88: =DQ88 -> 0 | AQ88: =DR88 -> 0 | AR88: =DS88 -> 0 | AS88: =DT88 -> 0 | AT88: =SUM(AT53:AT87) -> 33.5 | CI88: =COUNTIF(CI53:CI87,0.5) -> 0 | CJ88: 0 | CK88: 1 | CL88: 1 | CM88: 1 | CN88: 1 | CO88: 2 | CP88: 2 | CQ88: 2 | CR88: 2 | CS88: 2 | CT88: 2 | CU88: 2 | CV88: 2 | CW88: 2 | CX88: 3 | CY88: 3 | CZ88: 3 | DA88: 3 | DB88: 3 | DC88: 3 | DD88: 4 | DE88: 3 | DF88: 3 | DG88: 3 | DH88: 3 | DI88: 3 | DJ88: 2 | DK88: 2 | DL88: 2 | DM88: 2 | DN88: 0 | DO88: 0 | DP88: 0 | DQ88: 0 | DR88: 0 | DS88: 0 | DT88: 0 | DW88: =SUM(DW53:DW87) -> 8 | DX88: 0 | DY88: 17 | DZ88: 0 | EA88: 8.5 | EB88: 0 | EC88: 33.5 | ED88: 0 | EF88: =SUM(EF53:EF87) -> 8 | EG88: 0 | EH88: 17 | EI88: 0 | EJ88: 8.5 | EK88: 0 | EL88: 33.5 | EM88: 0 | EO88: ='Schedule Setup'!H40 -> 07:00:00 | EP88: ='Schedule Setup'!I40 -> 20:00:00 | EQ88: 06:30:00 | ER88: 20:30:00
F89: ='Schedule Forecast'!A14 -> Wk 10-21 | H89: =IFERROR(INDEX(INDIRECT("'"&$F89&"'!$D:$D"),MATCH(H$6,INDIRECT("'"&$F89&"'!$A$1:$A$250"),0)+1),0) -> 0 | I89: 0 | J89: 0 | K89: 0 | L89: 105.32 | M89: 11.67 | N89: 22.59 | O89: 14.52 | P89: 18.77 | Q89: 12.94 | R89: =IFERROR(INDEX(INDIRECT("'"&$F89&"'!$D:$D"),MATCH(R$6,INDIRECT("'"&$F89&"'!$A$1:$A$250"),0)+1),0) -> 40.89 | S89: 9.93 | T89: 42.84 | U89: 73.94 | V89: 100.63 | W89: 190.82 | X89: 56.68 | Y89: 109.29 | Z89: 101.82 | AA89: 68.19 | AB89: =IFERROR(INDEX(INDIRECT("'"&$F89&"'!$D:$D"),MATCH(AB$6,INDIRECT("'"&$F89&"'!$A$1:$A$250"),0)+1),0) -> 162.41 | AC89: 141.52 | AD89: 26.76 | AE89: 82.34 | AF89: 55.52 | AG89: 20.56 | AH89: 18.07 | AI89: 34.84 | AJ89: 54.15 | AK89: 21.66 | AL89: =IFERROR(INDEX(INDIRECT("'"&$F89&"'!$D:$D"),MATCH(AL$6,INDIRECT("'"&$F89&"'!$A$1:$A$250"),0)+1),0) -> 0 | AM89: 0 | AN89: 0 | AO89: 0 | AP89: 0 | AQ89: 0 | AR89: 0 | AS89: 0
F90: ='Schedule Forecast'!A15 -> Wk 10-28 | H90: 0 | I90: 0 | J90: 0 | K90: 0 | L90: 12.63 | M90: 18.06 | N90: 6.64 | O90: 37.23 | P90: 140.58 | Q90: 23.61 | R90: 31.13 | S90: 10.58 | T90: 26.04 | U90: 41.96 | V90: 38.38 | W90: 155.66 | X90: 32.57 | Y90: 51.75 | Z90: 41.17 | AA90: 127.8 | AB90: 223.24 | AC90: 163.81 | AD90: 44.21 | AE90: 54.48 | AF90: 60.55 | AG90: 39.34 | AH90: 32.83 | AI90: 53.06 | AJ90: 60.51 | AK90: 10.83 | AL90: 0 | AM90: 0 | AN90: 0 | AO90: 0 | AP90: 0 | AQ90: 0 | AR90: 0 | AS90: 0
F91: ='Schedule Forecast'!A16 -> Wk 11-4 | H91: 0 | I91: 0 | J91: 0 | K91: 0 | L91: 52.19 | M91: 11.48 | N91: 17.66 | O91: 241.99 | P91: 8.43 | Q91: 4.79 | R91: 31.74 | S91: 44.23 | T91: 22.45 | U91: 94.23 | V91: 49.06 | W91: 159.83 | X91: 66.37 | Y91: 111.06 | Z91: 90.36 | AA91: 75.17 | AB91: 94.16 | AC91: 47 | AD91: 63.44 | AE91: 54.48 | AF91: 89.13 | AG91: 46.65 | AH91: 37.02 | AI91: 35.58 | AJ91: 34.75 | AK91: 35.73 | AL91: 0 | AM91: 0 | AN91: 0 | AO91: 0 | AP91: 0 | AQ91: 0 | AR91: 0 | AS91: 0
F92: ='Schedule Forecast'!A17 -> Wk 11-11 | H92: 0 | I92: 0 | J92: 0 | K92: 0 | L92: 39.53 | M92: 29.4 | N92: 110.19 | O92: 25.46 | P92: 19.92 | Q92: 98.27 | R92: 20.06 | S92: 10.68 | T92: 44.12 | U92: 89.09 | V92: 79.66 | W92: 143.2 | X92: 40.52 | Y92: 46.96 | Z92: 80.3 | AA92: 81.73 | AB92: 152.84 | AC92: 114.88 | AD92: 113.22 | AE92: 57.64 | AF92: 80.45 | AG92: 80.31 | AH92: 30.85 | AI92: 37.83 | AJ92: 68.71 | AK92: 64.02 | AL92: 8.68 | AM92: 0 | AN92: 0 | AO92: 0 | AP92: 0 | AQ92: 0 | AR92: 0 | AS92: 0
F93: AVERAGE | H93: =IFERROR(IF(AND(H$6>=$EO$88,H$6<$EP$88-0.001),AVERAGE(H89:H92),""),"") ->  | L93: 52.4175 | M93: 17.6525 | N93: 39.27 | O93: 79.8 | P93: 46.925 | Q93: 34.9025 | R93: 30.955 | S93: 18.855 | T93: 33.8625 | U93: 74.805 | V93: 66.9325 | W93: 162.3775 | X93: 49.035 | Y93: 79.765 | Z93: 78.4125 | AA93: 88.2225 | AB93: 158.1625 | AC93: 116.8025 | AD93: 61.9075 | AE93: 62.235 | AF93: 71.4125 | AG93: 46.715 | AH93: 29.6925 | AI93: 40.3275 | AJ93: 54.53 | AK93: 33.06
H94: =IFERROR(IF((H93*'Schedule Forecast'!$C$4-$AC$2)>1,(H93*'Schedule Forecast'!$C$4-$AC$2),1),"") ->  | I94: =IFERROR(IF((I93*'Schedule Forecast'!$C$4-$AC$2)>1,(I93*'Schedule Forecast'!$C$4-$AC$2),1),"") ->  | J94: =IFERROR(IF((J93*'Schedule Forecast'!$C$4-$AC$2)>1,(J93*'Schedule Forecast'!$C$4-$AC$2),1),"") ->  | K94: =IFERROR(IF((K93*'Schedule Forecast'!$C$4-$AC$2)>1,(K93*'Schedule Forecast'!$C$4-$AC$2),1),"") ->  | L94: =IFERROR(IF((L93*'Schedule Forecast'!$C$4-$AC$2)>1,(L93*'Schedule Forecast'!$C$4-$AC$2),1),"") -> 1 | M94: =IFERROR(IF((M93*'Schedule Forecast'!$C$4-$AC$2)>1,(M93*'Schedule Forecast'!$C$4-$AC$2),1),"") -> 1 | N94: =IFERROR(IF((N93*'Schedule Forecast'!$C$4-$AC$2)>1,(N93*'Schedule Forecast'!$C$4-$AC$2),1),"") -> 1 | O94: =IFERROR(IF((O93*'Schedule Forecast'!$C$4-$AC$2)>1,(O93*'Schedule Forecast'!$C$4-$AC$2),1),"") -> 5.162 | P94: =IFERROR(IF((P93*'Schedule Forecast'!$C$4-$AC$2)>1,(P93*'Schedule Forecast'!$C$4-$AC$2),1),"") -> 1 | Q94: =IFERROR(IF((Q93*'Schedule Forecast'!$C$4-$AC$2)>1,(Q93*'Schedule Forecast'!$C$4-$AC$2),1),"") -> 1 | R94: =IFERROR(IF((R93*'Schedule Forecast'!$C$4-$AC$2)>1,(R93*'Schedule Forecast'!$C$4-$AC$2),1),"") -> 1 | S94: =IFERROR(IF((S93*'Schedule Forecast'!$C$4-$AC$2)>1,(S93*'Schedule Forecast'!$C$4-$AC$2),1),"") -> 1 | T94: =IFERROR(IF((T93*'Schedule Forecast'!$C$4-$AC$2)>1,(T93*'Schedule Forecast'!$C$4-$AC$2),1),"") -> 1 | U94: =IFERROR(IF((U93*'Schedule Forecast'!$C$4-$AC$2)>1,(U93*'Schedule Forecast'!$C$4-$AC$2),1),"") -> 4.21295 | V94: =IFERROR(IF((V93*'Schedule Forecast'!$C$4-$AC$2)>1,(V93*'Schedule Forecast'!$C$4-$AC$2),1),"") -> 2.717175 | W94: =IFERROR(IF((W93*'Schedule Forecast'!$C$4-$AC$2)>1,(W93*'Schedule Forecast'!$C$4-$AC$2),1),"") -> 20.851725 | X94: =IFERROR(IF((X93*'Schedule Forecast'!$C$4-$AC$2)>1,(X93*'Schedule Forecast'!$C$4-$AC$2),1),"") -> 1 | Y94: =IFERROR(IF((Y93*'Schedule Forecast'!$C$4-$AC$2)>1,(Y93*'Schedule Forecast'!$C$4-$AC$2),1),"") -> 5.15535 | Z94: =IFERROR(IF((Z93*'Schedule Forecast'!$C$4-$AC$2)>1,(Z93*'Schedule Forecast'!$C$4-$AC$2),1),"") -> 4.898375 | AA94: =IFERROR(IF((AA93*'Schedule Forecast'!$C$4-$AC$2)>1,(AA93*'Schedule Forecast'!$C$4-$AC$2),1),"") -> 6.762275 | AB94: =IFERROR(IF((AB93*'Schedule Forecast'!$C$4-$AC$2)>1,(AB93*'Schedule Forecast'!$C$4-$AC$2),1),"") -> 20.050875 | AC94: =IFERROR(IF((AC93*'Schedule Forecast'!$C$4-$AC$2)>1,(AC93*'Schedule Forecast'!$C$4-$AC$2),1),"") -> 12.192475 | AD94: =IFERROR(IF((AD93*'Schedule Forecast'!$C$4-$AC$2)>1,(AD93*'Schedule Forecast'!$C$4-$AC$2),1),"") -> 1.762425 | AE94: =IFERROR(IF((AE93*'Schedule Forecast'!$C$4-$AC$2)>1,(AE93*'Schedule Forecast'!$C$4-$AC$2),1),"") -> 1.82465 | AF94: =IFERROR(IF((AF93*'Schedule Forecast'!$C$4-$AC$2)>1,(AF93*'Schedule Forecast'!$C$4-$AC$2),1),"") -> 3.568375 | AG94: =IFERROR(IF((AG93*'Schedule Forecast'!$C$4-$AC$2)>1,(AG93*'Schedule Forecast'!$C$4-$AC$2),1),"") -> 1 | AH94: =IFERROR(IF((AH93*'Schedule Forecast'!$C$4-$AC$2)>1,(AH93*'Schedule Forecast'!$C$4-$AC$2),1),"") -> 1 | AI94: =IFERROR(IF((AI93*'Schedule Forecast'!$C$4-$AC$2)>1,(AI93*'Schedule Forecast'!$C$4-$AC$2),1),"") -> 1 | AJ94: =IFERROR(IF((AJ93*'Schedule Forecast'!$C$4-$AC$2)>1,(AJ93*'Schedule Forecast'!$C$4-$AC$2),1),"") -> 1 | AK94: =IFERROR(IF((AK93*'Schedule Forecast'!$C$4-$AC$2)>1,(AK93*'Schedule Forecast'!$C$4-$AC$2),1),"") -> 1 | AL94: =IFERROR(IF((AL93*'Schedule Forecast'!$C$4-$AC$2)>1,(AL93*'Schedule Forecast'!$C$4-$AC$2),1),"") ->  | AM94: =IFERROR(IF((AM93*'Schedule Forecast'!$C$4-$AC$2)>1,(AM93*'Schedule Forecast'!$C$4-$AC$2),1),"") ->  | AN94: =IFERROR(IF((AN93*'Schedule Forecast'!$C$4-$AC$2)>1,(AN93*'Schedule Forecast'!$C$4-$AC$2),1),"") ->  | AO94: =IFERROR(IF((AO93*'Schedule Forecast'!$C$4-$AC$2)>1,(AO93*'Schedule Forecast'!$C$4-$AC$2),1),"") ->  | AP94: =IFERROR(IF((AP93*'Schedule Forecast'!$C$4-$AC$2)>1,(AP93*'Schedule Forecast'!$C$4-$AC$2),1),"") ->  | AQ94: =IFERROR(IF((AQ93*'Schedule Forecast'!$C$4-$AC$2)>1,(AQ93*'Schedule Forecast'!$C$4-$AC$2),1),"") ->  | AR94: =IFERROR(IF((AR93*'Schedule Forecast'!$C$4-$AC$2)>1,(AR93*'Schedule Forecast'!$C$4-$AC$2),1),"") ->  | AS94: =IFERROR(IF((AS93*'Schedule Forecast'!$C$4-$AC$2)>1,(AS93*'Schedule Forecast'!$C$4-$AC$2),1),"") -> 
G95: Recommended: | H95: =IF(H52>=$EO$88,IF(H52<$EP$88-0.01,ROUND(IF(H94>1,(H94*$B$48)+1,H94)*2,0),""),"") ->  | L95: 2 | M95: 2 | N95: 2 | O95: 2 | P95: 2 | Q95: 2 | R95: 2 | S95: 2 | T95: 2 | U95: 2 | V95: 2 | W95: 2 | X95: 2 | Y95: 2 | Z95: 2 | AA95: 2 | AB95: 2 | AC95: 2 | AD95: 2 | AE95: 2 | AF95: 2 | AG95: 2 | AH95: 2 | AI95: 2 | AJ95: 2 | AK95: 2 | AT95: =SUM(H95:AS95)/2 -> 26
B97: Friday | S97: =S51 -> Today's Date | T97: =T5+2 -> 2014-11-21 | DW97: Breakfast | DY97: Lunch | EA97: Dinner | EC97: Total | EF97: Breakfast | EH97: Lunch | EJ97: Dinner | EL97: Total | EO97: Availability
B98: Employee | C98: Job | E98: Start | F98: End | H98: 05:00:00 | I98: =H98+(0.5/24) -> 05:30:00 | J98: =I98+(0.5/24) -> 06:00:00 | K98: =J98+(0.5/24) -> 06:30:00 | L98: =K98+(0.5/24) -> 07:00:00 | M98: =L98+(0.5/24) -> 07:30:00 | N98: =M98+(0.5/24) -> 08:00:00 | O98: =N98+(0.5/24) -> 08:30:00 | P98: =O98+(0.5/24) -> 09:00:00 | Q98: =P98+(0.5/24) -> 09:30:00 | R98: =Q98+(0.5/24) -> 10:00:00 | S98: =R98+(0.5/24) -> 10:30:00 | T98: =S98+(0.5/24) -> 11:00:00 | U98: =T98+(0.5/24) -> 11:30:00 | V98: =U98+(0.5/24) -> 12:00:00 | W98: =V98+(0.5/24) -> 12:30:00 | X98: =W98+(0.5/24) -> 13:00:00 | Y98: =X98+(0.5/24) -> 13:30:00 | Z98: =Y98+(0.5/24) -> 14:00:00 | AA98: =Z98+(0.5/24) -> 14:30:00 | AB98: =AA98+(0.5/24) -> 15:00:00 | AC98: =AB98+(0.5/24) -> 15:30:00 | AD98: =AC98+(0.5/24) -> 16:00:00 | AE98: =AD98+(0.5/24) -> 16:30:00 | AF98: =AE98+(0.5/24) -> 17:00:00 | AG98: =AF98+(0.5/24) -> 17:30:00 | AH98: =AG98+(0.5/24) -> 18:00:00 | AI98: =AH98+(0.5/24) -> 18:30:00 | AJ98: =AI98+(0.5/24) -> 19:00:00 | AK98: =AJ98+(0.5/24) -> 19:30:00 | AL98: =AK98+(0.5/24) -> 20:00:00 | AM98: =AL98+(0.5/24) -> 20:30:00 | AN98: =AM98+(0.5/24) -> 21:00:00 | AO98: =AN98+(0.5/24) -> 21:30:00 | AP98: =AO98+(0.5/24) -> 22:00:00 | AQ98: =AP98+(0.5/24) -> 22:30:00 | AR98: =AQ98+(0.5/24) -> 23:00:00 | AS98: =AR98+(0.5/24) -> 23:30:00 | AT98: TOTAL | AV98: 5 | AX98: 6 | AZ98: 7 | BB98: 8 | BD98: 9 | BF98: 10 | BH98: 11 | BJ98: 12 | BL98: 1 | BN98: 2 | BP98: 3 | BR98: 4 | BT98: 5 | BV98: 6 | BX98: 7 | BZ98: 8 | CB98: 9 | CD98: 10 | CF98: 11 | CI98: 5 | CK98: 6 | CM98: 7 | CO98: 8 | CQ98: 9 | CS98: 10 | CU98: 11 | CW98: 12 | CY98: 1 | DA98: 2 | DC98: 3 | DE98: 4 | DG98: 5 | DI98: 6 | DK98: 7 | DM98: 8 | DO98: 9 | DQ98: 10 | DS98: 11 | DV98: Rate | DW98: Hrs | DX98: $ | DY98: Hrs | DZ98: $ | EA98: Hrs | EB98: $ | EC98: Hrs | ED98: $ | EF98: Hrs | EG98: $ | EH98: Hrs | EI98: $ | EJ98: Hrs | EK98: $ | EL98: Hrs | EM98: $ | EO98: Start | EP98: End | EQ98: Start-Early | ER98: End-Late
A99: 1 | B99: =IF(VLOOKUP($A99,'Schedule Setup'!$A$4:$E$39,2,FALSE)=0,"",VLOOKUP($A99,'Schedule Setup'!$A$4:$E$39,2,FALSE)) -> Shaun Payne | C99: =IF(VLOOKUP($A99,'Schedule Setup'!$A$4:$E$39,4,FALSE)=0,"",VLOOKUP($A99,'Schedule Setup'!$A$4:$E$39,4,FALSE)) -> General Manager (S) | D99: =IF(B99<>"",IF(OR(C99="General Manager (S)", C99="General Manager (H)"), "GM",IF(C99="Acting Manager","AM",IF(C99="Shift Manager","SM",IF(C99="Team Lead","TL","TM")))),"") -> GM | H99: =AV99 -> x | I99: x | J99: x | K99: x | L99: x | M99: x | N99: x | O99: x | P99: x | Q99: x | R99: x | S99: x | T99: x | U99: x | V99: x | W99: x | X99: x | Y99: x | Z99: x | AA99: x | AB99: x | AC99: x | AD99: x | AE99: x | AF99: x | AG99: x | AH99: x | AI99: x | AJ99: x | AK99: x | AL99: x | AM99: x | AN99: x | AO99: x | AP99: x | AQ99: x | AR99: x | AS99: x | AT99: =EC99 -> 0 | AV99: =IF(AND($EO99<=H$6+0.01,$EP99>H$6+0.01),IF(AND(H$6<$F99-0.01,H$6>=$E99-0.01),$D99,""),"x") -> x | AW99: =IF(AND($EO99<=I$6+0.01,$EP99>I$6+0.01),IF(AND(I$6<$F99-0.01,I$6>=$E99-0.01),$D99,""),"x") -> x | AX99: =IF(AND($EO99<=J$6+0.01,$EP99>J$6+0.01),IF(AND(J$6<$F99-0.01,J$6>=$E99-0.01),$D99,""),"x") -> x | AY99: =IF(AND($EO99<=K$6+0.01,$EP99>K$6+0.01),IF(AND(K$6<$F99-0.01,K$6>=$E99-0.01),$D99,""),"x") -> x | AZ99: =IF(AND($EO99<=L$6+0.01,$EP99>L$6+0.01),IF(AND(L$6<$F99-0.01,L$6>=$E99-0.01),$D99,""),"x") -> x | BA99: =IF(AND($EO99<=M$6+0.01,$EP99>M$6+0.01),IF(AND(M$6<$F99-0.01,M$6>=$E99-0.01),$D99,""),"x") -> x | BB99: =IF(AND($EO99<=N$6+0.01,$EP99>N$6+0.01),IF(AND(N$6<$F99-0.01,N$6>=$E99-0.01),$D99,""),"x") -> x | BC99: =IF(AND($EO99<=O$6+0.01,$EP99>O$6+0.01),IF(AND(O$6<$F99-0.01,O$6>=$E99-0.01),$D99,""),"x") -> x | BD99: =IF(AND($EO99<=P$6+0.01,$EP99>P$6+0.01),IF(AND(P$6<$F99-0.01,P$6>=$E99-0.01),$D99,""),"x") -> x | BE99: =IF(AND($EO99<=Q$6+0.01,$EP99>Q$6+0.01),IF(AND(Q$6<$F99-0.01,Q$6>=$E99-0.01),$D99,""),"x") -> x | BF99: =IF(AND($EO99<=R$6+0.01,$EP99>R$6+0.01),IF(AND(R$6<$F99-0.01,R$6>=$E99-0.01),$D99,""),"x") -> x | BG99: =IF(AND($EO99<=S$6+0.01,$EP99>S$6+0.01),IF(AND(S$6<$F99-0.01,S$6>=$E99-0.01),$D99,""),"x") -> x | BH99: =IF(AND($EO99<=T$6+0.01,$EP99>T$6+0.01),IF(AND(T$6<$F99-0.01,T$6>=$E99-0.01),$D99,""),"x") -> x | BI99: =IF(AND($EO99<=U$6+0.01,$EP99>U$6+0.01),IF(AND(U$6<$F99-0.01,U$6>=$E99-0.01),$D99,""),"x") -> x | BJ99: =IF(AND($EO99<=V$6+0.01,$EP99>V$6+0.01),IF(AND(V$6<$F99-0.01,V$6>=$E99-0.01),$D99,""),"x") -> x | BK99: =IF(AND($EO99<=W$6+0.01,$EP99>W$6+0.01),IF(AND(W$6<$F99-0.01,W$6>=$E99-0.01),$D99,""),"x") -> x | BL99: =IF(AND($EO99<=X$6+0.01,$EP99>X$6+0.01),IF(AND(X$6<$F99-0.01,X$6>=$E99-0.01),$D99,""),"x") -> x | BM99: =IF(AND($EO99<=Y$6+0.01,$EP99>Y$6+0.01),IF(AND(Y$6<$F99-0.01,Y$6>=$E99-0.01),$D99,""),"x") -> x | BN99: =IF(AND($EO99<=Z$6+0.01,$EP99>Z$6+0.01),IF(AND(Z$6<$F99-0.01,Z$6>=$E99-0.01),$D99,""),"x") -> x | BO99: =IF(AND($EO99<=AA$6+0.01,$EP99>AA$6+0.01),IF(AND(AA$6<$F99-0.01,AA$6>=$E99-0.01),$D99,""),"x") -> x | BP99: =IF(AND($EO99<=AB$6+0.01,$EP99>AB$6+0.01),IF(AND(AB$6<$F99-0.01,AB$6>=$E99-0.01),$D99,""),"x") -> x | BQ99: =IF(AND($EO99<=AC$6+0.01,$EP99>AC$6+0.01),IF(AND(AC$6<$F99-0.01,AC$6>=$E99-0.01),$D99,""),"x") -> x | BR99: =IF(AND($EO99<=AD$6+0.01,$EP99>AD$6+0.01),IF(AND(AD$6<$F99-0.01,AD$6>=$E99-0.01),$D99,""),"x") -> x | BS99: =IF(AND($EO99<=AE$6+0.01,$EP99>AE$6+0.01),IF(AND(AE$6<$F99-0.01,AE$6>=$E99-0.01),$D99,""),"x") -> x | BT99: =IF(AND($EO99<=AF$6+0.01,$EP99>AF$6+0.01),IF(AND(AF$6<$F99-0.01,AF$6>=$E99-0.01),$D99,""),"x") -> x | BU99: =IF(AND($EO99<=AG$6+0.01,$EP99>AG$6+0.01),IF(AND(AG$6<$F99-0.01,AG$6>=$E99-0.01),$D99,""),"x") -> x | BV99: =IF(AND($EO99<=AH$6+0.01,$EP99>AH$6+0.01),IF(AND(AH$6<$F99-0.01,AH$6>=$E99-0.01),$D99,""),"x") -> x | BW99: =IF(AND($EO99<=AI$6+0.01,$EP99>AI$6+0.01),IF(AND(AI$6<$F99-0.01,AI$6>=$E99-0.01),$D99,""),"x") -> x | BX99: =IF(AND($EO99<=AJ$6+0.01,$EP99>AJ$6+0.01),IF(AND(AJ$6<$F99-0.01,AJ$6>=$E99-0.01),$D99,""),"x") -> x | BY99: =IF(AND($EO99<=AK$6+0.01,$EP99>AK$6+0.01),IF(AND(AK$6<$F99-0.01,AK$6>=$E99-0.01),$D99,""),"x") -> x | BZ99: =IF(AND($EO99<=AL$6+0.01,$EP99>AL$6+0.01),IF(AND(AL$6<$F99-0.01,AL$6>=$E99-0.01),$D99,""),"x") -> x | CA99: =IF(AND($EO99<=AM$6+0.01,$EP99>AM$6+0.01),IF(AND(AM$6<$F99-0.01,AM$6>=$E99-0.01),$D99,""),"x") -> x | CB99: =IF(AND($EO99<=AN$6+0.01,$EP99>AN$6+0.01),IF(AND(AN$6<$F99-0.01,AN$6>=$E99-0.01),$D99,""),"x") -> x | CC99: =IF(AND($EO99<=AO$6+0.01,$EP99>AO$6+0.01),IF(AND(AO$6<$F99-0.01,AO$6>=$E99-0.01),$D99,""),"x") -> x | CD99: =IF(AND($EO99<=AP$6+0.01,$EP99>AP$6+0.01),IF(AND(AP$6<$F99-0.01,AP$6>=$E99-0.01),$D99,""),"x") -> x | CE99: =IF(AND($EO99<=AQ$6+0.01,$EP99>AQ$6+0.01),IF(AND(AQ$6<$F99-0.01,AQ$6>=$E99-0.01),$D99,""),"x") -> x | CF99: =IF(AND($EO99<=AR$6+0.01,$EP99>AR$6+0.01),IF(AND(AR$6<$F99-0.01,AR$6>=$E99-0.01),$D99,""),"x") -> x | CG99: =IF(AND($EO99<=AS$6+0.01,$EP99>AS$6+0.01),IF(AND(AS$6<$F99-0.01,AS$6>=$E99-0.01),$D99,""),"x") -> x | CI99: =IF(AND(AV99<>"",AV99<>"x"),0.5,) -> 0 | CJ99: =IF(AND(AW99<>"",AW99<>"x"),0.5,) -> 0 | CK99: =IF(AND(AX99<>"",AX99<>"x"),0.5,) -> 0 | CL99: =IF(AND(AY99<>"",AY99<>"x"),0.5,) -> 0 | CM99: =IF(AND(AZ99<>"",AZ99<>"x"),0.5,) -> 0 | CN99: =IF(AND(BA99<>"",BA99<>"x"),0.5,) -> 0 | CO99: =IF(AND(BB99<>"",BB99<>"x"),0.5,) -> 0 | CP99: =IF(AND(BC99<>"",BC99<>"x"),0.5,) -> 0 | CQ99: =IF(AND(BD99<>"",BD99<>"x"),0.5,) -> 0 | CR99: =IF(AND(BE99<>"",BE99<>"x"),0.5,) -> 0 | CS99: =IF(AND(BF99<>"",BF99<>"x"),0.5,) -> 0 | CT99: =IF(AND(BG99<>"",BG99<>"x"),0.5,) -> 0 | CU99: =IF(AND(BH99<>"",BH99<>"x"),0.5,) -> 0 | CV99: =IF(AND(BI99<>"",BI99<>"x"),0.5,) -> 0 | CW99: =IF(AND(BJ99<>"",BJ99<>"x"),0.5,) -> 0 | CX99: =IF(AND(BK99<>"",BK99<>"x"),0.5,) -> 0 | CY99: =IF(AND(BL99<>"",BL99<>"x"),0.5,) -> 0 | CZ99: =IF(AND(BM99<>"",BM99<>"x"),0.5,) -> 0 | DA99: =IF(AND(BN99<>"",BN99<>"x"),0.5,) -> 0 | DB99: =IF(AND(BO99<>"",BO99<>"x"),0.5,) -> 0 | DC99: =IF(AND(BP99<>"",BP99<>"x"),0.5,) -> 0 | DD99: =IF(AND(BQ99<>"",BQ99<>"x"),0.5,) -> 0 | DE99: =IF(AND(BR99<>"",BR99<>"x"),0.5,) -> 0 | DF99: =IF(AND(BS99<>"",BS99<>"x"),0.5,) -> 0 | DG99: =IF(AND(BT99<>"",BT99<>"x"),0.5,) -> 0 | DH99: =IF(AND(BU99<>"",BU99<>"x"),0.5,) -> 0 | DI99: =IF(AND(BV99<>"",BV99<>"x"),0.5,) -> 0 | DJ99: =IF(AND(BW99<>"",BW99<>"x"),0.5,) -> 0 | DK99: =IF(AND(BX99<>"",BX99<>"x"),0.5,) -> 0 | DL99: =IF(AND(BY99<>"",BY99<>"x"),0.5,) -> 0 | DM99: =IF(AND(BZ99<>"",BZ99<>"x"),0.5,) -> 0 | DN99: =IF(AND(CA99<>"",CA99<>"x"),0.5,) -> 0 | DO99: =IF(AND(CB99<>"",CB99<>"x"),0.5,) -> 0 | DP99: =IF(AND(CC99<>"",CC99<>"x"),0.5,) -> 0 | DQ99: =IF(AND(CD99<>"",CD99<>"x"),0.5,) -> 0 | DR99: =IF(AND(CE99<>"",CE99<>"x"),0.5,) -> 0 | DS99: =IF(AND(CF99<>"",CF99<>"x"),0.5,) -> 0 | DT99: =IF(AND(CG99<>"",CG99<>"x"),0.5,) -> 0 | DV99: =IF(VLOOKUP($A99,'Schedule Setup'!$A$4:$E$39,5,FALSE)=0,"",VLOOKUP($A99,'Schedule Setup'!$A$4:$E$39,5,FALSE)) ->  | DW99: =SUM(CI99:CT99) -> 0 | DX99: =IFERROR(DW99*$DV99,"") ->  | DY99: =SUM(CU99:DF99) -> 0 | DZ99: =IFERROR(DY99*$DV99,"") ->  | EA99: =SUM(DG99:DT99) -> 0 | EB99: =IFERROR(EA99*$DV99,"") ->  | EC99: =SUM(DW99,DY99,EA99) -> 0 | ED99: =IFERROR(EC99*$DV99,"") ->  | EF99: =IF(DW99>5,(DW99-0.5),DW99) -> 0 | EG99: =IFERROR(EF99*$DV99,"") ->  | EH99: =IF(DY99>5,(DY99-0.5),DY99) -> 0 | EI99: =IFERROR(EH99*$DV99,"") ->  | EJ99: =IF(EA99>5,(EA99-0.5),EA99) -> 0 | EK99: =IFERROR(EJ99*$DV99,"") ->  | EL99: =SUM(EF99,EH99,EJ99) -> 0 | EM99: =IFERROR(EL99*$DV99,"") ->  | EO99: ='Schedule Setup'!J5 -> UnAvail | EP99: ='Schedule Setup'!K5 -> UnAvail | EQ99: =EO99-(0.5/24) ->  | ER99: =EP99+(0.5/24) -> 
A100: =A99+1 -> 2 | B100: =IF(VLOOKUP($A100,'Schedule Setup'!$A$4:$E$39,2,FALSE)=0,"",VLOOKUP($A100,'Schedule Setup'!$A$4:$E$39,2,FALSE)) -> Clay Huycke-McCall | C100: =IF(VLOOKUP($A100,'Schedule Setup'!$A$4:$E$39,4,FALSE)=0,"",VLOOKUP($A100,'Schedule Setup'!$A$4:$E$39,4,FALSE)) -> Shift Manager | D100: =IF(B100<>"",IF(OR(C100="General Manager (S)", C100="General Manager (H)"), "GM",IF(C100="Acting Manager","AM",IF(C100="Shift Manager","SM",IF(C100="Team Lead","TL","TM")))),"") -> SM | H100: x | I100: x | J100: x | K100: x | L100: x | M100: x | N100: x | O100: x | P100: x | Q100: x | R100: x | S100: x | T100: x | U100: x | V100: x | W100: x | X100: x | Y100: x | Z100: x | AA100: x | AB100: x | AC100: x | AD100: x | AE100: x | AF100: x | AG100: x | AH100: x | AI100: x | AJ100: x | AK100: x | AL100: x | AM100: x | AN100: x | AO100: x | AP100: x | AQ100: x | AR100: x | AS100: x | AT100: =EC100 -> 0 | AV100: x | AW100: x | AX100: x | AY100: x | AZ100: x | BA100: x | BB100: x | BC100: x | BD100: x | BE100: x | BF100: x | BG100: x | BH100: x | BI100: x | BJ100: x | BK100: x | BL100: x | BM100: x | BN100: x | BO100: x | BP100: x | BQ100: x | BR100: x | BS100: x | BT100: x | BU100: x | BV100: x | BW100: x | BX100: x | BY100: x | BZ100: x | CA100: x | CB100: x | CC100: x | CD100: x | CE100: x | CF100: x | CG100: x | CI100: =IF(AND(AV100<>"",AV100<>"x"),0.5,) -> 0 | CJ100: 0 | CK100: 0 | CL100: 0 | CM100: 0 | CN100: 0 | CO100: 0 | CP100: 0 | CQ100: 0 | CR100: 0 | CS100: 0 | CT100: 0 | CU100: 0 | CV100: 0 | CW100: 0 | CX100: 0 | CY100: 0 | CZ100: 0 | DA100: 0 | DB100: 0 | DC100: 0 | DD100: 0 | DE100: 0 | DF100: 0 | DG100: 0 | DH100: 0 | DI100: 0 | DJ100: 0 | DK100: 0 | DL100: 0 | DM100: 0 | DN100: 0 | DO100: 0 | DP100: 0 | DQ100: 0 | DR100: 0 | DS100: 0 | DT100: 0 | DV100: =IF(VLOOKUP($A100,'Schedule Setup'!$A$4:$E$39,5,FALSE)=0,"",VLOOKUP($A100,'Schedule Setup'!$A$4:$E$39,5,FALSE)) ->  | DW100: 0 | DY100: 0 | EA100: 0 | EC100: =SUM(DW100,DY100,EA100) -> 0 | EF100: =IF(DW100>5,(DW100-0.5),DW100) -> 0 | EH100: =IF(DY100>5,(DY100-0.5),DY100) -> 0 | EJ100: 0 | EL100: =SUM(EF100,EH100,EJ100) -> 0 | EO100: ='Schedule Setup'!J6 -> Req. Off | EP100: ='Schedule Setup'!K6 -> Req. Off | EQ100: =EO100-(0.5/24) ->  | ER100: =EP100+(0.5/24) -> 
A101: =A100+1 -> 3 | B101: =IF(VLOOKUP($A101,'Schedule Setup'!$A$4:$E$39,2,FALSE)=0,"",VLOOKUP($A101,'Schedule Setup'!$A$4:$E$39,2,FALSE)) -> Shaina Hunt | C101: =IF(VLOOKUP($A101,'Schedule Setup'!$A$4:$E$39,4,FALSE)=0,"",VLOOKUP($A101,'Schedule Setup'!$A$4:$E$39,4,FALSE)) -> Shift Manager | D101: SM | E101: 06:00:00 | F101: 14:00:00 | H101: x | I101: x | J101: SM | K101: SM | L101: SM | M101: SM | N101: SM | O101: SM | P101: SM | Q101: SM | R101: SM | S101: SM | T101: SM | U101: SM | V101: SM | W101: SM | X101: SM | Y101: SM | AO101: x | AP101: x | AQ101: x | AR101: x | AS101: x | AT101: 8 | AV101: x | AW101: x | AX101: SM | AY101: SM | AZ101: SM | BA101: SM | BB101: SM | BC101: SM | BD101: SM | BE101: SM | BF101: SM | BG101: SM | BH101: SM | BI101: SM | BJ101: SM | BK101: SM | BL101: SM | BM101: SM | CC101: x | CD101: x | CE101: x | CF101: x | CG101: x | CI101: 0 | CJ101: 0 | CK101: 0.5 | CL101: 0.5 | CM101: 0.5 | CN101: 0.5 | CO101: 0.5 | CP101: 0.5 | CQ101: 0.5 | CR101: 0.5 | CS101: 0.5 | CT101: 0.5 | CU101: 0.5 | CV101: 0.5 | CW101: 0.5 | CX101: 0.5 | CY101: 0.5 | CZ101: 0.5 | DA101: 0 | DB101: 0 | DC101: 0 | DD101: 0 | DE101: 0 | DF101: 0 | DG101: 0 | DH101: 0 | DI101: 0 | DJ101: 0 | DK101: 0 | DL101: 0 | DM101: 0 | DN101: 0 | DO101: 0 | DP101: 0 | DQ101: 0 | DR101: 0 | DS101: 0 | DT101: 0 | DV101: =IF(VLOOKUP($A101,'Schedule Setup'!$A$4:$E$39,5,FALSE)=0,"",VLOOKUP($A101,'Schedule Setup'!$A$4:$E$39,5,FALSE)) ->  | DW101: 5 | DY101: 3 | EA101: 0 | EC101: =SUM(DW101,DY101,EA101) -> 8 | EF101: 5 | EH101: 3 | EJ101: 0 | EL101: 8 | EO101: ='Schedule Setup'!J7 -> 06:00:00 | EP101: ='Schedule Setup'!K7 -> 21:30:00 | EQ101: 05:30:00 | ER101: 22:00:00
A102: 4 | B102: =IF(VLOOKUP($A102,'Schedule Setup'!$A$4:$E$39,2,FALSE)=0,"",VLOOKUP($A102,'Schedule Setup'!$A$4:$E$39,2,FALSE)) -> Christian Fink | C102: =IF(VLOOKUP($A102,'Schedule Setup'!$A$4:$E$39,4,FALSE)=0,"",VLOOKUP($A102,'Schedule Setup'!$A$4:$E$39,4,FALSE)) -> Team Lead | D102: TL | E102: 13:30:00 | F102: 21:30:00 | H102: x | I102: x | Y102: TL | Z102: TL | AA102: TL | AB102: TL | AC102: TL | AD102: TL | AE102: TL | AF102: TL | AG102: TL | AH102: TL | AI102: TL | AJ102: TL | AK102: TL | AL102: TL | AM102: TL | AN102: TL | AO102: x | AP102: x | AQ102: x | AR102: x | AS102: x | AT102: 8 | AV102: x | AW102: x | BM102: TL | BN102: TL | BO102: TL | BP102: TL | BQ102: TL | BR102: TL | BS102: TL | BT102: TL | BU102: TL | BV102: TL | BW102: TL | BX102: TL | BY102: TL | BZ102: TL | CA102: TL | CB102: TL | CC102: x | CD102: x | CE102: x | CF102: x | CG102: x | CI102: 0 | CJ102: 0 | CK102: 0 | CL102: 0 | CM102: 0 | CN102: 0 | CO102: 0 | CP102: 0 | CQ102: 0 | CR102: 0 | CS102: 0 | CT102: 0 | CU102: 0 | CV102: 0 | CW102: 0 | CX102: 0 | CY102: 0 | CZ102: 0.5 | DA102: 0.5 | DB102: 0.5 | DC102: 0.5 | DD102: 0.5 | DE102: 0.5 | DF102: 0.5 | DG102: 0.5 | DH102: 0.5 | DI102: 0.5 | DJ102: 0.5 | DK102: 0.5 | DL102: 0.5 | DM102: 0.5 | DN102: 0.5 | DO102: 0.5 | DP102: 0 | DQ102: 0 | DR102: 0 | DS102: 0 | DT102: 0 | DV102: =IF(VLOOKUP($A102,'Schedule Setup'!$A$4:$E$39,5,FALSE)=0,"",VLOOKUP($A102,'Schedule Setup'!$A$4:$E$39,5,FALSE)) ->  | DW102: 0 | DY102: 3.5 | EA102: 4.5 | EC102: 8 | EF102: 0 | EH102: 3.5 | EJ102: 4.5 | EL102: 8 | EO102: ='Schedule Setup'!J8 -> 06:00:00 | EP102: ='Schedule Setup'!K8 -> 21:30:00 | EQ102: 05:30:00 | ER102: 22:00:00
A103: 5 | B103: =IF(VLOOKUP($A103,'Schedule Setup'!$A$4:$E$39,2,FALSE)=0,"",VLOOKUP($A103,'Schedule Setup'!$A$4:$E$39,2,FALSE)) -> Brendan Frye | C103: =IF(VLOOKUP($A103,'Schedule Setup'!$A$4:$E$39,4,FALSE)=0,"",VLOOKUP($A103,'Schedule Setup'!$A$4:$E$39,4,FALSE)) -> Team Member | D103: TM | E103: 14:30:00 | F103: 21:30:00 | H103: x | I103: x | J103: x | K103: x | AA103: TM | AB103: TM | AC103: TM | AD103: TM | AE103: TM | AF103: TM | AG103: TM | AH103: TM | AI103: TM | AJ103: TM | AK103: TM | AL103: TM | AM103: TM | AN103: TM | AO103: x | AP103: x | AQ103: x | AR103: x | AS103: x | AT103: 7 | AV103: x | AW103: x | AX103: x | AY103: x | BO103: TM | BP103: TM | BQ103: TM | BR103: TM | BS103: TM | BT103: TM | BU103: TM | BV103: TM | BW103: TM | BX103: TM | BY103: TM | BZ103: TM | CA103: TM | CB103: TM | CC103: x | CD103: x | CE103: x | CF103: x | CG103: x | CI103: 0 | CJ103: 0 | CK103: 0 | CL103: 0 | CM103: 0 | CN103: 0 | CO103: 0 | CP103: 0 | CQ103: 0 | CR103: 0 | CS103: 0 | CT103: 0 | CU103: 0 | CV103: 0 | CW103: 0 | CX103: 0 | CY103: 0 | CZ103: 0 | DA103: 0 | DB103: 0.5 | DC103: 0.5 | DD103: 0.5 | DE103: 0.5 | DF103: 0.5 | DG103: 0.5 | DH103: 0.5 | DI103: 0.5 | DJ103: 0.5 | DK103: 0.5 | DL103: 0.5 | DM103: 0.5 | DN103: 0.5 | DO103: 0.5 | DP103: 0 | DQ103: 0 | DR103: 0 | DS103: 0 | DT103: 0 | DV103: =IF(VLOOKUP($A103,'Schedule Setup'!$A$4:$E$39,5,FALSE)=0,"",VLOOKUP($A103,'Schedule Setup'!$A$4:$E$39,5,FALSE)) ->  | DW103: 0 | DY103: 2.5 | EA103: 4.5 | EC103: 7 | EF103: 0 | EH103: 2.5 | EJ103: 4.5 | EL103: 7 | EO103: ='Schedule Setup'!J9 -> 07:00:00 | EP103: ='Schedule Setup'!K9 -> 21:30:00 | EQ103: 06:30:00 | ER103: 22:00:00
A104: 6 | B104: =IF(VLOOKUP($A104,'Schedule Setup'!$A$4:$E$39,2,FALSE)=0,"",VLOOKUP($A104,'Schedule Setup'!$A$4:$E$39,2,FALSE)) -> Jordan Galli | C104: =IF(VLOOKUP($A104,'Schedule Setup'!$A$4:$E$39,4,FALSE)=0,"",VLOOKUP($A104,'Schedule Setup'!$A$4:$E$39,4,FALSE)) -> Team Member | D104: TM | E104: 08:00:00 | F104: 16:00:00 | H104: x | I104: x | J104: x | K104: x | N104: TM | O104: TM | P104: TM | Q104: TM | R104: TM | S104: TM | T104: TM | U104: TM | V104: TM | W104: TM | X104: TM | Y104: TM | Z104: TM | AA104: TM | AB104: TM | AC104: TM | AO104: x | AP104: x | AQ104: x | AR104: x | AS104: x | AT104: 8 | AV104: x | AW104: x | AX104: x | AY104: x | BB104: TM | BC104: TM | BD104: TM | BE104: TM | BF104: TM | BG104: TM | BH104: TM | BI104: TM | BJ104: TM | BK104: TM | BL104: TM | BM104: TM | BN104: TM | BO104: TM | BP104: TM | BQ104: TM | CC104: x | CD104: x | CE104: x | CF104: x | CG104: x | CI104: 0 | CJ104: 0 | CK104: 0 | CL104: 0 | CM104: 0 | CN104: 0 | CO104: 0.5 | CP104: 0.5 | CQ104: 0.5 | CR104: 0.5 | CS104: 0.5 | CT104: 0.5 | CU104: 0.5 | CV104: 0.5 | CW104: 0.5 | CX104: 0.5 | CY104: 0.5 | CZ104: 0.5 | DA104: 0.5 | DB104: 0.5 | DC104: 0.5 | DD104: 0.5 | DE104: 0 | DF104: 0 | DG104: 0 | DH104: 0 | DI104: 0 | DJ104: 0 | DK104: 0 | DL104: 0 | DM104: 0 | DN104: 0 | DO104: 0 | DP104: 0 | DQ104: 0 | DR104: 0 | DS104: 0 | DT104: 0 | DV104: =IF(VLOOKUP($A104,'Schedule Setup'!$A$4:$E$39,5,FALSE)=0,"",VLOOKUP($A104,'Schedule Setup'!$A$4:$E$39,5,FALSE)) ->  | DW104: 3 | DY104: 5 | EA104: 0 | EC104: 8 | EF104: 3 | EH104: 5 | EJ104: 0 | EL104: 8 | EO104: ='Schedule Setup'!J10 -> 07:00:00 | EP104: ='Schedule Setup'!K10 -> 21:30:00 | EQ104: 06:30:00 | ER104: 22:00:00
A105: 7 | B105: =IF(VLOOKUP($A105,'Schedule Setup'!$A$4:$E$39,2,FALSE)=0,"",VLOOKUP($A105,'Schedule Setup'!$A$4:$E$39,2,FALSE)) -> Madelyn Hickey | C105: =IF(VLOOKUP($A105,'Schedule Setup'!$A$4:$E$39,4,FALSE)=0,"",VLOOKUP($A105,'Schedule Setup'!$A$4:$E$39,4,FALSE)) -> Team Member | D105: TM | H105: x | I105: x | J105: x | K105: x | L105: x | M105: x | N105: x | O105: x | P105: x | Q105: x | R105: x | S105: x | T105: x | U105: x | V105: x | W105: x | X105: x | Y105: x | Z105: x | AA105: x | AB105: x | AC105: x | AD105: x | AE105: x | AF105: x | AG105: x | AH105: x | AI105: =BW105 -> x | AJ105: x | AK105: x | AL105: x | AM105: x | AN105: x | AO105: x | AP105: x | AQ105: x | AR105: x | AS105: x | AT105: 0 | AV105: x | AW105: x | AX105: x | AY105: x | AZ105: x | BA105: x | BB105: x | BC105: x | BD105: x | BE105: x | BF105: x | BG105: x | BH105: x | BI105: x | BJ105: x | BK105: x | BL105: x | BM105: x | BN105: x | BO105: x | BP105: x | BQ105: x | BR105: x | BS105: x | BT105: x | BU105: x | BV105: x | BW105: x | BX105: x | BY105: x | BZ105: x | CA105: x | CB105: x | CC105: x | CD105: x | CE105: x | CF105: x | CG105: x | CI105: 0 | CJ105: 0 | CK105: 0 | CL105: 0 | CM105: 0 | CN105: 0 | CO105: 0 | CP105: 0 | CQ105: 0 | CR105: 0 | CS105: 0 | CT105: 0 | CU105: 0 | CV105: 0 | CW105: 0 | CX105: 0 | CY105: 0 | CZ105: 0 | DA105: 0 | DB105: 0 | DC105: 0 | DD105: 0 | DE105: 0 | DF105: 0 | DG105: 0 | DH105: 0 | DI105: 0 | DJ105: 0 | DK105: 0 | DL105: 0 | DM105: 0 | DN105: 0 | DO105: 0 | DP105: 0 | DQ105: 0 | DR105: 0 | DS105: 0 | DT105: 0 | DV105: =IF(VLOOKUP($A105,'Schedule Setup'!$A$4:$E$39,5,FALSE)=0,"",VLOOKUP($A105,'Schedule Setup'!$A$4:$E$39,5,FALSE)) ->  | DW105: 0 | DY105: 0 | EA105: 0 | EC105: 0 | EF105: 0 | EH105: 0 | EJ105: 0 | EL105: 0 | EO105: ='Schedule Setup'!J11 -> UnAvail | EP105: ='Schedule Setup'!K11 -> UnAvail
A106: 8 | B106: =IF(VLOOKUP($A106,'Schedule Setup'!$A$4:$E$39,2,FALSE)=0,"",VLOOKUP($A106,'Schedule Setup'!$A$4:$E$39,2,FALSE)) ->  | C106: =IF(VLOOKUP($A106,'Schedule Setup'!$A$4:$E$39,4,FALSE)=0,"",VLOOKUP($A106,'Schedule Setup'!$A$4:$E$39,4,FALSE)) ->  | H106: =AV106 -> x | I106: x | J106: x | K106: x | L106: x | M106: x | N106: x | O106: x | P106: x | Q106: x | R106: x | S106: x | T106: x | U106: x | V106: x | W106: x | X106: =BL106 -> x | Y106: x | Z106: x | AA106: x | AB106: x | AC106: x | AD106: x | AE106: x | AF106: x | AG106: x | AH106: x | AI106: x | AJ106: x | AK106: x | AL106: x | AM106: x | AN106: x | AO106: x | AP106: x | AQ106: x | AR106: x | AS106: x | AT106: 0 | AV106: x | AW106: x | AX106: x | AY106: x | AZ106: x | BA106: x | BB106: x | BC106: x | BD106: x | BE106: x | BF106: x | BG106: x | BH106: x | BI106: x | BJ106: x | BK106: x | BL106: x | BM106: x | BN106: x | BO106: x | BP106: x | BQ106: x | BR106: x | BS106: x | BT106: x | BU106: x | BV106: x | BW106: x | BX106: x | BY106: x | BZ106: x | CA106: x | CB106: x | CC106: =IF(AND($EO106<=AO$6+0.01,$EP106>AO$6+0.01),IF(AND(AO$6<$F106-0.01,AO$6>=$E106-0.01),$D106,""),"x") -> x | CD106: x | CE106: x | CF106: x | CG106: x | CI106: 0 | CJ106: 0 | CK106: 0 | CL106: 0 | CM106: 0 | CN106: 0 | CO106: 0 | CP106: 0 | CQ106: 0 | CR106: 0 | CS106: 0 | CT106: 0 | CU106: 0 | CV106: 0 | CW106: 0 | CX106: 0 | CY106: 0 | CZ106: 0 | DA106: 0 | DB106: 0 | DC106: 0 | DD106: 0 | DE106: 0 | DF106: 0 | DG106: 0 | DH106: 0 | DI106: 0 | DJ106: 0 | DK106: 0 | DL106: 0 | DM106: 0 | DN106: 0 | DO106: 0 | DP106: 0 | DQ106: 0 | DR106: 0 | DS106: 0 | DT106: 0 | DV106: =IF(VLOOKUP($A106,'Schedule Setup'!$A$4:$E$39,5,FALSE)=0,"",VLOOKUP($A106,'Schedule Setup'!$A$4:$E$39,5,FALSE)) ->  | DW106: 0 | DX106: =IFERROR(DW106*$DV106,"") ->  | DY106: 0 | EA106: 0 | EC106: 0 | EF106: 0 | EH106: 0 | EJ106: 0 | EL106: 0 | EO106: ='Schedule Setup'!J12 -> 00:00:00 | EP106: ='Schedule Setup'!K12 -> 00:00:00 | EQ106: -0.02083333333 | ER106: 00:30:00
A107: 9 | B107: =IF(VLOOKUP($A107,'Schedule Setup'!$A$4:$E$39,2,FALSE)=0,"",VLOOKUP($A107,'Schedule Setup'!$A$4:$E$39,2,FALSE)) ->  | C107: =IF(VLOOKUP($A107,'Schedule Setup'!$A$4:$E$39,4,FALSE)=0,"",VLOOKUP($A107,'Schedule Setup'!$A$4:$E$39,4,FALSE)) ->  | H107: x | I107: x | J107: x | K107: x | L107: x | M107: x | N107: x | O107: x | P107: x | Q107: x | R107: x | S107: x | T107: x | U107: x | V107: x | W107: x | X107: x | Y107: x | Z107: x | AA107: x | AB107: x | AC107: x | AD107: x | AE107: x | AF107: x | AG107: x | AH107: x | AI107: x | AJ107: x | AK107: x | AL107: x | AM107: x | AN107: x | AO107: x | AP107: x | AQ107: x | AR107: x | AS107: x | AT107: 0 | AV107: x | AW107: x | AX107: x | AY107: x | AZ107: x | BA107: x | BB107: x | BC107: x | BD107: x | BE107: x | BF107: x | BG107: x | BH107: x | BI107: x | BJ107: x | BK107: x | BL107: x | BM107: x | BN107: x | BO107: x | BP107: x | BQ107: x | BR107: x | BS107: x | BT107: x | BU107: x | BV107: x | BW107: x | BX107: x | BY107: x | BZ107: x | CA107: x | CB107: x | CC107: =IF(AND($EO107<=AO$6+0.01,$EP107>AO$6+0.01),IF(AND(AO$6<$F107-0.01,AO$6>=$E107-0.01),$D107,""),"x") -> x | CD107: x | CE107: x | CF107: x | CG107: x | CI107: 0 | CJ107: 0 | CK107: 0 | CL107: 0 | CM107: 0 | CN107: 0 | CO107: 0 | CP107: 0 | CQ107: 0 | CR107: 0 | CS107: 0 | CT107: 0 | CU107: 0 | CV107: 0 | CW107: 0 | CX107: 0 | CY107: 0 | CZ107: 0 | DA107: 0 | DB107: 0 | DC107: 0 | DD107: 0 | DE107: 0 | DF107: 0 | DG107: 0 | DH107: 0 | DI107: 0 | DJ107: 0 | DK107: 0 | DL107: 0 | DM107: 0 | DN107: 0 | DO107: 0 | DP107: 0 | DQ107: 0 | DR107: 0 | DS107: 0 | DT107: 0 | DV107: =IF(VLOOKUP($A107,'Schedule Setup'!$A$4:$E$39,5,FALSE)=0,"",VLOOKUP($A107,'Schedule Setup'!$A$4:$E$39,5,FALSE)) ->  | DW107: 0 | DX107: =IFERROR(DW107*$DV107,"") ->  | DY107: 0 | EA107: 0 | EC107: 0 | EF107: 0 | EH107: 0 | EJ107: 0 | EL107: 0 | EO107: ='Schedule Setup'!J13 -> 00:00:00 | EP107: ='Schedule Setup'!K13 -> 00:00:00 | EQ107: -0.02083333333 | ER107: 00:30:00
A108: 10 | B108: =IF(VLOOKUP($A108,'Schedule Setup'!$A$4:$E$39,2,FALSE)=0,"",VLOOKUP($A108,'Schedule Setup'!$A$4:$E$39,2,FALSE)) ->  | C108: =IF(VLOOKUP($A108,'Schedule Setup'!$A$4:$E$39,4,FALSE)=0,"",VLOOKUP($A108,'Schedule Setup'!$A$4:$E$39,4,FALSE)) ->  | H108: x | I108: x | J108: x | K108: x | L108: x | M108: x | N108: x | O108: x | P108: x | Q108: x | R108: x | S108: x | T108: x | U108: x | V108: x | W108: x | X108: x | Y108: x | Z108: x | AA108: x | AB108: x | AC108: x | AD108: x | AE108: x | AF108: x | AG108: x | AH108: x | AI108: x | AJ108: x | AK108: x | AL108: x | AM108: x | AN108: x | AO108: x | AP108: x | AQ108: x | AR108: x | AS108: x | AT108: 0 | AV108: x | AW108: x | AX108: x | AY108: x | AZ108: x | BA108: x | BB108: x | BC108: x | BD108: x | BE108: x | BF108: x | BG108: x | BH108: x | BI108: x | BJ108: x | BK108: x | BL108: x | BM108: x | BN108: x | BO108: x | BP108: x | BQ108: x | BR108: x | BS108: x | BT108: x | BU108: x | BV108: x | BW108: x | BX108: x | BY108: x | BZ108: x | CA108: x | CB108: x | CC108: x | CD108: x | CE108: x | CF108: x | CG108: x | CI108: 0 | CJ108: 0 | CK108: 0 | CL108: 0 | CM108: 0 | CN108: 0 | CO108: 0 | CP108: 0 | CQ108: 0 | CR108: 0 | CS108: 0 | CT108: 0 | CU108: 0 | CV108: 0 | CW108: 0 | CX108: 0 | CY108: 0 | CZ108: 0 | DA108: 0 | DB108: 0 | DC108: 0 | DD108: 0 | DE108: 0 | DF108: 0 | DG108: 0 | DH108: 0 | DI108: 0 | DJ108: 0 | DK108: 0 | DL108: 0 | DM108: 0 | DN108: 0 | DO108: 0 | DP108: 0 | DQ108: 0 | DR108: 0 | DS108: 0 | DT108: 0 | DV108: =IF(VLOOKUP($A108,'Schedule Setup'!$A$4:$E$39,5,FALSE)=0,"",VLOOKUP($A108,'Schedule Setup'!$A$4:$E$39,5,FALSE)) ->  | DW108: 0 | DY108: 0 | EA108: 0 | EC108: 0 | EF108: 0 | EH108: 0 | EJ108: 0 | EL108: 0 | EO108: ='Schedule Setup'!J14 -> 00:00:00 | EP108: ='Schedule Setup'!K14 -> 00:00:00 | EQ108: -0.02083333333 | ER108: 00:30:00
A109: 11 | B109: =IF(VLOOKUP($A109,'Schedule Setup'!$A$4:$E$39,2,FALSE)=0,"",VLOOKUP($A109,'Schedule Setup'!$A$4:$E$39,2,FALSE)) ->  | C109: =IF(VLOOKUP($A109,'Schedule Setup'!$A$4:$E$39,4,FALSE)=0,"",VLOOKUP($A109,'Schedule Setup'!$A$4:$E$39,4,FALSE)) ->  | H109: x | I109: x | J109: x | K109: x | L109: x | M109: x | N109: x | O109: x | P109: x | Q109: x | R109: x | S109: x | T109: x | U109: x | V109: x | W109: x | X109: x | Y109: x | Z109: x | AA109: x | AB109: x | AC109: x | AD109: x | AE109: x | AF109: x | AG109: x | AH109: x | AI109: x | AJ109: x | AK109: x | AL109: x | AM109: x | AN109: x | AO109: x | AP109: x | AQ109: x | AR109: x | AS109: x | AT109: 0 | AV109: x | AW109: x | AX109: x | AY109: x | AZ109: x | BA109: x | BB109: x | BC109: x | BD109: x | BE109: x | BF109: x | BG109: x | BH109: x | BI109: x | BJ109: x | BK109: x | BL109: x | BM109: x | BN109: x | BO109: x | BP109: x | BQ109: x | BR109: x | BS109: x | BT109: x | BU109: x | BV109: x | BW109: x | BX109: x | BY109: x | BZ109: x | CA109: x | CB109: x | CC109: x | CD109: x | CE109: x | CF109: x | CG109: x | CI109: 0 | CJ109: 0 | CK109: 0 | CL109: 0 | CM109: 0 | CN109: 0 | CO109: 0 | CP109: 0 | CQ109: 0 | CR109: 0 | CS109: 0 | CT109: 0 | CU109: 0 | CV109: 0 | CW109: 0 | CX109: 0 | CY109: 0 | CZ109: 0 | DA109: 0 | DB109: 0 | DC109: 0 | DD109: 0 | DE109: 0 | DF109: 0 | DG109: 0 | DH109: 0 | DI109: 0 | DJ109: 0 | DK109: 0 | DL109: 0 | DM109: 0 | DN109: 0 | DO109: 0 | DP109: 0 | DQ109: 0 | DR109: 0 | DS109: 0 | DT109: 0 | DV109: =IF(VLOOKUP($A109,'Schedule Setup'!$A$4:$E$39,5,FALSE)=0,"",VLOOKUP($A109,'Schedule Setup'!$A$4:$E$39,5,FALSE)) ->  | DW109: 0 | DY109: 0 | EA109: 0 | EC109: 0 | EF109: 0 | EH109: 0 | EJ109: 0 | EL109: 0 | EO109: ='Schedule Setup'!J15 -> 00:00:00 | EP109: ='Schedule Setup'!K15 -> 00:00:00 | EQ109: -0.02083333333 | ER109: 00:30:00
A110: 12 | B110: =IF(VLOOKUP($A110,'Schedule Setup'!$A$4:$E$39,2,FALSE)=0,"",VLOOKUP($A110,'Schedule Setup'!$A$4:$E$39,2,FALSE)) ->  | C110: =IF(VLOOKUP($A110,'Schedule Setup'!$A$4:$E$39,4,FALSE)=0,"",VLOOKUP($A110,'Schedule Setup'!$A$4:$E$39,4,FALSE)) ->  | H110: x | I110: x | J110: x | K110: x | L110: x | M110: x | N110: x | O110: x | P110: x | Q110: x | R110: x | S110: x | T110: x | U110: x | V110: x | W110: x | X110: x | Y110: x | Z110: x | AA110: x | AB110: x | AC110: x | AD110: x | AE110: x | AF110: x | AG110: x | AH110: x | AI110: x | AJ110: x | AK110: x | AL110: x | AM110: x | AN110: x | AO110: x | AP110: x | AQ110: x | AR110: x | AS110: x | AT110: 0 | AV110: x | AW110: x | AX110: x | AY110: x | AZ110: x | BA110: x | BB110: x | BC110: x | BD110: x | BE110: x | BF110: x | BG110: x | BH110: x | BI110: x | BJ110: x | BK110: x | BL110: x | BM110: x | BN110: x | BO110: x | BP110: x | BQ110: x | BR110: x | BS110: x | BT110: x | BU110: x | BV110: x | BW110: x | BX110: x | BY110: x | BZ110: x | CA110: x | CB110: x | CC110: x | CD110: x | CE110: x | CF110: x | CG110: x | CI110: 0 | CJ110: 0 | CK110: 0 | CL110: 0 | CM110: 0 | CN110: 0 | CO110: 0 | CP110: 0 | CQ110: 0 | CR110: 0 | CS110: 0 | CT110: 0 | CU110: 0 | CV110: 0 | CW110: 0 | CX110: 0 | CY110: 0 | CZ110: 0 | DA110: 0 | DB110: 0 | DC110: 0 | DD110: 0 | DE110: 0 | DF110: 0 | DG110: 0 | DH110: 0 | DI110: 0 | DJ110: 0 | DK110: 0 | DL110: 0 | DM110: 0 | DN110: 0 | DO110: 0 | DP110: 0 | DQ110: 0 | DR110: 0 | DS110: 0 | DT110: 0 | DV110: =IF(VLOOKUP($A110,'Schedule Setup'!$A$4:$E$39,5,FALSE)=0,"",VLOOKUP($A110,'Schedule Setup'!$A$4:$E$39,5,FALSE)) ->  | DW110: 0 | DY110: 0 | EA110: 0 | EC110: 0 | EF110: 0 | EH110: 0 | EJ110: 0 | EL110: 0 | EO110: ='Schedule Setup'!J16 -> 00:00:00 | EP110: ='Schedule Setup'!K16 -> 00:00:00 | EQ110: -0.02083333333 | ER110: 00:30:00
A111: 13 | B111: =IF(VLOOKUP($A111,'Schedule Setup'!$A$4:$E$39,2,FALSE)=0,"",VLOOKUP($A111,'Schedule Setup'!$A$4:$E$39,2,FALSE)) ->  | C111: =IF(VLOOKUP($A111,'Schedule Setup'!$A$4:$E$39,4,FALSE)=0,"",VLOOKUP($A111,'Schedule Setup'!$A$4:$E$39,4,FALSE)) ->  | H111: x | I111: x | J111: x | K111: x | L111: x | M111: x | N111: x | O111: x | P111: x | Q111: x | R111: x | S111: x | T111: x | U111: x | V111: x | W111: x | X111: x | Y111: x | Z111: x | AA111: x | AB111: x | AC111: x | AD111: x | AE111: x | AF111: x | AG111: x | AH111: x | AI111: x | AJ111: x | AK111: x | AL111: x | AM111: x | AN111: x | AO111: x | AP111: x | AQ111: x | AR111: x | AS111: x | AT111: 0 | AV111: x | AW111: x | AX111: x | AY111: x | AZ111: x | BA111: x | BB111: x | BC111: x | BD111: x | BE111: x | BF111: x | BG111: x | BH111: x | BI111: x | BJ111: x | BK111: x | BL111: x | BM111: x | BN111: x | BO111: x | BP111: x | BQ111: x | BR111: x | BS111: x | BT111: x | BU111: x | BV111: x | BW111: x | BX111: x | BY111: x | BZ111: x | CA111: x | CB111: x | CC111: x | CD111: x | CE111: x | CF111: x | CG111: x | CI111: 0 | CJ111: 0 | CK111: 0 | CL111: 0 | CM111: 0 | CN111: 0 | CO111: 0 | CP111: 0 | CQ111: 0 | CR111: 0 | CS111: 0 | CT111: 0 | CU111: 0 | CV111: 0 | CW111: 0 | CX111: 0 | CY111: 0 | CZ111: 0 | DA111: 0 | DB111: 0 | DC111: 0 | DD111: 0 | DE111: 0 | DF111: 0 | DG111: 0 | DH111: 0 | DI111: 0 | DJ111: 0 | DK111: 0 | DL111: 0 | DM111: 0 | DN111: 0 | DO111: 0 | DP111: 0 | DQ111: 0 | DR111: 0 | DS111: 0 | DT111: 0 | DV111: =IF(VLOOKUP($A111,'Schedule Setup'!$A$4:$E$39,5,FALSE)=0,"",VLOOKUP($A111,'Schedule Setup'!$A$4:$E$39,5,FALSE)) ->  | DW111: 0 | DY111: 0 | EA111: 0 | EC111: 0 | EF111: 0 | EH111: 0 | EJ111: 0 | EL111: 0 | EO111: ='Schedule Setup'!J17 -> 00:00:00 | EP111: ='Schedule Setup'!K17 -> 00:00:00 | EQ111: -0.02083333333 | ER111: 00:30:00
A112: 14 | B112: =IF(VLOOKUP($A112,'Schedule Setup'!$A$4:$E$39,2,FALSE)=0,"",VLOOKUP($A112,'Schedule Setup'!$A$4:$E$39,2,FALSE)) -> Matt Louden | C112: =IF(VLOOKUP($A112,'Schedule Setup'!$A$4:$E$39,4,FALSE)=0,"",VLOOKUP($A112,'Schedule Setup'!$A$4:$E$39,4,FALSE)) -> Team Member | D112: TM | E112: 11:30:00 | F112: 16:30:00 | H112: x | I112: x | J112: x | K112: x | U112: TM | V112: TM | W112: TM | X112: TM | Y112: TM | Z112: TM | AA112: TM | AB112: TM | AC112: TM | AD112: TM | AO112: x | AP112: x | AQ112: x | AR112: x | AS112: x | AT112: 5 | AV112: x | AW112: x | AX112: x | AY112: x | BI112: TM | BJ112: TM | BK112: TM | BL112: TM | BM112: TM | BN112: TM | BO112: TM | BP112: TM | BQ112: TM | BR112: TM | CC112: x | CD112: x | CE112: x | CF112: x | CG112: x | CI112: 0 | CJ112: 0 | CK112: 0 | CL112: 0 | CM112: 0 | CN112: 0 | CO112: 0 | CP112: 0 | CQ112: 0 | CR112: 0 | CS112: 0 | CT112: 0 | CU112: 0 | CV112: 0.5 | CW112: 0.5 | CX112: 0.5 | CY112: 0.5 | CZ112: 0.5 | DA112: 0.5 | DB112: 0.5 | DC112: 0.5 | DD112: 0.5 | DE112: 0.5 | DF112: 0 | DG112: 0 | DH112: 0 | DI112: 0 | DJ112: 0 | DK112: 0 | DL112: 0 | DM112: 0 | DN112: 0 | DO112: 0 | DP112: 0 | DQ112: 0 | DR112: 0 | DS112: 0 | DT112: 0 | DV112: =IF(VLOOKUP($A112,'Schedule Setup'!$A$4:$E$39,5,FALSE)=0,"",VLOOKUP($A112,'Schedule Setup'!$A$4:$E$39,5,FALSE)) ->  | DW112: 0 | DY112: 5 | EA112: 0 | EC112: 5 | EF112: 0 | EH112: 5 | EJ112: 0 | EL112: 5 | EO112: ='Schedule Setup'!J18 -> 07:00:00 | EP112: ='Schedule Setup'!K18 -> 21:30:00 | EQ112: 06:30:00 | ER112: 22:00:00
A113: 15 | B113: =IF(VLOOKUP($A113,'Schedule Setup'!$A$4:$E$39,2,FALSE)=0,"",VLOOKUP($A113,'Schedule Setup'!$A$4:$E$39,2,FALSE)) -> Ani Reyes | C113: =IF(VLOOKUP($A113,'Schedule Setup'!$A$4:$E$39,4,FALSE)=0,"",VLOOKUP($A113,'Schedule Setup'!$A$4:$E$39,4,FALSE)) -> Team Member | D113: TM | E113: 15:30:00 | F113: 19:30:00 | H113: x | I113: x | J113: x | K113: x | L113: x | M113: x | N113: x | O113: x | P113: x | Q113: x | R113: x | S113: x | T113: x | U113: x | V113: x | W113: x | X113: x | Y113: x | Z113: x | AA113: x | AB113: x | AC113: TM | AD113: TM | AE113: TM | AF113: TM | AG113: TM | AH113: TM | AI113: TM | AJ113: TM | AO113: x | AP113: x | AQ113: x | AR113: x | AS113: x | AT113: 4 | AV113: x | AW113: x | AX113: x | AY113: x | AZ113: x | BA113: x | BB113: x | BC113: x | BD113: x | BE113: x | BF113: x | BG113: x | BH113: x | BI113: x | BJ113: x | BK113: x | BL113: x | BM113: x | BN113: x | BO113: x | BP113: x | BQ113: TM | BR113: TM | BS113: TM | BT113: TM | BU113: TM | BV113: TM | BW113: TM | BX113: TM | CC113: x | CD113: x | CE113: x | CF113: x | CG113: x | CI113: 0 | CJ113: 0 | CK113: 0 | CL113: 0 | CM113: 0 | CN113: 0 | CO113: 0 | CP113: 0 | CQ113: 0 | CR113: 0 | CS113: 0 | CT113: 0 | CU113: 0 | CV113: 0 | CW113: 0 | CX113: 0 | CY113: 0 | CZ113: 0 | DA113: 0 | DB113: 0 | DC113: 0 | DD113: 0.5 | DE113: 0.5 | DF113: 0.5 | DG113: 0.5 | DH113: 0.5 | DI113: 0.5 | DJ113: 0.5 | DK113: 0.5 | DL113: 0 | DM113: 0 | DN113: 0 | DO113: 0 | DP113: 0 | DQ113: 0 | DR113: 0 | DS113: 0 | DT113: 0 | DV113: =IF(VLOOKUP($A113,'Schedule Setup'!$A$4:$E$39,5,FALSE)=0,"",VLOOKUP($A113,'Schedule Setup'!$A$4:$E$39,5,FALSE)) ->  | DW113: 0 | DY113: 1.5 | EA113: 2.5 | EC113: 4 | EF113: 0 | EH113: 1.5 | EJ113: 2.5 | EL113: 4 | EO113: ='Schedule Setup'!J19 -> 15:30:00 | EP113: ='Schedule Setup'!K19 -> 21:30:00 | EQ113: 15:00:00 | ER113: 22:00:00
A114: 16 | B114: =IF(VLOOKUP($A114,'Schedule Setup'!$A$4:$E$39,2,FALSE)=0,"",VLOOKUP($A114,'Schedule Setup'!$A$4:$E$39,2,FALSE)) -> Andrew Philips | C114: =IF(VLOOKUP($A114,'Schedule Setup'!$A$4:$E$39,4,FALSE)=0,"",VLOOKUP($A114,'Schedule Setup'!$A$4:$E$39,4,FALSE)) -> Team Member | D114: TM | H114: x | I114: x | J114: x | K114: x | L114: x | M114: x | N114: x | O114: x | P114: x | Q114: x | R114: x | S114: x | T114: x | U114: x | V114: x | W114: x | X114: x | Y114: x | Z114: x | AA114: x | AB114: x | AC114: x | AO114: x | AP114: x | AQ114: x | AR114: x | AS114: x | AT114: 0 | AV114: x | AW114: x | AX114: x | AY114: x | AZ114: x | BA114: x | BB114: x | BC114: x | BD114: x | BE114: x | BF114: x | BG114: x | BH114: x | BI114: x | BJ114: x | BK114: x | BL114: =IF(AND($EO114<=X$6+0.01,$EP114>X$6+0.01),IF(AND(X$6<$F114-0.01,X$6>=$E114-0.01),$D114,""),"x") -> x | BM114: =IF(AND($EO114<=Y$6+0.01,$EP114>Y$6+0.01),IF(AND(Y$6<$F114-0.01,Y$6>=$E114-0.01),$D114,""),"x") -> x | BN114: =IF(AND($EO114<=Z$6+0.01,$EP114>Z$6+0.01),IF(AND(Z$6<$F114-0.01,Z$6>=$E114-0.01),$D114,""),"x") -> x | BO114: =IF(AND($EO114<=AA$6+0.01,$EP114>AA$6+0.01),IF(AND(AA$6<$F114-0.01,AA$6>=$E114-0.01),$D114,""),"x") -> x | BP114: =IF(AND($EO114<=AB$6+0.01,$EP114>AB$6+0.01),IF(AND(AB$6<$F114-0.01,AB$6>=$E114-0.01),$D114,""),"x") -> x | BQ114: =IF(AND($EO114<=AC$6+0.01,$EP114>AC$6+0.01),IF(AND(AC$6<$F114-0.01,AC$6>=$E114-0.01),$D114,""),"x") -> x | BR114: =IF(AND($EO114<=AD$6+0.01,$EP114>AD$6+0.01),IF(AND(AD$6<$F114-0.01,AD$6>=$E114-0.01),$D114,""),"x") ->  | BS114: =IF(AND($EO114<=AE$6+0.01,$EP114>AE$6+0.01),IF(AND(AE$6<$F114-0.01,AE$6>=$E114-0.01),$D114,""),"x") ->  | BT114: =IF(AND($EO114<=AF$6+0.01,$EP114>AF$6+0.01),IF(AND(AF$6<$F114-0.01,AF$6>=$E114-0.01),$D114,""),"x") ->  | BU114: =IF(AND($EO114<=AG$6+0.01,$EP114>AG$6+0.01),IF(AND(AG$6<$F114-0.01,AG$6>=$E114-0.01),$D114,""),"x") ->  | BV114: =IF(AND($EO114<=AH$6+0.01,$EP114>AH$6+0.01),IF(AND(AH$6<$F114-0.01,AH$6>=$E114-0.01),$D114,""),"x") ->  | BW114: =IF(AND($EO114<=AI$6+0.01,$EP114>AI$6+0.01),IF(AND(AI$6<$F114-0.01,AI$6>=$E114-0.01),$D114,""),"x") ->  | BX114: =IF(AND($EO114<=AJ$6+0.01,$EP114>AJ$6+0.01),IF(AND(AJ$6<$F114-0.01,AJ$6>=$E114-0.01),$D114,""),"x") ->  | BY114: =IF(AND($EO114<=AK$6+0.01,$EP114>AK$6+0.01),IF(AND(AK$6<$F114-0.01,AK$6>=$E114-0.01),$D114,""),"x") ->  | BZ114: =IF(AND($EO114<=AL$6+0.01,$EP114>AL$6+0.01),IF(AND(AL$6<$F114-0.01,AL$6>=$E114-0.01),$D114,""),"x") ->  | CA114: =IF(AND($EO114<=AM$6+0.01,$EP114>AM$6+0.01),IF(AND(AM$6<$F114-0.01,AM$6>=$E114-0.01),$D114,""),"x") ->  | CB114: =IF(AND($EO114<=AN$6+0.01,$EP114>AN$6+0.01),IF(AND(AN$6<$F114-0.01,AN$6>=$E114-0.01),$D114,""),"x") ->  | CC114: x | CD114: x | CE114: x | CF114: x | CG114: x | CI114: 0 | CJ114: 0 | CK114: 0 | CL114: 0 | CM114: 0 | CN114: 0 | CO114: 0 | CP114: 0 | CQ114: 0 | CR114: 0 | CS114: 0 | CT114: 0 | CU114: 0 | CV114: 0 | CW114: 0 | CX114: 0 | CY114: 0 | CZ114: 0 | DA114: 0 | DB114: 0 | DC114: 0 | DD114: 0 | DE114: 0 | DF114: 0 | DG114: 0 | DH114: 0 | DI114: 0 | DJ114: 0 | DK114: 0 | DL114: 0 | DM114: 0 | DN114: 0 | DO114: 0 | DP114: 0 | DQ114: 0 | DR114: 0 | DS114: 0 | DT114: 0 | DV114: =IF(VLOOKUP($A114,'Schedule Setup'!$A$4:$E$39,5,FALSE)=0,"",VLOOKUP($A114,'Schedule Setup'!$A$4:$E$39,5,FALSE)) ->  | DW114: 0 | DY114: 0 | EA114: 0 | EC114: 0 | EF114: 0 | EH114: 0 | EJ114: 0 | EL114: 0 | EO114: ='Schedule Setup'!J20 -> 16:00:00 | EP114: ='Schedule Setup'!K20 -> 21:30:00 | EQ114: 15:30:00 | ER114: 22:00:00
A115: 17 | B115: =IF(VLOOKUP($A115,'Schedule Setup'!$A$4:$E$39,2,FALSE)=0,"",VLOOKUP($A115,'Schedule Setup'!$A$4:$E$39,2,FALSE)) ->  | C115: =IF(VLOOKUP($A115,'Schedule Setup'!$A$4:$E$39,4,FALSE)=0,"",VLOOKUP($A115,'Schedule Setup'!$A$4:$E$39,4,FALSE)) ->  | H115: x | I115: x | J115: x | K115: x | L115: x | M115: x | N115: x | O115: x | P115: x | Q115: x | R115: x | S115: x | T115: x | U115: x | V115: x | W115: x | X115: x | Y115: x | Z115: x | AA115: x | AB115: x | AC115: x | AD115: x | AE115: x | AF115: x | AG115: x | AH115: x | AI115: x | AJ115: x | AK115: x | AL115: x | AM115: x | AN115: x | AO115: x | AP115: x | AQ115: x | AR115: x | AS115: x | AT115: 0 | AV115: =IF(AND($EO115<=H$6+0.01,$EP115>H$6+0.01),IF(AND(H$6<$F115-0.01,H$6>=$E115-0.01),$D115,""),"x") -> x | AW115: =IF(AND($EO115<=I$6+0.01,$EP115>I$6+0.01),IF(AND(I$6<$F115-0.01,I$6>=$E115-0.01),$D115,""),"x") -> x | AX115: =IF(AND($EO115<=J$6+0.01,$EP115>J$6+0.01),IF(AND(J$6<$F115-0.01,J$6>=$E115-0.01),$D115,""),"x") -> x | AY115: =IF(AND($EO115<=K$6+0.01,$EP115>K$6+0.01),IF(AND(K$6<$F115-0.01,K$6>=$E115-0.01),$D115,""),"x") -> x | AZ115: =IF(AND($EO115<=L$6+0.01,$EP115>L$6+0.01),IF(AND(L$6<$F115-0.01,L$6>=$E115-0.01),$D115,""),"x") -> x | BA115: =IF(AND($EO115<=M$6+0.01,$EP115>M$6+0.01),IF(AND(M$6<$F115-0.01,M$6>=$E115-0.01),$D115,""),"x") -> x | BB115: =IF(AND($EO115<=N$6+0.01,$EP115>N$6+0.01),IF(AND(N$6<$F115-0.01,N$6>=$E115-0.01),$D115,""),"x") -> x | BC115: =IF(AND($EO115<=O$6+0.01,$EP115>O$6+0.01),IF(AND(O$6<$F115-0.01,O$6>=$E115-0.01),$D115,""),"x") -> x | BD115: =IF(AND($EO115<=P$6+0.01,$EP115>P$6+0.01),IF(AND(P$6<$F115-0.01,P$6>=$E115-0.01),$D115,""),"x") -> x | BE115: =IF(AND($EO115<=Q$6+0.01,$EP115>Q$6+0.01),IF(AND(Q$6<$F115-0.01,Q$6>=$E115-0.01),$D115,""),"x") -> x | BF115: =IF(AND($EO115<=R$6+0.01,$EP115>R$6+0.01),IF(AND(R$6<$F115-0.01,R$6>=$E115-0.01),$D115,""),"x") -> x | BG115: =IF(AND($EO115<=S$6+0.01,$EP115>S$6+0.01),IF(AND(S$6<$F115-0.01,S$6>=$E115-0.01),$D115,""),"x") -> x | BH115: =IF(AND($EO115<=T$6+0.01,$EP115>T$6+0.01),IF(AND(T$6<$F115-0.01,T$6>=$E115-0.01),$D115,""),"x") -> x | BI115: =IF(AND($EO115<=U$6+0.01,$EP115>U$6+0.01),IF(AND(U$6<$F115-0.01,U$6>=$E115-0.01),$D115,""),"x") -> x | BJ115: =IF(AND($EO115<=V$6+0.01,$EP115>V$6+0.01),IF(AND(V$6<$F115-0.01,V$6>=$E115-0.01),$D115,""),"x") -> x | BK115: =IF(AND($EO115<=W$6+0.01,$EP115>W$6+0.01),IF(AND(W$6<$F115-0.01,W$6>=$E115-0.01),$D115,""),"x") -> x | BL115: x | BM115: x | BN115: x | BO115: x | BP115: x | BQ115: x | BR115: x | BS115: x | BT115: x | BU115: x | BV115: x | BW115: x | BX115: x | BY115: x | BZ115: x | CA115: x | CB115: x | CC115: x | CD115: x | CE115: x | CF115: x | CG115: x | CI115: 0 | CJ115: 0 | CK115: 0 | CL115: 0 | CM115: 0 | CN115: 0 | CO115: 0 | CP115: 0 | CQ115: 0 | CR115: 0 | CS115: 0 | CT115: 0 | CU115: 0 | CV115: 0 | CW115: 0 | CX115: 0 | CY115: 0 | CZ115: 0 | DA115: 0 | DB115: 0 | DC115: 0 | DD115: 0 | DE115: 0 | DF115: 0 | DG115: 0 | DH115: 0 | DI115: 0 | DJ115: 0 | DK115: 0 | DL115: 0 | DM115: 0 | DN115: 0 | DO115: 0 | DP115: 0 | DQ115: 0 | DR115: 0 | DS115: 0 | DT115: 0 | DV115: =IF(VLOOKUP($A115,'Schedule Setup'!$A$4:$E$39,5,FALSE)=0,"",VLOOKUP($A115,'Schedule Setup'!$A$4:$E$39,5,FALSE)) ->  | DW115: 0 | DY115: 0 | EA115: 0 | EC115: 0 | EF115: 0 | EH115: 0 | EJ115: 0 | EL115: 0 | EO115: ='Schedule Setup'!J21 -> 00:00:00 | EP115: ='Schedule Setup'!K21 -> 00:00:00 | EQ115: -0.02083333333 | ER115: 00:30:00
A116: 18 | B116: =IF(VLOOKUP($A116,'Schedule Setup'!$A$4:$E$39,2,FALSE)=0,"",VLOOKUP($A116,'Schedule Setup'!$A$4:$E$39,2,FALSE)) ->  | C116: =IF(VLOOKUP($A116,'Schedule Setup'!$A$4:$E$39,4,FALSE)=0,"",VLOOKUP($A116,'Schedule Setup'!$A$4:$E$39,4,FALSE)) ->  | H116: x | I116: x | J116: x | K116: x | L116: x | M116: x | N116: x | O116: x | P116: x | Q116: x | R116: x | S116: x | T116: x | U116: x | V116: x | W116: x | X116: x | Y116: x | Z116: x | AA116: x | AB116: x | AC116: x | AD116: x | AE116: x | AF116: x | AG116: x | AH116: x | AI116: x | AJ116: x | AK116: x | AL116: x | AM116: x | AN116: x | AO116: x | AP116: x | AQ116: x | AR116: x | AS116: x | AT116: 0 | AV116: x | AW116: x | AX116: x | AY116: x | AZ116: x | BA116: x | BB116: x | BC116: x | BD116: x | BE116: x | BF116: x | BG116: x | BH116: x | BI116: x | BJ116: x | BK116: x | BL116: x | BM116: x | BN116: x | BO116: x | BP116: x | BQ116: x | BR116: x | BS116: x | BT116: x | BU116: x | BV116: x | BW116: x | BX116: x | BY116: x | BZ116: x | CA116: x | CB116: x | CC116: x | CD116: x | CE116: x | CF116: x | CG116: x | CI116: 0 | CJ116: 0 | CK116: 0 | CL116: 0 | CM116: 0 | CN116: 0 | CO116: 0 | CP116: 0 | CQ116: 0 | CR116: 0 | CS116: 0 | CT116: 0 | CU116: 0 | CV116: 0 | CW116: 0 | CX116: 0 | CY116: 0 | CZ116: 0 | DA116: 0 | DB116: 0 | DC116: 0 | DD116: 0 | DE116: 0 | DF116: 0 | DG116: 0 | DH116: 0 | DI116: 0 | DJ116: 0 | DK116: 0 | DL116: 0 | DM116: 0 | DN116: 0 | DO116: 0 | DP116: 0 | DQ116: 0 | DR116: 0 | DS116: 0 | DT116: 0 | DV116: =IF(VLOOKUP($A116,'Schedule Setup'!$A$4:$E$39,5,FALSE)=0,"",VLOOKUP($A116,'Schedule Setup'!$A$4:$E$39,5,FALSE)) ->  | DW116: 0 | DY116: 0 | EA116: 0 | EC116: 0 | EF116: 0 | EH116: 0 | EJ116: 0 | EL116: 0 | EO116: ='Schedule Setup'!J22 -> 00:00:00 | EP116: ='Schedule Setup'!K22 -> 00:00:00 | EQ116: -0.02083333333 | ER116: 00:30:00
A117: 19 | B117: =IF(VLOOKUP($A117,'Schedule Setup'!$A$4:$E$39,2,FALSE)=0,"",VLOOKUP($A117,'Schedule Setup'!$A$4:$E$39,2,FALSE)) -> . | C117: =IF(VLOOKUP($A117,'Schedule Setup'!$A$4:$E$39,4,FALSE)=0,"",VLOOKUP($A117,'Schedule Setup'!$A$4:$E$39,4,FALSE)) ->  | D117: TM | H117: x | I117: x | J117: x | K117: x | L117: x | M117: x | N117: x | O117: x | P117: x | Q117: x | R117: x | S117: x | T117: x | U117: x | V117: x | W117: x | X117: x | Y117: x | Z117: x | AA117: x | AB117: x | AC117: x | AD117: x | AE117: x | AF117: x | AG117: x | AH117: x | AI117: x | AJ117: x | AK117: x | AL117: x | AM117: x | AN117: x | AO117: x | AP117: x | AQ117: x | AR117: x | AS117: x | AT117: 0 | AV117: x | AW117: x | AX117: x | AY117: x | AZ117: x | BA117: x | BB117: x | BC117: x | BD117: x | BE117: x | BF117: x | BG117: x | BH117: x | BI117: x | BJ117: x | BK117: x | BL117: x | BM117: x | BN117: x | BO117: x | BP117: x | BQ117: x | BR117: x | BS117: x | BT117: x | BU117: x | BV117: x | BW117: x | BX117: x | BY117: x | BZ117: x | CA117: x | CB117: x | CC117: x | CD117: x | CE117: x | CF117: x | CG117: x | CI117: 0 | CJ117: 0 | CK117: 0 | CL117: 0 | CM117: 0 | CN117: 0 | CO117: 0 | CP117: 0 | CQ117: 0 | CR117: 0 | CS117: 0 | CT117: 0 | CU117: 0 | CV117: 0 | CW117: 0 | CX117: 0 | CY117: 0 | CZ117: 0 | DA117: 0 | DB117: 0 | DC117: 0 | DD117: 0 | DE117: 0 | DF117: 0 | DG117: 0 | DH117: 0 | DI117: 0 | DJ117: 0 | DK117: 0 | DL117: 0 | DM117: 0 | DN117: 0 | DO117: 0 | DP117: 0 | DQ117: 0 | DR117: 0 | DS117: 0 | DT117: 0 | DV117: =IF(VLOOKUP($A117,'Schedule Setup'!$A$4:$E$39,5,FALSE)=0,"",VLOOKUP($A117,'Schedule Setup'!$A$4:$E$39,5,FALSE)) ->  | DW117: 0 | DY117: 0 | EA117: 0 | EC117: 0 | EF117: 0 | EH117: 0 | EJ117: 0 | EL117: 0 | EO117: ='Schedule Setup'!J23 -> 00:00:00 | EP117: ='Schedule Setup'!K23 -> 00:00:00 | EQ117: -0.02083333333 | ER117: 00:30:00
A118: 20 | B118: =IF(VLOOKUP($A118,'Schedule Setup'!$A$4:$E$39,2,FALSE)=0,"",VLOOKUP($A118,'Schedule Setup'!$A$4:$E$39,2,FALSE)) -> Sean Duncan | C118: =IF(VLOOKUP($A118,'Schedule Setup'!$A$4:$E$39,4,FALSE)=0,"",VLOOKUP($A118,'Schedule Setup'!$A$4:$E$39,4,FALSE)) -> Team Lead | D118: TL | H118: x | I118: x | J118: x | K118: x | L118: x | M118: x | N118: x | O118: x | P118: x | Q118: x | R118: x | S118: x | T118: x | U118: x | V118: x | W118: x | X118: x | Y118: x | Z118: x | AA118: x | AB118: x | AC118: x | AD118: x | AE118: x | AF118: x | AG118: x | AH118: x | AI118: x | AJ118: x | AK118: x | AL118: x | AM118: x | AN118: x | AO118: x | AP118: x | AQ118: x | AR118: x | AS118: x | AT118: 0 | AV118: x | AW118: x | AX118: x | AY118: x | AZ118: x | BA118: x | BB118: x | BC118: x | BD118: x | BE118: x | BF118: x | BG118: x | BH118: x | BI118: x | BJ118: x | BK118: x | BL118: x | BM118: x | BN118: x | BO118: x | BP118: x | BQ118: x | BR118: x | BS118: x | BT118: x | BU118: x | BV118: x | BW118: x | BX118: x | BY118: x | BZ118: x | CA118: x | CB118: x | CC118: x | CD118: x | CE118: x | CF118: x | CG118: x | CI118: 0 | CJ118: 0 | CK118: 0 | CL118: 0 | CM118: 0 | CN118: 0 | CO118: 0 | CP118: 0 | CQ118: 0 | CR118: 0 | CS118: 0 | CT118: 0 | CU118: 0 | CV118: 0 | CW118: 0 | CX118: 0 | CY118: 0 | CZ118: 0 | DA118: 0 | DB118: 0 | DC118: 0 | DD118: 0 | DE118: 0 | DF118: 0 | DG118: 0 | DH118: 0 | DI118: 0 | DJ118: 0 | DK118: 0 | DL118: 0 | DM118: 0 | DN118: 0 | DO118: 0 | DP118: 0 | DQ118: 0 | DR118: 0 | DS118: 0 | DT118: 0 | DV118: =IF(VLOOKUP($A118,'Schedule Setup'!$A$4:$E$39,5,FALSE)=0,"",VLOOKUP($A118,'Schedule Setup'!$A$4:$E$39,5,FALSE)) ->  | DW118: 0 | DY118: 0 | EA118: 0 | EC118: 0 | EF118: 0 | EH118: 0 | EJ118: 0 | EL118: 0 | EO118: ='Schedule Setup'!J24 -> 00:00:00 | EP118: ='Schedule Setup'!K24 -> 00:00:00 | EQ118: -0.02083333333 | ER118: 00:30:00
A119: 21 | B119: =IF(VLOOKUP($A119,'Schedule Setup'!$A$4:$E$39,2,FALSE)=0,"",VLOOKUP($A119,'Schedule Setup'!$A$4:$E$39,2,FALSE)) ->  | C119: =IF(VLOOKUP($A119,'Schedule Setup'!$A$4:$E$39,4,FALSE)=0,"",VLOOKUP($A119,'Schedule Setup'!$A$4:$E$39,4,FALSE)) ->  | H119: x | I119: x | J119: x | K119: x | L119: x | M119: x | N119: x | O119: x | P119: x | Q119: x | R119: x | S119: x | T119: x | U119: x | V119: x | W119: x | X119: x | Y119: x | Z119: x | AA119: x | AB119: x | AC119: x | AD119: x | AE119: x | AF119: x | AG119: x | AH119: x | AI119: x | AJ119: x | AK119: x | AL119: x | AM119: x | AN119: x | AO119: x | AP119: x | AQ119: x | AR119: x | AS119: x | AT119: 0 | AV119: x | AW119: x | AX119: x | AY119: x | AZ119: x | BA119: x | BB119: x | BC119: x | BD119: x | BE119: x | BF119: x | BG119: x | BH119: x | BI119: x | BJ119: x | BK119: x | BL119: x | BM119: x | BN119: x | BO119: x | BP119: x | BQ119: x | BR119: x | BS119: x | BT119: x | BU119: x | BV119: x | BW119: x | BX119: x | BY119: x | BZ119: x | CA119: x | CB119: x | CC119: x | CD119: x | CE119: x | CF119: x | CG119: x | CI119: 0 | CJ119: 0 | CK119: 0 | CL119: 0 | CM119: 0 | CN119: 0 | CO119: 0 | CP119: 0 | CQ119: 0 | CR119: 0 | CS119: 0 | CT119: 0 | CU119: 0 | CV119: 0 | CW119: 0 | CX119: 0 | CY119: 0 | CZ119: 0 | DA119: 0 | DB119: 0 | DC119: 0 | DD119: 0 | DE119: 0 | DF119: 0 | DG119: 0 | DH119: 0 | DI119: 0 | DJ119: 0 | DK119: 0 | DL119: 0 | DM119: 0 | DN119: 0 | DO119: 0 | DP119: 0 | DQ119: 0 | DR119: 0 | DS119: 0 | DT119: 0 | DV119: =IF(VLOOKUP($A119,'Schedule Setup'!$A$4:$E$39,5,FALSE)=0,"",VLOOKUP($A119,'Schedule Setup'!$A$4:$E$39,5,FALSE)) ->  | DW119: 0 | DY119: 0 | EA119: 0 | EC119: 0 | EF119: 0 | EH119: 0 | EJ119: 0 | EL119: 0 | EO119: ='Schedule Setup'!J25 -> 00:00:00 | EP119: ='Schedule Setup'!K25 -> 00:00:00 | EQ119: -0.02083333333 | ER119: 00:30:00
A120: 22 | B120: =IF(VLOOKUP($A120,'Schedule Setup'!$A$4:$E$39,2,FALSE)=0,"",VLOOKUP($A120,'Schedule Setup'!$A$4:$E$39,2,FALSE)) ->  | C120: =IF(VLOOKUP($A120,'Schedule Setup'!$A$4:$E$39,4,FALSE)=0,"",VLOOKUP($A120,'Schedule Setup'!$A$4:$E$39,4,FALSE)) ->  | H120: x | I120: x | J120: x | K120: x | L120: x | M120: x | N120: x | O120: x | P120: x | Q120: x | R120: x | S120: x | T120: x | U120: x | V120: x | W120: x | X120: x | Y120: x | Z120: x | AA120: x | AB120: x | AC120: x | AD120: x | AE120: x | AF120: x | AG120: x | AH120: x | AI120: x | AJ120: x | AK120: x | AL120: x | AM120: x | AN120: x | AO120: x | AP120: x | AQ120: x | AR120: x | AS120: x | AT120: 0 | AV120: x | AW120: x | AX120: x | AY120: x | AZ120: x | BA120: x | BB120: x | BC120: x | BD120: x | BE120: x | BF120: x | BG120: x | BH120: x | BI120: x | BJ120: x | BK120: x | BL120: x | BM120: x | BN120: x | BO120: x | BP120: x | BQ120: x | BR120: x | BS120: x | BT120: x | BU120: x | BV120: x | BW120: x | BX120: x | BY120: x | BZ120: x | CA120: x | CB120: x | CC120: x | CD120: x | CE120: x | CF120: x | CG120: x | CI120: 0 | CJ120: 0 | CK120: 0 | CL120: 0 | CM120: 0 | CN120: 0 | CO120: 0 | CP120: 0 | CQ120: 0 | CR120: 0 | CS120: 0 | CT120: 0 | CU120: 0 | CV120: 0 | CW120: 0 | CX120: 0 | CY120: 0 | CZ120: 0 | DA120: 0 | DB120: 0 | DC120: 0 | DD120: 0 | DE120: 0 | DF120: 0 | DG120: 0 | DH120: 0 | DI120: 0 | DJ120: 0 | DK120: 0 | DL120: 0 | DM120: 0 | DN120: 0 | DO120: 0 | DP120: 0 | DQ120: 0 | DR120: 0 | DS120: 0 | DT120: 0 | DV120: =IF(VLOOKUP($A120,'Schedule Setup'!$A$4:$E$39,5,FALSE)=0,"",VLOOKUP($A120,'Schedule Setup'!$A$4:$E$39,5,FALSE)) ->  | DW120: 0 | DY120: 0 | EA120: 0 | EC120: 0 | EF120: 0 | EH120: 0 | EJ120: 0 | EL120: 0 | EO120: ='Schedule Setup'!J26 -> 00:00:00 | EP120: ='Schedule Setup'!K26 -> 00:00:00 | EQ120: =EO120-(0.5/24) -> -0.02083333333 | ER120: =EP120+(0.5/24) -> 00:30:00
A121: 23 | B121: =IF(VLOOKUP($A121,'Schedule Setup'!$A$4:$E$39,2,FALSE)=0,"",VLOOKUP($A121,'Schedule Setup'!$A$4:$E$39,2,FALSE)) ->  | C121: =IF(VLOOKUP($A121,'Schedule Setup'!$A$4:$E$39,4,FALSE)=0,"",VLOOKUP($A121,'Schedule Setup'!$A$4:$E$39,4,FALSE)) ->  | H121: x | I121: x | J121: x | K121: x | L121: x | M121: x | N121: x | O121: x | P121: x | Q121: x | R121: x | S121: x | T121: x | U121: x | V121: x | W121: x | X121: x | Y121: x | Z121: x | AA121: x | AB121: x | AC121: x | AD121: x | AE121: x | AF121: x | AG121: x | AH121: x | AI121: x | AJ121: x | AK121: x | AL121: x | AM121: x | AN121: x | AO121: x | AP121: x | AQ121: x | AR121: x | AS121: x | AT121: 0 | AV121: x | AW121: x | AX121: x | AY121: x | AZ121: x | BA121: x | BB121: x | BC121: x | BD121: x | BE121: x | BF121: x | BG121: x | BH121: x | BI121: x | BJ121: x | BK121: x | BL121: x | BM121: x | BN121: x | BO121: x | BP121: x | BQ121: x | BR121: x | BS121: x | BT121: x | BU121: x | BV121: x | BW121: x | BX121: x | BY121: x | BZ121: x | CA121: x | CB121: x | CC121: x | CD121: x | CE121: x | CF121: x | CG121: x | CI121: 0 | CJ121: 0 | CK121: 0 | CL121: 0 | CM121: 0 | CN121: 0 | CO121: 0 | CP121: 0 | CQ121: 0 | CR121: 0 | CS121: 0 | CT121: 0 | CU121: 0 | CV121: 0 | CW121: 0 | CX121: 0 | CY121: 0 | CZ121: 0 | DA121: 0 | DB121: 0 | DC121: 0 | DD121: 0 | DE121: 0 | DF121: 0 | DG121: 0 | DH121: 0 | DI121: 0 | DJ121: 0 | DK121: 0 | DL121: 0 | DM121: 0 | DN121: 0 | DO121: 0 | DP121: 0 | DQ121: 0 | DR121: 0 | DS121: 0 | DT121: 0 | DV121: =IF(VLOOKUP($A121,'Schedule Setup'!$A$4:$E$39,5,FALSE)=0,"",VLOOKUP($A121,'Schedule Setup'!$A$4:$E$39,5,FALSE)) ->  | DW121: 0 | DY121: 0 | EA121: 0 | EC121: 0 | EF121: 0 | EH121: 0 | EJ121: 0 | EL121: 0 | EO121: ='Schedule Setup'!J27 -> 00:00:00 | EP121: ='Schedule Setup'!K27 -> 00:00:00 | EQ121: -0.02083333333 | ER121: 00:30:00
A122: 24 | B122: =IF(VLOOKUP($A122,'Schedule Setup'!$A$4:$E$39,2,FALSE)=0,"",VLOOKUP($A122,'Schedule Setup'!$A$4:$E$39,2,FALSE)) ->  | C122: =IF(VLOOKUP($A122,'Schedule Setup'!$A$4:$E$39,4,FALSE)=0,"",VLOOKUP($A122,'Schedule Setup'!$A$4:$E$39,4,FALSE)) ->  | H122: x | I122: x | J122: x | K122: x | L122: x | M122: x | N122: x | O122: x | P122: x | Q122: x | R122: x | S122: x | T122: x | U122: x | V122: x | W122: =BK122 -> x | X122: x | Y122: x | Z122: x | AA122: x | AB122: x | AC122: x | AD122: x | AE122: x | AF122: x | AG122: x | AH122: x | AI122: x | AJ122: x | AK122: x | AL122: x | AM122: x | AN122: x | AO122: x | AP122: x | AQ122: x | AR122: x | AS122: x | AT122: 0 | AV122: x | AW122: x | AX122: x | AY122: x | AZ122: x | BA122: x | BB122: x | BC122: x | BD122: x | BE122: x | BF122: x | BG122: x | BH122: x | BI122: x | BJ122: x | BK122: x | BL122: x | BM122: x | BN122: x | BO122: x | BP122: x | BQ122: x | BR122: x | BS122: x | BT122: x | BU122: x | BV122: x | BW122: x | BX122: x | BY122: x | BZ122: x | CA122: x | CB122: x | CC122: x | CD122: x | CE122: x | CF122: x | CG122: x | CI122: 0 | CJ122: 0 | CK122: 0 | CL122: 0 | CM122: 0 | CN122: 0 | CO122: 0 | CP122: 0 | CQ122: 0 | CR122: 0 | CS122: 0 | CT122: 0 | CU122: 0 | CV122: 0 | CW122: 0 | CX122: 0 | CY122: 0 | CZ122: 0 | DA122: 0 | DB122: 0 | DC122: 0 | DD122: 0 | DE122: 0 | DF122: 0 | DG122: 0 | DH122: 0 | DI122: 0 | DJ122: 0 | DK122: 0 | DL122: 0 | DM122: 0 | DN122: 0 | DO122: 0 | DP122: 0 | DQ122: 0 | DR122: 0 | DS122: 0 | DT122: 0 | DV122: =IF(VLOOKUP($A122,'Schedule Setup'!$A$4:$E$39,5,FALSE)=0,"",VLOOKUP($A122,'Schedule Setup'!$A$4:$E$39,5,FALSE)) ->  | DW122: 0 | DY122: 0 | EA122: 0 | EC122: 0 | EF122: 0 | EH122: 0 | EJ122: 0 | EL122: 0 | EO122: ='Schedule Setup'!J28 -> 00:00:00 | EP122: ='Schedule Setup'!K28 -> 00:00:00 | EQ122: -0.02083333333 | ER122: 00:30:00
A123: 25 | B123: =IF(VLOOKUP($A123,'Schedule Setup'!$A$4:$E$39,2,FALSE)=0,"",VLOOKUP($A123,'Schedule Setup'!$A$4:$E$39,2,FALSE)) ->  | C123: =IF(VLOOKUP($A123,'Schedule Setup'!$A$4:$E$39,4,FALSE)=0,"",VLOOKUP($A123,'Schedule Setup'!$A$4:$E$39,4,FALSE)) ->  | D123: =IF(B123<>"",IF(OR(C123="General Manager (S)", C123="General Manager (H)"), "GM",IF(C123="Acting Manager","AM",IF(C123="Shift Manager","SM",IF(C123="Team Lead","TL","TM")))),"") ->  | H123: =AV123 -> x | I123: =AW123 -> x | J123: =AX123 -> x | K123: =AY123 -> x | L123: =AZ123 -> x | M123: =BA123 -> x | N123: =BB123 -> x | O123: =BC123 -> x | P123: =BD123 -> x | Q123: =BE123 -> x | R123: =BF123 -> x | S123: =BG123 -> x | T123: =BH123 -> x | U123: =BI123 -> x | V123: x | W123: =BK123 -> x | X123: =BL123 -> x | Y123: =BM123 -> x | Z123: =BN123 -> x | AA123: =BO123 -> x | AB123: =BP123 -> x | AC123: =BQ123 -> x | AD123: =BR123 -> x | AE123: =BS123 -> x | AF123: =BT123 -> x | AG123: =BU123 -> x | AH123: =BV123 -> x | AI123: =BW123 -> x | AJ123: =BX123 -> x | AK123: =BY123 -> x | AL123: =BZ123 -> x | AM123: =CA123 -> x | AN123: =CB123 -> x | AO123: =CC123 -> x | AP123: =CD123 -> x | AQ123: =CE123 -> x | AR123: =CF123 -> x | AS123: =CG123 -> x | AT123: =EC123 -> 0 | AV123: =IF(AND($EO123<=H$6+0.01,$EP123>H$6+0.01),IF(AND(H$6<$F123-0.01,H$6>=$E123-0.01),$D123,""),"x") -> x | AW123: =IF(AND($EO123<=I$6+0.01,$EP123>I$6+0.01),IF(AND(I$6<$F123-0.01,I$6>=$E123-0.01),$D123,""),"x") -> x | AX123: =IF(AND($EO123<=J$6+0.01,$EP123>J$6+0.01),IF(AND(J$6<$F123-0.01,J$6>=$E123-0.01),$D123,""),"x") -> x | AY123: =IF(AND($EO123<=K$6+0.01,$EP123>K$6+0.01),IF(AND(K$6<$F123-0.01,K$6>=$E123-0.01),$D123,""),"x") -> x | AZ123: =IF(AND($EO123<=L$6+0.01,$EP123>L$6+0.01),IF(AND(L$6<$F123-0.01,L$6>=$E123-0.01),$D123,""),"x") -> x | BA123: =IF(AND($EO123<=M$6+0.01,$EP123>M$6+0.01),IF(AND(M$6<$F123-0.01,M$6>=$E123-0.01),$D123,""),"x") -> x | BB123: =IF(AND($EO123<=N$6+0.01,$EP123>N$6+0.01),IF(AND(N$6<$F123-0.01,N$6>=$E123-0.01),$D123,""),"x") -> x | BC123: =IF(AND($EO123<=O$6+0.01,$EP123>O$6+0.01),IF(AND(O$6<$F123-0.01,O$6>=$E123-0.01),$D123,""),"x") -> x | BD123: =IF(AND($EO123<=P$6+0.01,$EP123>P$6+0.01),IF(AND(P$6<$F123-0.01,P$6>=$E123-0.01),$D123,""),"x") -> x | BE123: =IF(AND($EO123<=Q$6+0.01,$EP123>Q$6+0.01),IF(AND(Q$6<$F123-0.01,Q$6>=$E123-0.01),$D123,""),"x") -> x | BF123: =IF(AND($EO123<=R$6+0.01,$EP123>R$6+0.01),IF(AND(R$6<$F123-0.01,R$6>=$E123-0.01),$D123,""),"x") -> x | BG123: =IF(AND($EO123<=S$6+0.01,$EP123>S$6+0.01),IF(AND(S$6<$F123-0.01,S$6>=$E123-0.01),$D123,""),"x") -> x | BH123: =IF(AND($EO123<=T$6+0.01,$EP123>T$6+0.01),IF(AND(T$6<$F123-0.01,T$6>=$E123-0.01),$D123,""),"x") -> x | BI123: =IF(AND($EO123<=U$6+0.01,$EP123>U$6+0.01),IF(AND(U$6<$F123-0.01,U$6>=$E123-0.01),$D123,""),"x") -> x | BJ123: =IF(AND($EO123<=V$6+0.01,$EP123>V$6+0.01),IF(AND(V$6<$F123-0.01,V$6>=$E123-0.01),$D123,""),"x") -> x | BK123: =IF(AND($EO123<=W$6+0.01,$EP123>W$6+0.01),IF(AND(W$6<$F123-0.01,W$6>=$E123-0.01),$D123,""),"x") -> x | BL123: =IF(AND($EO123<=X$6+0.01,$EP123>X$6+0.01),IF(AND(X$6<$F123-0.01,X$6>=$E123-0.01),$D123,""),"x") -> x | BM123: =IF(AND($EO123<=Y$6+0.01,$EP123>Y$6+0.01),IF(AND(Y$6<$F123-0.01,Y$6>=$E123-0.01),$D123,""),"x") -> x | BN123: =IF(AND($EO123<=Z$6+0.01,$EP123>Z$6+0.01),IF(AND(Z$6<$F123-0.01,Z$6>=$E123-0.01),$D123,""),"x") -> x | BO123: =IF(AND($EO123<=AA$6+0.01,$EP123>AA$6+0.01),IF(AND(AA$6<$F123-0.01,AA$6>=$E123-0.01),$D123,""),"x") -> x | BP123: =IF(AND($EO123<=AB$6+0.01,$EP123>AB$6+0.01),IF(AND(AB$6<$F123-0.01,AB$6>=$E123-0.01),$D123,""),"x") -> x | BQ123: =IF(AND($EO123<=AC$6+0.01,$EP123>AC$6+0.01),IF(AND(AC$6<$F123-0.01,AC$6>=$E123-0.01),$D123,""),"x") -> x | BR123: =IF(AND($EO123<=AD$6+0.01,$EP123>AD$6+0.01),IF(AND(AD$6<$F123-0.01,AD$6>=$E123-0.01),$D123,""),"x") -> x | BS123: =IF(AND($EO123<=AE$6+0.01,$EP123>AE$6+0.01),IF(AND(AE$6<$F123-0.01,AE$6>=$E123-0.01),$D123,""),"x") -> x | BT123: =IF(AND($EO123<=AF$6+0.01,$EP123>AF$6+0.01),IF(AND(AF$6<$F123-0.01,AF$6>=$E123-0.01),$D123,""),"x") -> x | BU123: =IF(AND($EO123<=AG$6+0.01,$EP123>AG$6+0.01),IF(AND(AG$6<$F123-0.01,AG$6>=$E123-0.01),$D123,""),"x") -> x | BV123: =IF(AND($EO123<=AH$6+0.01,$EP123>AH$6+0.01),IF(AND(AH$6<$F123-0.01,AH$6>=$E123-0.01),$D123,""),"x") -> x | BW123: =IF(AND($EO123<=AI$6+0.01,$EP123>AI$6+0.01),IF(AND(AI$6<$F123-0.01,AI$6>=$E123-0.01),$D123,""),"x") -> x | BX123: =IF(AND($EO123<=AJ$6+0.01,$EP123>AJ$6+0.01),IF(AND(AJ$6<$F123-0.01,AJ$6>=$E123-0.01),$D123,""),"x") -> x | BY123: =IF(AND($EO123<=AK$6+0.01,$EP123>AK$6+0.01),IF(AND(AK$6<$F123-0.01,AK$6>=$E123-0.01),$D123,""),"x") -> x | BZ123: =IF(AND($EO123<=AL$6+0.01,$EP123>AL$6+0.01),IF(AND(AL$6<$F123-0.01,AL$6>=$E123-0.01),$D123,""),"x") -> x | CA123: =IF(AND($EO123<=AM$6+0.01,$EP123>AM$6+0.01),IF(AND(AM$6<$F123-0.01,AM$6>=$E123-0.01),$D123,""),"x") -> x | CB123: =IF(AND($EO123<=AN$6+0.01,$EP123>AN$6+0.01),IF(AND(AN$6<$F123-0.01,AN$6>=$E123-0.01),$D123,""),"x") -> x | CC123: =IF(AND($EO123<=AO$6+0.01,$EP123>AO$6+0.01),IF(AND(AO$6<$F123-0.01,AO$6>=$E123-0.01),$D123,""),"x") -> x | CD123: =IF(AND($EO123<=AP$6+0.01,$EP123>AP$6+0.01),IF(AND(AP$6<$F123-0.01,AP$6>=$E123-0.01),$D123,""),"x") -> x | CE123: =IF(AND($EO123<=AQ$6+0.01,$EP123>AQ$6+0.01),IF(AND(AQ$6<$F123-0.01,AQ$6>=$E123-0.01),$D123,""),"x") -> x | CF123: =IF(AND($EO123<=AR$6+0.01,$EP123>AR$6+0.01),IF(AND(AR$6<$F123-0.01,AR$6>=$E123-0.01),$D123,""),"x") -> x | CG123: =IF(AND($EO123<=AS$6+0.01,$EP123>AS$6+0.01),IF(AND(AS$6<$F123-0.01,AS$6>=$E123-0.01),$D123,""),"x") -> x | CI123: =IF(AND(AV123<>"",AV123<>"x"),0.5,) -> 0 | CJ123: =IF(AND(AW123<>"",AW123<>"x"),0.5,) -> 0 | CK123: =IF(AND(AX123<>"",AX123<>"x"),0.5,) -> 0 | CL123: =IF(AND(AY123<>"",AY123<>"x"),0.5,) -> 0 | CM123: =IF(AND(AZ123<>"",AZ123<>"x"),0.5,) -> 0 | CN123: =IF(AND(BA123<>"",BA123<>"x"),0.5,) -> 0 | CO123: =IF(AND(BB123<>"",BB123<>"x"),0.5,) -> 0 | CP123: =IF(AND(BC123<>"",BC123<>"x"),0.5,) -> 0 | CQ123: =IF(AND(BD123<>"",BD123<>"x"),0.5,) -> 0 | CR123: =IF(AND(BE123<>"",BE123<>"x"),0.5,) -> 0 | CS123: =IF(AND(BF123<>"",BF123<>"x"),0.5,) -> 0 | CT123: =IF(AND(BG123<>"",BG123<>"x"),0.5,) -> 0 | CU123: =IF(AND(BH123<>"",BH123<>"x"),0.5,) -> 0 | CV123: =IF(AND(BI123<>"",BI123<>"x"),0.5,) -> 0 | CW123: =IF(AND(BJ123<>"",BJ123<>"x"),0.5,) -> 0 | CX123: =IF(AND(BK123<>"",BK123<>"x"),0.5,) -> 0 | CY123: =IF(AND(BL123<>"",BL123<>"x"),0.5,) -> 0 | CZ123: =IF(AND(BM123<>"",BM123<>"x"),0.5,) -> 0 | DA123: =IF(AND(BN123<>"",BN123<>"x"),0.5,) -> 0 | DB123: =IF(AND(BO123<>"",BO123<>"x"),0.5,) -> 0 | DC123: =IF(AND(BP123<>"",BP123<>"x"),0.5,) -> 0 | DD123: =IF(AND(BQ123<>"",BQ123<>"x"),0.5,) -> 0 | DE123: =IF(AND(BR123<>"",BR123<>"x"),0.5,) -> 0 | DF123: =IF(AND(BS123<>"",BS123<>"x"),0.5,) -> 0 | DG123: =IF(AND(BT123<>"",BT123<>"x"),0.5,) -> 0 | DH123: =IF(AND(BU123<>"",BU123<>"x"),0.5,) -> 0 | DI123: =IF(AND(BV123<>"",BV123<>"x"),0.5,) -> 0 | DJ123: =IF(AND(BW123<>"",BW123<>"x"),0.5,) -> 0 | DK123: =IF(AND(BX123<>"",BX123<>"x"),0.5,) -> 0 | DL123: =IF(AND(BY123<>"",BY123<>"x"),0.5,) -> 0 | DM123: =IF(AND(BZ123<>"",BZ123<>"x"),0.5,) -> 0 | DN123: =IF(AND(CA123<>"",CA123<>"x"),0.5,) -> 0 | DO123: =IF(AND(CB123<>"",CB123<>"x"),0.5,) -> 0 | DP123: =IF(AND(CC123<>"",CC123<>"x"),0.5,) -> 0 | DQ123: =IF(AND(CD123<>"",CD123<>"x"),0.5,) -> 0 | DR123: =IF(AND(CE123<>"",CE123<>"x"),0.5,) -> 0 | DS123: =IF(AND(CF123<>"",CF123<>"x"),0.5,) -> 0 | DT123: =IF(AND(CG123<>"",CG123<>"x"),0.5,) -> 0 | DV123: =IF(VLOOKUP($A123,'Schedule Setup'!$A$4:$E$39,5,FALSE)=0,"",VLOOKUP($A123,'Schedule Setup'!$A$4:$E$39,5,FALSE)) ->  | DW123: =SUM(CI123:CT123) -> 0 | DX123: =IFERROR(DW123*$DV123,"") ->  | DY123: =SUM(CU123:DF123) -> 0 | DZ123: =IFERROR(DY123*$DV123,"") ->  | EA123: =SUM(DG123:DT123) -> 0 | EB123: =IFERROR(EA123*$DV123,"") ->  | EC123: =SUM(DW123,DY123,EA123) -> 0 | ED123: =IFERROR(EC123*$DV123,"") ->  | EF123: =IF(DW123>5,(DW123-0.5),DW123) -> 0 | EG123: =IFERROR(EF123*$DV123,"") ->  | EH123: =IF(DY123>5,(DY123-0.5),DY123) -> 0 | EI123: =IFERROR(EH123*$DV123,"") ->  | EJ123: =IF(EA123>5,(EA123-0.5),EA123) -> 0 | EK123: =IFERROR(EJ123*$DV123,"") ->  | EL123: =SUM(EF123,EH123,EJ123) -> 0 | EM123: =IFERROR(EL123*$DV123,"") ->  | EO123: ='Schedule Setup'!J29 -> 00:00:00 | EP123: ='Schedule Setup'!K29 -> 00:00:00 | EQ123: -0.02083333333 | ER123: 00:30:00
A124: 26 | B124: =IF(VLOOKUP($A124,'Schedule Setup'!$A$4:$E$39,2,FALSE)=0,"",VLOOKUP($A124,'Schedule Setup'!$A$4:$E$39,2,FALSE)) ->  | C124: =IF(VLOOKUP($A124,'Schedule Setup'!$A$4:$E$39,4,FALSE)=0,"",VLOOKUP($A124,'Schedule Setup'!$A$4:$E$39,4,FALSE)) ->  | H124: x | I124: x | J124: x | K124: x | L124: x | M124: x | N124: x | O124: x | P124: x | Q124: x | R124: x | S124: x | T124: x | U124: x | V124: x | W124: x | X124: x | Y124: x | Z124: x | AA124: x | AB124: x | AC124: x | AD124: x | AE124: x | AF124: x | AG124: x | AH124: x | AI124: x | AJ124: x | AK124: x | AL124: x | AM124: x | AN124: x | AO124: x | AP124: x | AQ124: x | AR124: x | AS124: x | AT124: 0 | AV124: x | AW124: x | AX124: x | AY124: x | AZ124: x | BA124: x | BB124: x | BC124: x | BD124: x | BE124: x | BF124: x | BG124: x | BH124: x | BI124: x | BJ124: x | BK124: x | BL124: x | BM124: x | BN124: x | BO124: x | BP124: x | BQ124: x | BR124: x | BS124: x | BT124: x | BU124: x | BV124: x | BW124: x | BX124: x | BY124: x | BZ124: x | CA124: x | CB124: x | CC124: x | CD124: x | CE124: x | CF124: x | CG124: x | CI124: 0 | CJ124: 0 | CK124: 0 | CL124: 0 | CM124: 0 | CN124: 0 | CO124: 0 | CP124: 0 | CQ124: 0 | CR124: 0 | CS124: 0 | CT124: 0 | CU124: 0 | CV124: 0 | CW124: 0 | CX124: 0 | CY124: 0 | CZ124: 0 | DA124: 0 | DB124: 0 | DC124: 0 | DD124: 0 | DE124: 0 | DF124: 0 | DG124: 0 | DH124: 0 | DI124: 0 | DJ124: 0 | DK124: 0 | DL124: 0 | DM124: 0 | DN124: 0 | DO124: 0 | DP124: 0 | DQ124: 0 | DR124: 0 | DS124: 0 | DT124: 0 | DV124: =IF(VLOOKUP($A124,'Schedule Setup'!$A$4:$E$39,5,FALSE)=0,"",VLOOKUP($A124,'Schedule Setup'!$A$4:$E$39,5,FALSE)) ->  | DW124: 0 | DY124: 0 | EA124: 0 | EC124: 0 | EF124: 0 | EH124: 0 | EJ124: 0 | EL124: 0 | EO124: ='Schedule Setup'!J30 -> 00:00:00 | EP124: ='Schedule Setup'!K30 -> 00:00:00 | EQ124: -0.02083333333 | ER124: 00:30:00
A125: 27 | B125: =IF(VLOOKUP($A125,'Schedule Setup'!$A$4:$E$39,2,FALSE)=0,"",VLOOKUP($A125,'Schedule Setup'!$A$4:$E$39,2,FALSE)) ->  | C125: =IF(VLOOKUP($A125,'Schedule Setup'!$A$4:$E$39,4,FALSE)=0,"",VLOOKUP($A125,'Schedule Setup'!$A$4:$E$39,4,FALSE)) ->  | H125: x | I125: x | J125: x | K125: x | L125: x | M125: x | N125: x | O125: x | P125: x | Q125: x | R125: x | S125: x | T125: x | U125: x | V125: x | W125: x | X125: x | Y125: x | Z125: x | AA125: x | AB125: x | AC125: x | AD125: x | AE125: x | AF125: x | AG125: x | AH125: x | AI125: x | AJ125: x | AK125: x | AL125: x | AM125: x | AN125: x | AO125: x | AP125: x | AQ125: x | AR125: x | AS125: x | AT125: 0 | AV125: x | AW125: x | AX125: x | AY125: x | AZ125: x | BA125: x | BB125: x | BC125: x | BD125: x | BE125: x | BF125: x | BG125: x | BH125: x | BI125: x | BJ125: x | BK125: x | BL125: x | BM125: x | BN125: x | BO125: x | BP125: x | BQ125: x | BR125: x | BS125: x | BT125: x | BU125: x | BV125: x | BW125: x | BX125: x | BY125: x | BZ125: x | CA125: x | CB125: x | CC125: x | CD125: x | CE125: x | CF125: x | CG125: x | CI125: 0 | CJ125: 0 | CK125: 0 | CL125: 0 | CM125: 0 | CN125: 0 | CO125: 0 | CP125: 0 | CQ125: 0 | CR125: 0 | CS125: 0 | CT125: 0 | CU125: 0 | CV125: 0 | CW125: 0 | CX125: 0 | CY125: 0 | CZ125: 0 | DA125: 0 | DB125: 0 | DC125: 0 | DD125: 0 | DE125: 0 | DF125: 0 | DG125: 0 | DH125: 0 | DI125: 0 | DJ125: 0 | DK125: 0 | DL125: 0 | DM125: 0 | DN125: 0 | DO125: 0 | DP125: 0 | DQ125: 0 | DR125: 0 | DS125: 0 | DT125: 0 | DV125: =IF(VLOOKUP($A125,'Schedule Setup'!$A$4:$E$39,5,FALSE)=0,"",VLOOKUP($A125,'Schedule Setup'!$A$4:$E$39,5,FALSE)) ->  | DW125: 0 | DY125: 0 | EA125: 0 | EC125: 0 | EF125: 0 | EH125: 0 | EJ125: 0 | EL125: 0 | EO125: ='Schedule Setup'!J31 -> 00:00:00 | EP125: ='Schedule Setup'!K31 -> 00:00:00 | EQ125: -0.02083333333 | ER125: 00:30:00
A126: 28 | B126: =IF(VLOOKUP($A126,'Schedule Setup'!$A$4:$E$39,2,FALSE)=0,"",VLOOKUP($A126,'Schedule Setup'!$A$4:$E$39,2,FALSE)) ->  | C126: =IF(VLOOKUP($A126,'Schedule Setup'!$A$4:$E$39,4,FALSE)=0,"",VLOOKUP($A126,'Schedule Setup'!$A$4:$E$39,4,FALSE)) ->  | H126: x | I126: x | J126: x | K126: x | L126: x | M126: x | N126: x | O126: x | P126: x | Q126: x | R126: x | S126: x | T126: x | U126: x | V126: x | W126: x | X126: x | Y126: x | Z126: x | AA126: x | AB126: x | AC126: x | AD126: x | AE126: x | AF126: x | AG126: x | AH126: x | AI126: x | AJ126: x | AK126: x | AL126: x | AM126: x | AN126: x | AO126: x | AP126: x | AQ126: x | AR126: x | AS126: x | AT126: 0 | AV126: x | AW126: x | AX126: x | AY126: x | AZ126: x | BA126: x | BB126: x | BC126: x | BD126: x | BE126: x | BF126: x | BG126: x | BH126: x | BI126: x | BJ126: x | BK126: x | BL126: x | BM126: x | BN126: x | BO126: x | BP126: x | BQ126: x | BR126: x | BS126: x | BT126: x | BU126: x | BV126: x | BW126: x | BX126: x | BY126: x | BZ126: x | CA126: x | CB126: x | CC126: x | CD126: x | CE126: x | CF126: x | CG126: x | CI126: 0 | CJ126: 0 | CK126: 0 | CL126: 0 | CM126: 0 | CN126: 0 | CO126: 0 | CP126: 0 | CQ126: 0 | CR126: 0 | CS126: 0 | CT126: 0 | CU126: 0 | CV126: 0 | CW126: 0 | CX126: 0 | CY126: 0 | CZ126: 0 | DA126: 0 | DB126: 0 | DC126: 0 | DD126: 0 | DE126: 0 | DF126: 0 | DG126: 0 | DH126: 0 | DI126: 0 | DJ126: 0 | DK126: 0 | DL126: 0 | DM126: 0 | DN126: 0 | DO126: 0 | DP126: 0 | DQ126: 0 | DR126: 0 | DS126: 0 | DT126: 0 | DV126: =IF(VLOOKUP($A126,'Schedule Setup'!$A$4:$E$39,5,FALSE)=0,"",VLOOKUP($A126,'Schedule Setup'!$A$4:$E$39,5,FALSE)) ->  | DW126: 0 | DY126: 0 | EA126: 0 | EC126: 0 | EF126: 0 | EH126: 0 | EJ126: 0 | EL126: 0 | EO126: ='Schedule Setup'!J32 -> 00:00:00 | EP126: ='Schedule Setup'!K32 -> 00:00:00 | EQ126: -0.02083333333 | ER126: 00:30:00
A127: 29 | B127: =IF(VLOOKUP($A127,'Schedule Setup'!$A$4:$E$39,2,FALSE)=0,"",VLOOKUP($A127,'Schedule Setup'!$A$4:$E$39,2,FALSE)) ->  | C127: =IF(VLOOKUP($A127,'Schedule Setup'!$A$4:$E$39,4,FALSE)=0,"",VLOOKUP($A127,'Schedule Setup'!$A$4:$E$39,4,FALSE)) ->  | H127: x | I127: x | J127: x | K127: x | L127: x | M127: x | N127: x | O127: x | P127: x | Q127: x | R127: x | S127: x | T127: x | U127: x | V127: x | W127: x | X127: x | Y127: x | Z127: x | AA127: x | AB127: x | AC127: x | AD127: x | AE127: x | AF127: x | AG127: x | AH127: x | AI127: x | AJ127: x | AK127: x | AL127: x | AM127: x | AN127: x | AO127: x | AP127: x | AQ127: x | AR127: x | AS127: x | AT127: 0 | AV127: x | AW127: x | AX127: x | AY127: x | AZ127: x | BA127: x | BB127: x | BC127: x | BD127: x | BE127: x | BF127: x | BG127: x | BH127: x | BI127: x | BJ127: x | BK127: x | BL127: x | BM127: x | BN127: x | BO127: x | BP127: x | BQ127: x | BR127: x | BS127: x | BT127: x | BU127: x | BV127: x | BW127: x | BX127: x | BY127: x | BZ127: x | CA127: x | CB127: x | CC127: x | CD127: x | CE127: x | CF127: x | CG127: x | CI127: 0 | CJ127: 0 | CK127: 0 | CL127: 0 | CM127: 0 | CN127: 0 | CO127: 0 | CP127: 0 | CQ127: 0 | CR127: 0 | CS127: 0 | CT127: 0 | CU127: 0 | CV127: 0 | CW127: 0 | CX127: 0 | CY127: 0 | CZ127: 0 | DA127: 0 | DB127: 0 | DC127: 0 | DD127: 0 | DE127: 0 | DF127: 0 | DG127: 0 | DH127: 0 | DI127: 0 | DJ127: 0 | DK127: 0 | DL127: 0 | DM127: 0 | DN127: 0 | DO127: 0 | DP127: 0 | DQ127: 0 | DR127: 0 | DS127: 0 | DT127: 0 | DV127: =IF(VLOOKUP($A127,'Schedule Setup'!$A$4:$E$39,5,FALSE)=0,"",VLOOKUP($A127,'Schedule Setup'!$A$4:$E$39,5,FALSE)) ->  | DW127: 0 | DY127: 0 | EA127: 0 | EC127: 0 | EF127: 0 | EH127: 0 | EJ127: 0 | EL127: 0 | EO127: ='Schedule Setup'!J33 -> 00:00:00 | EP127: ='Schedule Setup'!K33 -> 00:00:00 | EQ127: -0.02083333333 | ER127: 00:30:00
A128: 30 | B128: =IF(VLOOKUP($A128,'Schedule Setup'!$A$4:$E$39,2,FALSE)=0,"",VLOOKUP($A128,'Schedule Setup'!$A$4:$E$39,2,FALSE)) ->  | C128: =IF(VLOOKUP($A128,'Schedule Setup'!$A$4:$E$39,4,FALSE)=0,"",VLOOKUP($A128,'Schedule Setup'!$A$4:$E$39,4,FALSE)) ->  | H128: x | I128: x | J128: x | K128: x | L128: x | M128: x | N128: x | O128: x | P128: x | Q128: x | R128: x | S128: x | T128: x | U128: x | V128: x | W128: x | X128: x | Y128: x | Z128: x | AA128: x | AB128: x | AC128: x | AD128: x | AE128: x | AF128: x | AG128: x | AH128: x | AI128: x | AJ128: x | AK128: x | AL128: x | AM128: x | AN128: x | AO128: x | AP128: x | AQ128: x | AR128: x | AS128: x | AT128: 0 | AV128: x | AW128: x | AX128: x | AY128: x | AZ128: x | BA128: x | BB128: x | BC128: x | BD128: x | BE128: x | BF128: x | BG128: x | BH128: x | BI128: x | BJ128: x | BK128: x | BL128: x | BM128: x | BN128: x | BO128: x | BP128: x | BQ128: x | BR128: x | BS128: x | BT128: x | BU128: x | BV128: x | BW128: x | BX128: x | BY128: x | BZ128: x | CA128: x | CB128: x | CC128: x | CD128: x | CE128: x | CF128: x | CG128: x | CI128: 0 | CJ128: 0 | CK128: 0 | CL128: 0 | CM128: 0 | CN128: 0 | CO128: 0 | CP128: 0 | CQ128: 0 | CR128: 0 | CS128: 0 | CT128: 0 | CU128: 0 | CV128: 0 | CW128: 0 | CX128: 0 | CY128: 0 | CZ128: 0 | DA128: 0 | DB128: 0 | DC128: 0 | DD128: 0 | DE128: 0 | DF128: 0 | DG128: 0 | DH128: 0 | DI128: 0 | DJ128: 0 | DK128: 0 | DL128: 0 | DM128: 0 | DN128: 0 | DO128: 0 | DP128: 0 | DQ128: 0 | DR128: 0 | DS128: 0 | DT128: 0 | DV128: =IF(VLOOKUP($A128,'Schedule Setup'!$A$4:$E$39,5,FALSE)=0,"",VLOOKUP($A128,'Schedule Setup'!$A$4:$E$39,5,FALSE)) ->  | DW128: 0 | DY128: 0 | EA128: 0 | EC128: 0 | EF128: 0 | EH128: 0 | EJ128: 0 | EL128: 0 | EO128: ='Schedule Setup'!J34 -> 00:00:00 | EP128: ='Schedule Setup'!K34 -> 00:00:00 | EQ128: -0.02083333333 | ER128: 00:30:00
A129: 31 | B129: =IF(VLOOKUP($A129,'Schedule Setup'!$A$4:$E$39,2,FALSE)=0,"",VLOOKUP($A129,'Schedule Setup'!$A$4:$E$39,2,FALSE)) ->  | C129: =IF(VLOOKUP($A129,'Schedule Setup'!$A$4:$E$39,4,FALSE)=0,"",VLOOKUP($A129,'Schedule Setup'!$A$4:$E$39,4,FALSE)) ->  | H129: x | I129: x | J129: x | K129: x | L129: x | M129: x | N129: x | O129: x | P129: x | Q129: x | R129: x | S129: x | T129: x | U129: x | V129: x | W129: x | X129: x | Y129: x | Z129: x | AA129: x | AB129: x | AC129: x | AD129: x | AE129: x | AF129: x | AG129: x | AH129: x | AI129: x | AJ129: x | AK129: x | AL129: x | AM129: x | AN129: x | AO129: x | AP129: x | AQ129: x | AR129: x | AS129: x | AT129: 0 | AV129: x | AW129: x | AX129: x | AY129: x | AZ129: x | BA129: x | BB129: x | BC129: x | BD129: x | BE129: x | BF129: x | BG129: x | BH129: x | BI129: x | BJ129: x | BK129: x | BL129: x | BM129: x | BN129: x | BO129: x | BP129: x | BQ129: x | BR129: x | BS129: x | BT129: x | BU129: x | BV129: x | BW129: x | BX129: x | BY129: x | BZ129: x | CA129: x | CB129: x | CC129: x | CD129: x | CE129: x | CF129: x | CG129: x | CI129: 0 | CJ129: 0 | CK129: 0 | CL129: 0 | CM129: 0 | CN129: 0 | CO129: 0 | CP129: 0 | CQ129: 0 | CR129: 0 | CS129: 0 | CT129: 0 | CU129: 0 | CV129: 0 | CW129: 0 | CX129: 0 | CY129: 0 | CZ129: 0 | DA129: 0 | DB129: 0 | DC129: 0 | DD129: 0 | DE129: 0 | DF129: 0 | DG129: 0 | DH129: 0 | DI129: 0 | DJ129: 0 | DK129: 0 | DL129: 0 | DM129: 0 | DN129: 0 | DO129: 0 | DP129: 0 | DQ129: 0 | DR129: 0 | DS129: 0 | DT129: 0 | DV129: =IF(VLOOKUP($A129,'Schedule Setup'!$A$4:$E$39,5,FALSE)=0,"",VLOOKUP($A129,'Schedule Setup'!$A$4:$E$39,5,FALSE)) ->  | DW129: 0 | DY129: 0 | EA129: 0 | EC129: 0 | EF129: 0 | EH129: 0 | EJ129: 0 | EL129: 0 | EO129: ='Schedule Setup'!J35 -> 00:00:00 | EP129: ='Schedule Setup'!K35 -> 00:00:00 | EQ129: -0.02083333333 | ER129: 00:30:00
A130: 32 | B130: =IF(VLOOKUP($A130,'Schedule Setup'!$A$4:$E$39,2,FALSE)=0,"",VLOOKUP($A130,'Schedule Setup'!$A$4:$E$39,2,FALSE)) ->  | C130: =IF(VLOOKUP($A130,'Schedule Setup'!$A$4:$E$39,4,FALSE)=0,"",VLOOKUP($A130,'Schedule Setup'!$A$4:$E$39,4,FALSE)) ->  | H130: x | I130: x | J130: x | K130: x | L130: x | M130: x | N130: x | O130: x | P130: x | Q130: x | R130: x | S130: x | T130: x | U130: x | V130: x | W130: x | X130: x | Y130: x | Z130: x | AA130: x | AB130: x | AC130: x | AD130: x | AE130: x | AF130: x | AG130: x | AH130: x | AI130: x | AJ130: x | AK130: x | AL130: x | AM130: x | AN130: x | AO130: x | AP130: x | AQ130: x | AR130: x | AS130: x | AT130: 0 | AV130: x | AW130: x | AX130: x | AY130: x | AZ130: x | BA130: x | BB130: x | BC130: x | BD130: x | BE130: x | BF130: x | BG130: x | BH130: x | BI130: x | BJ130: x | BK130: x | BL130: x | BM130: x | BN130: x | BO130: x | BP130: x | BQ130: x | BR130: x | BS130: x | BT130: x | BU130: x | BV130: x | BW130: x | BX130: x | BY130: x | BZ130: x | CA130: x | CB130: x | CC130: x | CD130: x | CE130: x | CF130: x | CG130: x | CI130: 0 | CJ130: 0 | CK130: 0 | CL130: 0 | CM130: 0 | CN130: 0 | CO130: 0 | CP130: 0 | CQ130: 0 | CR130: 0 | CS130: 0 | CT130: 0 | CU130: 0 | CV130: 0 | CW130: 0 | CX130: 0 | CY130: 0 | CZ130: 0 | DA130: 0 | DB130: 0 | DC130: 0 | DD130: 0 | DE130: 0 | DF130: 0 | DG130: 0 | DH130: 0 | DI130: 0 | DJ130: 0 | DK130: 0 | DL130: 0 | DM130: 0 | DN130: 0 | DO130: 0 | DP130: 0 | DQ130: 0 | DR130: 0 | DS130: 0 | DT130: 0 | DV130: =IF(VLOOKUP($A130,'Schedule Setup'!$A$4:$E$39,5,FALSE)=0,"",VLOOKUP($A130,'Schedule Setup'!$A$4:$E$39,5,FALSE)) ->  | DW130: 0 | DY130: 0 | EA130: 0 | EC130: 0 | EF130: 0 | EH130: 0 | EJ130: 0 | EL130: 0 | EO130: ='Schedule Setup'!J36 -> 00:00:00 | EP130: ='Schedule Setup'!K36 -> 00:00:00 | EQ130: -0.02083333333 | ER130: 00:30:00
A131: 33 | B131: =IF(VLOOKUP($A131,'Schedule Setup'!$A$4:$E$39,2,FALSE)=0,"",VLOOKUP($A131,'Schedule Setup'!$A$4:$E$39,2,FALSE)) ->  | C131: =IF(VLOOKUP($A131,'Schedule Setup'!$A$4:$E$39,4,FALSE)=0,"",VLOOKUP($A131,'Schedule Setup'!$A$4:$E$39,4,FALSE)) ->  | H131: x | I131: x | J131: x | K131: x | L131: x | M131: x | N131: x | O131: x | P131: x | Q131: x | R131: x | S131: x | T131: x | U131: x | V131: x | W131: x | X131: x | Y131: x | Z131: x | AA131: x | AB131: x | AC131: x | AD131: x | AE131: x | AF131: x | AG131: x | AH131: x | AI131: x | AJ131: x | AK131: x | AL131: x | AM131: x | AN131: x | AO131: x | AP131: x | AQ131: x | AR131: x | AS131: x | AT131: 0 | AV131: x | AW131: x | AX131: x | AY131: x | AZ131: x | BA131: x | BB131: x | BC131: x | BD131: x | BE131: x | BF131: x | BG131: x | BH131: x | BI131: x | BJ131: x | BK131: x | BL131: x | BM131: x | BN131: x | BO131: x | BP131: x | BQ131: x | BR131: x | BS131: x | BT131: x | BU131: x | BV131: x | BW131: x | BX131: x | BY131: x | BZ131: x | CA131: x | CB131: x | CC131: x | CD131: x | CE131: x | CF131: x | CG131: x | CI131: 0 | CJ131: 0 | CK131: 0 | CL131: 0 | CM131: 0 | CN131: 0 | CO131: 0 | CP131: 0 | CQ131: 0 | CR131: 0 | CS131: 0 | CT131: 0 | CU131: 0 | CV131: 0 | CW131: 0 | CX131: 0 | CY131: 0 | CZ131: 0 | DA131: 0 | DB131: 0 | DC131: 0 | DD131: 0 | DE131: 0 | DF131: 0 | DG131: 0 | DH131: 0 | DI131: 0 | DJ131: 0 | DK131: 0 | DL131: 0 | DM131: 0 | DN131: 0 | DO131: 0 | DP131: 0 | DQ131: 0 | DR131: 0 | DS131: 0 | DT131: 0 | DV131: =IF(VLOOKUP($A131,'Schedule Setup'!$A$4:$E$39,5,FALSE)=0,"",VLOOKUP($A131,'Schedule Setup'!$A$4:$E$39,5,FALSE)) ->  | DW131: 0 | DY131: 0 | EA131: 0 | EC131: 0 | EF131: 0 | EH131: 0 | EJ131: 0 | EL131: 0 | EO131: ='Schedule Setup'!J37 -> 00:00:00 | EP131: ='Schedule Setup'!K37 -> 00:00:00 | EQ131: -0.02083333333 | ER131: 00:30:00
A132: 34 | B132: =IF(VLOOKUP($A132,'Schedule Setup'!$A$4:$E$39,2,FALSE)=0,"",VLOOKUP($A132,'Schedule Setup'!$A$4:$E$39,2,FALSE)) ->  | C132: =IF(VLOOKUP($A132,'Schedule Setup'!$A$4:$E$39,4,FALSE)=0,"",VLOOKUP($A132,'Schedule Setup'!$A$4:$E$39,4,FALSE)) ->  | H132: x | I132: x | J132: x | K132: x | L132: x | M132: x | N132: x | O132: x | P132: x | Q132: x | R132: x | S132: x | T132: x | U132: x | V132: x | W132: x | X132: x | Y132: x | Z132: x | AA132: x | AB132: x | AC132: x | AD132: x | AE132: x | AF132: x | AG132: x | AH132: x | AI132: x | AJ132: x | AK132: x | AL132: x | AM132: x | AN132: x | AO132: x | AP132: x | AQ132: x | AR132: x | AS132: x | AT132: 0 | AV132: x | AW132: x | AX132: x | AY132: x | AZ132: x | BA132: x | BB132: x | BC132: x | BD132: x | BE132: x | BF132: x | BG132: x | BH132: x | BI132: x | BJ132: x | BK132: x | BL132: x | BM132: x | BN132: x | BO132: x | BP132: x | BQ132: x | BR132: x | BS132: x | BT132: x | BU132: x | BV132: x | BW132: x | BX132: x | BY132: x | BZ132: x | CA132: x | CB132: x | CC132: x | CD132: x | CE132: x | CF132: x | CG132: x | CI132: 0 | CJ132: 0 | CK132: 0 | CL132: 0 | CM132: 0 | CN132: 0 | CO132: 0 | CP132: 0 | CQ132: 0 | CR132: 0 | CS132: 0 | CT132: 0 | CU132: 0 | CV132: 0 | CW132: 0 | CX132: 0 | CY132: 0 | CZ132: 0 | DA132: 0 | DB132: 0 | DC132: 0 | DD132: 0 | DE132: 0 | DF132: 0 | DG132: 0 | DH132: 0 | DI132: 0 | DJ132: 0 | DK132: 0 | DL132: 0 | DM132: 0 | DN132: 0 | DO132: 0 | DP132: 0 | DQ132: 0 | DR132: 0 | DS132: 0 | DT132: 0 | DV132: =IF(VLOOKUP($A132,'Schedule Setup'!$A$4:$E$39,5,FALSE)=0,"",VLOOKUP($A132,'Schedule Setup'!$A$4:$E$39,5,FALSE)) ->  | DW132: 0 | DY132: 0 | EA132: 0 | EC132: 0 | EF132: 0 | EH132: 0 | EJ132: 0 | EL132: 0 | EO132: ='Schedule Setup'!J38 -> 00:00:00 | EP132: ='Schedule Setup'!K38 -> 00:00:00 | EQ132: -0.02083333333 | ER132: 00:30:00
A133: 35 | B133: =IF(VLOOKUP($A133,'Schedule Setup'!$A$4:$E$39,2,FALSE)=0,"",VLOOKUP($A133,'Schedule Setup'!$A$4:$E$39,2,FALSE)) ->  | C133: =IF(VLOOKUP($A133,'Schedule Setup'!$A$4:$E$39,4,FALSE)=0,"",VLOOKUP($A133,'Schedule Setup'!$A$4:$E$39,4,FALSE)) ->  | H133: x | I133: x | J133: x | K133: x | L133: x | M133: x | N133: x | O133: x | P133: x | Q133: x | R133: x | S133: x | T133: x | U133: x | V133: x | W133: x | X133: x | Y133: x | Z133: x | AA133: x | AB133: x | AC133: x | AD133: x | AE133: x | AF133: x | AG133: x | AH133: x | AI133: x | AJ133: x | AK133: x | AL133: x | AM133: x | AN133: x | AO133: x | AP133: x | AQ133: x | AR133: x | AS133: x | AT133: 0 | AV133: x | AW133: x | AX133: x | AY133: x | AZ133: x | BA133: x | BB133: x | BC133: x | BD133: x | BE133: x | BF133: x | BG133: x | BH133: x | BI133: x | BJ133: x | BK133: x | BL133: x | BM133: x | BN133: x | BO133: x | BP133: x | BQ133: x | BR133: x | BS133: x | BT133: x | BU133: x | BV133: x | BW133: x | BX133: x | BY133: x | BZ133: x | CA133: x | CB133: x | CC133: x | CD133: x | CE133: x | CF133: x | CG133: x | CI133: 0 | CJ133: 0 | CK133: 0 | CL133: 0 | CM133: 0 | CN133: 0 | CO133: 0 | CP133: 0 | CQ133: 0 | CR133: 0 | CS133: 0 | CT133: 0 | CU133: 0 | CV133: 0 | CW133: 0 | CX133: 0 | CY133: 0 | CZ133: 0 | DA133: 0 | DB133: 0 | DC133: 0 | DD133: 0 | DE133: 0 | DF133: 0 | DG133: 0 | DH133: 0 | DI133: 0 | DJ133: 0 | DK133: 0 | DL133: 0 | DM133: 0 | DN133: 0 | DO133: 0 | DP133: 0 | DQ133: 0 | DR133: 0 | DS133: 0 | DT133: 0 | DV133: =IF(VLOOKUP($A133,'Schedule Setup'!$A$4:$E$39,5,FALSE)=0,"",VLOOKUP($A133,'Schedule Setup'!$A$4:$E$39,5,FALSE)) ->  | DW133: 0 | DY133: 0 | EA133: 0 | EC133: 0 | EF133: 0 | EH133: 0 | EJ133: 0 | EL133: 0 | EO133: ='Schedule Setup'!J39 -> 00:00:00 | EP133: ='Schedule Setup'!K39 -> 00:00:00 | EQ133: -0.02083333333 | ER133: 00:30:00
D134: Totals/Coverage | E134: =MIN(E99:E133) -> 06:00:00 | F134: =MAX(F99:F133) -> 21:30:00 | H134: =CI134 -> 0 | I134: =CJ134 -> 0 | J134: =CK134 -> 1 | K134: =CL134 -> 1 | L134: =CM134 -> 1 | M134: =CN134 -> 1 | N134: =CO134 -> 2 | O134: =CP134 -> 2 | P134: =CQ134 -> 2 | Q134: =CR134 -> 2 | R134: =CS134 -> 2 | S134: =CT134 -> 2 | T134: =CU134 -> 2 | U134: =CV134 -> 3 | V134: =CW134 -> 3 | W134: =CX134 -> 3 | X134: =CY134 -> 3 | Y134: =CZ134 -> 4 | Z134: =DA134 -> 3 | AA134: =DB134 -> 4 | AB134: =DC134 -> 4 | AC134: =DD134 -> 5 | AD134: =DE134 -> 4 | AE134: =DF134 -> 3 | AF134: =DG134 -> 3 | AG134: =DH134 -> 3 | AH134: =DI134 -> 3 | AI134: =DJ134 -> 3 | AJ134: =DK134 -> 3 | AK134: =DL134 -> 2 | AL134: =DM134 -> 2 | AM134: =DN134 -> 2 | AN134: =DO134 -> 2 | AO134: =DP134 -> 0 | AP134: =DQ134 -> 0 | AQ134: =DR134 -> 0 | AR134: =DS134 -> 0 | AS134: =DT134 -> 0 | AT134: =SUM(AT99:AT133) -> 40 | CI134: =COUNTIF(CI99:CI133,0.5) -> 0 | CJ134: =COUNTIF(CJ99:CJ133,0.5) -> 0 | CK134: =COUNTIF(CK99:CK133,0.5) -> 1 | CL134: =COUNTIF(CL99:CL133,0.5) -> 1 | CM134: =COUNTIF(CM99:CM133,0.5) -> 1 | CN134: =COUNTIF(CN99:CN133,0.5) -> 1 | CO134: =COUNTIF(CO99:CO133,0.5) -> 2 | CP134: =COUNTIF(CP99:CP133,0.5) -> 2 | CQ134: =COUNTIF(CQ99:CQ133,0.5) -> 2 | CR134: =COUNTIF(CR99:CR133,0.5) -> 2 | CS134: =COUNTIF(CS99:CS133,0.5) -> 2 | CT134: =COUNTIF(CT99:CT133,0.5) -> 2 | CU134: =COUNTIF(CU99:CU133,0.5) -> 2 | CV134: =COUNTIF(CV99:CV133,0.5) -> 3 | CW134: =COUNTIF(CW99:CW133,0.5) -> 3 | CX134: =COUNTIF(CX99:CX133,0.5) -> 3 | CY134: =COUNTIF(CY99:CY133,0.5) -> 3 | CZ134: =COUNTIF(CZ99:CZ133,0.5) -> 4 | DA134: =COUNTIF(DA99:DA133,0.5) -> 3 | DB134: =COUNTIF(DB99:DB133,0.5) -> 4 | DC134: =COUNTIF(DC99:DC133,0.5) -> 4 | DD134: =COUNTIF(DD99:DD133,0.5) -> 5 | DE134: =COUNTIF(DE99:DE133,0.5) -> 4 | DF134: =COUNTIF(DF99:DF133,0.5) -> 3 | DG134: =COUNTIF(DG99:DG133,0.5) -> 3 | DH134: =COUNTIF(DH99:DH133,0.5) -> 3 | DI134: =COUNTIF(DI99:DI133,0.5) -> 3 | DJ134: =COUNTIF(DJ99:DJ133,0.5) -> 3 | DK134: =COUNTIF(DK99:DK133,0.5) -> 3 | DL134: =COUNTIF(DL99:DL133,0.5) -> 2 | DM134: =COUNTIF(DM99:DM133,0.5) -> 2 | DN134: =COUNTIF(DN99:DN133,0.5) -> 2 | DO134: =COUNTIF(DO99:DO133,0.5) -> 2 | DP134: =COUNTIF(DP99:DP133,0.5) -> 0 | DQ134: =COUNTIF(DQ99:DQ133,0.5) -> 0 | DR134: =COUNTIF(DR99:DR133,0.5) -> 0 | DS134: =COUNTIF(DS99:DS133,0.5) -> 0 | DT134: =COUNTIF(DT99:DT133,0.5) -> 0 | DW134: =SUM(DW99:DW133) -> 8 | DX134: 0 | DY134: 20.5 | DZ134: 0 | EA134: 11.5 | EB134: 0 | EC134: 40 | ED134: 0 | EF134: =SUM(EF99:EF133) -> 8 | EG134: 0 | EH134: 20.5 | EI134: 0 | EJ134: 11.5 | EK134: 0 | EL134: 40 | EM134: 0 | EO134: ='Schedule Setup'!J40 -> 07:00:00 | EP134: ='Schedule Setup'!K40 -> 21:00:00 | EQ134: 06:30:00 | ER134: 21:30:00
F135: ='Schedule Forecast'!A14 -> Wk 10-21 | H135: =IFERROR(INDEX(INDIRECT("'"&$F135&"'!$E:$E"),MATCH(H$6,INDIRECT("'"&$F135&"'!$A$1:$A$250"),0)+1),0) -> 0 | I135: 0 | J135: 0 | K135: 0 | L135: 23.01 | M135: 13.87 | N135: 23.56 | O135: 25.25 | P135: 22.31 | Q135: 58.88 | R135: =IFERROR(INDEX(INDIRECT("'"&$F135&"'!$E:$E"),MATCH(R$6,INDIRECT("'"&$F135&"'!$A$1:$A$250"),0)+1),0) -> 14.16 | S135: 22.1 | T135: 21.46 | U135: 105.77 | V135: 113.84 | W135: 178 | X135: 70.17 | Y135: 58.28 | Z135: 41.37 | AA135: 68.68 | AB135: =IFERROR(INDEX(INDIRECT("'"&$F135&"'!$E:$E"),MATCH(AB$6,INDIRECT("'"&$F135&"'!$A$1:$A$250"),0)+1),0) -> 161.13 | AC135: 76.5 | AD135: 114.06 | AE135: 41.17 | AF135: 35.53 | AG135: 37.28 | AH135: 48.35 | AI135: 23.55 | AJ135: 28.75 | AK135: 0 | AL135: =IFERROR(INDEX(INDIRECT("'"&$F135&"'!$E:$E"),MATCH(AL$6,INDIRECT("'"&$F135&"'!$A$1:$A$250"),0)+1),0) -> 0 | AM135: 0 | AN135: 0 | AO135: 0 | AP135: 0 | AQ135: 0 | AR135: 0 | AS135: 0
F136: ='Schedule Forecast'!A15 -> Wk 10-28 | H136: 0 | I136: 0 | J136: 0 | K136: 0 | L136: 40.68 | M136: 20.46 | N136: 76.73 | O136: 11.18 | P136: 8.98 | Q136: 38.62 | R136: 15.08 | S136: 11.97 | T136: 77.96 | U136: 138.77 | V136: 21.81 | W136: 101.66 | X136: 62.63 | Y136: 24.85 | Z136: 39.42 | AA136: 262.29 | AB136: 96.56 | AC136: 148.49 | AD136: 72.51 | AE136: 69.15 | AF136: 30.9 | AG136: 40.63 | AH136: 40.02 | AI136: 28.94 | AJ136: 14.42 | AK136: 29.24 | AL136: 33.09 | AM136: 16.37 | AN136: 0 | AO136: 0 | AP136: 0 | AQ136: 0 | AR136: 0 | AS136: 0
F137: ='Schedule Forecast'!A16 -> Wk 11-4 | H137: 0 | I137: 0 | J137: 0 | K137: 0 | L137: 0 | M137: 0 | N137: 23.9 | O137: 35.28 | P137: 27.25 | Q137: 27.7 | R137: 6.89 | S137: 13.57 | T137: 9.98 | U137: 57.35 | V137: 65.4 | W137: 81.94 | X137: 45.81 | Y137: 35.21 | Z137: 29.58 | AA137: 52.97 | AB137: 33.64 | AC137: 17.45 | AD137: 2.49 | AE137: 4.88 | AF137: 14.97 | AG137: 7.04 | AH137: 16.22 | AI137: 2.89 | AJ137: 6.39 | AK137: 11.28 | AL137: 0 | AM137: 0 | AN137: 0 | AO137: 0 | AP137: 0 | AQ137: 0 | AR137: 0 | AS137: 0
F138: ='Schedule Forecast'!A17 -> Wk 11-11 | H138: 0 | I138: 0 | J138: 0 | K138: 0 | L138: 24.34 | M138: 21.85 | N138: 39.72 | O138: 10.48 | P138: 197.86 | Q138: 38.62 | R138: 24.25 | S138: 58.59 | T138: 84.34 | U138: 48.96 | V138: 76.79 | W138: 120.34 | X138: 40.42 | Y138: 34.73 | Z138: 89.08 | AA138: 70.52 | AB138: 177.63 | AC138: 136.23 | AD138: 15.97 | AE138: 27.4 | AF138: 40.99 | AG138: 5.29 | AH138: 34.23 | AI138: 23.15 | AJ138: 4.49 | AK138: 0 | AL138: 0 | AM138: 24.04 | AN138: 0 | AO138: 0 | AP138: 0 | AQ138: 0 | AR138: 0 | AS138: 0
F139: AVERAGE | H139: =IFERROR(IF(AND(H$6>=$EO$134,H$6<$EP$134-0.001),AVERAGE(H135:H138),""),"") ->  | L139: 22.0075 | M139: 14.045 | N139: 40.9775 | O139: 20.5475 | P139: 64.1 | Q139: 40.955 | R139: 15.095 | S139: 26.5575 | T139: 48.435 | U139: 87.7125 | V139: 69.46 | W139: 120.485 | X139: 54.7575 | Y139: 38.2675 | Z139: 49.8625 | AA139: 113.615 | AB139: 117.24 | AC139: 94.6675 | AD139: 51.2575 | AE139: 35.65 | AF139: 30.5975 | AG139: 22.56 | AH139: 34.705 | AI139: 19.6325 | AJ139: 13.5125 | AK139: 10.13 | AL139: 8.2725 | AM139: 10.1025
H140: =IFERROR(IF((H139*'Schedule Forecast'!$C$4-$AC$2)>1,(H139*'Schedule Forecast'!$C$4-$AC$2),1),"") ->  | I140: =IFERROR(IF((I139*'Schedule Forecast'!$C$4-$AC$2)>1,(I139*'Schedule Forecast'!$C$4-$AC$2),1),"") ->  | J140: =IFERROR(IF((J139*'Schedule Forecast'!$C$4-$AC$2)>1,(J139*'Schedule Forecast'!$C$4-$AC$2),1),"") ->  | K140: =IFERROR(IF((K139*'Schedule Forecast'!$C$4-$AC$2)>1,(K139*'Schedule Forecast'!$C$4-$AC$2),1),"") ->  | L140: =IFERROR(IF((L139*'Schedule Forecast'!$C$4-$AC$2)>1,(L139*'Schedule Forecast'!$C$4-$AC$2),1),"") -> 1 | M140: =IFERROR(IF((M139*'Schedule Forecast'!$C$4-$AC$2)>1,(M139*'Schedule Forecast'!$C$4-$AC$2),1),"") -> 1 | N140: =IFERROR(IF((N139*'Schedule Forecast'!$C$4-$AC$2)>1,(N139*'Schedule Forecast'!$C$4-$AC$2),1),"") -> 1 | O140: =IFERROR(IF((O139*'Schedule Forecast'!$C$4-$AC$2)>1,(O139*'Schedule Forecast'!$C$4-$AC$2),1),"") -> 1 | P140: =IFERROR(IF((P139*'Schedule Forecast'!$C$4-$AC$2)>1,(P139*'Schedule Forecast'!$C$4-$AC$2),1),"") -> 2.179 | Q140: =IFERROR(IF((Q139*'Schedule Forecast'!$C$4-$AC$2)>1,(Q139*'Schedule Forecast'!$C$4-$AC$2),1),"") -> 1 | R140: =IFERROR(IF((R139*'Schedule Forecast'!$C$4-$AC$2)>1,(R139*'Schedule Forecast'!$C$4-$AC$2),1),"") -> 1 | S140: =IFERROR(IF((S139*'Schedule Forecast'!$C$4-$AC$2)>1,(S139*'Schedule Forecast'!$C$4-$AC$2),1),"") -> 1 | T140: =IFERROR(IF((T139*'Schedule Forecast'!$C$4-$AC$2)>1,(T139*'Schedule Forecast'!$C$4-$AC$2),1),"") -> 1 | U140: =IFERROR(IF((U139*'Schedule Forecast'!$C$4-$AC$2)>1,(U139*'Schedule Forecast'!$C$4-$AC$2),1),"") -> 6.665375 | V140: =IFERROR(IF((V139*'Schedule Forecast'!$C$4-$AC$2)>1,(V139*'Schedule Forecast'!$C$4-$AC$2),1),"") -> 3.1974 | W140: =IFERROR(IF((W139*'Schedule Forecast'!$C$4-$AC$2)>1,(W139*'Schedule Forecast'!$C$4-$AC$2),1),"") -> 12.89215 | X140: =IFERROR(IF((X139*'Schedule Forecast'!$C$4-$AC$2)>1,(X139*'Schedule Forecast'!$C$4-$AC$2),1),"") -> 1 | Y140: =IFERROR(IF((Y139*'Schedule Forecast'!$C$4-$AC$2)>1,(Y139*'Schedule Forecast'!$C$4-$AC$2),1),"") -> 1 | Z140: =IFERROR(IF((Z139*'Schedule Forecast'!$C$4-$AC$2)>1,(Z139*'Schedule Forecast'!$C$4-$AC$2),1),"") -> 1 | AA140: =IFERROR(IF((AA139*'Schedule Forecast'!$C$4-$AC$2)>1,(AA139*'Schedule Forecast'!$C$4-$AC$2),1),"") -> 11.58685 | AB140: =IFERROR(IF((AB139*'Schedule Forecast'!$C$4-$AC$2)>1,(AB139*'Schedule Forecast'!$C$4-$AC$2),1),"") -> 12.2756 | AC140: =IFERROR(IF((AC139*'Schedule Forecast'!$C$4-$AC$2)>1,(AC139*'Schedule Forecast'!$C$4-$AC$2),1),"") -> 7.986825 | AD140: =IFERROR(IF((AD139*'Schedule Forecast'!$C$4-$AC$2)>1,(AD139*'Schedule Forecast'!$C$4-$AC$2),1),"") -> 1 | AE140: =IFERROR(IF((AE139*'Schedule Forecast'!$C$4-$AC$2)>1,(AE139*'Schedule Forecast'!$C$4-$AC$2),1),"") -> 1 | AF140: =IFERROR(IF((AF139*'Schedule Forecast'!$C$4-$AC$2)>1,(AF139*'Schedule Forecast'!$C$4-$AC$2),1),"") -> 1 | AG140: =IFERROR(IF((AG139*'Schedule Forecast'!$C$4-$AC$2)>1,(AG139*'Schedule Forecast'!$C$4-$AC$2),1),"") -> 1 | AH140: =IFERROR(IF((AH139*'Schedule Forecast'!$C$4-$AC$2)>1,(AH139*'Schedule Forecast'!$C$4-$AC$2),1),"") -> 1 | AI140: =IFERROR(IF((AI139*'Schedule Forecast'!$C$4-$AC$2)>1,(AI139*'Schedule Forecast'!$C$4-$AC$2),1),"") -> 1 | AJ140: =IFERROR(IF((AJ139*'Schedule Forecast'!$C$4-$AC$2)>1,(AJ139*'Schedule Forecast'!$C$4-$AC$2),1),"") -> 1 | AK140: =IFERROR(IF((AK139*'Schedule Forecast'!$C$4-$AC$2)>1,(AK139*'Schedule Forecast'!$C$4-$AC$2),1),"") -> 1 | AL140: =IFERROR(IF((AL139*'Schedule Forecast'!$C$4-$AC$2)>1,(AL139*'Schedule Forecast'!$C$4-$AC$2),1),"") -> 1 | AM140: =IFERROR(IF((AM139*'Schedule Forecast'!$C$4-$AC$2)>1,(AM139*'Schedule Forecast'!$C$4-$AC$2),1),"") -> 1 | AN140: =IFERROR(IF((AN139*'Schedule Forecast'!$C$4-$AC$2)>1,(AN139*'Schedule Forecast'!$C$4-$AC$2),1),"") ->  | AO140: =IFERROR(IF((AO139*'Schedule Forecast'!$C$4-$AC$2)>1,(AO139*'Schedule Forecast'!$C$4-$AC$2),1),"") ->  | AP140: =IFERROR(IF((AP139*'Schedule Forecast'!$C$4-$AC$2)>1,(AP139*'Schedule Forecast'!$C$4-$AC$2),1),"") ->  | AQ140: =IFERROR(IF((AQ139*'Schedule Forecast'!$C$4-$AC$2)>1,(AQ139*'Schedule Forecast'!$C$4-$AC$2),1),"") ->  | AR140: =IFERROR(IF((AR139*'Schedule Forecast'!$C$4-$AC$2)>1,(AR139*'Schedule Forecast'!$C$4-$AC$2),1),"") ->  | AS140: =IFERROR(IF((AS139*'Schedule Forecast'!$C$4-$AC$2)>1,(AS139*'Schedule Forecast'!$C$4-$AC$2),1),"") -> 
G141: Recommended: | H141: =IF(H98>=$EO$134,IF(H98<$EP$134-0.01,ROUND(IF(H140>1,(H140*$B$48)+1,H140)*2,0),""),"") ->  | L141: 2 | M141: 2 | N141: 2 | O141: 2 | P141: 2 | Q141: 2 | R141: 2 | S141: 2 | T141: 2 | U141: 2 | V141: 2 | W141: 2 | X141: 2 | Y141: 2 | Z141: 2 | AA141: 2 | AB141: 2 | AC141: 2 | AD141: 2 | AE141: 2 | AF141: 2 | AG141: 2 | AH141: 2 | AI141: 2 | AJ141: 2 | AK141: 2 | AL141: 2 | AM141: 2 | AT141: =SUM(H141:AS141)/2 -> 28
B143: Saturday | S143: =S97 -> Today's Date | T143: =T5+3 -> 2014-11-22 | DW143: Breakfast | DY143: Lunch | EA143: Dinner | EC143: Total | EF143: Breakfast | EH143: Lunch | EJ143: Dinner | EL143: Total | EO143: Availability
B144: Employee | C144: Job | E144: Start | F144: End | H144: 05:00:00 | I144: =H144+(0.5/24) -> 05:30:00 | J144: =I144+(0.5/24) -> 06:00:00 | K144: =J144+(0.5/24) -> 06:30:00 | L144: =K144+(0.5/24) -> 07:00:00 | M144: =L144+(0.5/24) -> 07:30:00 | N144: =M144+(0.5/24) -> 08:00:00 | O144: =N144+(0.5/24) -> 08:30:00 | P144: =O144+(0.5/24) -> 09:00:00 | Q144: =P144+(0.5/24) -> 09:30:00 | R144: =Q144+(0.5/24) -> 10:00:00 | S144: =R144+(0.5/24) -> 10:30:00 | T144: =S144+(0.5/24) -> 11:00:00 | U144: =T144+(0.5/24) -> 11:30:00 | V144: =U144+(0.5/24) -> 12:00:00 | W144: =V144+(0.5/24) -> 12:30:00 | X144: =W144+(0.5/24) -> 13:00:00 | Y144: =X144+(0.5/24) -> 13:30:00 | Z144: =Y144+(0.5/24) -> 14:00:00 | AA144: =Z144+(0.5/24) -> 14:30:00 | AB144: =AA144+(0.5/24) -> 15:00:00 | AC144: =AB144+(0.5/24) -> 15:30:00 | AD144: =AC144+(0.5/24) -> 16:00:00 | AE144: =AD144+(0.5/24) -> 16:30:00 | AF144: =AE144+(0.5/24) -> 17:00:00 | AG144: =AF144+(0.5/24) -> 17:30:00 | AH144: =AG144+(0.5/24) -> 18:00:00 | AI144: =AH144+(0.5/24) -> 18:30:00 | AJ144: =AI144+(0.5/24) -> 19:00:00 | AK144: =AJ144+(0.5/24) -> 19:30:00 | AL144: =AK144+(0.5/24) -> 20:00:00 | AM144: =AL144+(0.5/24) -> 20:30:00 | AN144: =AM144+(0.5/24) -> 21:00:00 | AO144: =AN144+(0.5/24) -> 21:30:00 | AP144: =AO144+(0.5/24) -> 22:00:00 | AQ144: =AP144+(0.5/24) -> 22:30:00 | AR144: =AQ144+(0.5/24) -> 23:00:00 | AS144: =AR144+(0.5/24) -> 23:30:00 | AT144: TOTAL | AV144: 5 | AX144: 6 | AZ144: 7 | BB144: 8 | BD144: 9 | BF144: 10 | BH144: 11 | BJ144: 12 | BL144: 1 | BN144: 2 | BP144: 3 | BR144: 4 | BT144: 5 | BV144: 6 | BX144: 7 | BZ144: 8 | CB144: 9 | CD144: 10 | CF144: 11 | CI144: 5 | CK144: 6 | CM144: 7 | CO144: 8 | CQ144: 9 | CS144: 10 | CU144: 11 | CW144: 12 | CY144: 1 | DA144: 2 | DC144: 3 | DE144: 4 | DG144: 5 | DI144: 6 | DK144: 7 | DM144: 8 | DO144: 9 | DQ144: 10 | DS144: 11 | DV144: Rate | DW144: Hrs | DX144: $ | DY144: Hrs | DZ144: $ | EA144: Hrs | EB144: $ | EC144: Hrs | ED144: $ | EF144: Hrs | EG144: $ | EH144: Hrs | EI144: $ | EJ144: Hrs | EK144: $ | EL144: Hrs | EM144: $ | EO144: Start | EP144: End | EQ144: Start-Early | ER144: End-Late
A145: 1 | B145: =IF(VLOOKUP($A145,'Schedule Setup'!$A$4:$E$39,2,FALSE)=0,"",VLOOKUP($A145,'Schedule Setup'!$A$4:$E$39,2,FALSE)) -> Shaun Payne | C145: =IF(VLOOKUP($A145,'Schedule Setup'!$A$4:$E$39,4,FALSE)=0,"",VLOOKUP($A145,'Schedule Setup'!$A$4:$E$39,4,FALSE)) -> General Manager (S) | D145: =IF(B145<>"",IF(OR(C145="General Manager (S)", C145="General Manager (H)"), "GM",IF(C145="Acting Manager","AM",IF(C145="Shift Manager","SM",IF(C145="Team Lead","TL","TM")))),"") -> GM | E145: 06:00:00 | F145: 14:00:00 | H145: =AV145 -> x | I145: x | J145: GM | K145: GM | L145: GM | M145: GM | N145: GM | O145: GM | P145: GM | Q145: GM | R145: GM | S145: GM | T145: GM | U145: GM | V145: GM | W145: GM | X145: GM | Y145: GM | AO145: x | AP145: x | AQ145: x | AR145: x | AS145: x | AT145: =EC145 -> 8 | AV145: =IF(AND($EO145<=H$6+0.01,$EP145>H$6+0.01),IF(AND(H$6<$F145-0.01,H$6>=$E145-0.01),$D145,""),"x") -> x | AW145: =IF(AND($EO145<=I$6+0.01,$EP145>I$6+0.01),IF(AND(I$6<$F145-0.01,I$6>=$E145-0.01),$D145,""),"x") -> x | AX145: =IF(AND($EO145<=J$6+0.01,$EP145>J$6+0.01),IF(AND(J$6<$F145-0.01,J$6>=$E145-0.01),$D145,""),"x") -> GM | AY145: =IF(AND($EO145<=K$6+0.01,$EP145>K$6+0.01),IF(AND(K$6<$F145-0.01,K$6>=$E145-0.01),$D145,""),"x") -> GM | AZ145: =IF(AND($EO145<=L$6+0.01,$EP145>L$6+0.01),IF(AND(L$6<$F145-0.01,L$6>=$E145-0.01),$D145,""),"x") -> GM | BA145: =IF(AND($EO145<=M$6+0.01,$EP145>M$6+0.01),IF(AND(M$6<$F145-0.01,M$6>=$E145-0.01),$D145,""),"x") -> GM | BB145: =IF(AND($EO145<=N$6+0.01,$EP145>N$6+0.01),IF(AND(N$6<$F145-0.01,N$6>=$E145-0.01),$D145,""),"x") -> GM | BC145: =IF(AND($EO145<=O$6+0.01,$EP145>O$6+0.01),IF(AND(O$6<$F145-0.01,O$6>=$E145-0.01),$D145,""),"x") -> GM | BD145: =IF(AND($EO145<=P$6+0.01,$EP145>P$6+0.01),IF(AND(P$6<$F145-0.01,P$6>=$E145-0.01),$D145,""),"x") -> GM | BE145: =IF(AND($EO145<=Q$6+0.01,$EP145>Q$6+0.01),IF(AND(Q$6<$F145-0.01,Q$6>=$E145-0.01),$D145,""),"x") -> GM | BF145: =IF(AND($EO145<=R$6+0.01,$EP145>R$6+0.01),IF(AND(R$6<$F145-0.01,R$6>=$E145-0.01),$D145,""),"x") -> GM | BG145: =IF(AND($EO145<=S$6+0.01,$EP145>S$6+0.01),IF(AND(S$6<$F145-0.01,S$6>=$E145-0.01),$D145,""),"x") -> GM | BH145: =IF(AND($EO145<=T$6+0.01,$EP145>T$6+0.01),IF(AND(T$6<$F145-0.01,T$6>=$E145-0.01),$D145,""),"x") -> GM | BI145: =IF(AND($EO145<=U$6+0.01,$EP145>U$6+0.01),IF(AND(U$6<$F145-0.01,U$6>=$E145-0.01),$D145,""),"x") -> GM | BJ145: =IF(AND($EO145<=V$6+0.01,$EP145>V$6+0.01),IF(AND(V$6<$F145-0.01,V$6>=$E145-0.01),$D145,""),"x") -> GM | BK145: =IF(AND($EO145<=W$6+0.01,$EP145>W$6+0.01),IF(AND(W$6<$F145-0.01,W$6>=$E145-0.01),$D145,""),"x") -> GM | BL145: =IF(AND($EO145<=X$6+0.01,$EP145>X$6+0.01),IF(AND(X$6<$F145-0.01,X$6>=$E145-0.01),$D145,""),"x") -> GM | BM145: =IF(AND($EO145<=Y$6+0.01,$EP145>Y$6+0.01),IF(AND(Y$6<$F145-0.01,Y$6>=$E145-0.01),$D145,""),"x") -> GM | BN145: =IF(AND($EO145<=Z$6+0.01,$EP145>Z$6+0.01),IF(AND(Z$6<$F145-0.01,Z$6>=$E145-0.01),$D145,""),"x") ->  | BO145: =IF(AND($EO145<=AA$6+0.01,$EP145>AA$6+0.01),IF(AND(AA$6<$F145-0.01,AA$6>=$E145-0.01),$D145,""),"x") ->  | BP145: =IF(AND($EO145<=AB$6+0.01,$EP145>AB$6+0.01),IF(AND(AB$6<$F145-0.01,AB$6>=$E145-0.01),$D145,""),"x") ->  | BQ145: =IF(AND($EO145<=AC$6+0.01,$EP145>AC$6+0.01),IF(AND(AC$6<$F145-0.01,AC$6>=$E145-0.01),$D145,""),"x") ->  | BR145: =IF(AND($EO145<=AD$6+0.01,$EP145>AD$6+0.01),IF(AND(AD$6<$F145-0.01,AD$6>=$E145-0.01),$D145,""),"x") ->  | BS145: =IF(AND($EO145<=AE$6+0.01,$EP145>AE$6+0.01),IF(AND(AE$6<$F145-0.01,AE$6>=$E145-0.01),$D145,""),"x") ->  | BT145: =IF(AND($EO145<=AF$6+0.01,$EP145>AF$6+0.01),IF(AND(AF$6<$F145-0.01,AF$6>=$E145-0.01),$D145,""),"x") ->  | BU145: =IF(AND($EO145<=AG$6+0.01,$EP145>AG$6+0.01),IF(AND(AG$6<$F145-0.01,AG$6>=$E145-0.01),$D145,""),"x") ->  | BV145: =IF(AND($EO145<=AH$6+0.01,$EP145>AH$6+0.01),IF(AND(AH$6<$F145-0.01,AH$6>=$E145-0.01),$D145,""),"x") ->  | BW145: =IF(AND($EO145<=AI$6+0.01,$EP145>AI$6+0.01),IF(AND(AI$6<$F145-0.01,AI$6>=$E145-0.01),$D145,""),"x") ->  | BX145: =IF(AND($EO145<=AJ$6+0.01,$EP145>AJ$6+0.01),IF(AND(AJ$6<$F145-0.01,AJ$6>=$E145-0.01),$D145,""),"x") ->  | BY145: =IF(AND($EO145<=AK$6+0.01,$EP145>AK$6+0.01),IF(AND(AK$6<$F145-0.01,AK$6>=$E145-0.01),$D145,""),"x") ->  | BZ145: =IF(AND($EO145<=AL$6+0.01,$EP145>AL$6+0.01),IF(AND(AL$6<$F145-0.01,AL$6>=$E145-0.01),$D145,""),"x") ->  | CA145: =IF(AND($EO145<=AM$6+0.01,$EP145>AM$6+0.01),IF(AND(AM$6<$F145-0.01,AM$6>=$E145-0.01),$D145,""),"x") ->  | CB145: =IF(AND($EO145<=AN$6+0.01,$EP145>AN$6+0.01),IF(AND(AN$6<$F145-0.01,AN$6>=$E145-0.01),$D145,""),"x") ->  | CC145: =IF(AND($EO145<=AO$6+0.01,$EP145>AO$6+0.01),IF(AND(AO$6<$F145-0.01,AO$6>=$E145-0.01),$D145,""),"x") -> x | CD145: =IF(AND($EO145<=AP$6+0.01,$EP145>AP$6+0.01),IF(AND(AP$6<$F145-0.01,AP$6>=$E145-0.01),$D145,""),"x") -> x | CE145: =IF(AND($EO145<=AQ$6+0.01,$EP145>AQ$6+0.01),IF(AND(AQ$6<$F145-0.01,AQ$6>=$E145-0.01),$D145,""),"x") -> x | CF145: =IF(AND($EO145<=AR$6+0.01,$EP145>AR$6+0.01),IF(AND(AR$6<$F145-0.01,AR$6>=$E145-0.01),$D145,""),"x") -> x | CG145: =IF(AND($EO145<=AS$6+0.01,$EP145>AS$6+0.01),IF(AND(AS$6<$F145-0.01,AS$6>=$E145-0.01),$D145,""),"x") -> x | CI145: =IF(AND(AV145<>"",AV145<>"x"),0.5,) -> 0 | CJ145: =IF(AND(AW145<>"",AW145<>"x"),0.5,) -> 0 | CK145: =IF(AND(AX145<>"",AX145<>"x"),0.5,) -> 0.5 | CL145: =IF(AND(AY145<>"",AY145<>"x"),0.5,) -> 0.5 | CM145: =IF(AND(AZ145<>"",AZ145<>"x"),0.5,) -> 0.5 | CN145: =IF(AND(BA145<>"",BA145<>"x"),0.5,) -> 0.5 | CO145: =IF(AND(BB145<>"",BB145<>"x"),0.5,) -> 0.5 | CP145: =IF(AND(BC145<>"",BC145<>"x"),0.5,) -> 0.5 | CQ145: =IF(AND(BD145<>"",BD145<>"x"),0.5,) -> 0.5 | CR145: =IF(AND(BE145<>"",BE145<>"x"),0.5,) -> 0.5 | CS145: =IF(AND(BF145<>"",BF145<>"x"),0.5,) -> 0.5 | CT145: =IF(AND(BG145<>"",BG145<>"x"),0.5,) -> 0.5 | CU145: =IF(AND(BH145<>"",BH145<>"x"),0.5,) -> 0.5 | CV145: =IF(AND(BI145<>"",BI145<>"x"),0.5,) -> 0.5 | CW145: =IF(AND(BJ145<>"",BJ145<>"x"),0.5,) -> 0.5 | CX145: =IF(AND(BK145<>"",BK145<>"x"),0.5,) -> 0.5 | CY145: =IF(AND(BL145<>"",BL145<>"x"),0.5,) -> 0.5 | CZ145: =IF(AND(BM145<>"",BM145<>"x"),0.5,) -> 0.5 | DA145: =IF(AND(BN145<>"",BN145<>"x"),0.5,) -> 0 | DB145: =IF(AND(BO145<>"",BO145<>"x"),0.5,) -> 0 | DC145: =IF(AND(BP145<>"",BP145<>"x"),0.5,) -> 0 | DD145: =IF(AND(BQ145<>"",BQ145<>"x"),0.5,) -> 0 | DE145: =IF(AND(BR145<>"",BR145<>"x"),0.5,) -> 0 | DF145: =IF(AND(BS145<>"",BS145<>"x"),0.5,) -> 0 | DG145: =IF(AND(BT145<>"",BT145<>"x"),0.5,) -> 0 | DH145: =IF(AND(BU145<>"",BU145<>"x"),0.5,) -> 0 | DI145: =IF(AND(BV145<>"",BV145<>"x"),0.5,) -> 0 | DJ145: =IF(AND(BW145<>"",BW145<>"x"),0.5,) -> 0 | DK145: =IF(AND(BX145<>"",BX145<>"x"),0.5,) -> 0 | DL145: =IF(AND(BY145<>"",BY145<>"x"),0.5,) -> 0 | DM145: =IF(AND(BZ145<>"",BZ145<>"x"),0.5,) -> 0 | DN145: =IF(AND(CA145<>"",CA145<>"x"),0.5,) -> 0 | DO145: =IF(AND(CB145<>"",CB145<>"x"),0.5,) -> 0 | DP145: =IF(AND(CC145<>"",CC145<>"x"),0.5,) -> 0 | DQ145: =IF(AND(CD145<>"",CD145<>"x"),0.5,) -> 0 | DR145: =IF(AND(CE145<>"",CE145<>"x"),0.5,) -> 0 | DS145: =IF(AND(CF145<>"",CF145<>"x"),0.5,) -> 0 | DT145: =IF(AND(CG145<>"",CG145<>"x"),0.5,) -> 0 | DV145: =IF(VLOOKUP($A145,'Schedule Setup'!$A$4:$E$39,5,FALSE)=0,"",VLOOKUP($A145,'Schedule Setup'!$A$4:$E$39,5,FALSE)) ->  | DW145: =SUM(CI145:CT145) -> 5 | DX145: =IFERROR(DW145*$DV145,"") ->  | DY145: =SUM(CU145:DF145) -> 3 | DZ145: =IFERROR(DY145*$DV145,"") ->  | EA145: =SUM(DG145:DT145) -> 0 | EB145: =IFERROR(EA145*$DV145,"") ->  | EC145: =SUM(DW145,DY145,EA145) -> 8 | ED145: =IFERROR(EC145*$DV145,"") ->  | EF145: =IF(DW145>5,(DW145-0.5),DW145) -> 5 | EG145: =IFERROR(EF145*$DV145,"") ->  | EH145: =IF(DY145>5,(DY145-0.5),DY145) -> 3 | EI145: =IFERROR(EH145*$DV145,"") ->  | EJ145: =IF(EA145>5,(EA145-0.5),EA145) -> 0 | EK145: =IFERROR(EJ145*$DV145,"") ->  | EL145: =SUM(EF145,EH145,EJ145) -> 8 | EM145: =IFERROR(EL145*$DV145,"") ->  | EO145: ='Schedule Setup'!L5 -> 06:00:00 | EP145: ='Schedule Setup'!M5 -> 21:30:00 | EQ145: =EO145-(0.5/24) -> 05:30:00 | ER145: =EP145+(0.5/24) -> 22:00:00
A146: =A145+1 -> 2 | B146: =IF(VLOOKUP($A146,'Schedule Setup'!$A$4:$E$39,2,FALSE)=0,"",VLOOKUP($A146,'Schedule Setup'!$A$4:$E$39,2,FALSE)) -> Clay Huycke-McCall | C146: =IF(VLOOKUP($A146,'Schedule Setup'!$A$4:$E$39,4,FALSE)=0,"",VLOOKUP($A146,'Schedule Setup'!$A$4:$E$39,4,FALSE)) -> Shift Manager | D146: =IF(B146<>"",IF(OR(C146="General Manager (S)", C146="General Manager (H)"), "GM",IF(C146="Acting Manager","AM",IF(C146="Shift Manager","SM",IF(C146="Team Lead","TL","TM")))),"") -> SM | H146: x | I146: x | J146: x | K146: x | L146: x | M146: x | N146: x | O146: x | P146: x | Q146: x | R146: x | S146: x | T146: x | U146: x | V146: x | W146: x | X146: x | Y146: x | Z146: x | AA146: x | AB146: x | AC146: x | AD146: x | AE146: x | AF146: x | AG146: x | AH146: x | AI146: x | AJ146: x | AK146: x | AL146: x | AM146: x | AN146: x | AO146: x | AP146: x | AQ146: x | AR146: x | AS146: x | AT146: =EC146 -> 0 | AV146: x | AW146: x | AX146: x | AY146: x | AZ146: x | BA146: x | BB146: x | BC146: x | BD146: x | BE146: x | BF146: x | BG146: x | BH146: x | BI146: x | BJ146: x | BK146: x | BL146: x | BM146: x | BN146: x | BO146: x | BP146: x | BQ146: x | BR146: x | BS146: x | BT146: x | BU146: x | BV146: x | BW146: x | BX146: x | BY146: x | BZ146: x | CA146: x | CB146: x | CC146: x | CD146: x | CE146: x | CF146: x | CG146: x | CI146: =IF(AND(AV146<>"",AV146<>"x"),0.5,) -> 0 | CJ146: 0 | CK146: 0 | CL146: 0 | CM146: 0 | CN146: 0 | CO146: 0 | CP146: 0 | CQ146: 0 | CR146: 0 | CS146: 0 | CT146: 0 | CU146: 0 | CV146: 0 | CW146: 0 | CX146: 0 | CY146: 0 | CZ146: 0 | DA146: 0 | DB146: 0 | DC146: 0 | DD146: 0 | DE146: 0 | DF146: 0 | DG146: 0 | DH146: 0 | DI146: 0 | DJ146: 0 | DK146: 0 | DL146: 0 | DM146: 0 | DN146: 0 | DO146: 0 | DP146: 0 | DQ146: 0 | DR146: 0 | DS146: 0 | DT146: 0 | DV146: =IF(VLOOKUP($A146,'Schedule Setup'!$A$4:$E$39,5,FALSE)=0,"",VLOOKUP($A146,'Schedule Setup'!$A$4:$E$39,5,FALSE)) ->  | DW146: 0 | DY146: 0 | EA146: 0 | EC146: =SUM(DW146,DY146,EA146) -> 0 | EF146: =IF(DW146>5,(DW146-0.5),DW146) -> 0 | EH146: =IF(DY146>5,(DY146-0.5),DY146) -> 0 | EJ146: 0 | EL146: =SUM(EF146,EH146,EJ146) -> 0 | EO146: ='Schedule Setup'!L6 -> Req. Off | EP146: ='Schedule Setup'!M6 -> Req. Off | EQ146: =EO146-(0.5/24) ->  | ER146: =EP146+(0.5/24) -> 
A147: =A146+1 -> 3 | B147: =IF(VLOOKUP($A147,'Schedule Setup'!$A$4:$E$39,2,FALSE)=0,"",VLOOKUP($A147,'Schedule Setup'!$A$4:$E$39,2,FALSE)) -> Shaina Hunt | C147: =IF(VLOOKUP($A147,'Schedule Setup'!$A$4:$E$39,4,FALSE)=0,"",VLOOKUP($A147,'Schedule Setup'!$A$4:$E$39,4,FALSE)) -> Shift Manager | D147: SM | H147: x | I147: x | AB147: =BP147 ->  | AO147: x | AP147: x | AQ147: x | AR147: x | AS147: x | AT147: 0 | AV147: x | AW147: x | CC147: x | CD147: x | CE147: x | CF147: x | CG147: x | CI147: 0 | CJ147: 0 | CK147: 0 | CL147: 0 | CM147: 0 | CN147: 0 | CO147: 0 | CP147: 0 | CQ147: 0 | CR147: 0 | CS147: 0 | CT147: 0 | CU147: 0 | CV147: 0 | CW147: 0 | CX147: 0 | CY147: 0 | CZ147: 0 | DA147: 0 | DB147: 0 | DC147: 0 | DD147: 0 | DE147: 0 | DF147: 0 | DG147: 0 | DH147: 0 | DI147: 0 | DJ147: 0 | DK147: 0 | DL147: 0 | DM147: 0 | DN147: 0 | DO147: 0 | DP147: 0 | DQ147: 0 | DR147: 0 | DS147: 0 | DT147: 0 | DV147: =IF(VLOOKUP($A147,'Schedule Setup'!$A$4:$E$39,5,FALSE)=0,"",VLOOKUP($A147,'Schedule Setup'!$A$4:$E$39,5,FALSE)) ->  | DW147: 0 | DY147: 0 | EA147: 0 | EC147: =SUM(DW147,DY147,EA147) -> 0 | EF147: 0 | EH147: 0 | EJ147: 0 | EL147: 0 | EO147: ='Schedule Setup'!L7 -> 06:00:00 | EP147: ='Schedule Setup'!M7 -> 21:30:00 | EQ147: 05:30:00 | ER147: 22:00:00
A148: 4 | B148: =IF(VLOOKUP($A148,'Schedule Setup'!$A$4:$E$39,2,FALSE)=0,"",VLOOKUP($A148,'Schedule Setup'!$A$4:$E$39,2,FALSE)) -> Christian Fink | C148: =IF(VLOOKUP($A148,'Schedule Setup'!$A$4:$E$39,4,FALSE)=0,"",VLOOKUP($A148,'Schedule Setup'!$A$4:$E$39,4,FALSE)) -> Team Lead | D148: TL | E148: 13:30:00 | F148: 21:30:00 | H148: x | I148: x | Y148: TL | Z148: TL | AA148: TL | AB148: TL | AC148: TL | AD148: TL | AE148: TL | AF148: TL | AG148: TL | AH148: TL | AI148: TL | AJ148: TL | AK148: TL | AL148: TL | AM148: TL | AN148: TL | AO148: x | AP148: x | AQ148: x | AR148: x | AS148: x | AT148: 8 | AV148: x | AW148: x | BM148: TL | BN148: TL | BO148: TL | BP148: TL | BQ148: TL | BR148: TL | BS148: TL | BT148: TL | BU148: TL | BV148: TL | BW148: TL | BX148: TL | BY148: TL | BZ148: TL | CA148: TL | CB148: TL | CC148: x | CD148: x | CE148: x | CF148: x | CG148: x | CI148: 0 | CJ148: 0 | CK148: 0 | CL148: 0 | CM148: 0 | CN148: 0 | CO148: 0 | CP148: 0 | CQ148: 0 | CR148: 0 | CS148: 0 | CT148: 0 | CU148: 0 | CV148: 0 | CW148: 0 | CX148: 0 | CY148: 0 | CZ148: 0.5 | DA148: 0.5 | DB148: 0.5 | DC148: 0.5 | DD148: 0.5 | DE148: 0.5 | DF148: 0.5 | DG148: 0.5 | DH148: 0.5 | DI148: 0.5 | DJ148: 0.5 | DK148: 0.5 | DL148: 0.5 | DM148: 0.5 | DN148: 0.5 | DO148: 0.5 | DP148: 0 | DQ148: 0 | DR148: 0 | DS148: 0 | DT148: 0 | DV148: =IF(VLOOKUP($A148,'Schedule Setup'!$A$4:$E$39,5,FALSE)=0,"",VLOOKUP($A148,'Schedule Setup'!$A$4:$E$39,5,FALSE)) ->  | DW148: 0 | DY148: 3.5 | EA148: 4.5 | EC148: 8 | EF148: 0 | EH148: 3.5 | EJ148: 4.5 | EL148: 8 | EO148: ='Schedule Setup'!L8 -> 06:00:00 | EP148: ='Schedule Setup'!M8 -> 21:30:00 | EQ148: 05:30:00 | ER148: 22:00:00
A149: 5 | B149: =IF(VLOOKUP($A149,'Schedule Setup'!$A$4:$E$39,2,FALSE)=0,"",VLOOKUP($A149,'Schedule Setup'!$A$4:$E$39,2,FALSE)) -> Brendan Frye | C149: =IF(VLOOKUP($A149,'Schedule Setup'!$A$4:$E$39,4,FALSE)=0,"",VLOOKUP($A149,'Schedule Setup'!$A$4:$E$39,4,FALSE)) -> Team Member | D149: TM | E149: 14:30:00 | F149: 21:30:00 | H149: x | I149: x | J149: x | K149: x | AA149: TM | AB149: TM | AC149: TM | AD149: TM | AE149: TM | AF149: TM | AG149: TM | AH149: TM | AI149: TM | AJ149: TM | AK149: TM | AL149: TM | AM149: TM | AN149: TM | AO149: x | AP149: x | AQ149: x | AR149: x | AS149: x | AT149: 7 | AV149: x | AW149: x | AX149: x | AY149: x | BO149: TM | BP149: TM | BQ149: TM | BR149: TM | BS149: TM | BT149: TM | BU149: TM | BV149: TM | BW149: TM | BX149: TM | BY149: TM | BZ149: TM | CA149: TM | CB149: TM | CC149: x | CD149: x | CE149: x | CF149: x | CG149: x | CI149: 0 | CJ149: 0 | CK149: 0 | CL149: 0 | CM149: 0 | CN149: 0 | CO149: 0 | CP149: 0 | CQ149: 0 | CR149: 0 | CS149: 0 | CT149: 0 | CU149: 0 | CV149: 0 | CW149: 0 | CX149: 0 | CY149: 0 | CZ149: 0 | DA149: 0 | DB149: 0.5 | DC149: 0.5 | DD149: 0.5 | DE149: 0.5 | DF149: 0.5 | DG149: 0.5 | DH149: 0.5 | DI149: 0.5 | DJ149: 0.5 | DK149: 0.5 | DL149: 0.5 | DM149: 0.5 | DN149: 0.5 | DO149: 0.5 | DP149: 0 | DQ149: 0 | DR149: 0 | DS149: 0 | DT149: 0 | DV149: =IF(VLOOKUP($A149,'Schedule Setup'!$A$4:$E$39,5,FALSE)=0,"",VLOOKUP($A149,'Schedule Setup'!$A$4:$E$39,5,FALSE)) ->  | DW149: 0 | DY149: 2.5 | EA149: 4.5 | EC149: 7 | EF149: 0 | EH149: 2.5 | EJ149: 4.5 | EL149: 7 | EO149: ='Schedule Setup'!L9 -> 07:00:00 | EP149: ='Schedule Setup'!M9 -> 21:30:00 | EQ149: 06:30:00 | ER149: 22:00:00
A150: 6 | B150: =IF(VLOOKUP($A150,'Schedule Setup'!$A$4:$E$39,2,FALSE)=0,"",VLOOKUP($A150,'Schedule Setup'!$A$4:$E$39,2,FALSE)) -> Jordan Galli | C150: =IF(VLOOKUP($A150,'Schedule Setup'!$A$4:$E$39,4,FALSE)=0,"",VLOOKUP($A150,'Schedule Setup'!$A$4:$E$39,4,FALSE)) -> Team Member | D150: TM | E150: 08:00:00 | F150: 15:00:00 | H150: x | I150: x | J150: x | K150: x | N150: TM | O150: TM | P150: TM | Q150: TM | R150: TM | S150: TM | T150: TM | U150: TM | V150: TM | W150: TM | X150: TM | Y150: TM | Z150: TM | AA150: TM | AO150: x | AP150: x | AQ150: x | AR150: x | AS150: x | AT150: 7 | AV150: x | AW150: x | AX150: x | AY150: x | BB150: TM | BC150: TM | BD150: TM | BE150: TM | BF150: TM | BG150: TM | BH150: TM | BI150: TM | BJ150: TM | BK150: TM | BL150: TM | BM150: TM | BN150: TM | BO150: TM | CC150: x | CD150: x | CE150: x | CF150: x | CG150: x | CI150: 0 | CJ150: 0 | CK150: 0 | CL150: 0 | CM150: 0 | CN150: 0 | CO150: 0.5 | CP150: 0.5 | CQ150: 0.5 | CR150: 0.5 | CS150: 0.5 | CT150: 0.5 | CU150: 0.5 | CV150: 0.5 | CW150: 0.5 | CX150: 0.5 | CY150: 0.5 | CZ150: 0.5 | DA150: 0.5 | DB150: 0.5 | DC150: 0 | DD150: 0 | DE150: 0 | DF150: 0 | DG150: 0 | DH150: 0 | DI150: 0 | DJ150: 0 | DK150: 0 | DL150: 0 | DM150: 0 | DN150: 0 | DO150: 0 | DP150: 0 | DQ150: 0 | DR150: 0 | DS150: 0 | DT150: 0 | DV150: =IF(VLOOKUP($A150,'Schedule Setup'!$A$4:$E$39,5,FALSE)=0,"",VLOOKUP($A150,'Schedule Setup'!$A$4:$E$39,5,FALSE)) ->  | DW150: 3 | DY150: 4 | EA150: 0 | EC150: 7 | EF150: 3 | EH150: 4 | EJ150: 0 | EL150: 7 | EO150: ='Schedule Setup'!L10 -> 07:00:00 | EP150: ='Schedule Setup'!M10 -> 21:30:00 | EQ150: 06:30:00 | ER150: 22:00:00
A151: 7 | B151: =IF(VLOOKUP($A151,'Schedule Setup'!$A$4:$E$39,2,FALSE)=0,"",VLOOKUP($A151,'Schedule Setup'!$A$4:$E$39,2,FALSE)) -> Madelyn Hickey | C151: =IF(VLOOKUP($A151,'Schedule Setup'!$A$4:$E$39,4,FALSE)=0,"",VLOOKUP($A151,'Schedule Setup'!$A$4:$E$39,4,FALSE)) -> Team Member | D151: TM | H151: x | I151: x | J151: x | K151: x | L151: x | M151: x | N151: x | O151: x | P151: x | Q151: x | R151: x | S151: x | T151: x | U151: x | V151: x | W151: x | X151: x | Y151: x | Z151: x | AA151: x | AB151: x | AC151: x | AD151: x | AE151: x | AF151: x | AG151: x | AH151: x | AI151: =BW151 -> x | AJ151: x | AK151: x | AL151: x | AM151: x | AN151: x | AO151: x | AP151: x | AQ151: x | AR151: x | AS151: x | AT151: 0 | AV151: x | AW151: x | AX151: x | AY151: x | AZ151: x | BA151: x | BB151: x | BC151: x | BD151: x | BE151: x | BF151: x | BG151: x | BH151: x | BI151: x | BJ151: x | BK151: x | BL151: x | BM151: x | BN151: x | BO151: x | BP151: x | BQ151: x | BR151: x | BS151: x | BT151: x | BU151: x | BV151: x | BW151: x | BX151: x | BY151: x | BZ151: x | CA151: x | CB151: x | CC151: x | CD151: x | CE151: x | CF151: x | CG151: x | CI151: 0 | CJ151: 0 | CK151: 0 | CL151: 0 | CM151: 0 | CN151: 0 | CO151: 0 | CP151: 0 | CQ151: 0 | CR151: 0 | CS151: 0 | CT151: 0 | CU151: 0 | CV151: 0 | CW151: 0 | CX151: 0 | CY151: 0 | CZ151: 0 | DA151: 0 | DB151: 0 | DC151: 0 | DD151: 0 | DE151: 0 | DF151: 0 | DG151: 0 | DH151: 0 | DI151: 0 | DJ151: 0 | DK151: 0 | DL151: 0 | DM151: 0 | DN151: 0 | DO151: 0 | DP151: 0 | DQ151: 0 | DR151: 0 | DS151: 0 | DT151: 0 | DV151: =IF(VLOOKUP($A151,'Schedule Setup'!$A$4:$E$39,5,FALSE)=0,"",VLOOKUP($A151,'Schedule Setup'!$A$4:$E$39,5,FALSE)) ->  | DW151: 0 | DY151: 0 | EA151: 0 | EC151: 0 | EF151: 0 | EH151: 0 | EJ151: 0 | EL151: 0 | EO151: ='Schedule Setup'!L11 -> UnAvail | EP151: ='Schedule Setup'!M11 -> UnAvail
A152: 8 | B152: =IF(VLOOKUP($A152,'Schedule Setup'!$A$4:$E$39,2,FALSE)=0,"",VLOOKUP($A152,'Schedule Setup'!$A$4:$E$39,2,FALSE)) ->  | C152: =IF(VLOOKUP($A152,'Schedule Setup'!$A$4:$E$39,4,FALSE)=0,"",VLOOKUP($A152,'Schedule Setup'!$A$4:$E$39,4,FALSE)) ->  | H152: =AV152 -> x | I152: x | J152: x | K152: x | L152: x | M152: x | N152: x | O152: x | P152: x | Q152: x | R152: x | S152: x | T152: x | U152: x | V152: x | W152: x | X152: =BL152 -> x | Y152: x | Z152: x | AA152: x | AB152: x | AC152: x | AD152: x | AE152: x | AF152: x | AG152: x | AH152: x | AI152: x | AJ152: x | AK152: x | AL152: x | AM152: x | AN152: x | AO152: x | AP152: x | AQ152: x | AR152: x | AS152: x | AT152: 0 | AV152: x | AW152: x | AX152: x | AY152: x | AZ152: x | BA152: x | BB152: x | BC152: x | BD152: x | BE152: x | BF152: x | BG152: x | BH152: x | BI152: x | BJ152: x | BK152: x | BL152: x | BM152: x | BN152: x | BO152: x | BP152: x | BQ152: x | BR152: x | BS152: x | BT152: x | BU152: x | BV152: x | BW152: x | BX152: x | BY152: x | BZ152: x | CA152: x | CB152: x | CC152: =IF(AND($EO152<=AO$6+0.01,$EP152>AO$6+0.01),IF(AND(AO$6<$F152-0.01,AO$6>=$E152-0.01),$D152,""),"x") -> x | CD152: x | CE152: x | CF152: x | CG152: x | CI152: 0 | CJ152: 0 | CK152: 0 | CL152: 0 | CM152: 0 | CN152: 0 | CO152: 0 | CP152: 0 | CQ152: 0 | CR152: 0 | CS152: 0 | CT152: 0 | CU152: 0 | CV152: 0 | CW152: 0 | CX152: 0 | CY152: 0 | CZ152: 0 | DA152: 0 | DB152: 0 | DC152: 0 | DD152: 0 | DE152: 0 | DF152: 0 | DG152: 0 | DH152: 0 | DI152: 0 | DJ152: 0 | DK152: 0 | DL152: 0 | DM152: 0 | DN152: 0 | DO152: 0 | DP152: 0 | DQ152: 0 | DR152: 0 | DS152: 0 | DT152: 0 | DV152: =IF(VLOOKUP($A152,'Schedule Setup'!$A$4:$E$39,5,FALSE)=0,"",VLOOKUP($A152,'Schedule Setup'!$A$4:$E$39,5,FALSE)) ->  | DW152: 0 | DX152: =IFERROR(DW152*$DV152,"") ->  | DY152: 0 | EA152: 0 | EC152: 0 | EF152: 0 | EH152: 0 | EJ152: 0 | EL152: 0 | EO152: ='Schedule Setup'!L12 -> 00:00:00 | EP152: ='Schedule Setup'!M12 -> 00:00:00 | EQ152: -0.02083333333 | ER152: 00:30:00
